Workbook

Sheet Cover
B9: SFR03/2017: GCSE and equivalent results in England 2015/16 (Revised)
B11: Subject time series table
B13: Producer: Ali Pareas
B14: Education Data Division, Department for Education, Sanctuary Buildings, Great Smith Street, London SW1P 3BT.
B15: Published: 19th January 2017
B16: Crown copyright © 2017
B18: Index
B20: Further information on key stage 4 statistics can be found at: | G20: https://www.gov.uk/government/collections/statistics-gcses-key-stage-4
B21: This table forms part of SFR03/2017. The text of the release and additional tables can be found at the link above.

Sheet Index
A1: SFR03/2017: GCSE and equivalent results in England 2015/16 (REVISED)
A3: Subject time series table
A5: Index of tables
B6: Source: key stage 4 attainment data
B7: Coverage: England
B9: Table title | C9: School types covered | D9: Period
B10: Subject time series | C10: All schools | D10: 2009/10 to 2015/16
B11: Subject grouping composition table | C11: N/A | D11: N/A

Sheet Subject time series
E2: Time series of GCSE results1 of pupils at the end of key stage 4 in all schools, by subject2, grade and gender
E3: Years: 2009/10 - 2015/163
E4: Coverage: England
E5: English | F5: All | G5: =IF(Sex="Boys",3,IF(Sex="Girls",16,29)) -> 29
E6: =Group -> English | F6: =Sex -> All
F7: Percentage achieving grade(s) | Q7: Total entries
E8: Year | F8: A* | G8: A | H8: B | I8: C | J8: D | K8: E | L8: F | M8: G | N8: A*-A | O8: A*-C | P8: A*-G
E9: 2009/2010 | F9: =IF(ISERROR(VLOOKUP(Group,GCSE2010,$G$5+Descriptions!F$1,FALSE)),"-",VLOOKUP(Group,GCSE2010,$G$5+Descriptions!F$1,FALSE)) -> 5.1 | G9: =IF(ISERROR(VLOOKUP(Group,GCSE2010,$G$5+Descriptions!G$1,FALSE)),"-",VLOOKUP(Group,GCSE2010,$G$5+Descriptions!G$1,FALSE)) -> 13.3 | H9: =IF(ISERROR(VLOOKUP(Group,GCSE2010,$G$5+Descriptions!H$1,FALSE)),"-",VLOOKUP(Group,GCSE2010,$G$5+Descriptions!H$1,FALSE)) -> 22.1 | I9: =IF(ISERROR(VLOOKUP(Group,GCSE2010,$G$5+Descriptions!I$1,FALSE)),"-",VLOOKUP(Group,GCSE2010,$G$5+Descriptions!I$1,FALSE)) -> 29.3 | J9: =IF(ISERROR(VLOOKUP(Group,GCSE2010,$G$5+Descriptions!J$1,FALSE)),"-",VLOOKUP(Group,GCSE2010,$G$5+Descriptions!J$1,FALSE)) -> 16.3 | K9: =IF(ISERROR(VLOOKUP(Group,GCSE2010,$G$5+Descriptions!K$1,FALSE)),"-",VLOOKUP(Group,GCSE2010,$G$5+Descriptions!K$1,FALSE)) -> 7.9 | L9: =IF(ISERROR(VLOOKUP(Group,GCSE2010,$G$5+Descriptions!L$1,FALSE)),"-",VLOOKUP(Group,GCSE2010,$G$5+Descriptions!L$1,FALSE)) -> 3.6 | M9: =IF(ISERROR(VLOOKUP(Group,GCSE2010,$G$5+Descriptions!M$1,FALSE)),"-",VLOOKUP(Group,GCSE2010,$G$5+Descriptions!M$1,FALSE)) -> 1.4 | N9: =IF(ISERROR(VLOOKUP(Group,GCSE2010,$G$5+Descriptions!N$1,FALSE)),"-",VLOOKUP(Group,GCSE2010,$G$5+Descriptions!N$1,FALSE)) -> 18.3 | O9: =IF(ISERROR(VLOOKUP(Group,GCSE2010,$G$5+Descriptions!O$1,FALSE)),"-",VLOOKUP(Group,GCSE2010,$G$5+Descriptions!O$1,FALSE)) -> 69.8 | P9: =IF(ISERROR(VLOOKUP(Group,GCSE2010,$G$5+Descriptions!P$1,FALSE)),"-",VLOOKUP(Group,GCSE2010,$G$5+Descriptions!P$1,FALSE)) -> 99 | Q9: =IF(ISERROR(VLOOKUP(Group,GCSE2010,$G$5+Descriptions!Q$1,FALSE)),"-",VLOOKUP(Group,GCSE2010,$G$5+Descriptions!Q$1,FALSE)) -> 599245
E10: 2010/2011 | F10: =IF(ISERROR(VLOOKUP(Group,GCSE2011,$G$5+Descriptions!F$1,FALSE)),"-",VLOOKUP(Group,GCSE2011,$G$5+Descriptions!F$1,FALSE)) -> 5.5 | G10: =IF(ISERROR(VLOOKUP(Group,GCSE2011,$G$5+Descriptions!G$1,FALSE)),"-",VLOOKUP(Group,GCSE2011,$G$5+Descriptions!G$1,FALSE)) -> 13.9 | H10: =IF(ISERROR(VLOOKUP(Group,GCSE2011,$G$5+Descriptions!H$1,FALSE)),"-",VLOOKUP(Group,GCSE2011,$G$5+Descriptions!H$1,FALSE)) -> 22.5 | I10: =IF(ISERROR(VLOOKUP(Group,GCSE2011,$G$5+Descriptions!I$1,FALSE)),"-",VLOOKUP(Group,GCSE2011,$G$5+Descriptions!I$1,FALSE)) -> 30.3 | J10: =IF(ISERROR(VLOOKUP(Group,GCSE2011,$G$5+Descriptions!J$1,FALSE)),"-",VLOOKUP(Group,GCSE2011,$G$5+Descriptions!J$1,FALSE)) -> 15.4 | K10: =IF(ISERROR(VLOOKUP(Group,GCSE2011,$G$5+Descriptions!K$1,FALSE)),"-",VLOOKUP(Group,GCSE2011,$G$5+Descriptions!K$1,FALSE)) -> 7.2 | L10: =IF(ISERROR(VLOOKUP(Group,GCSE2011,$G$5+Descriptions!L$1,FALSE)),"-",VLOOKUP(Group,GCSE2011,$G$5+Descriptions!L$1,FALSE)) -> 3.1 | M10: =IF(ISERROR(VLOOKUP(Group,GCSE2011,$G$5+Descriptions!M$1,FALSE)),"-",VLOOKUP(Group,GCSE2011,$G$5+Descriptions!M$1,FALSE)) -> 1.2 | N10: =IF(ISERROR(VLOOKUP(Group,GCSE2011,$G$5+Descriptions!N$1,FALSE)),"-",VLOOKUP(Group,GCSE2011,$G$5+Descriptions!N$1,FALSE)) -> 19.4 | O10: =IF(ISERROR(VLOOKUP(Group,GCSE2011,$G$5+Descriptions!O$1,FALSE)),"-",VLOOKUP(Group,GCSE2011,$G$5+Descriptions!O$1,FALSE)) -> 72.3 | P10: =IF(ISERROR(VLOOKUP(Group,GCSE2011,$G$5+Descriptions!P$1,FALSE)),"-",VLOOKUP(Group,GCSE2011,$G$5+Descriptions!P$1,FALSE)) -> 99.1 | Q10: =IF(ISERROR(VLOOKUP(Group,GCSE2011,$G$5+Descriptions!Q$1,FALSE)),"-",VLOOKUP(Group,GCSE2011,$G$5+Descriptions!Q$1,FALSE)) -> 587461
E11: 2011/2012 | F11: =IF(ISERROR(VLOOKUP(Group,GCSE2012,$G$5+Descriptions!F$1,FALSE)),"-",VLOOKUP(Group,GCSE2012,$G$5+Descriptions!F$1,FALSE)) -> 3.8 | G11: =IF(ISERROR(VLOOKUP(Group,GCSE2012,$G$5+Descriptions!G$1,FALSE)),"-",VLOOKUP(Group,GCSE2012,$G$5+Descriptions!G$1,FALSE)) -> 12.8 | H11: =IF(ISERROR(VLOOKUP(Group,GCSE2012,$G$5+Descriptions!H$1,FALSE)),"-",VLOOKUP(Group,GCSE2012,$G$5+Descriptions!H$1,FALSE)) -> 22.1 | I11: =IF(ISERROR(VLOOKUP(Group,GCSE2012,$G$5+Descriptions!I$1,FALSE)),"-",VLOOKUP(Group,GCSE2012,$G$5+Descriptions!I$1,FALSE)) -> 30.6 | J11: =IF(ISERROR(VLOOKUP(Group,GCSE2012,$G$5+Descriptions!J$1,FALSE)),"-",VLOOKUP(Group,GCSE2012,$G$5+Descriptions!J$1,FALSE)) -> 17.4 | K11: =IF(ISERROR(VLOOKUP(Group,GCSE2012,$G$5+Descriptions!K$1,FALSE)),"-",VLOOKUP(Group,GCSE2012,$G$5+Descriptions!K$1,FALSE)) -> 8.1 | L11: =IF(ISERROR(VLOOKUP(Group,GCSE2012,$G$5+Descriptions!L$1,FALSE)),"-",VLOOKUP(Group,GCSE2012,$G$5+Descriptions!L$1,FALSE)) -> 3.4 | M11: =IF(ISERROR(VLOOKUP(Group,GCSE2012,$G$5+Descriptions!M$1,FALSE)),"-",VLOOKUP(Group,GCSE2012,$G$5+Descriptions!M$1,FALSE)) -> 1.1 | N11: =IF(ISERROR(VLOOKUP(Group,GCSE2012,$G$5+Descriptions!N$1,FALSE)),"-",VLOOKUP(Group,GCSE2012,$G$5+Descriptions!N$1,FALSE)) -> 16.6 | O11: =IF(ISERROR(VLOOKUP(Group,GCSE2012,$G$5+Descriptions!O$1,FALSE)),"-",VLOOKUP(Group,GCSE2012,$G$5+Descriptions!O$1,FALSE)) -> 69.3 | P11: =IF(ISERROR(VLOOKUP(Group,GCSE2012,$G$5+Descriptions!P$1,FALSE)),"-",VLOOKUP(Group,GCSE2012,$G$5+Descriptions!P$1,FALSE)) -> 99.4 | Q11: =IF(ISERROR(VLOOKUP(Group,GCSE2012,$G$5+Descriptions!Q$1,FALSE)),"-",VLOOKUP(Group,GCSE2012,$G$5+Descriptions!Q$1,FALSE)) -> 568611
E12: 2012/2013 | F12: =IF(ISERROR(VLOOKUP(Group,GCSE2013,$G$5+Descriptions!F$1,FALSE)),"-",VLOOKUP(Group,GCSE2013,$G$5+Descriptions!F$1,FALSE)) -> 4 | G12: =IF(ISERROR(VLOOKUP(Group,GCSE2013,$G$5+Descriptions!G$1,FALSE)),"-",VLOOKUP(Group,GCSE2013,$G$5+Descriptions!G$1,FALSE)) -> 13 | H12: =IF(ISERROR(VLOOKUP(Group,GCSE2013,$G$5+Descriptions!H$1,FALSE)),"-",VLOOKUP(Group,GCSE2013,$G$5+Descriptions!H$1,FALSE)) -> 23.2 | I12: =IF(ISERROR(VLOOKUP(Group,GCSE2013,$G$5+Descriptions!I$1,FALSE)),"-",VLOOKUP(Group,GCSE2013,$G$5+Descriptions!I$1,FALSE)) -> 30.5 | J12: =IF(ISERROR(VLOOKUP(Group,GCSE2013,$G$5+Descriptions!J$1,FALSE)),"-",VLOOKUP(Group,GCSE2013,$G$5+Descriptions!J$1,FALSE)) -> 16.6 | K12: =IF(ISERROR(VLOOKUP(Group,GCSE2013,$G$5+Descriptions!K$1,FALSE)),"-",VLOOKUP(Group,GCSE2013,$G$5+Descriptions!K$1,FALSE)) -> 7.8 | L12: =IF(ISERROR(VLOOKUP(Group,GCSE2013,$G$5+Descriptions!L$1,FALSE)),"-",VLOOKUP(Group,GCSE2013,$G$5+Descriptions!L$1,FALSE)) -> 3.3 | M12: =IF(ISERROR(VLOOKUP(Group,GCSE2013,$G$5+Descriptions!M$1,FALSE)),"-",VLOOKUP(Group,GCSE2013,$G$5+Descriptions!M$1,FALSE)) -> 1.1 | N12: =IF(ISERROR(VLOOKUP(Group,GCSE2013,$G$5+Descriptions!N$1,FALSE)),"-",VLOOKUP(Group,GCSE2013,$G$5+Descriptions!N$1,FALSE)) -> 17.1 | O12: =IF(ISERROR(VLOOKUP(Group,GCSE2013,$G$5+Descriptions!O$1,FALSE)),"-",VLOOKUP(Group,GCSE2013,$G$5+Descriptions!O$1,FALSE)) -> 70.7 | P12: =IF(ISERROR(VLOOKUP(Group,GCSE2013,$G$5+Descriptions!P$1,FALSE)),"-",VLOOKUP(Group,GCSE2013,$G$5+Descriptions!P$1,FALSE)) -> 99.4 | Q12: =IF(ISERROR(VLOOKUP(Group,GCSE2013,$G$5+Descriptions!Q$1,FALSE)),"-",VLOOKUP(Group,GCSE2013,$G$5+Descriptions!Q$1,FALSE)) -> 550801
E13: 2013/20144 | F13: =IF(ISERROR(VLOOKUP(Group,GCSE2014,$G$5+Descriptions!F$1,FALSE)),"-",VLOOKUP(Group,GCSE2014,$G$5+Descriptions!F$1,FALSE)) -> 4.3 | G13: =IF(ISERROR(VLOOKUP(Group,GCSE2014,$G$5+Descriptions!G$1,FALSE)),"-",VLOOKUP(Group,GCSE2014,$G$5+Descriptions!G$1,FALSE)) -> 13.3 | H13: =IF(ISERROR(VLOOKUP(Group,GCSE2014,$G$5+Descriptions!H$1,FALSE)),"-",VLOOKUP(Group,GCSE2014,$G$5+Descriptions!H$1,FALSE)) -> 24.6 | I13: =IF(ISERROR(VLOOKUP(Group,GCSE2014,$G$5+Descriptions!I$1,FALSE)),"-",VLOOKUP(Group,GCSE2014,$G$5+Descriptions!I$1,FALSE)) -> 30.1 | J13: =IF(ISERROR(VLOOKUP(Group,GCSE2014,$G$5+Descriptions!J$1,FALSE)),"-",VLOOKUP(Group,GCSE2014,$G$5+Descriptions!J$1,FALSE)) -> 16.3 | K13: =IF(ISERROR(VLOOKUP(Group,GCSE2014,$G$5+Descriptions!K$1,FALSE)),"-",VLOOKUP(Group,GCSE2014,$G$5+Descriptions!K$1,FALSE)) -> 6.7 | L13: =IF(ISERROR(VLOOKUP(Group,GCSE2014,$G$5+Descriptions!L$1,FALSE)),"-",VLOOKUP(Group,GCSE2014,$G$5+Descriptions!L$1,FALSE)) -> 2.7 | M13: =IF(ISERROR(VLOOKUP(Group,GCSE2014,$G$5+Descriptions!M$1,FALSE)),"-",VLOOKUP(Group,GCSE2014,$G$5+Descriptions!M$1,FALSE)) -> 1 | N13: =IF(ISERROR(VLOOKUP(Group,GCSE2014,$G$5+Descriptions!N$1,FALSE)),"-",VLOOKUP(Group,GCSE2014,$G$5+Descriptions!N$1,FALSE)) -> 17.6 | O13: =IF(ISERROR(VLOOKUP(Group,GCSE2014,$G$5+Descriptions!O$1,FALSE)),"-",VLOOKUP(Group,GCSE2014,$G$5+Descriptions!O$1,FALSE)) -> 72.4 | P13: =IF(ISERROR(VLOOKUP(Group,GCSE2014,$G$5+Descriptions!P$1,FALSE)),"-",VLOOKUP(Group,GCSE2014,$G$5+Descriptions!P$1,FALSE)) -> 99.1 | Q13: =IF(ISERROR(VLOOKUP(Group,GCSE2014,$G$5+Descriptions!Q$1,FALSE)),"-",VLOOKUP(Group,GCSE2014,$G$5+Descriptions!Q$1,FALSE)) -> 464189
E14: 2014/20155 | F14: =IF(ISERROR(VLOOKUP(Group,GCSE2015,$G$5+Descriptions!F$1,FALSE)),"-",VLOOKUP(Group,GCSE2015,$G$5+Descriptions!F$1,FALSE)) -> 4.1 | G14: =IF(ISERROR(VLOOKUP(Group,GCSE2015,$G$5+Descriptions!G$1,FALSE)),"-",VLOOKUP(Group,GCSE2015,$G$5+Descriptions!G$1,FALSE)) -> 14.4 | H14: =IF(ISERROR(VLOOKUP(Group,GCSE2015,$G$5+Descriptions!H$1,FALSE)),"-",VLOOKUP(Group,GCSE2015,$G$5+Descriptions!H$1,FALSE)) -> 26.9 | I14: =IF(ISERROR(VLOOKUP(Group,GCSE2015,$G$5+Descriptions!I$1,FALSE)),"-",VLOOKUP(Group,GCSE2015,$G$5+Descriptions!I$1,FALSE)) -> 29.4 | J14: =IF(ISERROR(VLOOKUP(Group,GCSE2015,$G$5+Descriptions!J$1,FALSE)),"-",VLOOKUP(Group,GCSE2015,$G$5+Descriptions!J$1,FALSE)) -> 15.5 | K14: =IF(ISERROR(VLOOKUP(Group,GCSE2015,$G$5+Descriptions!K$1,FALSE)),"-",VLOOKUP(Group,GCSE2015,$G$5+Descriptions!K$1,FALSE)) -> 5.8 | L14: =IF(ISERROR(VLOOKUP(Group,GCSE2015,$G$5+Descriptions!L$1,FALSE)),"-",VLOOKUP(Group,GCSE2015,$G$5+Descriptions!L$1,FALSE)) -> 2.2 | M14: =IF(ISERROR(VLOOKUP(Group,GCSE2015,$G$5+Descriptions!M$1,FALSE)),"-",VLOOKUP(Group,GCSE2015,$G$5+Descriptions!M$1,FALSE)) -> 0.9 | N14: =IF(ISERROR(VLOOKUP(Group,GCSE2015,$G$5+Descriptions!N$1,FALSE)),"-",VLOOKUP(Group,GCSE2015,$G$5+Descriptions!N$1,FALSE)) -> 18.4 | O14: =IF(ISERROR(VLOOKUP(Group,GCSE2015,$G$5+Descriptions!O$1,FALSE)),"-",VLOOKUP(Group,GCSE2015,$G$5+Descriptions!O$1,FALSE)) -> 74.8 | P14: =IF(ISERROR(VLOOKUP(Group,GCSE2015,$G$5+Descriptions!P$1,FALSE)),"-",VLOOKUP(Group,GCSE2015,$G$5+Descriptions!P$1,FALSE)) -> 99.3 | Q14: =IF(ISERROR(VLOOKUP(Group,GCSE2015,$G$5+Descriptions!Q$1,FALSE)),"-",VLOOKUP(Group,GCSE2015,$G$5+Descriptions!Q$1,FALSE)) -> 363402
E15: 2015/20165 | F15: =IF(ISERROR(VLOOKUP(Group,GCSE2016,$G$5+Descriptions!F$1,FALSE)),"-",VLOOKUP(Group,GCSE2016,$G$5+Descriptions!F$1,FALSE)) -> 4.7 | G15: =IF(ISERROR(VLOOKUP(Group,GCSE2016,$G$5+Descriptions!G$1,FALSE)),"-",VLOOKUP(Group,GCSE2016,$G$5+Descriptions!G$1,FALSE)) -> 13.7 | H15: =IF(ISERROR(VLOOKUP(Group,GCSE2016,$G$5+Descriptions!H$1,FALSE)),"-",VLOOKUP(Group,GCSE2016,$G$5+Descriptions!H$1,FALSE)) -> 25.4 | I15: =IF(ISERROR(VLOOKUP(Group,GCSE2016,$G$5+Descriptions!I$1,FALSE)),"-",VLOOKUP(Group,GCSE2016,$G$5+Descriptions!I$1,FALSE)) -> 29.1 | J15: =IF(ISERROR(VLOOKUP(Group,GCSE2016,$G$5+Descriptions!J$1,FALSE)),"-",VLOOKUP(Group,GCSE2016,$G$5+Descriptions!J$1,FALSE)) -> 16.6 | K15: =IF(ISERROR(VLOOKUP(Group,GCSE2016,$G$5+Descriptions!K$1,FALSE)),"-",VLOOKUP(Group,GCSE2016,$G$5+Descriptions!K$1,FALSE)) -> 6.3 | L15: =IF(ISERROR(VLOOKUP(Group,GCSE2016,$G$5+Descriptions!L$1,FALSE)),"-",VLOOKUP(Group,GCSE2016,$G$5+Descriptions!L$1,FALSE)) -> 2.5 | M15: =IF(ISERROR(VLOOKUP(Group,GCSE2016,$G$5+Descriptions!M$1,FALSE)),"-",VLOOKUP(Group,GCSE2016,$G$5+Descriptions!M$1,FALSE)) -> 1.1 | N15: =IF(ISERROR(VLOOKUP(Group,GCSE2016,$G$5+Descriptions!N$1,FALSE)),"-",VLOOKUP(Group,GCSE2016,$G$5+Descriptions!N$1,FALSE)) -> 18.4 | O15: =IF(ISERROR(VLOOKUP(Group,GCSE2016,$G$5+Descriptions!O$1,FALSE)),"-",VLOOKUP(Group,GCSE2016,$G$5+Descriptions!O$1,FALSE)) -> 72.8 | P15: =IF(ISERROR(VLOOKUP(Group,GCSE2016,$G$5+Descriptions!P$1,FALSE)),"-",VLOOKUP(Group,GCSE2016,$G$5+Descriptions!P$1,FALSE)) -> 99.3 | Q15: =IF(ISERROR(VLOOKUP(Group,GCSE2016,$G$5+Descriptions!Q$1,FALSE)),"-",VLOOKUP(Group,GCSE2016,$G$5+Descriptions!Q$1,FALSE)) -> 338071
Q16: Source: key stage 4 attainment data
E23: 1. Discounting has been applied where pupils have taken the same subject more than once and only one entry is counted in these circumstances. Only the first entry is counted, in all subjects, in line with the early entry guidance (see SFR main text).
E24: 2. Dance and Ancient History are shown as separate subjects in this table. In previous years, Dance has been included in Physical Education and Ancient History has been in included in Other Classical Subjects. See the Subject Grouping Compisition for full details of which subjects have been grouped together.
E25: 3. 2015/16 figures are revised, all other years are final.
E26: 4. In 2013/14, two major reforms were implemented which affect the calculation of key stage 4 performance measures data: 1) Professor Alison Wolf’s Review of Vocational Education recommendations which: restrict the qualifications counted; prevent any qualification from counting as larger than one GCSE; and cap the number of non-GCSEs included in performance measures at two per pupil, and 2) an early entry policy to only count a pupil’s first attempt at a qualification, in subjects counted in the English Baccalaureate.
E27: 5. In 2014/15 and 2015/16, early entry policy, under which only a pupil’s first attempt at a qualification is counted in performance measures, is extended to all subjects (see SFR main text).
E28: x Figure has been suppressed due to low numbers (1 or 2 pupils) or where secondary suppression has been applied.
E29: ="- No entries for this subject." -> - No entries for this subject.
E30: Notes:
E31: Figures include attempts and achievements by these pupils in previous academic years where only the best grade in each individual subject is counted per pupil. Where subjects have been combined into a group (e.g. Other Modern Languages) and a pupil has two or more entries, each result in each subject is counted.
E32: Other science includes Astronomy, Electronics, Environmental Science and Geology.
E33: Other Design and Technology includes Design and Technology Engineering and Product Design qualifications.
E34: Other Classical Studies includes all other classical languages.

Sheet Subject grouping composition
A1: PLEASE NOTE: The following list contains subject information for some qualifications that no longer count in secondary school performance tables. These qualifications have been included below as they are relevant in earlier years where results have fed into a subject grouping to form the totals shown in the time-series table.
A2: Subject group | B2: Subjects
A3: English | B3: English Language & Literature
B4: English Language
A6: Mathematics | B6: Use of Mathematics
B7: Mathematics
B8: Applications of Mathematics
B9: Methods in Mathematics
B10: Mathematics (Mechanics)
B11: Mathematics (Pure)
B12: Mathematics (Statistics)
B13: Mathematics (Further)
B14: Additional Mathematics
B15: Mathematical Studies
A17: Core Science | B17: Science (Core)
B18: Science SA
A20: Additional Science | B20: Additional Science
A22: Further Additional Science | B22: AQA, Pearson and OCR Level 1/Level 2 GCSEs in Further Additional Science
A24: Additional Applied Science | B24: Additional Applied Science
A26: Physics | B26: Physics
A28: Chemistry | B28: Chemistry
A30: Biological Sciences | B30: Biology
B31: Biology: Human
A33: Computer Science | B33: Computer Studies/Computing
A35: Other Sciences | B35: Applied Science
B36: Astronomy
B37: Electronics
B38: Environmental Science
B39: Geology
B40: Science in Society
B41: Science for Public Understanding
B42: Other Science
A44: D & T: Electronic Products | B44: D&T Electronic Products
A46: D & T: Food Technology | B46: D&T Food Technology
A48: D & T: Graphic Products | B48: D&T Graphic Products
A50: D & T: Resistant Materials | B50: D&T Resistant Materials
A52: D & T: Systems & Control | B52: D&T Systems & Control
A54: D & T: Textiles Technology | B54: D&T Textiles Technology
A56: Other Design and Technology | B56: Graphics
B57: Motor Vehicle Studies
B58: Design & Technology
B59: D&T Engineering
B60: D&T Product Design
A62: Applied Engineering | B62: Applied Engineering
A64: Information Technology | B64: Information & Communications Technology
A66: Business Studies | B66: Business Studies:Single
B67: Business Studies & Economics
A69: Applied Business | B69: Applied Business
A72: Home Economics | B72: Home Economics
B73: Home Economics: Child Development
B74: Home Economics: Food
B75: Home Economics: Textiles
A77: Geography | B77: Geography
B78: World Development
A80: History | B80: History
A82: Ancient History | B82: Ancient History
A84: Humanities | B84: Humanities: Single
A86: Economics | B86: Economics
A88: Social Studies | B88: Social Science
B89: Archaeology
B90: Philosophy & Theology
B91: Law
B92: Logic/ Philosophy
B93: Personal & Social Education
B94: Government & Politics
B95: Psychology
B96: Sociology
B97: Anthropology
B98: Social Science: Citizenship
A100: French | B100: French
A102: German | B102: German
A104: Spanish | B104: Spanish
A106: Other Modern Languages | B106: Arabic
B107: Bengali
B108: Chinese
B109: Dutch
B110: Gujarati
B111: Irish
B112: Italian
B113: Japanese
B114: Modern Greek
B115: Modern Hebrew
B116: Persian
B117: Polish
B118: Portuguese
B119: Punjabi
B120: Russian
B121: Turkish
B122: Urdu
B123: Welsh (Second Language)
B124: Welsh Language
B125: Welsh Literature
B126: Other Languages
B127: N.B. For GCSE results in Arabic, Chinese, Italian, Polish and Urdu please see the subject timeseries tables.
A128: Classical Civilisation | B128: Classical Civilisation
A130: Classical Greek | B130: Classical Greek
A132: Latin | B132: Latin
A134: Other Classical Studies | B134: Other Classical Languages
A136: Applied Art and Design | B136: Applied Art & Design
A138: Applied Physical Education | B138: Applied Physical Education
A140: Art and Design | B140: Art & Design
B141: Art & Design (Graphics)
B142: Art & Design (Photography)
B143: Art & Design (Textiles)
B144: Art & Design (3D Studies)
B145: Art & Design (Critical Studies)
B146: Art & Design (Fine Art)
B147: Art
B148: History of Art
A150: Communication Studies | B150: Communication Studies
B151: Expressive Arts & Performance Studies
B152: Film Studies
B153: Theatre Studies
A155: Construction | B155: Construction & the Built Environment
A157: Dance | B157: Dance
A159: Drama | B159: Drama & Theatre Studies
B160: Creative Writing
A162: English Literature | B162: English Literature
A164: English Studies | B164: English Studies
A166: General Studies | B166: General Studies
A168: Health and Social Care | B168: Health & Social Care
A170: Hospitality and Catering | B170: Hospitality & Catering
A172: Leisure and Tourism | B172: Leisure & Tourism
A174: Manufacturing | B174: Manufacturing
A176: Media/Film/TV | B176: Media/Film/Tv Studies
A178: Media: Communication and Production | B178: Media: Communication & Production
A180: Music | B180: Music
B181: Music Technology
A183: Performing Arts | B183: Performing Arts
A185: Physical Education | B185: Physical Education/Sports Studies
A187: Religious Studies | B187: Religious Studies
B188: Religious Education
A190: Statistics | B190: Statistics
A192: Vocational Studies | B192: Accounting/Finance
B193: Catering Studies
B194: Commerce/Office Studies
B195: Office Technology
B196: Keyboarding Applications

Sheet Descriptions (hidden)
A1: Subject Group | C1: Boys | F1: 0 | G1: =F1+1 -> 1 | H1: =G1+1 -> 2 | I1: 3 | J1: 4 | K1: 5 | L1: 6 | M1: 7 | N1: 8 | O1: 9 | P1: 10 | Q1: 11 | R1: 12
A2: English | C2: Girls
A3: Mathematics | C3: All
A4: Core Science
A5: Additional Science
A6: Further Additional Science
A7: Additional Applied Science
A8: Physics
A9: Chemistry
A10: Biological Sciences
A11: Computer Science
A12: Other Sciences
A13: D & T: Electronic Products
A14: D & T: Food Technology
A15: D & T: Graphic Products
A16: D & T: Resistant Materials
A17: D & T: Systems & Control
A18: D & T: Textiles Technology
A19: Other Design and Technology
A20: Applied Engineering
A21: Information Technology
A22: Business Studies
A23: Applied Business
A24: Home Economics
A25: Geography
A26: History
A27: Ancient History
A28: Humanities
A29: Economics
A30: Social Studies
A31: Arabic
A32: Chinese
A33: French
A34: German
A35: Italian
A36: Polish
A37: Spanish
A38: Urdu
A39: Other Modern Languages
A40: Classical Civilisation
A41: Classical Greek
A42: Latin
A43: Other Classical Studies
A44: Applied Art and Design
A45: Applied Physical Education
A46: Art and Design
A47: Communication Studies
A48: Construction
A49: Dance
A50: Drama
A51: English Literature
A52: English Studies
A53: General Studies
A54: Health and Social Care
A55: Hospitality and Catering
A56: Leisure and Tourism
A57: Manufacturing
A58: Media/Film/TV
A59: Media: Communication and Production
A60: Music
A61: Performing Arts
A62: Physical Education
A63: Religious Studies
A64: Statistics
A65: Vocational Studies
A66: All subjects

Sheet 2010 (hidden)
A1: 1 | B1: 2 | C1: 3 | D1: 4 | E1: 5 | F1: 6 | G1: 7 | H1: 8 | I1: 9 | J1: 10 | K1: 11 | L1: 12 | M1: 13 | N1: 14 | O1: 15 | P1: 16 | Q1: 17 | R1: 18 | S1: 19 | T1: 20 | U1: 21 | V1: 22 | W1: 23 | X1: 24 | Y1: 25 | Z1: 26 | AA1: 27 | AB1: 28 | AC1: 29 | AD1: 30 | AE1: 31 | AF1: 32 | AG1: 33 | AH1: 34 | AI1: 35 | AJ1: 36 | AK1: 37 | AL1: 38 | AM1: 39 | AN1: 40
A2: Subjects | C2: * | D2: A | E2: B | F2: C | G2: D | H2: E | I2: F | J2: G | K2: AstarA | L2: AstarC | M2: AstarG | N2: Total | O2: (No column name) | P2: * | Q2: A | R2: B | S2: C | T2: D | U2: E | V2: F | W2: G | X2: AstarA | Y2: AstarC | Z2: AstarG | AA2: Total | AB2: (No column name) | AC2: * | AD2: A | AE2: B | AF2: C | AG2: D | AH2: E | AI2: F | AJ2: G | AK2: AstarA | AL2: AstarC | AM2: AstarG | AN2: Total
A3: Vocational Studies | B3: Males | C3: 2.7 | D3: 8.9 | E3: 15.7 | F3: 30.2 | G3: 19.3 | H3: 11 | I3: 5.7 | J3: 3 | K3: 11.6 | L3: 57.5 | M3: 96.6 | N3: 20355 | O3: Females | P3: 5.8 | Q3: 13.5 | R3: 19.2 | S3: 30.9 | T3: 15.7 | U3: 7.5 | V3: 3.8 | W3: 1.7 | X3: 19.3 | Y3: 69.3 | Z3: 98 | AA3: 21321 | AB3: All | AC3: 4.3 | AD3: 11.2 | AE3: 17.5 | AF3: 30.5 | AG3: 17.5 | AH3: 9.2 | AI3: 4.7 | AJ3: 2.3 | AK3: 15.5 | AL3: 63.6 | AM3: 97.3 | AN3: 41676
A4: Urdu | B4: Males | C4: 10.1 | D4: 17.8 | E4: 15.3 | F4: 20.6 | G4: 14.3 | H4: 11.2 | I4: 6.8 | J4: 2.6 | K4: 27.9 | L4: 63.7 | M4: 98.6 | N4: 1759 | O4: Females | P4: 17.6 | Q4: 24 | R4: 19.7 | S4: 16 | T4: 10.6 | U4: 7 | V4: 3.3 | W4: 1.1 | X4: 41.6 | Y4: 77.3 | Z4: 99.2 | AA4: 2791 | AB4: All | AC4: 14.7 | AD4: 21.6 | AE4: 18 | AF4: 17.8 | AG4: 12 | AH4: 8.6 | AI4: 4.6 | AJ4: 1.7 | AK4: 36.3 | AL4: 72 | AM4: 99 | AN4: 4550
A5: Statistics | B5: Males | C5: 7.5 | D5: 15.4 | E5: 19.6 | F5: 32.8 | G5: 13.2 | H5: 5.4 | I5: 2.2 | J5: 1.1 | K5: 22.8 | L5: 75.2 | M5: 97.2 | N5: 36900 | O5: Females | P5: 7.7 | Q5: 16.5 | R5: 20 | S5: 33.8 | T5: 11.8 | U5: 4.9 | V5: 2 | W5: 0.9 | X5: 24.2 | Y5: 77.9 | Z5: 97.6 | AA5: 33838 | AB5: All | AC5: 7.6 | AD5: 15.9 | AE5: 19.8 | AF5: 33.3 | AG5: 12.6 | AH5: 5.2 | AI5: 2.1 | AJ5: 1 | AK5: 23.5 | AL5: 76.5 | AM5: 97.3 | AN5: 70738
A6: Spanish | B6: Males | C6: 12.9 | D6: 16.2 | E6: 17.5 | F6: 23.1 | G6: 16.9 | H6: 8 | I6: 3.4 | J6: 1.3 | K6: 29.1 | L6: 69.7 | M6: 99.3 | N6: 24744 | O6: Females | P6: 16.9 | Q6: 19.3 | R6: 19.3 | S6: 22.1 | T6: 13.6 | U6: 5.5 | V6: 2.1 | W6: 0.8 | X6: 36.2 | Y6: 77.7 | Z6: 99.6 | AA6: 33486 | AB6: All | AC6: 15.2 | AD6: 18 | AE6: 18.6 | AF6: 22.5 | AG6: 15 | AH6: 6.5 | AI6: 2.7 | AJ6: 1 | AK6: 33.2 | AL6: 74.3 | AM6: 99.5 | AN6: 58230
A7: Social Studies | B7: Males | C7: 2.4 | D7: 9.2 | E7: 18.2 | F7: 27.5 | G7: 18.7 | H7: 9.7 | I7: 5.3 | J7: 3 | K7: 11.6 | L7: 57.3 | M7: 94.1 | N7: 7301 | O7: Females | P7: 4.8 | Q7: 15.2 | R7: 22.1 | S7: 27 | T7: 14.9 | U7: 7.7 | V7: 3.3 | W7: 1.6 | X7: 20 | Y7: 69.2 | Z7: 96.7 | AA7: 17475 | AB7: All | AC7: 4.1 | AD7: 13.4 | AE7: 21 | AF7: 27.2 | AG7: 16 | AH7: 8.3 | AI7: 3.9 | AJ7: 2 | AK7: 17.5 | AL7: 65.7 | AM7: 96 | AN7: 24776
A8: Religious Studies | B8: Males | C8: 8.4 | D8: 16.4 | E8: 22.1 | F8: 20.4 | G8: 12.7 | H8: 8.7 | I8: 5.9 | J8: 3.3 | K8: 24.8 | L8: 67.2 | M8: 97.9 | N8: 79364 | O8: Females | P8: 14.5 | Q8: 22.8 | R8: 23.6 | S8: 17.5 | T8: 9.5 | U8: 5.8 | V8: 3.4 | W8: 1.8 | X8: 37.3 | Y8: 78.4 | Z8: 99 | AA8: 96986 | AB8: All | AC8: 11.8 | AD8: 19.9 | AE8: 22.9 | AF8: 18.8 | AG8: 10.9 | AH8: 7.1 | AI8: 4.5 | AJ8: 2.5 | AK8: 31.7 | AL8: 73.4 | AM8: 98.5 | AN8: 176350
A9: Polish | B9: Males | C9: 14.3 | D9: 49.3 | E9: 19.8 | F9: 8.2 | G9: 2.5 | H9: 1.2 | I9: 1.4 | J9: 2 | K9: 63.5 | L9: 91.5 | M9: 98.6 | N9: 1234 | O9: Females | P9: 28 | Q9: 51.8 | R9: 11.1 | S9: 3.7 | T9: 1.4 | U9: 1 | V9: 1 | W9: 0.9 | X9: 79.8 | Y9: 94.6 | Z9: 98.9 | AA9: 1143 | AB9: All | AC9: 20.9 | AD9: 50.5 | AE9: 15.6 | AF9: 6 | AG9: 2 | AH9: 1.1 | AI9: 1.2 | AJ9: 1.5 | AK9: 71.4 | AL9: 93 | AM9: 98.7 | AN9: 2377
A10: Physics | B10: Males | C10: 21.6 | D10: 28.1 | E10: 26.8 | F10: 17.9 | G10: 4.4 | H10: 0.8 | I10: 0.2 | J10: 0.1 | K10: 49.7 | L10: 94.4 | M10: 99.8 | N10: 61597 | O10: Females | P10: 21.6 | Q10: 26.7 | R10: 26.9 | S10: 18.4 | T10: 5 | U10: 0.8 | V10: 0.2 | W10: 0.1 | X10: 48.2 | Y10: 93.5 | Z10: 99.7 | AA10: 50675 | AB10: All | AC10: 21.6 | AD10: 27.4 | AE10: 26.8 | AF10: 18.1 | AG10: 4.7 | AH10: 0.8 | AI10: 0.2 | AJ10: 0.1 | AK10: 49 | AL10: 94 | AM10: 99.8 | AN10: 112272
A11: Physical Education | B11: Males | C11: 5.5 | D11: 17.1 | E11: 24 | F11: 22.3 | G11: 21.5 | H11: 6.9 | I11: 2.1 | J11: 0.4 | K11: 22.5 | L11: 68.9 | M11: 99.8 | N11: 71108 | O11: Females | P11: 9.6 | Q11: 19.1 | R11: 22.2 | S11: 19.3 | T11: 20.2 | U11: 6.8 | V11: 2.2 | W11: 0.5 | X11: 28.6 | Y11: 70.1 | Z11: 99.8 | AA11: 38506 | AB11: All | AC11: 6.9 | AD11: 17.8 | AE11: 23.4 | AF11: 21.3 | AG11: 21 | AH11: 6.9 | AI11: 2.1 | AJ11: 0.5 | AK11: 24.7 | AL11: 69.3 | AM11: 99.8 | AN11: 109614
A12: Performing Arts | B12: Males | C12: 4.2 | D12: 6.8 | E12: 13 | F12: 24.4 | G12: 18.8 | H12: 14.4 | I12: 10.5 | J12: 2.9 | K12: 11 | L12: 48.3 | M12: 94.9 | N12: 648 | O12: Females | P12: 6.1 | Q12: 13.3 | R12: 20.4 | S12: 25.2 | T12: 17.9 | U12: 8.8 | V12: 4.1 | W12: 1.1 | X12: 19.4 | Y12: 65 | Z12: 96.9 | AA12: 1206 | AB12: All | AC12: 5.4 | AD12: 11 | AE12: 17.8 | AF12: 24.9 | AG12: 18.2 | AH12: 10.7 | AI12: 6.4 | AJ12: 1.7 | AK12: 16.5 | AL12: 59.2 | AM12: 96.2 | AN12: 1854
A13: Other Sciences | B13: Males | C13: 10.2 | D13: 13.1 | E13: 15.8 | F13: 21.7 | G13: 13.4 | H13: 10.6 | I13: 7.4 | J13: 3.9 | K13: 23.3 | L13: 60.8 | M13: 96 | N13: 3612 | O13: Females | P13: 5.7 | Q13: 11.5 | R13: 18.1 | S13: 22.6 | T13: 15.8 | U13: 12.2 | V13: 7.5 | W13: 3.1 | X13: 17.2 | Y13: 58 | Z13: 96.5 | AA13: 1901 | AB13: All | AC13: 8.7 | AD13: 12.6 | AE13: 16.6 | AF13: 22 | AG13: 14.2 | AH13: 11.2 | AI13: 7.4 | AJ13: 3.6 | AK13: 21.2 | AL13: 59.8 | AM13: 96.2 | AN13: 5513
A14: Other Modern Languages | B14: Males | C14: 26.4 | D14: 25.6 | E14: 18.9 | F14: 13.6 | G14: 5.8 | H14: 3.6 | I14: 2.8 | J14: 1.4 | K14: 52.1 | L14: 84.5 | M14: 98.1 | N14: 4412 | O14: Females | P14: 32.8 | Q14: 28.2 | R14: 17.2 | S14: 10.4 | T14: 5.1 | U14: 3 | V14: 1.6 | W14: 0.4 | X14: 61 | Y14: 88.7 | Z14: 98.9 | AA14: 4733 | AB14: All | AC14: 29.7 | AD14: 27 | AE14: 18 | AF14: 11.9 | AG14: 5.4 | AH14: 3.3 | AI14: 2.2 | AJ14: 0.9 | AK14: 56.7 | AL14: 86.7 | AM14: 98.5 | AN14: 9145
A15: Other Design and Technology | B15: Males | C15: 2.1 | D15: 10.9 | E15: 17 | F15: 26.8 | G15: 19.2 | H15: 11.1 | I15: 6 | J15: 3.3 | K15: 13 | L15: 56.8 | M15: 96.4 | N15: 22026 | O15: Females | P15: 6.8 | Q15: 21.5 | R15: 21.7 | S15: 23.4 | T15: 12.6 | U15: 6.5 | V15: 3.5 | W15: 1.7 | X15: 28.3 | Y15: 73.4 | Z15: 97.7 | AA15: 11952 | AB15: All | AC15: 3.7 | AD15: 14.7 | AE15: 18.7 | AF15: 25.6 | AG15: 16.9 | AH15: 9.5 | AI15: 5.1 | AJ15: 2.7 | AK15: 18.4 | AL15: 62.6 | AM15: 96.9 | AN15: 33978
A16: Other Classical Studies | B16: Males | C16: 10.5 | D16: 29.6 | E16: 24.3 | F16: 15.8 | G16: 4.6 | H16: 7.9 | I16: 2 | J16: 3.9 | K16: 40.1 | L16: 80.3 | M16: 98.7 | N16: 152 | O16: Females | P16: 13.8 | Q16: 31.6 | R16: 25.7 | S16: 14.1 | T16: 5.3 | U16: 4.2 | V16: 2.7 | W16: 1.3 | X16: 45.4 | Y16: 85.1 | Z16: 98.7 | AA16: 377 | AB16: All | AC16: 12.9 | AD16: 31 | AE16: 25.3 | AF16: 14.6 | AG16: 5.1 | AH16: 5.3 | AI16: 2.5 | AJ16: 2.1 | AK16: 43.9 | AL16: 83.7 | AM16: 98.7 | AN16: 529
A17: Music | B17: Males | C17: 7.6 | D17: 21.4 | E17: 25.7 | F17: 20 | G17: 11.7 | H17: 6.3 | I17: 3.6 | J17: 1.8 | K17: 29 | L17: 74.7 | M17: 98.1 | N17: 23914 | O17: Females | P17: 9.7 | Q17: 25.9 | R17: 26.1 | S17: 18.9 | T17: 10 | U17: 4.9 | V17: 2.3 | W17: 1.1 | X17: 35.6 | Y17: 80.6 | Z17: 98.9 | AA17: 21519 | AB17: All | AC17: 8.6 | AD17: 23.5 | AE17: 25.9 | AF17: 19.5 | AG17: 10.9 | AH17: 5.7 | AI17: 3 | AJ17: 1.4 | AK17: 32.1 | AL17: 77.5 | AM17: 98.5 | AN17: 45433
A18: Media: Communication and Production | B18: Males | C18: x | D18: 12.1 | E18: 25.9 | F18: 28.2 | G18: 13.8 | H18: 6.3 | I18: 5.2 | J18: 3.4 | K18: 13.2 | L18: 67.2 | M18: 96 | N18: 174 | O18: Females | P18: x | Q18: 25.7 | R18: 27.5 | S18: 22.8 | T18: 9.4 | U18: 5.8 | V18: 5.3 | W18: 1.8 | X18: 26.9 | Y18: 77.2 | Z18: 99.4 | AA18: 171 | AB18: All | AC18: 1.2 | AD18: 18.8 | AE18: 26.7 | AF18: 25.5 | AG18: 11.6 | AH18: 6.1 | AI18: 5.2 | AJ18: 2.6 | AK18: 20 | AL18: 72.2 | AM18: 97.7 | AN18: 345
A19: Media/Film/TV | B19: Males | C19: 1.9 | D19: 8.7 | E19: 18.3 | F19: 29.1 | G19: 20.9 | H19: 10.4 | I19: 4.8 | J19: 2.3 | K19: 10.5 | L19: 57.9 | M19: 96.4 | N19: 28715 | O19: Females | P19: 4.9 | Q19: 17.8 | R19: 25.8 | S19: 26.6 | T19: 14.1 | U19: 5.6 | V19: 2.3 | W19: 1 | X19: 22.6 | Y19: 75 | Z19: 98 | AA19: 29871 | AB19: All | AC19: 3.4 | AD19: 13.3 | AE19: 22.1 | AF19: 27.8 | AG19: 17.4 | AH19: 7.9 | AI19: 3.5 | AJ19: 1.7 | AK19: 16.7 | AL19: 66.6 | AM19: 97.2 | AN19: 58586
A20: Mathematics | B20: Males | C20: 6.3 | D20: 13 | E20: 17.8 | F20: 27.4 | G20: 13.6 | H20: 9.4 | I20: 7.1 | J20: 3.5 | K20: 19.3 | L20: 64.5 | M20: 98.2 | N20: 309181 | O20: Females | P20: 6 | Q20: 13.1 | R20: 18.1 | S20: 27.5 | T20: 13.8 | U20: 9.3 | V20: 6.9 | W20: 3.5 | X20: 19.1 | Y20: 64.8 | Z20: 98.3 | AA20: 302024 | AB20: All | AC20: 6.1 | AD20: 13.1 | AE20: 18 | AF20: 27.5 | AG20: 13.7 | AH20: 9.3 | AI20: 7 | AJ20: 3.5 | AK20: 19.2 | AL20: 64.6 | AM20: 98.2 | AN20: 611205
A21: Latin | B21: Males | C21: 41.2 | D21: 25 | E21: 14.5 | F21: 10.4 | G21: 5.6 | H21: 1.7 | I21: 0.3 | J21: x | K21: 66.1 | L21: 91 | M21: 98.7 | N21: 4702 | O21: Females | P21: 50.6 | Q21: 24.5 | R21: 12.1 | S21: 7.8 | T21: 3.2 | U21: 0.9 | V21: 0.2 | W21: x | X21: 75.1 | Y21: 95 | Z21: 99.4 | AA21: 4654 | AB21: All | AC21: 45.8 | AD21: 24.7 | AE21: 13.3 | AF21: 9.1 | AG21: 4.4 | AH21: 1.3 | AI21: 0.3 | AJ21: 0.1 | AK21: 70.6 | AL21: 93 | AM21: 99 | AN21: 9356
A22: Italian | B22: Males | C22: 39.1 | D22: 17.6 | E22: 13.9 | F22: 14.5 | G22: 7.6 | H22: 3.9 | I22: 1.5 | J22: 0.9 | K22: 56.7 | L22: 85.2 | M22: 99.1 | N22: 1396 | O22: Females | P22: 38.8 | Q22: 23.1 | R22: 16 | S22: 11.8 | T22: 7 | U22: 1.9 | V22: 0.6 | W22: 0.5 | X22: 61.9 | Y22: 89.7 | Z22: 99.7 | AA22: 2160 | AB22: All | AC22: 38.9 | AD22: 21 | AE22: 15.2 | AF22: 12.9 | AG22: 7.2 | AH22: 2.7 | AI22: 0.9 | AJ22: 0.7 | AK22: 59.9 | AL22: 87.9 | AM22: 99.5 | AN22: 3556
A23: Information Technology | B23: Males | C23: 6.8 | D23: 18 | E23: 21.4 | F23: 26 | G23: 13.4 | H23: 6.7 | I23: 3.5 | J23: 1.9 | K23: 24.8 | L23: 72.2 | M23: 97.7 | N23: 24186 | O23: Females | P23: 10.6 | Q23: 23.8 | R23: 23.3 | S23: 22.8 | T23: 10.4 | U23: 4.1 | V23: 2.2 | W23: 1.3 | X23: 34.4 | Y23: 80.5 | Z23: 98.6 | AA23: 19177 | AB23: All | AC23: 8.5 | AD23: 20.6 | AE23: 22.2 | AF23: 24.6 | AG23: 12.1 | AH23: 5.5 | AI23: 2.9 | AJ23: 1.6 | AK23: 29.1 | AL23: 75.9 | AM23: 98.1 | AN23: 43363
A24: Humanities | B24: Males | C24: 1.4 | D24: 6 | E24: 14.9 | F24: 21.6 | G24: 17.7 | H24: 15.1 | I24: 10.5 | J24: 6.9 | K24: 7.5 | L24: 44 | M24: 94.2 | N24: 6239 | O24: Females | P24: 3.1 | Q24: 11.5 | R24: 20.9 | S24: 21.6 | T24: 16.4 | U24: 11.7 | V24: 7 | W24: 4.4 | X24: 14.6 | Y24: 57.1 | Z24: 96.5 | AA24: 6426 | AB24: All | AC24: 2.3 | AD24: 8.8 | AE24: 18 | AF24: 21.6 | AG24: 17 | AH24: 13.4 | AI24: 8.7 | AJ24: 5.6 | AK24: 11.1 | AL24: 50.6 | AM24: 95.4 | AN24: 12665
A25: Hospitality and Catering | B25: Males | C25: x | D25: 4.1 | E25: 20.6 | F25: 23.9 | G25: 18.9 | H25: 14.2 | I25: 9.7 | J25: 5.9 | K25: 4.7 | L25: 49.3 | M25: 97.9 | N25: 339 | O25: Females | P25: x | Q25: 8.5 | R25: 25.4 | S25: 28.6 | T25: 19.3 | U25: 7.1 | V25: 6.2 | W25: 1.7 | X25: 9.9 | Y25: 63.9 | Z25: 98.3 | AA25: 646 | AB25: All | AC25: 1.1 | AD25: 7 | AE25: 23.8 | AF25: 27 | AG25: 19.2 | AH25: 9.5 | AI25: 7.4 | AJ25: 3.1 | AK25: 8.1 | AL25: 58.9 | AM25: 98.2 | AN25: 985
A26: Home Economics | B26: Males | C26: 1.3 | D26: 6.3 | E26: 11.9 | F26: 28.2 | G26: 21.6 | H26: 14.2 | I26: 9.2 | J26: 4 | K26: 7.6 | L26: 47.8 | M26: 96.9 | N26: 3117 | O26: Females | P26: 3.8 | Q26: 10.2 | R26: 16 | S26: 28.1 | T26: 19.1 | U26: 11.7 | V26: 6.5 | W26: 2.6 | X26: 14 | Y26: 58.1 | Z26: 98 | AA26: 26233 | AB26: All | AC26: 3.5 | AD26: 9.8 | AE26: 15.6 | AF26: 28.2 | AG26: 19.3 | AH26: 11.9 | AI26: 6.8 | AJ26: 2.8 | AK26: 13.3 | AL26: 57 | AM26: 97.9 | AN26: 29350
A27: History | B27: Males | C27: 9.2 | D27: 18.8 | E27: 20.4 | F27: 18.7 | G27: 13.6 | H27: 8.9 | I27: 5.4 | J27: 2.9 | K27: 28 | L27: 67 | M27: 97.8 | N27: 99674 | O27: Females | P27: 14.1 | Q27: 22.2 | R27: 20.6 | S27: 16.9 | T27: 11.7 | U27: 7.3 | V27: 4.1 | W27: 1.9 | X27: 36.2 | Y27: 73.7 | Z27: 98.6 | AA27: 98579 | AB27: All | AC27: 11.6 | AD27: 20.5 | AE27: 20.5 | AF27: 17.8 | AG27: 12.6 | AH27: 8.1 | AI27: 4.7 | AJ27: 2.4 | AK27: 32.1 | AL27: 70.4 | AM27: 98.2 | AN27: 198253
A28: German | B28: Males | C28: 7.7 | D28: 13.5 | E28: 19.7 | F28: 29.7 | G28: 17.4 | H28: 6.9 | I28: 3.1 | J28: 1.4 | K28: 21.2 | L28: 70.7 | M28: 99.5 | N28: 30790 | O28: Females | P28: 10.1 | Q28: 17.8 | R28: 22.7 | S28: 27.9 | T28: 14 | U28: 4.5 | V28: 1.9 | W28: 0.7 | X28: 27.9 | Y28: 78.5 | Z28: 99.6 | AA28: 35032 | AB28: All | AC28: 9 | AD28: 15.8 | AE28: 21.3 | AF28: 28.7 | AG28: 15.6 | AH28: 5.6 | AI28: 2.4 | AJ28: 1 | AK28: 24.8 | AL28: 74.8 | AM28: 99.6 | AN28: 65822
A29: Geography | B29: Males | C29: 9.7 | D29: 15.3 | E29: 18.1 | F29: 23.9 | G29: 17.2 | H29: 8.2 | I29: 4 | J29: 1.9 | K29: 25 | L29: 67 | M29: 98.2 | N29: 93679 | O29: Females | P29: 14.5 | Q29: 19.1 | R29: 18.8 | S29: 21.4 | T29: 13.7 | U29: 6.3 | V29: 3.3 | W29: 1.5 | X29: 33.6 | Y29: 73.7 | Z29: 98.6 | AA29: 75593 | AB29: All | AC29: 11.8 | AD29: 17 | AE29: 18.4 | AF29: 22.8 | AG29: 15.6 | AH29: 7.3 | AI29: 3.7 | AJ29: 1.7 | AK29: 28.8 | AL29: 70 | AM29: 98.4 | AN29: 169272
A30: General Studies | B30: Males | C30: 2.5 | D30: 6.3 | E30: 9.7 | F30: 22.1 | G30: 23.4 | H30: 12.7 | I30: 9.6 | J30: 5.6 | K30: 8.8 | L30: 40.6 | M30: 92 | N30: 3961 | O30: Females | P30: 2.2 | Q30: 6.9 | R30: 10.4 | S30: 23.9 | T30: 26 | U30: 11.7 | V30: 7.9 | W30: 4.9 | X30: 9.2 | Y30: 43.4 | Z30: 93.9 | AA30: 3563 | AB30: All | AC30: 2.4 | AD30: 6.6 | AE30: 10 | AF30: 22.9 | AG30: 24.6 | AH30: 12.2 | AI30: 8.8 | AJ30: 5.3 | AK30: 9 | AL30: 41.9 | AM30: 92.9 | AN30: 7524
A31: French | B31: Males | C31: 10.1 | D31: 13.5 | E31: 18 | F31: 25.3 | G31: 18.2 | H31: 8.7 | I31: 4.1 | J31: 1.5 | K31: 23.7 | L31: 67 | M31: 99.5 | N31: 69209 | O31: Females | P31: 12 | Q31: 16.8 | R31: 21.1 | S31: 25.2 | T31: 15.1 | U31: 6.2 | V31: 2.4 | W31: 0.9 | X31: 28.7 | Y31: 75 | Z31: 99.7 | AA31: 91389 | AB31: All | AC31: 11.2 | AD31: 15.4 | AE31: 19.8 | AF31: 25.2 | AG31: 16.4 | AH31: 7.3 | AI31: 3.1 | AJ31: 1.2 | AK31: 26.6 | AL31: 71.6 | AM31: 99.6 | AN31: 160598
A32: English Studies | B32: Males | C32: 0.3 | D32: 1.8 | E32: 13.2 | F32: 41.8 | G32: 19 | H32: 12.8 | I32: 6.5 | J32: 2.1 | K32: 2.1 | L32: 57.1 | M32: 97.5 | N32: 1778 | O32: Females | P32: 0.6 | Q32: 3.8 | R32: 17.7 | S32: 46.5 | T32: 15.8 | U32: 8.2 | V32: 4.2 | W32: 1.1 | X32: 4.3 | Y32: 68.6 | Z32: 97.9 | AA32: 1386 | AB32: All | AC32: 0.4 | AD32: 2.7 | AE32: 15.2 | AF32: 43.9 | AG32: 17.6 | AH32: 10.8 | AI32: 5.5 | AJ32: 1.7 | AK32: 3.1 | AL32: 62.1 | AM32: 97.7 | AN32: 3164
A33: English Literature | B33: Males | C33: 4.4 | D33: 14.2 | E33: 24 | F33: 27.8 | G33: 16.3 | H33: 7.1 | I33: 2.9 | J33: 1.3 | K33: 18.7 | L33: 70.5 | M33: 98.1 | N33: 223392 | O33: Females | P33: 7.4 | Q33: 21.2 | R33: 28 | S33: 25.3 | T33: 11.1 | U33: 3.9 | V33: 1.3 | W33: 0.5 | X33: 28.7 | Y33: 82 | Z33: 98.9 | AA33: 244529 | AB33: All | AC33: 6 | AD33: 17.9 | AE33: 26.1 | AF33: 26.5 | AG33: 13.6 | AH33: 5.5 | AI33: 2.1 | AJ33: 0.9 | AK33: 23.9 | AL33: 76.5 | AM33: 98.5 | AN33: 467921
A34: English | B34: Males | C34: 3.6 | D34: 10.2 | E34: 19.6 | F34: 29.9 | G34: 18.6 | H34: 10.1 | I34: 4.9 | J34: 1.9 | K34: 13.7 | L34: 63.1 | M34: 98.7 | N34: 301727 | O34: Females | P34: 6.6 | Q34: 16.4 | R34: 24.7 | S34: 28.8 | T34: 13.9 | U34: 5.7 | V34: 2.3 | W34: 0.9 | X34: 23 | Y34: 76.5 | Z34: 99.2 | AA34: 297518 | AB34: All | AC34: 5.1 | AD34: 13.3 | AE34: 22.1 | AF34: 29.3 | AG34: 16.3 | AH34: 7.9 | AI34: 3.6 | AJ34: 1.4 | AK34: 18.3 | AL34: 69.8 | AM34: 99 | AN34: 599245
A35: Economics | B35: Males | C35: 10.3 | D35: 20.2 | E35: 24.1 | F35: 25.4 | G35: 10.8 | H35: 4 | I35: 1.7 | J35: 0.8 | K35: 30.5 | L35: 80 | M35: 97.3 | N35: 1992 | O35: Females | P35: 8.1 | Q35: 18.4 | R35: 26.7 | S35: 24.2 | T35: 12.2 | U35: 4.7 | V35: 1.5 | W35: 0.6 | X35: 26.5 | Y35: 77.3 | Z35: 96.3 | AA35: 724 | AB35: All | AC35: 9.7 | AD35: 19.7 | AE35: 24.8 | AF35: 25 | AG35: 11.2 | AH35: 4.2 | AI35: 1.6 | AJ35: 0.7 | AK35: 29.5 | AL35: 79.3 | AM35: 97 | AN35: 2716
A36: Drama | B36: Males | C36: 3.2 | D36: 13.7 | E36: 26.4 | F36: 25.8 | G36: 16.5 | H36: 8.2 | I36: 3.8 | J36: 1.4 | K36: 16.9 | L36: 69.2 | M36: 99.1 | N36: 31417 | O36: Females | P36: 6.6 | Q36: 20.5 | R36: 30.9 | S36: 22.4 | T36: 11.6 | U36: 4.7 | V36: 1.9 | W36: 0.7 | X36: 27.2 | Y36: 80.5 | Z36: 99.4 | AA36: 49348 | AB36: All | AC36: 5.3 | AD36: 17.9 | AE36: 29.1 | AF36: 23.7 | AG36: 13.5 | AH36: 6.1 | AI36: 2.6 | AJ36: 1 | AK36: 23.2 | AL36: 76.1 | AM36: 99.3 | AN36: 80765
A37: D & T: Textiles Technology | B37: Males | C37: 1.6 | D37: 8.3 | E37: 11.7 | F37: 25.7 | G37: 22.9 | H37: 14.6 | I37: 8.3 | J37: 3.1 | K37: 9.9 | L37: 47.2 | M37: 96.2 | N37: 1175 | O37: Females | P37: 7.2 | Q37: 22.5 | R37: 21.1 | S37: 25.8 | T37: 14 | U37: 4.9 | V37: 2.2 | W37: 0.9 | X37: 29.7 | Y37: 76.6 | Z37: 98.6 | AA37: 34660 | AB37: All | AC37: 7 | AD37: 22.1 | AE37: 20.8 | AF37: 25.8 | AG37: 14.3 | AH37: 5.2 | AI37: 2.4 | AJ37: 1 | AK37: 29 | AL37: 75.6 | AM37: 98.5 | AN37: 35835
A38: D & T: Systems & Control | B38: Males | C38: 5.5 | D38: 15.8 | E38: 21 | F38: 26 | G38: 16.7 | H38: 7.2 | I38: 3.2 | J38: 1.6 | K38: 21.3 | L38: 68.4 | M38: 97 | N38: 5200 | O38: Females | P38: 4.6 | Q38: 30.7 | R38: 26.5 | S38: 16.7 | T38: 11.2 | U38: 4.1 | V38: 2.3 | W38: 2.1 | X38: 35.2 | Y38: 78.5 | Z38: 98.2 | AA38: 437 | AB38: All | AC38: 5.5 | AD38: 17 | AE38: 21.5 | AF38: 25.3 | AG38: 16.2 | AH38: 6.9 | AI38: 3.1 | AJ38: 1.6 | AK38: 22.4 | AL38: 69.2 | AM38: 97.1 | AN38: 5637
A39: D & T: Resistant Materials | B39: Males | C39: 3.1 | D39: 10.2 | E39: 15.5 | F39: 27.6 | G39: 22.5 | H39: 10.8 | I39: 5.1 | J39: 2.4 | K39: 13.2 | L39: 56.3 | M39: 97.2 | N39: 56801 | O39: Females | P39: 7 | Q39: 20.1 | R39: 21 | S39: 24.9 | T39: 15 | U39: 6.5 | V39: 2.6 | W39: 1.2 | X39: 27.1 | Y39: 73 | Z39: 98.2 | AA39: 10601 | AB39: All | AC39: 3.7 | AD39: 11.7 | AE39: 16.4 | AF39: 27.2 | AG39: 21.4 | AH39: 10.1 | AI39: 4.7 | AJ39: 2.2 | AK39: 15.4 | AL39: 58.9 | AM39: 97.3 | AN39: 67402
A40: D & T: Graphic Products | B40: Males | C40: 2.9 | D40: 10.4 | E40: 15 | F40: 25.3 | G40: 22.5 | H40: 10.9 | I40: 5.1 | J40: 2.8 | K40: 13.2 | L40: 53.5 | M40: 94.8 | N40: 29744 | O40: Females | P40: 7.3 | Q40: 19.6 | R40: 21.4 | S40: 24.1 | T40: 15.8 | U40: 5.9 | V40: 2.3 | W40: 1.2 | X40: 26.9 | Y40: 72.4 | Z40: 97.5 | AA40: 21611 | AB40: All | AC40: 4.7 | AD40: 14.3 | AE40: 17.7 | AF40: 24.8 | AG40: 19.6 | AH40: 8.8 | AI40: 3.9 | AJ40: 2.1 | AK40: 19 | AL40: 61.4 | AM40: 95.9 | AN40: 51355
A41: D & T: Food Technology | B41: Males | C41: 2.2 | D41: 8.4 | E41: 13.1 | F41: 28.6 | G41: 23.7 | H41: 11.6 | I41: 6.4 | J41: 3.1 | K41: 10.6 | L41: 52.3 | M41: 97.2 | N41: 22380 | O41: Females | P41: 7 | Q41: 17.4 | R41: 18.1 | S41: 27.8 | T41: 16.6 | U41: 6.9 | V41: 3.3 | W41: 1.5 | X41: 24.3 | Y41: 70.3 | Z41: 98.5 | AA41: 39724 | AB41: All | AC41: 5.2 | AD41: 14.2 | AE41: 16.3 | AF41: 28.1 | AG41: 19.2 | AH41: 8.6 | AI41: 4.4 | AJ41: 2 | AK41: 19.4 | AL41: 63.8 | AM41: 98 | AN41: 62104
A42: D & T: Electronic Products | B42: Males | C42: 6.7 | D42: 15.1 | E42: 15.8 | F42: 26.7 | G42: 17.5 | H42: 7.8 | I42: 4 | J42: 2.7 | K42: 21.7 | L42: 64.2 | M42: 96.1 | N42: 10058 | O42: Females | P42: 11.8 | Q42: 24 | R42: 20.8 | S42: 19.9 | T42: 12 | U42: 4.2 | V42: 2.4 | W42: 2.1 | X42: 35.8 | Y42: 76.5 | Z42: 97.3 | AA42: 899 | AB42: All | AC42: 7.1 | AD42: 15.8 | AE42: 16.2 | AF42: 26.1 | AG42: 17 | AH42: 7.5 | AI42: 3.9 | AJ42: 2.6 | AK42: 22.9 | AL42: 65.2 | AM42: 96.2 | AN42: 10957
A43: Core Science | B43: Males | C43: 2.2 | D43: 7.9 | E43: 18 | F43: 31 | G43: 18.2 | H43: 11.6 | I43: 6.7 | J43: 3 | K43: 10.1 | L43: 59 | M43: 98.5 | N43: 201936 | O43: Females | P43: 3.3 | Q43: 9.8 | R43: 19.4 | S43: 30.3 | T43: 17.2 | U43: 10.6 | V43: 5.9 | W43: 2.5 | X43: 13 | Y43: 62.7 | Z43: 98.8 | AA43: 204477 | AB43: All | AC43: 2.7 | AD43: 8.8 | AE43: 18.7 | AF43: 30.7 | AG43: 17.7 | AH43: 11.1 | AI43: 6.3 | AJ43: 2.7 | AK43: 11.5 | AL43: 60.9 | AM43: 98.7 | AN43: 406413
A44: Construction | B44: Males | C44: 2 | D44: 10.8 | E44: 30.8 | F44: 23.4 | G44: x | H44: x | I44: 5.4 | J44: 1.7 | K44: 12.9 | L44: 67.1 | M44: 96.9 | N44: 295 | O44: Females | P44: 0 | Q44: 0 | R44: 30 | S44: 40 | T44: x | U44: x | V44: 0 | W44: 0 | X44: 0 | Y44: 70 | Z44: 100 | AA44: 10 | AB44: All | AC44: 2 | AD44: 10.5 | AE44: 30.8 | AF44: 23.9 | AG44: 12.1 | AH44: 10.8 | AI44: 5.2 | AJ44: 1.6 | AK44: 12.5 | AL44: 67.2 | AM44: 97 | AN44: 305
A45: Communication Studies | B45: Males | C45: 2.5 | D45: 7.3 | E45: 14.7 | F45: 21.2 | G45: 16.7 | H45: 15.3 | I45: 11.9 | J45: 6.1 | K45: 9.8 | L45: 45.7 | M45: 95.6 | N45: 3554 | O45: Females | P45: 6.2 | Q45: 14.4 | R45: 22.2 | S45: 22.1 | T45: 14.7 | U45: 10 | V45: 5.7 | W45: 2.3 | X45: 20.7 | Y45: 64.9 | Z45: 97.5 | AA45: 5415 | AB45: All | AC45: 4.7 | AD45: 11.6 | AE45: 19.2 | AF45: 21.7 | AG45: 15.5 | AH45: 12.1 | AI45: 8.2 | AJ45: 3.8 | AK45: 16.4 | AL45: 57.3 | AM45: 96.8 | AN45: 8969
A46: Classical Greek | B46: Males | C46: 60.7 | D46: 22.8 | E46: 8 | F46: 4.8 | G46: 2.5 | H46: 0.7 | I46: x | J46: x | K46: 83.5 | L46: 96.3 | M46: 99.7 | N46: 727 | O46: Females | P46: 65 | Q46: 22.2 | R46: 7.2 | S46: 2.7 | T46: 1.8 | U46: 0.7 | V46: x | W46: x | X46: 87.2 | Y46: 97.1 | Z46: 100 | AA46: 446 | AB46: All | AC46: 62.3 | AD46: 22.6 | AE46: 7.7 | AF46: 4 | AG46: 2.2 | AH46: 0.7 | AI46: x | AJ46: x | AK46: 84.9 | AL46: 96.6 | AM46: 99.8 | AN46: 1173
A47: Classical Civilisation | B47: Males | C47: 11.9 | D47: 22.6 | E47: 25.7 | F47: 19 | G47: 11.6 | H47: 4.3 | I47: 1.5 | J47: 0.9 | K47: 34.5 | L47: 79.2 | M47: 97.4 | N47: 2452 | O47: Females | P47: 16.9 | Q47: 24.3 | R47: 23.9 | S47: 18.7 | T47: 9.6 | U47: 2.8 | V47: 0.9 | W47: 0.7 | X47: 41.2 | Y47: 83.8 | Z47: 97.8 | AA47: 1850 | AB47: All | AC47: 14 | AD47: 23.3 | AE47: 25 | AF47: 18.9 | AG47: 10.7 | AH47: 3.6 | AI47: 1.2 | AJ47: 0.8 | AK47: 37.4 | AL47: 81.2 | AM47: 97.6 | AN47: 4302
A48: Chinese | B48: Males | C48: 79.8 | D48: 8.5 | E48: 5.6 | F48: 2.1 | G48: 1.1 | H48: 0.5 | I48: 0.8 | J48: 0.6 | K48: 88.4 | L48: 96.1 | M48: 99 | N48: 1305 | O48: Females | P48: 84.8 | Q48: 5.5 | R48: 3.3 | S48: 1.9 | T48: 1.5 | U48: 0.9 | V48: 0.3 | W48: 0.6 | X48: 90.3 | Y48: 95.5 | Z48: 98.8 | AA48: 1237 | AB48: All | AC48: 82.3 | AD48: 7 | AE48: 4.5 | AF48: 2 | AG48: 1.3 | AH48: 0.7 | AI48: 0.6 | AJ48: 0.6 | AK48: 89.3 | AL48: 95.8 | AM48: 98.9 | AN48: 2542
A49: Chemistry | B49: Males | C49: 20 | D49: 27.4 | E49: 27.5 | F49: 18.5 | G49: 5 | H49: 1 | I49: 0.3 | J49: 0.1 | K49: 47.5 | L49: 93.5 | M49: 99.8 | N49: 61890 | O49: Females | P49: 24 | Q49: 27.9 | R49: 26.1 | S49: 16.4 | T49: 4.3 | U49: 0.8 | V49: 0.2 | W49: 0.1 | X49: 51.9 | Y49: 94.4 | Z49: 99.8 | AA49: 51396 | AB49: All | AC49: 21.8 | AD49: 27.6 | AE49: 26.9 | AF49: 17.6 | AG49: 4.7 | AH49: 0.9 | AI49: 0.2 | AJ49: 0.1 | AK49: 49.5 | AL49: 93.9 | AM49: 99.8 | AN49: 113286
A50: Business Studies | B50: Males | C50: 5.2 | D50: 14.1 | E50: 19.4 | F50: 27.7 | G50: 17.4 | H50: 8 | I50: 3.8 | J50: 1.9 | K50: 19.3 | L50: 66.4 | M50: 97.4 | N50: 40581 | O50: Females | P50: 7.5 | Q50: 16.5 | R50: 19.8 | S50: 27.2 | T50: 15.2 | U50: 7.4 | V50: 3.2 | W50: 1.2 | X50: 24.1 | Y50: 71.1 | Z50: 98.1 | AA50: 28100 | AB50: All | AC50: 6.1 | AD50: 15.1 | AE50: 19.6 | AF50: 27.5 | AG50: 16.5 | AH50: 7.8 | AI50: 3.5 | AJ50: 1.6 | AK50: 21.2 | AL50: 68.3 | AM50: 97.7 | AN50: 68681
A51: Biological Sciences | B51: Males | C51: 18 | D51: 28.4 | E51: 29.8 | F51: 17.7 | G51: 4.4 | H51: 0.9 | I51: 0.3 | J51: 0.1 | K51: 46.3 | L51: 93.8 | M51: 99.6 | N51: 62862 | O51: Females | P51: 22.1 | Q51: 29.7 | R51: 27.4 | S51: 15.1 | T51: 3.7 | U51: 0.9 | V51: 0.4 | W51: 0.2 | X51: 51.8 | Y51: 94.4 | Z51: 99.5 | AA51: 53026 | AB51: All | AC51: 19.9 | AD51: 29 | AE51: 28.7 | AF51: 16.5 | AG51: 4.1 | AH51: 0.9 | AI51: 0.3 | AJ51: 0.1 | AK51: 48.9 | AL51: 94.1 | AM51: 99.5 | AN51: 115888
A52: Art and Design | B52: Males | C52: 4.4 | D52: 11 | E52: 18.8 | F52: 32.1 | G52: 15.7 | H52: 10.1 | I52: 4.9 | J52: 1.9 | K52: 15.4 | L52: 66.2 | M52: 98.8 | N52: 61863 | O52: Females | P52: 9.2 | Q52: 20.7 | R52: 25.4 | S52: 27.8 | T52: 9.6 | U52: 4.4 | V52: 1.7 | W52: 0.6 | X52: 29.9 | Y52: 83.1 | Z52: 99.4 | AA52: 107435 | AB52: All | AC52: 7.4 | AD52: 17.1 | AE52: 23 | AF52: 29.4 | AG52: 11.8 | AH52: 6.5 | AI52: 2.9 | AJ52: 1.1 | AK52: 24.6 | AL52: 76.9 | AM52: 99.2 | AN52: 169298
A53: Arabic | B53: Males | C53: 29.9 | D53: 19.1 | E53: 14.6 | F53: 10.4 | G53: 6.2 | H53: 5 | I53: 3.8 | J53: 1.9 | K53: 49 | L53: 73.9 | M53: 90.8 | N53: 955 | O53: Females | P53: 31.2 | Q53: 16.5 | R53: 14.3 | S53: 11.6 | T53: 6 | U53: 4 | V53: 4.4 | W53: 2.3 | X53: 47.6 | Y53: 73.5 | Z53: 90.1 | AA53: 1184 | AB53: All | AC53: 30.6 | AD53: 17.6 | AE53: 14.4 | AF53: 11 | AG53: 6.1 | AH53: 4.4 | AI53: 4.1 | AJ53: 2.1 | AK53: 48.2 | AL53: 73.7 | AM53: 90.4 | AN53: 2139
A54: Applied Physical Education | B54: Males | C54: 3.2 | D54: 9.1 | E54: 26.1 | F54: 36.3 | G54: 14.1 | H54: 6 | I54: 2.5 | J54: x | K54: 12.2 | L54: 74.7 | M54: 97.9 | N54: 1137 | O54: Females | P54: 1.3 | Q54: 7.7 | R54: 22.2 | S54: 42 | T54: 18.2 | U54: 5.6 | V54: 1.8 | W54: x | X54: 9 | Y54: 73.2 | Z54: 99 | AA54: 908 | AB54: All | AC54: 2.3 | AD54: 8.5 | AE54: 24.4 | AF54: 38.8 | AG54: 15.9 | AH54: 5.8 | AI54: 2.2 | AJ54: 0.5 | AK54: 10.8 | AL54: 74 | AM54: 98.4 | AN54: 2045
A55: All Subjects | B55: Males | C55: 6.6 | D55: 13.7 | E55: 20.1 | F55: 26.6 | G55: 16 | H55: 8.5 | I55: 4.6 | J55: 2.1 | K55: 20.3 | L55: 67.1 | M55: 98.3 | N55: 2321259 | O55: Females | P55: 9 | Q55: 17.5 | R55: 22.4 | S55: 25.5 | T55: 13.2 | U55: 6.4 | V55: 3.3 | W55: 1.5 | X55: 26.5 | Y55: 74.4 | Z55: 98.9 | AA55: 2371428 | AB55: All | AC55: 7.8 | AD55: 15.6 | AE55: 21.3 | AF55: 26 | AG55: 14.6 | AH55: 7.5 | AI55: 4 | AJ55: 1.8 | AK55: 23.4 | AL55: 70.8 | AM55: 98.6 | AN55: 4692687
A56: Additional Science | B56: Males | C56: 3.8 | D56: 9.3 | E56: 20.1 | F56: 32.9 | G56: 18.8 | H56: 8.4 | I56: 4 | J56: 1.7 | K56: 13.1 | L56: 66.1 | M56: 99 | N56: 142935 | O56: Females | P56: 5.5 | Q56: 11.4 | R56: 22 | S56: 31.6 | T56: 16.7 | U56: 7.2 | V56: 3.3 | W56: 1.4 | X56: 16.9 | Y56: 70.6 | Z56: 99.1 | AA56: 145841 | AB56: All | AC56: 4.7 | AD56: 10.4 | AE56: 21.1 | AF56: 32.2 | AG56: 17.7 | AH56: 7.8 | AI56: 3.7 | AJ56: 1.5 | AK56: 15 | AL56: 68.4 | AM56: 99 | AN56: 288776
A57: Additional Applied Science | B57: Males | C57: 0 | D57: 0.5 | E57: 5.2 | F57: 22.7 | G57: 30.4 | H57: 22.3 | I57: 11.6 | J57: 4.5 | K57: 0.5 | L57: 28.5 | M57: 97.2 | N57: 17714 | O57: Females | P57: 0.1 | Q57: 1.6 | R57: 10.7 | S57: 28.3 | T57: 29.2 | U57: 17.5 | V57: 8.1 | W57: 2.6 | X57: 1.7 | Y57: 40.7 | Z57: 98 | AA57: 20853 | AB57: All | AC57: 0.1 | AD57: 1.1 | AE57: 8.2 | AF57: 25.7 | AG57: 29.7 | AH57: 19.7 | AI57: 9.7 | AJ57: 3.5 | AK57: 1.1 | AL57: 35.1 | AM57: 97.7 | AN57: 38567
A58: Dance | B58: Males | C58: 3.6 | D58: 17.1 | E58: 20.9 | F58: 20.5 | G58: 19.4 | H58: 11.7 | I58: 4.8 | J58: 0.8 | K58: 20.6 | L58: 62 | M58: 98.7 | N58: 901 | O58: Females | P58: 4.8 | Q58: 15.1 | R58: 21.8 | S58: 21.7 | T58: 19.4 | U58: 10.3 | V58: 4.5 | W58: 1.5 | X58: 19.9 | Y58: 63.4 | Z58: 99 | AA58: 14386 | AB58: All | AC58: 4.7 | AD58: 15.2 | AE58: 21.7 | AF58: 21.6 | AG58: 19.4 | AH58: 10.3 | AI58: 4.5 | AJ58: 1.4 | AK58: 20 | AL58: 63.3 | AM58: 99 | AN58: 15287

Sheet 2011 (hidden)
A1: 1 | B1: =A1+1 -> 2 | C1: =B1+1 -> 3 | D1: =C1+1 -> 4 | E1: 5 | F1: 6 | G1: 7 | H1: 8 | I1: 9 | J1: 10 | K1: 11 | L1: 12 | M1: 13 | N1: 14 | O1: 15 | P1: 16 | Q1: 17 | R1: 18 | S1: 19 | T1: 20 | U1: 21 | V1: 22 | W1: 23 | X1: 24 | Y1: 25 | Z1: 26 | AA1: 27 | AB1: 28 | AC1: 29 | AD1: 30 | AE1: 31 | AF1: 32 | AG1: 33 | AH1: 34 | AI1: 35 | AJ1: 36 | AK1: 37 | AL1: 38 | AM1: 39 | AN1: 40
A2: Subjects | C2: * | D2: A | E2: B | F2: C | G2: D | H2: E | I2: F | J2: G | K2: AstarA | L2: AstarC | M2: AstarG | N2: Total | O2: (No column name) | P2: * | Q2: A | R2: B | S2: C | T2: D | U2: E | V2: F | W2: G | X2: AstarA | Y2: AstarC | Z2: AstarG | AA2: Total | AB2: (No column name) | AC2: * | AD2: A | AE2: B | AF2: C | AG2: D | AH2: E | AI2: F | AJ2: G | AK2: AstarA | AL2: AstarC | AM2: AstarG | AN2: Total
A3: Vocational Studies | B3: Males | C3: 1.7 | D3: 8.3 | E3: 18.7 | F3: 26.1 | G3: 20.6 | H3: 12.8 | I3: 6.6 | J3: 3.1 | K3: 9.9 | L3: 54.8 | M3: 97.8 | N3: 16915 | O3: Females | P3: 4.2 | Q3: 15 | R3: 24.7 | S3: 25.6 | T3: 15.5 | U3: 8.1 | V3: 3.9 | W3: 1.4 | X3: 19.2 | Y3: 69.4 | Z3: 98.4 | AA3: 18287 | AB3: All | AC3: 3 | AD3: 11.8 | AE3: 21.8 | AF3: 25.8 | AG3: 17.9 | AH3: 10.4 | AI3: 5.2 | AJ3: 2.2 | AK3: 14.8 | AL3: 62.4 | AM3: 98.1 | AN3: 35202
A4: Urdu | B4: Males | C4: 7.7 | D4: 18.3 | E4: 19.1 | F4: 18.4 | G4: 16.2 | H4: 9.5 | I4: 5.7 | J4: 2.9 | K4: 26 | L4: 63.5 | M4: 97.7 | N4: 1454 | O4: Females | P4: 14.2 | Q4: 24.4 | R4: 21.1 | S4: 19 | T4: 10.9 | U4: 5.7 | V4: 2.6 | W4: 1 | X4: 38.6 | Y4: 78.8 | Z4: 99 | AA4: 2437 | AB4: All | AC4: 11.8 | AD4: 22.1 | AE4: 20.4 | AF4: 18.8 | AG4: 12.9 | AH4: 7.1 | AI4: 3.8 | AJ4: 1.7 | AK4: 33.9 | AL4: 73.1 | AM4: 98.5 | AN4: 3891
A5: Statistics | B5: Males | C5: 6.4 | D5: 16.6 | E5: 22.7 | F5: 30.1 | G5: 12.6 | H5: 5.3 | I5: 2.4 | J5: 1.2 | K5: 23 | L5: 75.8 | M5: 97.3 | N5: 32464 | O5: Females | P5: 7.4 | Q5: 18 | R5: 23.7 | S5: 30.2 | T5: 10.9 | U5: 4.5 | V5: 2 | W5: 1.1 | X5: 25.4 | Y5: 79.2 | Z5: 97.8 | AA5: 29473 | AB5: All | AC5: 6.9 | AD5: 17.3 | AE5: 23.2 | AF5: 30.2 | AG5: 11.8 | AH5: 4.9 | AI5: 2.2 | AJ5: 1.2 | AK5: 24.1 | AL5: 77.5 | AM5: 97.5 | AN5: 61937
A6: Spanish | B6: Males | C6: 12 | D6: 15.5 | E6: 19 | F6: 22.2 | G6: 15.2 | H6: 8.7 | I6: 4.4 | J6: 2 | K6: 27.6 | L6: 68.8 | M6: 99 | N6: 24538 | O6: Females | P6: 16.9 | Q6: 19.4 | R6: 21.2 | S6: 20.9 | T6: 12.1 | U6: 5.5 | V6: 2.6 | W6: 0.8 | X6: 36.3 | Y6: 78.5 | Z6: 99.5 | AA6: 34143 | AB6: All | AC6: 14.9 | AD6: 17.8 | AE6: 20.3 | AF6: 21.4 | AG6: 13.4 | AH6: 6.9 | AI6: 3.3 | AJ6: 1.3 | AK6: 32.7 | AL6: 74.4 | AM6: 99.3 | AN6: 58681
A7: Social Studies | B7: Males | C7: 1.8 | D7: 9.9 | E7: 20.5 | F7: 25 | G7: 16.7 | H7: 11.4 | I7: 7.1 | J7: 4.1 | K7: 11.7 | L7: 57.2 | M7: 96.5 | N7: 12651 | O7: Females | P7: 4.6 | Q7: 16 | R7: 24.9 | S7: 22.8 | T7: 13.7 | U7: 8.5 | V7: 4.8 | W7: 2.7 | X7: 20.6 | Y7: 68.3 | Z7: 98 | AA7: 24570 | AB7: All | AC7: 3.6 | AD7: 13.9 | AE7: 23.4 | AF7: 23.6 | AG7: 14.7 | AH7: 9.4 | AI7: 5.6 | AJ7: 3.2 | AK7: 17.6 | AL7: 64.5 | AM7: 97.5 | AN7: 37221
A8: Religious Studies | B8: Males | C8: 8.1 | D8: 16.6 | E8: 22.1 | F8: 20.8 | G8: 12.5 | H8: 8.3 | I8: 5.6 | J8: 3.5 | K8: 24.7 | L8: 67.6 | M8: 97.6 | N8: 89188 | O8: Females | P8: 15 | Q8: 23.2 | R8: 23.2 | S8: 17.5 | T8: 9.4 | U8: 5.5 | V8: 3.2 | W8: 1.8 | X8: 38.2 | Y8: 78.9 | Z8: 98.8 | AA8: 105921 | AB8: All | AC8: 11.8 | AD8: 20.2 | AE8: 22.7 | AF8: 19 | AG8: 10.8 | AH8: 6.8 | AI8: 4.3 | AJ8: 2.6 | AK8: 32 | AL8: 73.8 | AM8: 98.3 | AN8: 195109
A9: Polish | B9: Males | C9: 15.5 | D9: 47.5 | E9: 22 | F9: 8.9 | G9: 2.1 | H9: 1.6 | I9: 1 | J9: 0.9 | K9: 63 | L9: 93.9 | M9: 99.4 | N9: 1262 | O9: Females | P9: 29.7 | Q9: 48.3 | R9: 13.4 | S9: 5.3 | T9: 0.7 | U9: 0.7 | V9: 0.6 | W9: 0.6 | X9: 78 | Y9: 96.6 | Z9: 99.4 | AA9: 1243 | AB9: All | AC9: 22.6 | AD9: 47.9 | AE9: 17.7 | AF9: 7.1 | AG9: 1.4 | AH9: 1.2 | AI9: 0.8 | AJ9: 0.8 | AK9: 70.4 | AL9: 95.2 | AM9: 99.4 | AN9: 2505
A10: Physics | B10: Males | C10: 21.2 | D10: 27.6 | E10: 27.6 | F10: 17.9 | G10: 4.6 | H10: 0.7 | I10: 0.2 | J10: 0.1 | K10: 48.8 | L10: 94.3 | M10: 99.9 | N10: 70307 | O10: Females | P10: 22 | Q10: 27.3 | R10: 26.9 | S10: 17.6 | T10: 5 | U10: 0.9 | V10: 0.2 | W10: 0.1 | X10: 49.3 | Y10: 93.8 | Z10: 99.9 | AA10: 60831 | AB10: All | AC10: 21.6 | AD10: 27.5 | AE10: 27.3 | AF10: 17.7 | AG10: 4.8 | AH10: 0.8 | AI10: 0.2 | AJ10: 0.1 | AK10: 49.1 | AL10: 94.1 | AM10: 99.9 | AN10: 131138
A11: Physical Education | B11: Males | C11: 5.3 | D11: 12.3 | E11: 26.1 | F11: 27.3 | G11: 17.1 | H11: 8.4 | I11: 2.5 | J11: 0.6 | K11: 17.6 | L11: 71 | M11: 99.7 | N11: 61255 | O11: Females | P11: 9.3 | Q11: 15.6 | R11: 24.1 | S11: 23.1 | T11: 16.2 | U11: 8.1 | V11: 2.6 | W11: 0.7 | X11: 24.9 | Y11: 72.1 | Z11: 99.7 | AA11: 32579 | AB11: All | AC11: 6.7 | AD11: 13.5 | AE11: 25.4 | AF11: 25.9 | AG11: 16.8 | AH11: 8.3 | AI11: 2.5 | AJ11: 0.6 | AK11: 20.1 | AL11: 71.4 | AM11: 99.7 | AN11: 93834
A12: Performing Arts | B12: Males | C12: 3.8 | D12: 6.6 | E12: 11.7 | F12: 26.1 | G12: 18.8 | H12: 14.7 | I12: 10.1 | J12: 5.5 | K12: 10.4 | L12: 48.2 | M12: 97.4 | N12: 849 | O12: Females | P12: 5.3 | Q12: 11 | R12: 18.9 | S12: 26.9 | T12: 16.1 | U12: 10.9 | V12: 5.8 | W12: 2.7 | X12: 16.3 | Y12: 62.1 | Z12: 97.6 | AA12: 1799 | AB12: All | AC12: 4.8 | AD12: 9.6 | AE12: 16.6 | AF12: 26.7 | AG12: 17 | AH12: 12.1 | AI12: 7.2 | AJ12: 3.6 | AK12: 14.4 | AL12: 57.6 | AM12: 97.5 | AN12: 2648
A13: Other Sciences | B13: Males | C13: 12 | D13: 13.7 | E13: 17.5 | F13: 17.8 | G13: 14.7 | H13: 10.1 | I13: 6.7 | J13: 4.2 | K13: 25.7 | L13: 61 | M13: 96.7 | N13: 3618 | O13: Females | P13: 5.7 | Q13: 12.6 | R13: 19.1 | S13: 22.5 | T13: 14.9 | U13: 11.4 | V13: 7.3 | W13: 3.7 | X13: 18.3 | Y13: 59.9 | Z13: 97.3 | AA13: 1899 | AB13: All | AC13: 9.8 | AD13: 13.3 | AE13: 18.1 | AF13: 19.4 | AG13: 14.8 | AH13: 10.5 | AI13: 6.9 | AJ13: 4.1 | AK13: 23.1 | AL13: 60.6 | AM13: 96.9 | AN13: 5517
A14: Other Modern Languages | B14: Males | C14: 28 | D14: 24.6 | E14: 19.3 | F14: 13.1 | G14: 6.6 | H14: 3.7 | I14: 2 | J14: 1.2 | K14: 52.6 | L14: 85 | M14: 98.5 | N14: 4207 | O14: Females | P14: 33.5 | Q14: 27.6 | R14: 18.7 | S14: 10.2 | T14: 4.6 | U14: 2.4 | V14: 1.2 | W14: 0.5 | X14: 61 | Y14: 89.9 | Z14: 98.6 | AA14: 4567 | AB14: All | AC14: 30.8 | AD14: 26.2 | AE14: 19 | AF14: 11.6 | AG14: 5.6 | AH14: 3 | AI14: 1.6 | AJ14: 0.8 | AK14: 57 | AL14: 87.6 | AM14: 98.6 | AN14: 8774
A15: Other Design and Technology | B15: Males | C15: 2.5 | D15: 9.2 | E15: 18.3 | F15: 24.2 | G15: 18.6 | H15: 12.8 | I15: 7.7 | J15: 3.8 | K15: 11.8 | L15: 54.3 | M15: 97.2 | N15: 22529 | O15: Females | P15: 7.9 | Q15: 20 | R15: 24 | S15: 21.6 | T15: 11.9 | U15: 6.8 | V15: 4.1 | W15: 2 | X15: 28 | Y15: 73.6 | Z15: 98.3 | AA15: 11982 | AB15: All | AC15: 4.4 | AD15: 13 | AE15: 20.3 | AF15: 23.3 | AG15: 16.2 | AH15: 10.7 | AI15: 6.4 | AJ15: 3.2 | AK15: 17.4 | AL15: 61 | AM15: 97.6 | AN15: 34511
A16: Other Classical Studies | B16: Males | C16: 6.2 | D16: 24 | E16: 29.5 | F16: 14.7 | G16: 4.7 | H16: 6.2 | I16: 7 | J16: 2.3 | K16: 30.2 | L16: 74.4 | M16: 94.6 | N16: 129 | O16: Females | P16: 13.7 | Q16: 36.9 | R16: 21.4 | S16: 12.8 | T16: 5.7 | U16: 3.3 | V16: 1.5 | W16: 1.8 | X16: 50.6 | Y16: 84.8 | Z16: 97 | AA16: 336 | AB16: All | AC16: 11.6 | AD16: 33.3 | AE16: 23.7 | AF16: 13.3 | AG16: 5.4 | AH16: 4.1 | AI16: 3 | AJ16: 1.9 | AK16: 44.9 | AL16: 81.9 | AM16: 96.3 | AN16: 465
A17: Music | B17: Males | C17: 8.8 | D17: 21.8 | E17: 25.1 | F17: 18.8 | G17: 11.2 | H17: 7.3 | I17: 3.5 | J17: 1.9 | K17: 30.6 | L17: 74.6 | M17: 98.4 | N17: 22402 | O17: Females | P17: 10.8 | Q17: 25.1 | R17: 26.5 | S17: 17.2 | T17: 10.2 | U17: 5.7 | V17: 2.7 | W17: 1.1 | X17: 35.8 | Y17: 79.5 | Z17: 99.2 | AA17: 20755 | AB17: All | AC17: 9.8 | AD17: 23.4 | AE17: 25.8 | AF17: 18 | AG17: 10.7 | AH17: 6.5 | AI17: 3.1 | AJ17: 1.5 | AK17: 33.1 | AL17: 77 | AM17: 98.8 | AN17: 43157
A18: Media: Communication and Production | B18: Males | C18: 0 | D18: 0 | E18: 13.3 | F18: 36 | G18: 33.3 | H18: 10.7 | I18: x | J18: 0 | K18: 0 | L18: 49.3 | M18: 100 | N18: 75 | O18: Females | P18: 0 | Q18: 0 | R18: 22.5 | S18: 38.2 | T18: 27 | U18: 11.2 | V18: x | W18: 0 | X18: 0 | Y18: 60.7 | Z18: 100 | AA18: 89 | AB18: All | AC18: 0 | AD18: 0 | AE18: 18.3 | AF18: 37.2 | AG18: 29.9 | AH18: 11 | AI18: 3.7 | AJ18: 0 | AK18: 0 | AL18: 55.5 | AM18: 100 | AN18: 164
A19: Media/Film/TV | B19: Males | C19: 1.6 | D19: 8.5 | E19: 20.2 | F19: 26.4 | G19: 19.8 | H19: 11.2 | I19: 6.2 | J19: 3.2 | K19: 10.1 | L19: 56.6 | M19: 97.1 | N19: 25784 | O19: Females | P19: 5.2 | Q19: 19 | R19: 27.9 | S19: 23.7 | T19: 12.4 | U19: 5.8 | V19: 2.9 | W19: 1.5 | X19: 24.2 | Y19: 75.8 | Z19: 98.4 | AA19: 25999 | AB19: All | AC19: 3.4 | AD19: 13.8 | AE19: 24 | AF19: 25.1 | AG19: 16.1 | AH19: 8.5 | AI19: 4.6 | AJ19: 2.3 | AK19: 17.1 | AL19: 66.2 | AM19: 97.7 | AN19: 51783
A20: Mathematics | B20: Males | C20: 6.9 | D20: 13.5 | E20: 17.6 | F20: 28.7 | G20: 12 | H20: 9 | I20: 7 | J20: 3.5 | K20: 20.4 | L20: 66.8 | M20: 98.3 | N20: 303211 | O20: Females | P20: 6.7 | Q20: 13.9 | R20: 18.1 | S20: 28.6 | T20: 12.4 | U20: 8.7 | V20: 6.6 | W20: 3.3 | X20: 20.7 | Y20: 67.3 | Z20: 98.4 | AA20: 295368 | AB20: All | AC20: 6.8 | AD20: 13.7 | AE20: 17.8 | AF20: 28.6 | AG20: 12.2 | AH20: 8.8 | AI20: 6.8 | AJ20: 3.4 | AK20: 20.6 | AL20: 67 | AM20: 98.3 | AN20: 598579
A21: Manufacturing | B21: Males | C21: 0 | D21: 3.6 | E21: 6.5 | F21: 19.4 | G21: 13.7 | H21: 17.3 | I21: 20.1 | J21: 10.1 | K21: 3.6 | L21: 29.5 | M21: 90.6 | N21: 139 | O21: Females | P21: 0 | Q21: 9.1 | R21: 9.1 | S21: 24.2 | T21: 15.2 | U21: 12.1 | V21: 9.1 | W21: 18.2 | X21: 9.1 | Y21: 42.4 | Z21: 97 | AA21: 33 | AB21: All | AC21: 0 | AD21: 4.7 | AE21: 7 | AF21: 20.3 | AG21: 14 | AH21: 16.3 | AI21: 18 | AJ21: 11.6 | AK21: 4.7 | AL21: 32 | AM21: 91.9 | AN21: 172
A22: Leisure and Tourism | B22: Males | C22: 0.3 | D22: 2.1 | E22: 6.5 | F22: 15 | G22: 18.4 | H22: 17.9 | I22: 15.7 | J22: 12.6 | K22: 2.4 | L22: 23.9 | M22: 88.5 | N22: 1180 | O22: Females | P22: 2 | Q22: 8.2 | R22: 15.9 | S22: 21.7 | T22: 16.6 | U22: 14 | V22: 9.7 | W22: 6.8 | X22: 10.2 | Y22: 47.8 | Z22: 94.9 | AA22: 1637 | AB22: All | AC22: 1.3 | AD22: 5.6 | AE22: 12 | AF22: 18.9 | AG22: 17.3 | AH22: 15.6 | AI22: 12.2 | AJ22: 9.3 | AK22: 6.9 | AL22: 37.8 | AM22: 92.2 | AN22: 2817
A23: Latin | B23: Males | C23: 45.1 | D23: 26.7 | E23: 13.3 | F23: 8 | G23: 4.1 | H23: 1.7 | I23: 0.5 | J23: 0.2 | K23: 71.8 | L23: 93.1 | M23: 99.7 | N23: 4077 | O23: Females | P23: 47.4 | Q23: 27.8 | R23: 13 | S23: 6.5 | T23: 3.2 | U23: 1.2 | V23: 0.4 | W23: 0.1 | X23: 75.3 | Y23: 94.8 | Z23: 99.7 | AA23: 4135 | AB23: All | AC23: 46.3 | AD23: 27.3 | AE23: 13.2 | AF23: 7.2 | AG23: 3.7 | AH23: 1.5 | AI23: 0.5 | AJ23: 0.2 | AK23: 73.5 | AL23: 93.9 | AM23: 99.7 | AN23: 8212
A24: Italian | B24: Males | C24: 39.7 | D24: 18.3 | E24: 15 | F24: 13 | G24: 6.3 | H24: 2.9 | I24: 2.7 | J24: 1.2 | K24: 58 | L24: 86 | M24: 99 | N24: 1451 | O24: Females | P24: 37.4 | Q24: 22.8 | R24: 17.7 | S24: 11 | T24: 5.6 | U24: 2.5 | V24: 1.7 | W24: 0.8 | X24: 60.2 | Y24: 88.9 | Z24: 99.5 | AA24: 1985 | AB24: All | AC24: 38.4 | AD24: 20.9 | AE24: 16.6 | AF24: 11.8 | AG24: 5.9 | AH24: 2.7 | AI24: 2.1 | AJ24: 1 | AK24: 59.3 | AL24: 87.7 | AM24: 99.3 | AN24: 3436
A25: Information Technology | B25: Males | C25: 8.4 | D25: 18.4 | E25: 21.8 | F25: 25.9 | G25: 13 | H25: 5.4 | I25: 3 | J25: 1.7 | K25: 26.9 | L25: 74.5 | M25: 97.6 | N25: 19551 | O25: Females | P25: 12.3 | Q25: 25.2 | R25: 24.3 | S25: 21.6 | T25: 9.4 | U25: 3.6 | V25: 1.5 | W25: 0.8 | X25: 37.5 | Y25: 83.4 | Z25: 98.6 | AA25: 16611 | AB25: All | AC25: 10.2 | AD25: 21.5 | AE25: 22.9 | AF25: 23.9 | AG25: 11.3 | AH25: 4.6 | AI25: 2.3 | AJ25: 1.3 | AK25: 31.7 | AL25: 78.6 | AM25: 98.1 | AN25: 36162
A26: Humanities | B26: Males | C26: 1.2 | D26: 5.5 | E26: 14.4 | F26: 20.7 | G26: 18.1 | H26: 14.2 | I26: 11.9 | J26: 7.9 | K26: 6.7 | L26: 41.8 | M26: 93.9 | N26: 7209 | O26: Females | P26: 3 | Q26: 10.4 | R26: 19.1 | S26: 22.6 | T26: 17.1 | U26: 12.3 | V26: 7.4 | W26: 4.8 | X26: 13.4 | Y26: 55.2 | Z26: 96.7 | AA26: 7417 | AB26: All | AC26: 2.1 | AD26: 8 | AE26: 16.8 | AF26: 21.7 | AG26: 17.6 | AH26: 13.2 | AI26: 9.6 | AJ26: 6.3 | AK26: 10.1 | AL26: 48.6 | AM26: 95.3 | AN26: 14626
A27: Hospitality and Catering | B27: Males | C27: x | D27: 1.7 | E27: 15.5 | F27: 28 | G27: 19 | H27: 18.1 | I27: 11.1 | J27: 5.2 | K27: 2.3 | L27: 45.8 | M27: 99.1 | N27: 343 | O27: Females | P27: x | Q27: 13.5 | R27: 23.1 | S27: 27.2 | T27: 15.3 | U27: 8 | V27: 5.3 | W27: 2.2 | X27: 18.4 | Y27: 68.7 | Z27: 99.4 | AA27: 511 | AB27: All | AC27: 3.2 | AD27: 8.8 | AE27: 20 | AF27: 27.5 | AG27: 16.7 | AH27: 12.1 | AI27: 7.6 | AJ27: 3.4 | AK27: 11.9 | AL27: 59.5 | AM27: 99.3 | AN27: 854
A28: Home Economics | B28: Males | C28: 0.3 | D28: 5.2 | E28: 15 | F28: 22.9 | G28: 21.5 | H28: 16.2 | I28: 11.3 | J28: 5.4 | K28: 5.5 | L28: 43.4 | M28: 97.8 | N28: 3898 | O28: Females | P28: 2.9 | Q28: 11.3 | R28: 20.2 | S28: 23.5 | T28: 18.4 | U28: 12 | V28: 6.7 | W28: 3.1 | X28: 14.2 | Y28: 57.9 | Z28: 98.1 | AA28: 24546 | AB28: All | AC28: 2.6 | AD28: 10.5 | AE28: 19.5 | AF28: 23.4 | AG28: 18.8 | AH28: 12.6 | AI28: 7.3 | AJ28: 3.4 | AK28: 13 | AL28: 55.9 | AM28: 98 | AN28: 28444
A29: History | B29: Males | C29: 9.2 | D29: 17.6 | E29: 21 | F29: 19.2 | G29: 13.4 | H29: 8.4 | I29: 5.5 | J29: 3.5 | K29: 26.8 | L29: 66.9 | M29: 97.8 | N29: 98087 | O29: Females | P29: 14.3 | Q29: 21.4 | R29: 21.4 | S29: 17.3 | T29: 11.2 | U29: 6.8 | V29: 4.1 | W29: 2.2 | X29: 35.7 | Y29: 74.4 | Z29: 98.6 | AA29: 97120 | AB29: All | AC29: 11.7 | AD29: 19.5 | AE29: 21.2 | AF29: 18.2 | AG29: 12.3 | AH29: 7.6 | AI29: 4.8 | AJ29: 2.8 | AK29: 31.2 | AL29: 70.6 | AM29: 98.2 | AN29: 195207
A30: Dance | B30: Males | C30: 5.1 | D30: 16.6 | E30: 17.1 | F30: 22.1 | G30: 18.1 | H30: 10.9 | I30: 5.9 | J30: 2.9 | K30: 21.6 | L30: 60.9 | M30: 98.6 | N30: 869 | O30: Females | P30: 6.4 | Q30: 14.1 | R30: 18.9 | S30: 21.3 | T30: 19.3 | U30: 11.4 | V30: 5.3 | W30: 2 | X30: 20.5 | Y30: 60.7 | Z30: 98.7 | AA30: 12308 | AB30: All | AC30: 6.3 | AD30: 14.3 | AE30: 18.8 | AF30: 21.3 | AG30: 19.2 | AH30: 11.4 | AI30: 5.3 | AJ30: 2 | AK30: 20.6 | AL30: 60.7 | AM30: 98.7 | AN30: 13177
A31: Health and Social Care | B31: Males | C31: x | D31: 2 | E31: 12.3 | F31: 17.9 | G31: 17.5 | H31: 18.5 | I31: 15.2 | J31: 10.3 | K31: 2.6 | L31: 32.8 | M31: 94.4 | N31: 302 | O31: Females | P31: x | Q31: 9.4 | R31: 19 | S31: 23.3 | T31: 17.1 | U31: 12.2 | V31: 8.5 | W31: 5.6 | X31: 11.3 | Y31: 53.6 | Z31: 97 | AA31: 5570 | AB31: All | AC31: 1.9 | AD31: 9 | AE31: 18.7 | AF31: 23 | AG31: 17.1 | AH31: 12.5 | AI31: 8.8 | AJ31: 5.8 | AK31: 10.9 | AL31: 52.6 | AM31: 96.8 | AN31: 5872
A32: German | B32: Males | C32: 7.8 | D32: 13.6 | E32: 22.2 | F32: 26.8 | G32: 16.8 | H32: 7.5 | I32: 3.2 | J32: 1.4 | K32: 21.4 | L32: 70.4 | M32: 99.3 | N32: 27383 | O32: Females | P32: 10.6 | Q32: 18.2 | R32: 25.8 | S32: 25.6 | T32: 12.5 | U32: 4.4 | V32: 1.8 | W32: 0.8 | X32: 28.8 | Y32: 80.2 | Z32: 99.7 | AA32: 30916 | AB32: All | AC32: 9.3 | AD32: 16.1 | AE32: 24.1 | AF32: 26.1 | AG32: 14.5 | AH32: 5.9 | AI32: 2.5 | AJ32: 1.1 | AK32: 25.3 | AL32: 75.6 | AM32: 99.5 | AN32: 58299
A33: Geography | B33: Males | C33: 8.4 | D33: 15.9 | E33: 19.2 | F33: 22.7 | G33: 16.5 | H33: 8.7 | I33: 4.8 | J33: 2.6 | K33: 24.4 | L33: 66.3 | M33: 98.8 | N33: 89338 | O33: Females | P33: 13.9 | Q33: 20.8 | R33: 20.5 | S33: 19.9 | T33: 12.4 | U33: 6.4 | V33: 3.5 | W33: 1.7 | X33: 34.7 | Y33: 75.1 | Z33: 99.1 | AA33: 72208 | AB33: All | AC33: 10.9 | AD33: 18.1 | AE33: 19.8 | AF33: 21.4 | AG33: 14.7 | AH33: 7.7 | AI33: 4.2 | AJ33: 2.2 | AK33: 29 | AL33: 70.2 | AM33: 99 | AN33: 161546
A34: General Studies | B34: Males | C34: 1.8 | D34: 7.5 | E34: 12.4 | F34: 17.6 | G34: 19.4 | H34: 15.7 | I34: 11 | J34: 6.9 | K34: 9.3 | L34: 39.4 | M34: 92.5 | N34: 3373 | O34: Females | P34: 2.1 | Q34: 7.7 | R34: 15.7 | S34: 20.8 | T34: 20.8 | U34: 15.3 | V34: 7.8 | W34: 4.9 | X34: 9.8 | Y34: 46.3 | Z34: 95.1 | AA34: 3149 | AB34: All | AC34: 2 | AD34: 7.6 | AE34: 14 | AF34: 19.2 | AG34: 20.1 | AH34: 15.5 | AI34: 9.4 | AJ34: 5.9 | AK34: 9.6 | AL34: 42.7 | AM34: 93.7 | AN34: 6522
A35: French | B35: Males | C35: 8.7 | D35: 13.8 | E35: 19.5 | F35: 24.6 | G35: 17.6 | H35: 9.1 | I35: 4.5 | J35: 1.6 | K35: 22.5 | L35: 66.5 | M35: 99.4 | N35: 59640 | O35: Females | P35: 11.9 | Q35: 17.8 | R35: 23 | S35: 23.3 | T35: 14.3 | U35: 6.1 | V35: 2.4 | W35: 0.8 | X35: 29.7 | Y35: 76 | Z35: 99.6 | AA35: 82109 | AB35: All | AC35: 10.6 | AD35: 16.1 | AE35: 21.5 | AF35: 23.9 | AG35: 15.7 | AH35: 7.4 | AI35: 3.3 | AJ35: 1.2 | AK35: 26.7 | AL35: 72 | AM35: 99.5 | AN35: 141749
A36: English Studies | B36: Males | C36: 0.2 | D36: 2.2 | E36: 14.6 | F36: 45.9 | G36: 15.1 | H36: 11.4 | I36: 5.8 | J36: 3 | K36: 2.4 | L36: 63 | M36: 98.4 | N36: 1840 | O36: Females | P36: 0.4 | Q36: 3.5 | R36: 18.7 | S36: 47.8 | T36: 13 | U36: 9.4 | V36: 4 | W36: 1.9 | X36: 3.9 | Y36: 70.5 | Z36: 98.8 | AA36: 1462 | AB36: All | AC36: 0.3 | AD36: 2.8 | AE36: 16.4 | AF36: 46.8 | AG36: 14.2 | AH36: 10.5 | AI36: 5 | AJ36: 2.5 | AK36: 3.1 | AL36: 66.3 | AM36: 98.5 | AN36: 3302
A37: English Literature | B37: Males | C37: 4.5 | D37: 14.9 | E37: 26.6 | F37: 26.5 | G37: 15.3 | H37: 6.6 | I37: 2.6 | J37: 1.2 | K37: 19.4 | L37: 72.5 | M37: 98.2 | N37: 212726 | O37: Females | P37: 8.1 | Q37: 22.7 | R37: 30.5 | S37: 22.9 | T37: 9.9 | U37: 3.3 | V37: 1.1 | W37: 0.5 | X37: 30.8 | Y37: 84.2 | Z37: 99 | AA37: 236510 | AB37: All | AC37: 6.4 | AD37: 19 | AE37: 28.7 | AF37: 24.6 | AG37: 12.4 | AH37: 4.9 | AI37: 1.8 | AJ37: 0.8 | AK37: 25.4 | AL37: 78.7 | AM37: 98.6 | AN37: 449236
A38: English | B38: Males | C38: 3.8 | D38: 10.7 | E38: 19.9 | F38: 31.4 | G38: 17.9 | H38: 9.2 | I38: 4.2 | J38: 1.6 | K38: 14.5 | L38: 65.8 | M38: 98.9 | N38: 296070 | O38: Females | P38: 7.1 | Q38: 17.2 | R38: 25.2 | S38: 29.3 | T38: 12.8 | U38: 5.1 | V38: 1.9 | W38: 0.7 | X38: 24.3 | Y38: 78.8 | Z38: 99.3 | AA38: 291391 | AB38: All | AC38: 5.5 | AD38: 13.9 | AE38: 22.5 | AF38: 30.3 | AG38: 15.4 | AH38: 7.2 | AI38: 3.1 | AJ38: 1.2 | AK38: 19.4 | AL38: 72.3 | AM38: 99.1 | AN38: 587461
A39: Economics | B39: Males | C39: 5 | D39: 24.4 | E39: 30.4 | F39: 20.2 | G39: 9.5 | H39: 4.7 | I39: 2.7 | J39: 1.2 | K39: 29.4 | L39: 80 | M39: 98.1 | N39: 2353 | O39: Females | P39: 3.5 | Q39: 20.8 | R39: 33 | S39: 20.1 | T39: 8.7 | U39: 5.5 | V39: 4.6 | W39: 1.8 | X39: 24.3 | Y39: 77.4 | Z39: 97.9 | AA39: 897 | AB39: All | AC39: 4.6 | AD39: 23.4 | AE39: 31.1 | AF39: 20.2 | AG39: 9.3 | AH39: 4.9 | AI39: 3.2 | AJ39: 1.4 | AK39: 28 | AL39: 79.3 | AM39: 98 | AN39: 3250
A40: Drama | B40: Males | C40: 3.6 | D40: 14.1 | E40: 23.7 | F40: 26 | G40: 17.4 | H40: 8.4 | I40: 4.1 | J40: 1.6 | K40: 17.7 | L40: 67.3 | M40: 98.9 | N40: 28731 | O40: Females | P40: 6.4 | Q40: 20.7 | R40: 29.1 | S40: 23.2 | T40: 11.9 | U40: 5 | V40: 2.1 | W40: 0.9 | X40: 27.1 | Y40: 79.4 | Z40: 99.3 | AA40: 46024 | AB40: All | AC40: 5.3 | AD40: 18.1 | AE40: 27 | AF40: 24.3 | AG40: 14 | AH40: 6.3 | AI40: 2.9 | AJ40: 1.2 | AK40: 23.5 | AL40: 74.8 | AM40: 99.1 | AN40: 74755
A41: D & T: Textiles Technology | B41: Males | C41: 2.8 | D41: 6.4 | E41: 12.5 | F41: 19.9 | G41: 19.2 | H41: 14 | I41: 12.2 | J41: 6.8 | K41: 9.2 | L41: 41.6 | M41: 93.8 | N41: 1043 | O41: Females | P41: 10.6 | Q41: 19.1 | R41: 24.3 | S41: 21 | T41: 11.6 | U41: 6.6 | V41: 3.7 | W41: 1.7 | X41: 29.8 | Y41: 75.1 | Z41: 98.7 | AA41: 32614 | AB41: All | AC41: 10.4 | AD41: 18.8 | AE41: 23.9 | AF41: 21 | AG41: 11.8 | AH41: 6.9 | AI41: 4 | AJ41: 1.9 | AK41: 29.2 | AL41: 74.1 | AM41: 98.6 | AN41: 33657
A42: D & T: Systems & Control | B42: Males | C42: 5.3 | D42: 14.4 | E42: 21.7 | F42: 22.6 | G42: 15 | H42: 10.1 | I42: 6.2 | J42: 3.1 | K42: 19.7 | L42: 64 | M42: 98.4 | N42: 4014 | O42: Females | P42: 8 | Q42: 28 | R42: 25.2 | S42: 19.4 | T42: 9.2 | U42: 2.5 | V42: 4.5 | W42: 1.6 | X42: 36 | Y42: 80.6 | Z42: 98.4 | AA42: 314 | AB42: All | AC42: 5.5 | AD42: 15.4 | AE42: 22 | AF42: 22.3 | AG42: 14.6 | AH42: 9.5 | AI42: 6.1 | AJ42: 3 | AK42: 20.9 | AL42: 65.2 | AM42: 98.4 | AN42: 4328
A43: D & T: Resistant Materials | B43: Males | C43: 3.5 | D43: 9.4 | E43: 19.1 | F43: 23.9 | G43: 18.5 | H43: 12.6 | I43: 7.3 | J43: 3.5 | K43: 12.9 | L43: 55.9 | M43: 97.7 | N43: 49560 | O43: Females | P43: 9.4 | Q43: 18.3 | R43: 23.7 | S43: 20.3 | T43: 13 | U43: 7.5 | V43: 4.3 | W43: 2.1 | X43: 27.7 | Y43: 71.7 | Z43: 98.7 | AA43: 8889 | AB43: All | AC43: 4.4 | AD43: 10.7 | AE43: 19.8 | AF43: 23.4 | AG43: 17.7 | AH43: 11.8 | AI43: 6.8 | AJ43: 3.3 | AK43: 15.1 | AL43: 58.3 | AM43: 97.9 | AN43: 58449
A44: D & T: Graphic Products | B44: Males | C44: 3 | D44: 9 | E44: 17.5 | F44: 21.9 | G44: 18.3 | H44: 12.4 | I44: 8.4 | J44: 5.3 | K44: 12 | L44: 51.4 | M44: 95.8 | N44: 25664 | O44: Females | P44: 8.4 | Q44: 18.4 | R44: 23.3 | S44: 21.3 | T44: 12.9 | U44: 7.6 | V44: 4.3 | W44: 2 | X44: 26.8 | Y44: 71.4 | Z44: 98.3 | AA44: 18114 | AB44: All | AC44: 5.3 | AD44: 12.9 | AE44: 19.9 | AF44: 21.6 | AG44: 16.1 | AH44: 10.4 | AI44: 6.7 | AJ44: 3.9 | AK44: 18.1 | AL44: 59.7 | AM44: 96.8 | AN44: 43778
A45: D & T: Food Technology | B45: Males | C45: 2 | D45: 7.7 | E45: 17.3 | F45: 24.4 | G45: 19.8 | H45: 13.6 | I45: 8.2 | J45: 4.1 | K45: 9.7 | L45: 51.4 | M45: 97.2 | N45: 20079 | O45: Females | P45: 7.7 | Q45: 16.8 | R45: 23.5 | S45: 22.2 | T45: 14.2 | U45: 8.2 | V45: 4.1 | W45: 1.9 | X45: 24.5 | Y45: 70.1 | Z45: 98.6 | AA45: 33970 | AB45: All | AC45: 5.6 | AD45: 13.4 | AE45: 21.2 | AF45: 23 | AG45: 16.3 | AH45: 10.2 | AI45: 5.6 | AJ45: 2.8 | AK45: 19 | AL45: 63.2 | AM45: 98 | AN45: 54049
A46: D & T: Electronic Products | B46: Males | C46: 7 | D46: 14.8 | E46: 21.7 | F46: 21.2 | G46: 14.8 | H46: 8.7 | I46: 5.4 | J46: 3.8 | K46: 21.8 | L46: 64.6 | M46: 97.2 | N46: 9080 | O46: Females | P46: 15.7 | Q46: 24.6 | R46: 21.9 | S46: 15.8 | T46: 9.7 | U46: 6.2 | V46: 4.4 | W46: 0.6 | X46: 40.2 | Y46: 77.9 | Z46: 98.8 | AA46: 773 | AB46: All | AC46: 7.7 | AD46: 15.6 | AE46: 21.7 | AF46: 20.7 | AG46: 14.4 | AH46: 8.5 | AI46: 5.3 | AJ46: 3.5 | AK46: 23.2 | AL46: 65.7 | AM46: 97.3 | AN46: 9853
A47: Core Science | B47: Males | C47: 1.9 | D47: 7.6 | E47: 18.3 | F47: 32.8 | G47: 17.9 | H47: 11 | I47: 6.4 | J47: 2.7 | K47: 9.5 | L47: 60.6 | M47: 98.7 | N47: 173632 | O47: Females | P47: 2.9 | Q47: 10.1 | R47: 20.4 | S47: 32 | T47: 16.6 | U47: 9.5 | V47: 5.2 | W47: 2.2 | X47: 13 | Y47: 65.4 | Z47: 98.9 | AA47: 176542 | AB47: All | AC47: 2.4 | AD47: 8.9 | AE47: 19.4 | AF47: 32.4 | AG47: 17.3 | AH47: 10.2 | AI47: 5.8 | AJ47: 2.5 | AK47: 11.3 | AL47: 63 | AM47: 98.8 | AN47: 350174
A48: Construction | B48: Males | C48: 0 | D48: x | E48: 29.4 | F48: 26.5 | G48: 29.4 | H48: 8.8 | I48: 0 | J48: 0 | K48: x | L48: 61.8 | M48: 100 | N48: 34 | O48: Females | P48: 0 | Q48: 0 | R48: 0 | S48: 0 | T48: 0 | U48: 0 | V48: 0 | W48: 0 | X48: 0 | Y48: 0 | Z48: 0 | AA48: 0 | AB48: All | AC48: 0 | AD48: x | AE48: 29.4 | AF48: 26.5 | AG48: 29.4 | AH48: 8.8 | AI48: 0 | AJ48: 0 | AK48: x | AL48: 61.8 | AM48: 100 | AN48: 34
A49: Ancient History | B49: Males | C49: 16 | D49: 29.8 | E49: 24.5 | F49: 4.3 | G49: x | H49: 5.3 | I49: x | J49: x | K49: 45.7 | L49: 74.5 | M49: 98.9 | N49: 94 | O49: Females | P49: 20.5 | Q49: 17.9 | R49: 33.3 | S49: 7.7 | T49: x | U49: 7.7 | V49: x | W49: x | X49: 38.5 | Y49: 79.5 | Z49: 100 | AA49: 39 | AB49: All | AC49: 17.3 | AD49: 26.3 | AE49: 27.1 | AF49: 5.3 | AG49: 6 | AH49: 6 | AI49: 8.3 | AJ49: 3 | AK49: 43.6 | AL49: 75.9 | AM49: 99.2 | AN49: 133
A50: Communication Studies | B50: Males | C50: 2.2 | D50: 7.2 | E50: 14.4 | F50: 18.6 | G50: 18.4 | H50: 15.2 | I50: 11.3 | J50: 6.5 | K50: 9.4 | L50: 42.4 | M50: 93.7 | N50: 4072 | O50: Females | P50: 6.4 | Q50: 14.1 | R50: 20.5 | S50: 21.6 | T50: 14.8 | U50: 9.6 | V50: 6.4 | W50: 2.8 | X50: 20.5 | Y50: 62.6 | Z50: 96.3 | AA50: 5386 | AB50: All | AC50: 4.6 | AD50: 11.1 | AE50: 17.9 | AF50: 20.3 | AG50: 16.4 | AH50: 12 | AI50: 8.5 | AJ50: 4.4 | AK50: 15.7 | AL50: 53.9 | AM50: 95.2 | AN50: 9458
A51: Classical Greek | B51: Males | C51: 60.4 | D51: 23.1 | E51: 9.2 | F51: 4.4 | G51: 1.5 | H51: x | I51: x | J51: 0 | K51: 83.5 | L51: 97.1 | M51: 100 | N51: 619 | O51: Females | P51: 65.1 | Q51: 21.9 | R51: 7.5 | S51: 2.5 | T51: 2.8 | U51: x | V51: x | W51: 0 | X51: 86.9 | Y51: 97 | Z51: 100 | AA51: 398 | AB51: All | AC51: 62.2 | AD51: 22.6 | AE51: 8.6 | AF51: 3.6 | AG51: 2 | AH51: 0.8 | AI51: x | AJ51: 0 | AK51: 84.9 | AL51: 97.1 | AM51: 100 | AN51: 1017
A52: Classical Civilisation | B52: Males | C52: 10.3 | D52: 24.7 | E52: 24.1 | F52: 21.9 | G52: 11.4 | H52: 4.1 | I52: 1.8 | J52: 1 | K52: 34.9 | L52: 80.9 | M52: 99.2 | N52: 2201 | O52: Females | P52: 17.4 | Q52: 25.5 | R52: 23.9 | S52: 17.3 | T52: 9.1 | U52: 3.8 | V52: 1.6 | W52: 1 | X52: 42.9 | Y52: 84.1 | Z52: 99.6 | AA52: 1684 | AB52: All | AC52: 13.4 | AD52: 25 | AE52: 24 | AF52: 19.9 | AG52: 10.4 | AH52: 4 | AI52: 1.7 | AJ52: 1 | AK52: 38.4 | AL52: 82.3 | AM52: 99.4 | AN52: 3885
A53: Chinese | B53: Males | C53: 73.1 | D53: 9.4 | E53: 7 | F53: 5.1 | G53: 3 | H53: 1.2 | I53: x | J53: x | K53: 82.5 | L53: 94.6 | M53: 99.5 | N53: 1305 | O53: Females | P53: 79.7 | Q53: 10 | R53: 4.5 | S53: 3.1 | T53: 1.4 | U53: 0.9 | V53: x | W53: x | X53: 89.6 | Y53: 97.2 | Z53: 99.7 | AA53: 1175 | AB53: All | AC53: 76.2 | AD53: 9.7 | AE53: 5.8 | AF53: 4.2 | AG53: 2.2 | AH53: 1.1 | AI53: 0.3 | AJ53: 0.1 | AK53: 85.9 | AL53: 95.8 | AM53: 99.6 | AN53: 2480
A54: Chemistry | B54: Males | C54: 20.4 | D54: 27 | E54: 26.5 | F54: 18.8 | G54: 5.7 | H54: 1 | I54: 0.3 | J54: 0.1 | K54: 47.4 | L54: 92.8 | M54: 99.9 | N54: 70552 | O54: Females | P54: 24.8 | Q54: 28.6 | R54: 25 | S54: 15.8 | T54: 4.7 | U54: 0.8 | V54: 0.2 | W54: 0.1 | X54: 53.4 | Y54: 94.2 | Z54: 99.9 | AA54: 61466 | AB54: All | AC54: 22.5 | AD54: 27.8 | AE54: 25.8 | AF54: 17.4 | AG54: 5.2 | AH54: 0.9 | AI54: 0.2 | AJ54: 0.1 | AK54: 50.2 | AL54: 93.4 | AM54: 99.9 | AN54: 132018
A55: Business Studies | B55: Males | C55: 3.8 | D55: 14.5 | E55: 24.5 | F55: 24.3 | G55: 15.2 | H55: 8.6 | I55: 4.8 | J55: 2.7 | K55: 18.2 | L55: 67.1 | M55: 98.4 | N55: 36281 | O55: Females | P55: 5 | Q55: 17.5 | R55: 25 | S55: 23.1 | T55: 14 | U55: 7.9 | V55: 4.2 | W55: 2.1 | X55: 22.5 | Y55: 70.6 | Z55: 98.8 | AA55: 24754 | AB55: All | AC55: 4.3 | AD55: 15.7 | AE55: 24.7 | AF55: 23.8 | AG55: 14.7 | AH55: 8.3 | AI55: 4.5 | AJ55: 2.5 | AK55: 19.9 | AL55: 68.5 | AM55: 98.5 | AN55: 61035
A56: Biological Sciences | B56: Males | C56: 18 | D56: 28.4 | E56: 29.6 | F56: 17.8 | G56: 4.7 | H56: 0.9 | I56: 0.3 | J56: 0.1 | K56: 46.4 | L56: 93.8 | M56: 99.8 | N56: 71285 | O56: Females | P56: 23 | Q56: 30.6 | R56: 26.5 | S56: 14.7 | T56: 3.8 | U56: 0.8 | V56: 0.2 | W56: 0.1 | X56: 53.7 | Y56: 94.9 | Z56: 99.8 | AA56: 62501 | AB56: All | AC56: 20.4 | AD56: 29.5 | AE56: 28.1 | AF56: 16.4 | AG56: 4.3 | AH56: 0.8 | AI56: 0.3 | AJ56: 0.1 | AK56: 49.8 | AL56: 94.3 | AM56: 99.8 | AN56: 133786
A57: Art and Design | B57: Males | C57: 5.3 | D57: 9.7 | E57: 19.1 | F57: 30.6 | G57: 16.2 | H57: 9.8 | I57: 5.3 | J57: 2.3 | K57: 15 | L57: 64.7 | M57: 98.4 | N57: 57387 | O57: Females | P57: 11.2 | Q57: 18.5 | R57: 26.6 | S57: 26.1 | T57: 9.8 | U57: 4.3 | V57: 2 | W57: 0.7 | X57: 29.7 | Y57: 82.4 | Z57: 99.2 | AA57: 104955 | AB57: All | AC57: 9.1 | AD57: 15.4 | AE57: 23.9 | AF57: 27.7 | AG57: 12.1 | AH57: 6.2 | AI57: 3.2 | AJ57: 1.3 | AK57: 24.5 | AL57: 76.2 | AM57: 98.9 | AN57: 162342
A58: Arabic | B58: Males | C58: 29.8 | D58: 22.3 | E58: 15.2 | F58: 8.5 | G58: 5.9 | H58: 5.7 | I58: 3.1 | J58: 2.9 | K58: 52 | L58: 75.7 | M58: 93.3 | N58: 930 | O58: Females | P58: 31.3 | Q58: 20.7 | R58: 13.9 | S58: 10.7 | T58: 7 | U58: 5.5 | V58: 4.3 | W58: 3.1 | X58: 52 | Y58: 76.6 | Z58: 96.5 | AA58: 1208 | AB58: All | AC58: 30.6 | AD58: 21.4 | AE58: 14.5 | AF58: 9.7 | AG58: 6.5 | AH58: 5.6 | AI58: 3.8 | AJ58: 3 | AK58: 52 | AL58: 76.2 | AM58: 95.1 | AN58: 2138
A59: Applied Physical Education | B59: Males | C59: 1.4 | D59: 6.3 | E59: 19.8 | F59: 41.4 | G59: 21.9 | H59: 6.5 | I59: 1.6 | J59: x | K59: 7.7 | L59: 68.9 | M59: 99 | N59: 572 | O59: Females | P59: 2 | Q59: 8.1 | R59: 18.6 | S59: 38 | T59: 21.7 | U59: 7.6 | V59: 2 | W59: x | X59: 10.1 | Y59: 66.7 | Z59: 98 | AA59: 447 | AB59: All | AC59: 1.7 | AD59: 7.1 | AE59: 19.2 | AF59: 39.9 | AG59: 21.8 | AH59: 7 | AI59: 1.8 | AJ59: x | AK59: 8.7 | AL59: 67.9 | AM59: 98.5 | AN59: 1019
A60: Applied Engineering | B60: Males | C60: 1.2 | D60: 6.3 | E60: 12.8 | F60: 21.5 | G60: 22.4 | H60: 14.4 | I60: 10.8 | J60: 6.6 | K60: 7.5 | L60: 41.8 | M60: 96.1 | N60: 1241 | O60: Females | P60: 0 | Q60: 8.5 | R60: 18.6 | S60: 33.9 | T60: 16.9 | U60: 6.8 | V60: 6.8 | W60: 5.1 | X60: 8.5 | Y60: 61 | Z60: 96.6 | AA60: 59 | AB60: All | AC60: 1.2 | AD60: 6.4 | AE60: 13.1 | AF60: 22.1 | AG60: 22.2 | AH60: 14.1 | AI60: 10.6 | AJ60: 6.5 | AK60: 7.5 | AL60: 42.7 | AM60: 96.1 | AN60: 1300
A61: Applied Business | B61: Males | C61: 1.6 | D61: 9 | E61: 19.9 | F61: 22.5 | G61: 14.9 | H61: 11.2 | I61: 8.6 | J61: 6.7 | K61: 10.6 | L61: 53 | M61: 94.4 | N61: 2142 | O61: Females | P61: 6.7 | Q61: 16.4 | R61: 20.3 | S61: 22.9 | T61: 13 | U61: 7.9 | V61: 6.1 | W61: 3.8 | X61: 23.1 | Y61: 66.4 | Z61: 97.1 | AA61: 1373 | AB61: All | AC61: 3.6 | AD61: 11.9 | AE61: 20.1 | AF61: 22.7 | AG61: 14.1 | AH61: 9.9 | AI61: 7.7 | AJ61: 5.5 | AK61: 15.5 | AL61: 58.2 | AM61: 95.4 | AN61: 3515
A62: Applied Art and Design | B62: Males | C62: 1.9 | D62: 7.2 | E62: 19.1 | F62: 36 | G62: 16.4 | H62: 12.4 | I62: 4.8 | J62: 1.4 | K62: 9.2 | L62: 64.3 | M62: 99.3 | N62: 566 | O62: Females | P62: 5.3 | Q62: 15.7 | R62: 30.5 | S62: 30.8 | T62: 9.6 | U62: 4.5 | V62: 2 | W62: 0.5 | X62: 21 | Y62: 82.3 | Z62: 98.9 | AA62: 910 | AB62: All | AC62: 4 | AD62: 12.5 | AE62: 26.2 | AF62: 32.8 | AG62: 12.2 | AH62: 7.5 | AI62: 3 | AJ62: 0.9 | AK62: 16.5 | AL62: 75.4 | AM62: 99.1 | AN62: 1476
A63: All Subjects | B63: Males | C63: 6.9 | D63: 14 | E63: 21.2 | F63: 26.4 | G63: 14.9 | H63: 8.3 | I63: 4.6 | J63: 2.2 | K63: 20.9 | L63: 68.4 | M63: 98.5 | N63: 2220810 | O63: Females | P63: 9.7 | Q63: 18.2 | R63: 23.6 | S63: 24.6 | T63: 12.1 | U63: 6.1 | V63: 3.2 | W63: 1.5 | X63: 27.9 | Y63: 76.1 | Z63: 99 | AA63: 2290185 | AB63: All | AC63: 8.3 | AD63: 16.1 | AE63: 22.4 | AF63: 25.5 | AG63: 13.5 | AH63: 7.2 | AI63: 3.9 | AJ63: 1.8 | AK63: 24.4 | AL63: 72.3 | AM63: 98.7 | AN63: 4510995
A64: Additional Science | B64: Males | C64: 3.7 | D64: 9.2 | E64: 20.6 | F64: 33.3 | G64: 19.4 | H64: 8 | I64: 3.4 | J64: 1.4 | K64: 12.9 | L64: 66.9 | M64: 99.1 | N64: 123625 | O64: Females | P64: 5.8 | Q64: 12.1 | R64: 23 | S64: 31.3 | T64: 16.5 | U64: 6.6 | V64: 2.8 | W64: 1.1 | X64: 17.8 | Y64: 72.1 | Z64: 99.2 | AA64: 128169 | AB64: All | AC64: 4.8 | AD64: 10.7 | AE64: 21.8 | AF64: 32.3 | AG64: 17.9 | AH64: 7.3 | AI64: 3.1 | AJ64: 1.3 | AK64: 15.4 | AL64: 69.6 | AM64: 99.2 | AN64: 251794
A65: Additional Applied Science | B65: Males | C65: x | D65: 0.7 | E65: 5.2 | F65: 22.9 | G65: 32 | H65: 21.2 | I65: 11.1 | J65: 4.2 | K65: 0.7 | L65: 28.8 | M65: 97.4 | N65: 13434 | O65: Females | P65: x | Q65: 2 | R65: 10.7 | S65: 29.1 | T65: 30.2 | U65: 16.5 | V65: 7.2 | W65: 2.4 | X65: 2.1 | Y65: 41.9 | Z65: 98.2 | AA65: 15628 | AB65: All | AC65: 0.1 | AD65: 1.4 | AE65: 8.2 | AF65: 26.3 | AG65: 31 | AH65: 18.7 | AI65: 9 | AJ65: 3.2 | AK65: 1.4 | AL65: 35.8 | AM65: 97.8 | AN65: 29062

Sheet 2012 (hidden)
A1: 1 | B1: =A1+1 -> 2 | C1: =B1+1 -> 3 | D1: 4 | E1: 5 | F1: 6 | G1: 7 | H1: 8 | I1: 9 | J1: 10 | K1: 11 | L1: 12 | M1: 13 | N1: 14 | O1: 15 | P1: 16 | Q1: 17 | R1: 18 | S1: 19 | T1: 20 | U1: 21 | V1: 22 | W1: 23 | X1: 24 | Y1: 25 | Z1: 26 | AA1: 27 | AB1: 28 | AC1: 29 | AD1: 30 | AE1: 31 | AF1: 32 | AG1: 33 | AH1: 34 | AI1: 35 | AJ1: 36 | AK1: 37 | AL1: 38 | AM1: 39 | AN1: 40
A2: Subjects | C2: * | D2: A | E2: B | F2: C | G2: D | H2: E | I2: F | J2: G | K2: AstarA | L2: AstarC | M2: AstarG | N2: Total | O2: (No column name) | P2: * | Q2: A | R2: B | S2: C | T2: D | U2: E | V2: F | W2: G | X2: AstarA | Y2: AstarC | Z2: AstarG | AA2: Total | AB2: (No column name) | AC2: * | AD2: A | AE2: B | AF2: C | AG2: D | AH2: E | AI2: F | AJ2: G | AK2: AstarA | AL2: AstarC | AM2: AstarG | AN2: Total
A3: English | B3: Males | C3: 2.5 | D3: 9.4 | E3: 18.9 | F3: 31.5 | G3: 20.3 | H3: 10.4 | I3: 4.7 | J3: 1.5 | K3: 11.9 | L3: 62.2 | M3: 99.2 | N3: 286477 | O3: Females | P3: 5.2 | Q3: 16.3 | R3: 25.3 | S3: 29.7 | T3: 14.5 | U3: 5.7 | V3: 2.1 | W3: 0.7 | X3: 21.5 | Y3: 76.5 | Z3: 99.5 | AA3: 282134 | AB3: All | AC3: 3.8 | AD3: 12.8 | AE3: 22.1 | AF3: 30.6 | AG3: 17.4 | AH3: 8.1 | AI3: 3.4 | AJ3: 1.1 | AK3: 16.6 | AL3: 69.3 | AM3: 99.4 | AN3: 568611
A4: Mathematics | B4: Males | C4: 7.5 | D4: 12.8 | E4: 17.8 | F4: 32.5 | G4: 10.7 | H4: 7.5 | I4: 6.2 | J4: 3.5 | K4: 20.3 | L4: 70.6 | M4: 98.4 | N4: 301640 | O4: Females | P4: 7 | Q4: 13.3 | R4: 18.4 | S4: 32.5 | T4: 11 | U4: 7.2 | V4: 5.8 | W4: 3.3 | X4: 20.3 | Y4: 71.2 | Z4: 98.6 | AA4: 292726 | AB4: All | AC4: 7.2 | AD4: 13.1 | AE4: 18.1 | AF4: 32.5 | AG4: 10.9 | AH4: 7.4 | AI4: 6 | AJ4: 3.4 | AK4: 20.3 | AL4: 70.9 | AM4: 98.5 | AN4: 594366
A5: Core Science | B5: Males | C5: 1.7 | D5: 6.8 | E5: 18.2 | F5: 35.2 | G5: 18.9 | H5: 10.1 | I5: 5.7 | J5: 2.4 | K5: 8.5 | L5: 61.9 | M5: 98.9 | N5: 154001 | O5: Females | P5: 2.6 | Q5: 9.3 | R5: 20.9 | S5: 34.1 | T5: 17.1 | U5: 8.7 | V5: 4.5 | W5: 1.9 | X5: 11.9 | Y5: 67 | Z5: 99.2 | AA5: 157230 | AB5: All | AC5: 2.2 | AD5: 8.1 | AE5: 19.5 | AF5: 34.7 | AG5: 18 | AH5: 9.4 | AI5: 5.1 | AJ5: 2.2 | AK5: 10.3 | AL5: 64.5 | AM5: 99.1 | AN5: 311231
A6: Additional Science | B6: Males | C6: 3.1 | D6: 8.4 | E6: 20.7 | F6: 33.7 | G6: 20.3 | H6: 8.1 | I6: 3.5 | J6: 1.4 | K6: 11.5 | L6: 65.9 | M6: 99.2 | N6: 119763 | O6: Females | P6: 4.6 | Q6: 11.5 | R6: 23.7 | S6: 31.8 | T6: 17.2 | U6: 6.8 | V6: 2.7 | W6: 1.1 | X6: 16.1 | Y6: 71.6 | Z6: 99.3 | AA6: 124941 | AB6: All | AC6: 3.8 | AD6: 10 | AE6: 22.2 | AF6: 32.7 | AG6: 18.7 | AH6: 7.4 | AI6: 3.1 | AJ6: 1.2 | AK6: 13.8 | AL6: 68.8 | AM6: 99.3 | AN6: 244704
A7: Additional Applied Science | B7: Males | C7: 0.1 | D7: 0.9 | E7: 5 | F7: 20.4 | G7: 32.7 | H7: 22.7 | I7: 11.7 | J7: 3.8 | K7: 1.1 | L7: 26.4 | M7: 97.3 | N7: 8181 | O7: Females | P7: 0.2 | Q7: 2.8 | R7: 10.6 | S7: 26.9 | T7: 30.5 | U7: 17.1 | V7: 7.8 | W7: 2.3 | X7: 3 | Y7: 40.5 | Z7: 98.2 | AA7: 9468 | AB7: All | AC7: 0.2 | AD7: 1.9 | AE7: 8 | AF7: 23.9 | AG7: 31.5 | AH7: 19.7 | AI7: 9.6 | AJ7: 3 | AK7: 2.1 | AL7: 34 | AM7: 97.8 | AN7: 17649
A8: Physics | B8: Males | C8: 19.5 | D8: 27.4 | E8: 28.1 | F8: 18.9 | G8: 4.9 | H8: 0.9 | I8: 0.2 | J8: 0.1 | K8: 46.8 | L8: 93.8 | M8: 99.9 | N8: 77821 | O8: Females | P8: 19.7 | Q8: 27.4 | R8: 28.1 | S8: 18.2 | T8: 5.3 | U8: 0.9 | V8: 0.2 | W8: 0 | X8: 47.1 | Y8: 93.5 | Z8: 99.9 | AA8: 68671 | AB8: All | AC8: 19.6 | AD8: 27.4 | AE8: 28.1 | AF8: 18.6 | AG8: 5.1 | AH8: 0.9 | AI8: 0.2 | AJ8: 0.1 | AK8: 47 | AL8: 93.7 | AM8: 99.9 | AN8: 146492
A9: Chemistry | B9: Males | C9: 19.4 | D9: 26.6 | E9: 27.8 | F9: 18.8 | G9: 6 | H9: 1 | I9: 0.2 | J9: 0.1 | K9: 46 | L9: 92.7 | M9: 99.9 | N9: 78220 | O9: Females | P9: 23.2 | Q9: 28.6 | R9: 26.4 | S9: 16.1 | T9: 4.7 | U9: 0.8 | V9: 0.1 | W9: 0 | X9: 51.8 | Y9: 94.2 | Z9: 99.9 | AA9: 69244 | AB9: All | AC9: 21.2 | AD9: 27.5 | AE9: 27.1 | AF9: 17.5 | AG9: 5.4 | AH9: 0.9 | AI9: 0.2 | AJ9: 0 | AK9: 48.7 | AL9: 93.4 | AM9: 99.9 | AN9: 147464
A10: Biological Sciences | B10: Males | C10: 16.3 | D10: 28 | E10: 30.2 | F10: 18.6 | G10: 5.3 | H10: 0.9 | I10: 0.3 | J10: 0.1 | K10: 44.4 | L10: 93.2 | M10: 99.8 | N10: 78707 | O10: Females | P10: 21.3 | Q10: 30.8 | R10: 27.7 | S10: 14.9 | T10: 4.1 | U10: 0.7 | V10: 0.2 | W10: 0.1 | X10: 52.1 | Y10: 94.7 | Z10: 99.8 | AA10: 70315 | AB10: All | AC10: 18.7 | AD10: 29.4 | AE10: 29 | AF10: 16.8 | AG10: 4.7 | AH10: 0.8 | AI10: 0.3 | AJ10: 0.1 | AK10: 48 | AL10: 93.9 | AM10: 99.8 | AN10: 149022
A11: Other Sciences | B11: Males | C11: 12 | D11: 15.8 | E11: 18.6 | F11: 16.7 | G11: 13.2 | H11: 9.1 | I11: 6.4 | J11: 4.1 | K11: 27.7 | L11: 63 | M11: 95.9 | N11: 3788 | O11: Females | P11: 6.3 | Q11: 15.4 | R11: 19.7 | S11: 19.6 | T11: 14 | U11: 10.4 | V11: 6.1 | W11: 3.9 | X11: 21.7 | Y11: 61.1 | Z11: 95.4 | AA11: 2079 | AB11: All | AC11: 10 | AD11: 15.6 | AE11: 19 | AF11: 17.7 | AG11: 13.5 | AH11: 9.6 | AI11: 6.3 | AJ11: 4 | AK11: 25.6 | AL11: 62.3 | AM11: 95.7 | AN11: 5867
A12: D & T: Electronic Products | B12: Males | C12: 8.4 | D12: 14.5 | E12: 21.7 | F12: 20.5 | G12: 14 | H12: 8.8 | I12: 6 | J12: 3.5 | K12: 22.9 | L12: 65.1 | M12: 97.4 | N12: 8453 | O12: Females | P12: 19.2 | Q12: 24.6 | R12: 21.8 | S12: 16.3 | T12: 6.3 | U12: 6.3 | V12: 3.3 | W12: 1.5 | X12: 43.8 | Y12: 82 | Z12: 99.3 | AA12: 687 | AB12: All | AC12: 9.2 | AD12: 15.3 | AE12: 21.7 | AF12: 20.2 | AG12: 13.5 | AH12: 8.6 | AI12: 5.8 | AJ12: 3.4 | AK12: 24.5 | AL12: 66.4 | AM12: 97.6 | AN12: 9140
A13: D & T: Food Technology | B13: Males | C13: 2.4 | D13: 7.1 | E13: 16.8 | F13: 25.1 | G13: 22.3 | H13: 13.7 | I13: 7.6 | J13: 3.4 | K13: 9.5 | L13: 51.3 | M13: 98.2 | N13: 18752 | O13: Females | P13: 8.5 | Q13: 16.8 | R13: 23.8 | S13: 23 | T13: 14.5 | U13: 7.5 | V13: 3.6 | W13: 1.5 | X13: 25.2 | Y13: 72.1 | Z13: 99.1 | AA13: 30772 | AB13: All | AC13: 6.2 | AD13: 13.1 | AE13: 21.2 | AF13: 23.8 | AG13: 17.4 | AH13: 9.8 | AI13: 5.1 | AJ13: 2.2 | AK13: 19.3 | AL13: 64.2 | AM13: 98.8 | AN13: 49524
A14: D & T: Graphic Products | B14: Males | C14: 3.4 | D14: 9.3 | E14: 16.7 | F14: 21.8 | G14: 19.5 | H14: 12.7 | I14: 8.3 | J14: 4.4 | K14: 12.8 | L14: 51.3 | M14: 96.2 | N14: 24294 | O14: Females | P14: 9.4 | Q14: 18.2 | R14: 22.8 | S14: 20.7 | T14: 13.7 | U14: 7.8 | V14: 4.1 | W14: 1.8 | X14: 27.7 | Y14: 71.2 | Z14: 98.5 | AA14: 16512 | AB14: All | AC14: 5.9 | AD14: 12.9 | AE14: 19.2 | AF14: 21.4 | AG14: 17.1 | AH14: 10.7 | AI14: 6.6 | AJ14: 3.3 | AK14: 18.8 | AL14: 59.4 | AM14: 97.1 | AN14: 40806
A15: D & T: Resistant Materials | B15: Males | C15: 3.3 | D15: 9.7 | E15: 19.1 | F15: 24.1 | G15: 18.2 | H15: 12 | I15: 7.4 | J15: 3.8 | K15: 13 | L15: 56.2 | M15: 97.6 | N15: 46098 | O15: Females | P15: 8.2 | Q15: 18.6 | R15: 23.7 | S15: 22.3 | T15: 13.1 | U15: 6.8 | V15: 4.1 | W15: 1.7 | X15: 26.8 | Y15: 72.8 | Z15: 98.6 | AA15: 8206 | AB15: All | AC15: 4 | AD15: 11 | AE15: 19.8 | AF15: 23.8 | AG15: 17.4 | AH15: 11.2 | AI15: 6.9 | AJ15: 3.5 | AK15: 15.1 | AL15: 58.7 | AM15: 97.7 | AN15: 54304
A16: D & T: Systems & Control | B16: Males | C16: 6.4 | D16: 14 | E16: 20 | F16: 24 | G16: 16.7 | H16: 8.9 | I16: 5.8 | J16: 2.5 | K16: 20.4 | L16: 64.4 | M16: 98.4 | N16: 3767 | O16: Females | P16: 10.9 | Q16: 30.7 | R16: 24.2 | S16: 15 | T16: 8.9 | U16: 4.8 | V16: 3.4 | W16: 1.4 | X16: 41.6 | Y16: 80.9 | Z16: 99.3 | AA16: 293 | AB16: All | AC16: 6.7 | AD16: 15.2 | AE16: 20.3 | AF16: 23.4 | AG16: 16.2 | AH16: 8.6 | AI16: 5.7 | AJ16: 2.4 | AK16: 21.9 | AL16: 65.6 | AM16: 98.5 | AN16: 4060
A17: D & T: Textiles Technology | B17: Males | C17: 3.1 | D17: 7 | E17: 14.1 | F17: 18 | G17: 20.7 | H17: 13.4 | I17: 11.9 | J17: 7.4 | K17: 10.1 | L17: 42.2 | M17: 95.5 | N17: 891 | O17: Females | P17: 10.6 | Q17: 18.7 | R17: 24.3 | S17: 21.1 | T17: 12.5 | U17: 6.7 | V17: 3.4 | W17: 1.7 | X17: 29.3 | Y17: 74.6 | Z17: 98.9 | AA17: 31093 | AB17: All | AC17: 10.4 | AD17: 18.4 | AE17: 24 | AF17: 21 | AG17: 12.7 | AH17: 6.9 | AI17: 3.7 | AJ17: 1.8 | AK17: 28.7 | AL17: 73.7 | AM17: 98.8 | AN17: 31984
A18: Other Design and Technology | B18: Males | C18: 2.5 | D18: 8.4 | E18: 17.7 | F18: 24.7 | G18: 19.9 | H18: 12.7 | I18: 7.7 | J18: 4 | K18: 10.9 | L18: 53.3 | M18: 97.6 | N18: 22445 | O18: Females | P18: 6.9 | Q18: 17.3 | R18: 23.4 | S18: 23 | T18: 14.3 | U18: 7.7 | V18: 3.9 | W18: 1.9 | X18: 24.2 | Y18: 70.6 | Z18: 98.5 | AA18: 11244 | AB18: All | AC18: 3.9 | AD18: 11.4 | AE18: 19.6 | AF18: 24.1 | AG18: 18.1 | AH18: 11 | AI18: 6.4 | AJ18: 3.3 | AK18: 15.3 | AL18: 59.1 | AM18: 97.9 | AN18: 33689
A19: Applied Engineering | B19: Males | C19: 1.4 | D19: 4.5 | E19: 17.2 | F19: 23.4 | G19: 19.2 | H19: 15.7 | I19: 10.1 | J19: x | K19: 5.9 | L19: 46.5 | M19: 96.2 | N19: 1410 | O19: Females | P19: 18.1 | Q19: 22.4 | R19: 25 | S19: 13.8 | T19: 6 | U19: 7.8 | V19: 5.2 | W19: x | X19: 40.5 | Y19: 79.3 | Z19: 100 | AA19: 116 | AB19: All | AC19: 2.7 | AD19: 5.8 | AE19: 17.8 | AF19: 22.7 | AG19: 18.2 | AH19: 15.1 | AI19: 9.7 | AJ19: 4.4 | AK19: 8.5 | AL19: 49 | AM19: 96.5 | AN19: 1526
A20: Information Technology | B20: Males | C20: 5.2 | D20: 18 | E20: 25.8 | F20: 22 | G20: 12.3 | H20: 7 | I20: 4.8 | J20: 3.1 | K20: 23.2 | L20: 71 | M20: 98.1 | N20: 21476 | O20: Females | P20: 9.2 | Q20: 25.1 | R20: 27.2 | S20: 19.1 | T20: 9.2 | U20: 4.5 | V20: 2.7 | W20: 1.7 | X20: 34.3 | Y20: 80.6 | Z20: 98.8 | AA20: 17737 | AB20: All | AC20: 7 | AD20: 21.2 | AE20: 26.4 | AF20: 20.7 | AG20: 10.9 | AH20: 5.9 | AI20: 3.9 | AJ20: 2.5 | AK20: 28.2 | AL20: 75.3 | AM20: 98.4 | AN20: 39213
A21: Business Studies | B21: Males | C21: 3.1 | D21: 14.7 | E21: 24.8 | F21: 24.6 | G21: 16.2 | H21: 8.4 | I21: 4.6 | J21: 2.4 | K21: 17.8 | L21: 67.1 | M21: 98.8 | N21: 34976 | O21: Females | P21: 4.5 | Q21: 17.7 | R21: 25.9 | S21: 23 | T21: 14.8 | U21: 7.4 | V21: 4 | W21: 1.8 | X21: 22.1 | Y21: 71 | Z21: 99 | AA21: 23546 | AB21: All | AC21: 3.6 | AD21: 15.9 | AE21: 25.2 | AF21: 24 | AG21: 15.6 | AH21: 8 | AI21: 4.4 | AJ21: 2.2 | AK21: 19.5 | AL21: 68.7 | AM21: 98.9 | AN21: 58522
A22: Applied Business | B22: Males | C22: 2.3 | D22: 11.5 | E22: 19.9 | F22: 24.9 | G22: 15.7 | H22: 10.1 | I22: 6.9 | J22: 4.3 | K22: 13.7 | L22: 58.5 | M22: 95.5 | N22: 2220 | O22: Females | P22: 5.6 | Q22: 18.1 | R22: 22.5 | S22: 23.7 | T22: 12.3 | U22: 7.4 | V22: 4.5 | W22: 2.6 | X22: 23.7 | Y22: 70 | Z22: 96.8 | AA22: 1647 | AB22: All | AC22: 3.7 | AD22: 14.3 | AE22: 21 | AF22: 24.4 | AG22: 14.2 | AH22: 9 | AI22: 5.9 | AJ22: 3.6 | AK22: 18 | AL22: 63.4 | AM22: 96.1 | AN22: 3867
A23: Arabic | B23: Males | C23: 30.1 | D23: 20.8 | E23: 14.6 | F23: 11.1 | G23: 6.6 | H23: 4.7 | I23: 3.7 | J23: 3.2 | K23: 50.9 | L23: 76.6 | M23: 94.8 | N23: 1035 | O23: Females | P23: 29.7 | Q23: 22.1 | R23: 14.3 | S23: 11.5 | T23: 7.7 | U23: 3.6 | V23: 3.3 | W23: 2.5 | X23: 51.8 | Y23: 77.5 | Z23: 94.6 | AA23: 1263 | AB23: All | AC23: 29.9 | AD23: 21.5 | AE23: 14.4 | AF23: 11.3 | AG23: 7.2 | AH23: 4.1 | AI23: 3.5 | AJ23: 2.8 | AK23: 51.4 | AL23: 77.1 | AM23: 94.7 | AN23: 2298
A24: Chinese | B24: Males | C24: 62 | D24: 12.6 | E24: 10.3 | F24: 9 | G24: 2.9 | H24: 1.8 | I24: 0.8 | J24: x | K24: 74.6 | L24: 93.9 | M24: 99.6 | N24: 1188 | O24: Females | P24: 72.7 | Q24: 13 | R24: 6.3 | S24: 4.3 | T24: 2 | U24: 0.8 | V24: 0.4 | W24: x | X24: 85.8 | Y24: 96.3 | Z24: 99.6 | AA24: 1119 | AB24: All | AC24: 67.2 | AD24: 12.8 | AE24: 8.3 | AF24: 6.7 | AG24: 2.5 | AH24: 1.3 | AI24: 0.6 | AJ24: 0.1 | AK24: 80 | AL24: 95.1 | AM24: 99.6 | AN24: 2307
A25: French | B25: Males | C25: 8.5 | D25: 13.5 | E25: 19.2 | F25: 25.3 | G25: 18.6 | H25: 8.9 | I25: 4.2 | J25: 1.3 | K25: 22 | L25: 66.5 | M25: 99.5 | N25: 57046 | O25: Females | P25: 12 | Q25: 17.3 | R25: 22.1 | S25: 24.5 | T25: 15 | U25: 5.9 | V25: 2.2 | W25: 0.7 | X25: 29.4 | Y25: 76 | Z25: 99.7 | AA25: 78501 | AB25: All | AC25: 10.5 | AD25: 15.7 | AE25: 20.9 | AF25: 24.9 | AG25: 16.5 | AH25: 7.2 | AI25: 3 | AJ25: 1 | AK25: 26.3 | AL25: 72 | AM25: 99.6 | AN25: 135547
A26: German | B26: Males | C26: 8 | D26: 13.4 | E26: 21.6 | F26: 27.4 | G26: 17.5 | H26: 7.3 | I26: 3.1 | J26: 1.2 | K26: 21.4 | L26: 70.4 | M26: 99.6 | N26: 25917 | O26: Females | P26: 10.7 | Q26: 18 | R26: 25 | S26: 26.2 | T26: 13.1 | U26: 4.6 | V26: 1.7 | W26: 0.6 | X26: 28.7 | Y26: 79.8 | Z26: 99.8 | AA26: 28876 | AB26: All | AC26: 9.4 | AD26: 15.8 | AE26: 23.4 | AF26: 26.7 | AG26: 15.2 | AH26: 5.9 | AI26: 2.4 | AJ26: 0.9 | AK26: 25.2 | AL26: 75.4 | AM26: 99.7 | AN26: 54793
A27: Home Economics | B27: Males | C27: 0.8 | D27: 6.2 | E27: 16 | F27: 24 | G27: 20.9 | H27: 15.5 | I27: 9.7 | J27: 4.7 | K27: 6.9 | L27: 46.9 | M27: 97.7 | N27: 3901 | O27: Females | P27: 3 | Q27: 11.2 | R27: 20.3 | S27: 23.4 | T27: 18.6 | U27: 12.2 | V27: 6.6 | W27: 2.9 | X27: 14.2 | Y27: 58 | Z27: 98.3 | AA27: 23481 | AB27: All | AC27: 2.7 | AD27: 10.5 | AE27: 19.7 | AF27: 23.5 | AG27: 18.9 | AH27: 12.6 | AI27: 7.1 | AJ27: 3.1 | AK27: 13.2 | AL27: 56.4 | AM27: 98.2 | AN27: 27382
A28: Italian | B28: Males | C28: 39.8 | D28: 17.3 | E28: 15.4 | F28: 13.6 | G28: 7.2 | H28: 3.8 | I28: 1.6 | J28: 1 | K28: 57.1 | L28: 86.1 | M28: 99.6 | N28: 1698 | O28: Females | P28: 38.8 | Q28: 21.8 | R28: 17.3 | S28: 11.8 | T28: 5.6 | U28: 3 | V28: 0.9 | W28: 0.4 | X28: 60.6 | Y28: 89.7 | Z28: 99.6 | AA28: 2153 | AB28: All | AC28: 39.3 | AD28: 19.8 | AE28: 16.5 | AF28: 12.6 | AG28: 6.3 | AH28: 3.3 | AI28: 1.2 | AJ28: 0.7 | AK28: 59 | AL28: 88.1 | AM28: 99.6 | AN28: 3851
A29: Polish | B29: Males | C29: 17.4 | D29: 48 | E29: 20 | F29: 6.6 | G29: 3.2 | H29: 2.2 | I29: 0.5 | J29: 1.2 | K29: 65.4 | L29: 92 | M29: 99.1 | N29: 1399 | O29: Females | P29: 33.2 | Q29: 45 | R29: 13.2 | S29: 4.4 | T29: 1.2 | U29: 1 | V29: 0.4 | W29: 0.9 | X29: 78.2 | Y29: 95.8 | Z29: 99.3 | AA29: 1349 | AB29: All | AC29: 25.1 | AD29: 46.5 | AE29: 16.7 | AF29: 5.5 | AG29: 2.2 | AH29: 1.6 | AI29: 0.5 | AJ29: 1.1 | AK29: 71.7 | AL29: 93.9 | AM29: 99.2 | AN29: 2748
A30: Spanish | B30: Males | C30: 11.9 | D30: 15.2 | E30: 19.2 | F30: 22.5 | G30: 16.7 | H30: 8.4 | I30: 3.8 | J30: 1.6 | K30: 27.1 | L30: 68.8 | M30: 99.3 | N30: 26500 | O30: Females | P30: 16.2 | Q30: 18.8 | R30: 21.3 | S30: 21.2 | T30: 13.6 | U30: 5.5 | V30: 2.2 | W30: 0.8 | X30: 35.1 | Y30: 77.6 | Z30: 99.6 | AA30: 36845 | AB30: All | AC30: 14.4 | AD30: 17.3 | AE30: 20.4 | AF30: 21.7 | AG30: 14.9 | AH30: 6.7 | AI30: 2.9 | AJ30: 1.1 | AK30: 31.7 | AL30: 73.9 | AM30: 99.5 | AN30: 63345
A31: Urdu | B31: Males | C31: 7.6 | D31: 17.5 | E31: 19.2 | F31: 22.2 | G31: 14.7 | H31: 10.1 | I31: 4.8 | J31: 2 | K31: 25.2 | L31: 66.6 | M31: 98.2 | N31: 1283 | O31: Females | P31: 13.8 | Q31: 22.5 | R31: 22.2 | S31: 19.6 | T31: 10.8 | U31: 6.9 | V31: 2.8 | W31: 0.7 | X31: 36.3 | Y31: 78.1 | Z31: 99.3 | AA31: 2421 | AB31: All | AC31: 11.7 | AD31: 20.8 | AE31: 21.2 | AF31: 20.5 | AG31: 12.2 | AH31: 8 | AI31: 3.5 | AJ31: 1.1 | AK31: 32.5 | AL31: 74.1 | AM31: 98.9 | AN31: 3704
A32: Other Modern Languages | B32: Males | C32: 27.6 | D32: 26.7 | E32: 18.6 | F32: 12.9 | G32: 6.5 | H32: 3.4 | I32: 1.7 | J32: 1 | K32: 54.3 | L32: 85.9 | M32: 98.6 | N32: 4295 | O32: Females | P32: 34.1 | Q32: 28.6 | R32: 17.6 | S32: 10.6 | T32: 4.3 | U32: 2.3 | V32: 1 | W32: 0.6 | X32: 62.7 | Y32: 90.9 | Z32: 99.1 | AA32: 4597 | AB32: All | AC32: 30.9 | AD32: 27.7 | AE32: 18.1 | AF32: 11.7 | AG32: 5.4 | AH32: 2.8 | AI32: 1.4 | AJ32: 0.8 | AK32: 58.6 | AL32: 88.5 | AM32: 98.8 | AN32: 8892
A33: Classical Civilisation | B33: Males | C33: 8.7 | D33: 23.2 | E33: 25.5 | F33: 20.8 | G33: 13 | H33: 5.8 | I33: 2.1 | J33: 0.5 | K33: 31.9 | L33: 78.2 | M33: 99.6 | N33: 2414 | O33: Females | P33: 15.3 | Q33: 30.6 | R33: 24.8 | S33: 15.9 | T33: 8.1 | U33: 2.7 | V33: 1.4 | W33: 0.6 | X33: 46 | Y33: 86.7 | Z33: 99.6 | AA33: 1806 | AB33: All | AC33: 11.6 | AD33: 26.4 | AE33: 25.2 | AF33: 18.7 | AG33: 10.9 | AH33: 4.5 | AI33: 1.8 | AJ33: 0.5 | AK33: 37.9 | AL33: 81.8 | AM33: 99.6 | AN33: 4220
A34: Classical Greek | B34: Males | C34: 62.6 | D34: 20.2 | E34: 9.6 | F34: 3.5 | G34: 2.3 | H34: x | I34: x | J34: x | K34: 82.7 | L34: 95.8 | M34: 99.7 | N34: 649 | O34: Females | P34: 64.6 | Q34: 20.7 | R34: 9.4 | S34: 1.8 | T34: x | U34: x | V34: x | W34: 0 | X34: 85.3 | Y34: 96.4 | Z34: 100 | AA34: 449 | AB34: All | AC34: 63.4 | AD34: 20.4 | AE34: 9.5 | AF34: 2.8 | AG34: 2.6 | AH34: 0.5 | AI34: 0.4 | AJ34: x | AK34: 83.8 | AL34: 96.1 | AM34: 99.8 | AN34: 1098
A35: Geography | B35: Males | C35: 7.5 | D35: 16.7 | E35: 19.8 | F35: 22.4 | G35: 16.5 | H35: 9.1 | I35: 4.7 | J35: 2.2 | K35: 24.2 | L35: 66.4 | M35: 98.9 | N35: 91248 | O35: Females | P35: 13.3 | Q35: 21.6 | R35: 21.1 | S35: 19.5 | T35: 12.1 | U35: 6.4 | V35: 3.5 | W35: 1.7 | X35: 34.9 | Y35: 75.5 | Z35: 99.3 | AA35: 73839 | AB35: All | AC35: 10.1 | AD35: 18.9 | AE35: 20.4 | AF35: 21.1 | AG35: 14.6 | AH35: 7.9 | AI35: 4.1 | AJ35: 2 | AK35: 29 | AL35: 70.5 | AM35: 99.1 | AN35: 165087
A36: Latin | B36: Males | C36: 42.7 | D36: 27.7 | E36: 13.7 | F36: 7.8 | G36: 4.2 | H36: 1.9 | I36: 0.8 | J36: 0.5 | K36: 70.3 | L36: 91.9 | M36: 99.3 | N36: 4141 | O36: Females | P36: 48 | Q36: 27.3 | R36: 12.9 | S36: 6.6 | T36: 3 | U36: 1.3 | V36: 0.6 | W36: 0.3 | X36: 75.3 | Y36: 94.7 | Z36: 99.9 | AA36: 4240 | AB36: All | AC36: 45.4 | AD36: 27.5 | AE36: 13.3 | AF36: 7.2 | AG36: 3.6 | AH36: 1.6 | AI36: 0.7 | AJ36: 0.4 | AK36: 72.8 | AL36: 93.3 | AM36: 99.6 | AN36: 8381
A37: Other Classical Studies | B37: Males | C37: 13.6 | D37: 32.2 | E37: 24.6 | F37: 12.7 | G37: 7.6 | H37: 2.5 | I37: 2.5 | J37: 0 | K37: 45.8 | L37: 83.1 | M37: 95.8 | N37: 118 | O37: Females | P37: 12.7 | Q37: 31.8 | R37: 27 | S37: 14.1 | T37: 6.2 | U37: 2 | V37: 1.1 | W37: 1.7 | X37: 44.5 | Y37: 85.6 | Z37: 96.6 | AA37: 355 | AB37: All | AC37: 12.9 | AD37: 31.9 | AE37: 26.4 | AF37: 13.7 | AG37: 6.6 | AH37: 2.1 | AI37: 1.5 | AJ37: 1.3 | AK37: 44.8 | AL37: 85 | AM37: 96.4 | AN37: 473
A38: History | B38: Males | C38: 8.8 | D38: 17.3 | E38: 21 | F38: 19.7 | G38: 13.8 | H38: 8.5 | I38: 5.5 | J38: 3.3 | K38: 26.1 | L38: 66.8 | M38: 97.9 | N38: 99769 | O38: Females | P38: 13.5 | Q38: 21.4 | R38: 21.6 | S38: 17.6 | T38: 11.4 | U38: 6.9 | V38: 4.2 | W38: 2.2 | X38: 34.9 | Y38: 74.2 | Z38: 98.8 | AA38: 98106 | AB38: All | AC38: 11.2 | AD38: 19.3 | AE38: 21.3 | AF38: 18.7 | AG38: 12.6 | AH38: 7.7 | AI38: 4.8 | AJ38: 2.7 | AK38: 30.5 | AL38: 70.5 | AM38: 98.3 | AN38: 197875
A39: Ancient History | B39: Males | C39: 20 | D39: 23 | E39: 23 | F39: 13.3 | G39: 10.9 | H39: 6.1 | I39: x | J39: x | K39: 43 | L39: 79.4 | M39: 98.2 | N39: 165 | O39: Females | P39: 11.4 | Q39: 20.3 | R39: 26.6 | S39: 16.5 | T39: 13.9 | U39: 6.3 | V39: x | W39: x | X39: 31.6 | Y39: 74.7 | Z39: 98.7 | AA39: 79 | AB39: All | AC39: 17.2 | AD39: 22.1 | AE39: 24.2 | AF39: 14.3 | AG39: 11.9 | AH39: 6.1 | AI39: 2 | AJ39: x | AK39: 39.3 | AL39: 77.9 | AM39: 98.4 | AN39: 244
A40: Humanities | B40: Males | C40: 1.2 | D40: 5.5 | E40: 13.4 | F40: 21.7 | G40: 19.5 | H40: 14.9 | I40: 11 | J40: 7.5 | K40: 6.7 | L40: 41.9 | M40: 94.8 | N40: 7557 | O40: Females | P40: 2.5 | Q40: 9.5 | R40: 18.8 | S40: 23.1 | T40: 17.7 | U40: 13.1 | V40: 7.6 | W40: 4.5 | X40: 12 | Y40: 53.8 | Z40: 96.8 | AA40: 7754 | AB40: All | AC40: 1.9 | AD40: 7.5 | AE40: 16.2 | AF40: 22.4 | AG40: 18.6 | AH40: 14 | AI40: 9.3 | AJ40: 6 | AK40: 9.4 | AL40: 47.9 | AM40: 95.8 | AN40: 15311
A41: Economics | B41: Males | C41: 9.4 | D41: 24.9 | E41: 27.9 | F41: 17.9 | G41: 8.3 | H41: 5 | I41: 3.4 | J41: 1.6 | K41: 34.3 | L41: 80.1 | M41: 98.4 | N41: 2436 | O41: Females | P41: 8.7 | Q41: 23.4 | R41: 26.6 | S41: 20 | T41: 9.9 | U41: 4.8 | V41: 3.1 | W41: 2 | X41: 32 | Y41: 78.7 | Z41: 98.5 | AA41: 993 | AB41: All | AC41: 9.2 | AD41: 24.5 | AE41: 27.5 | AF41: 18.5 | AG41: 8.8 | AH41: 4.9 | AI41: 3.3 | AJ41: 1.7 | AK41: 33.7 | AL41: 79.7 | AM41: 98.4 | AN41: 3429
A42: Social Studies | B42: Males | C42: 1.9 | D42: 9.9 | E42: 20 | F42: 24.9 | G42: 17.7 | H42: 11.4 | I42: 7.2 | J42: 4.3 | K42: 11.8 | L42: 56.7 | M42: 97.2 | N42: 15141 | O42: Females | P42: 4.2 | Q42: 16.7 | R42: 25.6 | S42: 22.5 | T42: 13.7 | U42: 8 | V42: 4.8 | W42: 2.8 | X42: 20.9 | Y42: 69 | Z42: 98.3 | AA42: 27310 | AB42: All | AC42: 3.4 | AD42: 14.2 | AE42: 23.6 | AF42: 23.4 | AG42: 15.1 | AH42: 9.2 | AI42: 5.7 | AJ42: 3.3 | AK42: 17.6 | AL42: 64.6 | AM42: 97.9 | AN42: 42451
A43: Music | B43: Males | C43: 9 | D43: 22.1 | E43: 25.1 | F43: 19.3 | G43: 11.9 | H43: 6.7 | I43: 3 | J43: 1.5 | K43: 31.1 | L43: 75.6 | M43: 98.7 | N43: 20943 | O43: Females | P43: 10.6 | Q43: 25.1 | R43: 26.7 | S43: 17.8 | T43: 10.6 | U43: 5.2 | V43: 2.3 | W43: 1 | X43: 35.8 | Y43: 80.2 | Z43: 99.3 | AA43: 19818 | AB43: All | AC43: 9.8 | AD43: 23.6 | AE43: 25.9 | AF43: 18.6 | AG43: 11.3 | AH43: 6 | AI43: 2.7 | AJ43: 1.2 | AK43: 33.4 | AL43: 77.8 | AM43: 99 | AN43: 40761
A44: Applied Art and Design | B44: Males | C44: 3.6 | D44: 6.3 | E44: 18.6 | F44: 27.9 | G44: 20 | H44: 13.6 | I44: 7.7 | J44: 1.1 | K44: 10 | L44: 56.5 | M44: 98.9 | N44: 441 | O44: Females | P44: 6.8 | Q44: 16.7 | R44: 27.4 | S44: 28.6 | T44: 12.3 | U44: 4.8 | V44: 2.2 | W44: 0.7 | X44: 23.6 | Y44: 79.6 | Z44: 99.6 | AA44: 730 | AB44: All | AC44: 5.6 | AD44: 12.8 | AE44: 24.1 | AF44: 28.4 | AG44: 15.2 | AH44: 8.1 | AI44: 4.3 | AJ44: 0.9 | AK44: 18.4 | AL44: 70.9 | AM44: 99.3 | AN44: 1171
A45: Applied Physical Education | B45: Males | C45: x | D45: 13.5 | E45: 24 | F45: 49 | G45: 7.3 | H45: 4.2 | I45: 0 | J45: 0 | K45: 15.6 | L45: 88.5 | M45: 100 | N45: 96 | O45: Females | P45: x | Q45: 18 | R45: 38.2 | S45: 29.2 | T45: 11.2 | U45: 0 | V45: 0 | W45: 0 | X45: 21.3 | Y45: 88.8 | Z45: 100 | AA45: 89 | AB45: All | AC45: 2.7 | AD45: 15.7 | AE45: 30.8 | AF45: 39.5 | AG45: 9.2 | AH45: 2.2 | AI45: 0 | AJ45: 0 | AK45: 18.4 | AL45: 88.6 | AM45: 100 | AN45: 185
A46: Art and Design | B46: Males | C46: 5.6 | D46: 9.3 | E46: 19.1 | F46: 30.9 | G46: 15.9 | H46: 9.7 | I46: 5.5 | J46: 2.4 | K46: 14.8 | L46: 64.9 | M46: 98.4 | N46: 54643 | O46: Females | P46: 12.2 | Q46: 17.5 | R46: 26.7 | S46: 26.8 | T46: 9.6 | U46: 4.1 | V46: 1.8 | W46: 0.6 | X46: 29.7 | Y46: 83.2 | Z46: 99.3 | AA46: 104369 | AB46: All | AC46: 10 | AD46: 14.7 | AE46: 24.1 | AF46: 28.2 | AG46: 11.8 | AH46: 6 | AI46: 3.1 | AJ46: 1.2 | AK46: 24.6 | AL46: 76.9 | AM46: 99 | AN46: 159012
A47: Communication Studies | B47: Males | C47: 2 | D47: 7 | E47: 15.7 | F47: 22.1 | G47: 18.6 | H47: 14.8 | I47: 10 | J47: 5.4 | K47: 9 | L47: 46.7 | M47: 95.5 | N47: 4581 | O47: Females | P47: 6.6 | Q47: 17.6 | R47: 22.1 | S47: 22 | T47: 14.2 | U47: 8.4 | V47: 4.7 | W47: 2.2 | X47: 24.2 | Y47: 68.3 | Z47: 97.8 | AA47: 5240 | AB47: All | AC47: 4.5 | AD47: 12.7 | AE47: 19.1 | AF47: 22 | AG47: 16.2 | AH47: 11.4 | AI47: 7.2 | AJ47: 3.7 | AK47: 17.1 | AL47: 58.2 | AM47: 96.7 | AN47: 9821
A48: Construction | B48: Males | C48: 0 | D48: 0 | E48: x | F48: x | G48: 47.5 | H48: 7.5 | I48: 0 | J48: 0 | K48: 0 | L48: x | M48: x | N48: x | O48: Females | P48: 0 | Q48: 0 | R48: x | S48: x | T48: 0 | U48: 0 | V48: 0 | W48: 0 | X48: 0 | Y48: x | Z48: x | AA48: x | AB48: All | AC48: 0 | AD48: 0 | AE48: 16.7 | AF48: 31 | AG48: 45.2 | AH48: 7.1 | AI48: 0 | AJ48: 0 | AK48: 0 | AL48: 47.6 | AM48: 100 | AN48: 42
A49: Dance | B49: Males | C49: 4.9 | D49: 16 | E49: 16.9 | F49: 24.5 | G49: 18.1 | H49: 10.4 | I49: 4.1 | J49: 2.4 | K49: 20.9 | L49: 62.3 | M49: 97.4 | N49: 799 | O49: Females | P49: 5.5 | Q49: 14.6 | R49: 20.3 | S49: 23.5 | T49: 18.8 | U49: 10.1 | V49: 4.5 | W49: 1.6 | X49: 20.1 | Y49: 63.9 | Z49: 98.9 | AA49: 11143 | AB49: All | AC49: 5.4 | AD49: 14.7 | AE49: 20 | AF49: 23.6 | AG49: 18.8 | AH49: 10.1 | AI49: 4.5 | AJ49: 1.6 | AK49: 20.2 | AL49: 63.8 | AM49: 98.8 | AN49: 11942
A50: Drama | B50: Males | C50: 3.4 | D50: 13.6 | E50: 23.3 | F50: 26 | G50: 17.8 | H50: 9 | I50: 4.1 | J50: 1.8 | K50: 17 | L50: 66.3 | M50: 99 | N50: 27528 | O50: Females | P50: 6 | Q50: 20.5 | R50: 28.4 | S50: 23.4 | T50: 12.7 | U50: 5.3 | V50: 2.1 | W50: 0.9 | X50: 26.6 | Y50: 78.3 | Z50: 99.4 | AA50: 42843 | AB50: All | AC50: 5 | AD50: 17.8 | AE50: 26.4 | AF50: 24.4 | AG50: 14.7 | AH50: 6.7 | AI50: 2.9 | AJ50: 1.2 | AK50: 22.8 | AL50: 73.6 | AM50: 99.2 | AN50: 70371
A51: English Literature | B51: Males | C51: 4.2 | D51: 13.5 | E51: 25.6 | F51: 27 | G51: 16.7 | H51: 7.3 | I51: 3.2 | J51: 1.4 | K51: 17.7 | L51: 70.4 | M51: 98.9 | N51: 201888 | O51: Females | P51: 7.6 | Q51: 20.9 | R51: 30.5 | S51: 23.5 | T51: 11 | U51: 3.8 | V51: 1.4 | W51: 0.6 | X51: 28.6 | Y51: 82.5 | Z51: 99.4 | AA51: 224027 | AB51: All | AC51: 6 | AD51: 17.4 | AE51: 28.2 | AF51: 25.2 | AG51: 13.7 | AH51: 5.4 | AI51: 2.3 | AJ51: 1 | AK51: 23.4 | AL51: 76.8 | AM51: 99.1 | AN51: 425915
A52: English Studies | B52: Males | C52: 0.3 | D52: 1.9 | E52: 10.1 | F52: 28.7 | G52: 25.7 | H52: 17.7 | I52: 9.2 | J52: 4.4 | K52: 2.1 | L52: 41 | M52: 98 | N52: 1908 | O52: Females | P52: 1 | Q52: 5.7 | R52: 14.2 | S52: 32.7 | T52: 22.7 | U52: 13.2 | V52: 5.1 | W52: 3.8 | X52: 6.7 | Y52: 53.5 | Z52: 98.4 | AA52: 1398 | AB52: All | AC52: 0.6 | AD52: 3.5 | AE52: 11.8 | AF52: 30.4 | AG52: 24.5 | AH52: 15.8 | AI52: 7.5 | AJ52: 4.1 | AK52: 4.1 | AL52: 46.3 | AM52: 98.2 | AN52: 3306
A53: General Studies | B53: Males | C53: 1.5 | D53: 7 | E53: 12.6 | F53: 16.7 | G53: 20.5 | H53: 14.8 | I53: 10.2 | J53: 7.4 | K53: 8.6 | L53: 37.8 | M53: 90.6 | N53: 2491 | O53: Females | P53: 0.9 | Q53: 9 | R53: 14.6 | S53: 21 | T53: 21.3 | U53: 15.1 | V53: 8.7 | W53: 4.6 | X53: 10 | Y53: 45.5 | Z53: 95.2 | AA53: 2559 | AB53: All | AC53: 1.2 | AD53: 8 | AE53: 13.6 | AF53: 18.9 | AG53: 20.9 | AH53: 14.9 | AI53: 9.4 | AJ53: 6 | AK53: 9.3 | AL53: 41.7 | AM53: 92.9 | AN53: 5050
A54: Health and Social Care | B54: Males | C54: 0 | D54: 3.2 | E54: 8.4 | F54: 17.4 | G54: 20.1 | H54: 16.9 | I54: 16.4 | J54: 11.9 | K54: 3.2 | L54: 29 | M54: 94.2 | N54: 379 | O54: Females | P54: 1.9 | Q54: 9.2 | R54: 18.9 | S54: 25.1 | T54: 17.7 | U54: 12.2 | V54: 7.9 | W54: 4.7 | X54: 11.1 | Y54: 55.1 | Z54: 97.7 | AA54: 5800 | AB54: All | AC54: 1.8 | AD54: 8.8 | AE54: 18.3 | AF54: 24.6 | AG54: 17.9 | AH54: 12.5 | AI54: 8.4 | AJ54: 5.1 | AK54: 10.6 | AL54: 53.5 | AM54: 97.5 | AN54: 6179
A55: Hospitality and Catering | B55: Males | C55: x | D55: 6.9 | E55: 17.9 | F55: 25.6 | G55: 26.8 | H55: 12.6 | I55: 6.1 | J55: 2.2 | K55: 7.1 | L55: 50.6 | M55: 98.4 | N55: 492 | O55: Females | P55: x | Q55: 16.2 | R55: 27.1 | S55: 24.3 | T55: 18.5 | U55: 6.3 | V55: 1.6 | W55: 1.3 | X55: 20.7 | Y55: 72.2 | Z55: 99.7 | AA55: 704 | AB55: All | AC55: 2.8 | AD55: 12.4 | AE55: 23.3 | AF55: 24.8 | AG55: 21.9 | AH55: 8.9 | AI55: 3.4 | AJ55: 1.7 | AK55: 15.1 | AL55: 63.3 | AM55: 99.2 | AN55: 1196
A56: Leisure and Tourism | B56: Males | C56: x | D56: 2.8 | E56: 7.6 | F56: 17.2 | G56: 18.8 | H56: 17 | I56: 15.6 | J56: 11.6 | K56: 3 | L56: 27.8 | M56: 90.8 | N56: 1132 | O56: Females | P56: x | Q56: 7.4 | R56: 15.3 | S56: 22.4 | T56: 18.1 | U56: 14.1 | V56: 10.9 | W56: 6.9 | X56: 9.5 | Y56: 47.1 | Z56: 97.1 | AA56: 1492 | AB56: All | AC56: 1.2 | AD56: 5.4 | AE56: 12 | AF56: 20.2 | AG56: 18.4 | AH56: 15.3 | AI56: 12.9 | AJ56: 8.9 | AK56: 6.7 | AL56: 38.8 | AM56: 94.4 | AN56: 2624
A57: Manufacturing | B57: Males | C57: 4.2 | D57: 6.8 | E57: 10.2 | F57: 28.8 | G57: 15.3 | H57: x | I57: x | J57: x | K57: 11 | L57: 50 | M57: 95.8 | N57: 118 | O57: Females | P57: 0 | Q57: 14.3 | R57: 19 | S57: 23.8 | T57: 19 | U57: x | V57: x | W57: x | X57: 14.3 | Y57: 57.1 | Z57: 100 | AA57: 21 | AB57: All | AC57: 3.6 | AD57: 7.9 | AE57: 11.5 | AF57: 28.1 | AG57: 15.8 | AH57: 15.8 | AI57: 5.8 | AJ57: 7.9 | AK57: 11.5 | AL57: 51.1 | AM57: 96.4 | AN57: 139
A58: Media/Film/TV | B58: Males | C58: 1.5 | D58: 7.9 | E58: 19.2 | F58: 27.5 | G58: 20.3 | H58: 11.6 | I58: 6.3 | J58: 3.1 | K58: 9.4 | L58: 56.1 | M58: 97.4 | N58: 24466 | O58: Females | P58: 5.5 | Q58: 18.8 | R58: 28.1 | S58: 24.7 | T58: 12.2 | U58: 5.6 | V58: 2.6 | W58: 1.4 | X58: 24.3 | Y58: 77.1 | Z58: 98.8 | AA58: 25012 | AB58: All | AC58: 3.6 | AD58: 13.4 | AE58: 23.7 | AF58: 26.1 | AG58: 16.2 | AH58: 8.6 | AI58: 4.5 | AJ58: 2.2 | AK58: 16.9 | AL58: 66.7 | AM58: 98.1 | AN58: 49478
A59: Media: Communication and Production | B59: Males | C59: 0 | D59: 0 | E59: 7.1 | F59: 35.7 | G59: 34.3 | H59: 11.4 | I59: 10 | J59: 0 | K59: 0 | L59: 42.9 | M59: 98.6 | N59: 70 | O59: Females | P59: 0 | Q59: 0 | R59: 26.6 | S59: 49.4 | T59: 15.2 | U59: 5.1 | V59: 3.8 | W59: 0 | X59: 0 | Y59: 75.9 | Z59: 100 | AA59: 79 | AB59: All | AC59: 0 | AD59: 0 | AE59: 17.4 | AF59: 43 | AG59: 24.2 | AH59: 8.1 | AI59: 6.7 | AJ59: 0 | AK59: 0 | AL59: 60.4 | AM59: 99.3 | AN59: 149
A60: Performing Arts | B60: Males | C60: 4.6 | D60: 6.8 | E60: 15.9 | F60: 28.5 | G60: 18 | H60: 14.2 | I60: 7.7 | J60: 3.2 | K60: 11.4 | L60: 55.8 | M60: 98.8 | N60: 755 | O60: Females | P60: 9.2 | Q60: 13.5 | R60: 23.4 | S60: 23.8 | T60: 14.3 | U60: 8.2 | V60: 3.9 | W60: 2 | X60: 22.8 | Y60: 70 | Z60: 98.5 | AA60: 1515 | AB60: All | AC60: 7.7 | AD60: 11.3 | AE60: 20.9 | AF60: 25.4 | AG60: 15.6 | AH60: 10.2 | AI60: 5.2 | AJ60: 2.4 | AK60: 19 | AL60: 65.3 | AM60: 98.6 | AN60: 2270
A61: Physical Education | B61: Males | C61: 2.6 | D61: 16.2 | E61: 26.2 | F61: 26.2 | G61: 17.1 | H61: 8.4 | I61: 2.5 | J61: 0.5 | K61: 18.8 | L61: 71.3 | M61: 99.7 | N61: 57174 | O61: Females | P61: 5.4 | Q61: 19 | R61: 24.5 | S61: 23.7 | T61: 15.9 | U61: 8 | V61: 2.8 | W61: 0.6 | X61: 24.3 | Y61: 72.5 | Z61: 99.7 | AA61: 30253 | AB61: All | AC61: 3.6 | AD61: 17.2 | AE61: 25.6 | AF61: 25.3 | AG61: 16.7 | AH61: 8.3 | AI61: 2.6 | AJ61: 0.5 | AK61: 20.7 | AL61: 71.7 | AM61: 99.7 | AN61: 87427
A62: Religious Studies | B62: Males | C62: 7.9 | D62: 16.5 | E62: 22 | F62: 21.2 | G62: 12.7 | H62: 8.5 | I62: 5.5 | J62: 3.3 | K62: 24.4 | L62: 67.6 | M62: 97.7 | N62: 96450 | O62: Females | P62: 15.4 | Q62: 23.3 | R62: 23.7 | S62: 17.3 | T62: 9.1 | U62: 5.4 | V62: 3.1 | W62: 1.6 | X62: 38.7 | Y62: 79.7 | Z62: 98.9 | AA62: 114152 | AB62: All | AC62: 11.9 | AD62: 20.2 | AE62: 22.9 | AF62: 19.1 | AG62: 10.8 | AH62: 6.8 | AI62: 4.2 | AJ62: 2.4 | AK62: 32.2 | AL62: 74.2 | AM62: 98.4 | AN62: 210602
A63: Statistics | B63: Males | C63: 5 | D63: 17.6 | E63: 25 | F63: 28.7 | G63: 13.4 | H63: 5.1 | I63: 1.9 | J63: 1 | K63: 22.6 | L63: 76.3 | M63: 97.8 | N63: 27732 | O63: Females | P63: 7 | Q63: 20.2 | R63: 27 | S63: 27.1 | T63: 10.8 | U63: 3.9 | V63: 1.6 | W63: 0.7 | X63: 27.2 | Y63: 81.3 | Z63: 98.3 | AA63: 24817 | AB63: All | AC63: 5.9 | AD63: 18.8 | AE63: 25.9 | AF63: 28 | AG63: 12.2 | AH63: 4.6 | AI63: 1.8 | AJ63: 0.9 | AK63: 24.8 | AL63: 78.7 | AM63: 98 | AN63: 52549
A64: Vocational Studies | B64: Males | C64: 1.4 | D64: 7.7 | E64: 18.9 | F64: 26.5 | G64: 22.2 | H64: 12.9 | I64: 5.9 | J64: 2.6 | K64: 9.1 | L64: 54.4 | M64: 98.1 | N64: 15129 | O64: Females | P64: 3.7 | Q64: 15.5 | R64: 25.8 | S64: 24.7 | T64: 16.5 | U64: 8.3 | V64: 3.2 | W64: 1.2 | X64: 19.2 | Y64: 69.7 | Z64: 98.9 | AA64: 16873 | AB64: All | AC64: 2.6 | AD64: 11.8 | AE64: 22.5 | AF64: 25.5 | AG64: 19.2 | AH64: 10.5 | AI64: 4.4 | AJ64: 1.8 | AK64: 14.4 | AL64: 62.5 | AM64: 98.5 | AN64: 32002
A65: All Subjects | B65: Males | C65: 6.6 | D65: 13.8 | E65: 21.2 | F65: 27 | G65: 15.3 | H65: 8.1 | I65: 4.5 | J65: 2.1 | K65: 20.4 | L65: 68.7 | M65: 98.7 | N65: 2180535 | O65: Females | P65: 9.4 | Q65: 18 | R65: 24 | S65: 25.3 | T65: 12.3 | U65: 5.8 | V65: 3 | W65: 1.4 | X65: 27.4 | Y65: 76.7 | Z65: 99.2 | AA65: 2247133 | AB65: All | AC65: 8 | AD65: 16 | AE65: 22.6 | AF65: 26.1 | AG65: 13.8 | AH65: 7 | AI65: 3.7 | AJ65: 1.7 | AK65: 24 | AL65: 72.7 | AM65: 99 | AN65: 4427668

Sheet 2013 (hidden)
A1: 1 | B1: =A1+1 -> 2 | C1: =B1+1 -> 3 | D1: 4 | E1: 5 | F1: 6 | G1: 7 | H1: 8 | I1: 9 | J1: 10 | K1: 11 | L1: 12 | M1: 13 | N1: 14 | O1: 15 | P1: 16 | Q1: 17 | R1: 18 | S1: 19 | T1: 20 | U1: 21 | V1: 22 | W1: 23 | X1: 24 | Y1: 25 | Z1: 26 | AA1: 27 | AB1: 28 | AC1: 29 | AD1: 30 | AE1: 31 | AF1: 32 | AG1: 33 | AH1: 34 | AI1: 35 | AJ1: 36 | AK1: 37 | AL1: 38 | AM1: 39 | AN1: 40
A2: Subjects | C2: * | D2: A | E2: B | F2: C | G2: D | H2: E | I2: F | J2: G | K2: AstarA | L2: AstarC | M2: AstarG | N2: Total | O2: (No column name) | P2: * | Q2: A | R2: B | S2: C | T2: D | U2: E | V2: F | W2: G | X2: AstarA | Y2: AstarC | Z2: AstarG | AA2: Total | AB2: (No column name) | AC2: * | AD2: A | AE2: B | AF2: C | AG2: D | AH2: E | AI2: F | AJ2: G | AK2: AstarA | AL2: AstarC | AM2: AstarG | AN2: Total | AP2: Count of supressions
A3: English | B3: Males | C3: 2.5 | D3: 9.2 | E3: 19.7 | F3: 32 | G3: 19.6 | H3: 10.2 | I3: 4.6 | J3: 1.5 | K3: 11.7 | L3: 63.4 | M3: 99.2 | N3: 274738 | O3: Females | P3: 5.6 | Q3: 16.8 | R3: 26.7 | S3: 28.9 | T3: 13.6 | U3: 5.4 | V3: 2 | W3: 0.6 | X3: 22.4 | Y3: 78 | Z3: 99.6 | AA3: 276063 | AB3: All | AC3: 4 | AD3: 13 | AE3: 23.2 | AF3: 30.5 | AG3: 16.6 | AH3: 7.8 | AI3: 3.3 | AJ3: 1.1 | AK3: 17.1 | AL3: 70.7 | AM3: 99.4 | AN3: 550801
A4: Mathematics | B4: Males | C4: 7.1 | D4: 12.6 | E4: 19.4 | F4: 33.2 | G4: 10.3 | H4: 6.5 | I4: 5.4 | J4: 3.6 | K4: 19.7 | L4: 72.3 | M4: 98.1 | N4: 305315 | O4: Females | P4: 6.7 | Q4: 13 | R4: 20.3 | S4: 33.2 | T4: 10.5 | U4: 6.3 | V4: 5 | W4: 3.4 | X4: 19.7 | Y4: 73.2 | Z4: 98.3 | AA4: 297858 | AB4: All | AC4: 6.9 | AD4: 12.8 | AE4: 19.9 | AF4: 33.2 | AG4: 10.4 | AH4: 6.4 | AI4: 5.2 | AJ4: 3.5 | AK4: 19.7 | AL4: 72.8 | AM4: 98.2 | AN4: 603173
A5: Core Science | B5: Males | C5: 0.9 | D5: 5 | E5: 16.2 | F5: 34.7 | G5: 20.5 | H5: 12 | I5: 6.4 | J5: 2.7 | K5: 5.9 | L5: 56.7 | M5: 98.3 | N5: 158387 | O5: Females | P5: 1.6 | Q5: 8 | R5: 19.8 | S5: 34.1 | T5: 18.2 | U5: 10.1 | V5: 5 | W5: 2 | X5: 9.6 | Y5: 63.4 | Z5: 98.7 | AA5: 163577 | AB5: All | AC5: 1.2 | AD5: 6.5 | AE5: 18 | AF5: 34.4 | AG5: 19.3 | AH5: 11.1 | AI5: 5.7 | AJ5: 2.3 | AK5: 7.8 | AL5: 60.1 | AM5: 98.5 | AN5: 321964
A6: Additional Science | B6: Males | C6: 1.8 | D6: 7.6 | E6: 18.8 | F6: 33.7 | G6: 21.7 | H6: 9.4 | I6: 4.3 | J6: 1.7 | K6: 9.4 | L6: 61.9 | M6: 99 | N6: 119596 | O6: Females | P6: 3.1 | Q6: 10.4 | R6: 22.1 | S6: 32.7 | T6: 18.9 | U6: 7.7 | V6: 3.2 | W6: 1.2 | X6: 13.5 | Y6: 68.3 | Z6: 99.3 | AA6: 128934 | AB6: All | AC6: 2.5 | AD6: 9.1 | AE6: 20.5 | AF6: 33.2 | AG6: 20.2 | AH6: 8.5 | AI6: 3.7 | AJ6: 1.4 | AK6: 11.5 | AL6: 65.2 | AM6: 99.1 | AN6: 248530
A7: Additional Applied Science | B7: Males | C7: 0.1 | D7: 1.3 | E7: 5.5 | F7: 20.3 | G7: 29.8 | H7: 22.6 | I7: 11.7 | J7: 4.9 | K7: 1.4 | L7: 27.2 | M7: 96.2 | N7: 5669 | O7: Females | P7: 0.1 | Q7: 2 | R7: 8.9 | S7: 27.4 | T7: 28.7 | U7: 19.2 | V7: 8.4 | W7: 3.2 | X7: 2.2 | Y7: 38.4 | Z7: 97.9 | AA7: 6141 | AB7: All | AC7: 0.1 | AD7: 1.7 | AE7: 7.2 | AF7: 24 | AG7: 29.2 | AH7: 20.9 | AI7: 10 | AJ7: 4 | AK7: 1.8 | AL7: 33 | AM7: 97.1 | AN7: 11810
A8: Physics | B8: Males | C8: 15.6 | D8: 25.9 | E8: 28 | F8: 21.6 | G8: 7.2 | H8: 1.2 | I8: 0.3 | J8: 0.1 | K8: 41.5 | L8: 91.1 | M8: 99.9 | N8: 76223 | O8: Females | P8: 17.1 | Q8: 25.5 | R8: 27.9 | S8: 21.2 | T8: 6.8 | U8: 1.2 | V8: 0.3 | W8: 0.1 | X8: 42.5 | Y8: 91.6 | Z8: 99.9 | AA8: 73173 | AB8: All | AC8: 16.3 | AD8: 25.7 | AE8: 28 | AF8: 21.4 | AG8: 7 | AH8: 1.2 | AI8: 0.3 | AJ8: 0.1 | AK8: 42 | AL8: 91.4 | AM8: 99.9 | AN8: 149396
A9: Chemistry | B9: Males | C9: 15.3 | D9: 24.7 | E9: 27.5 | F9: 22.1 | G9: 8.3 | H9: 1.7 | I9: 0.4 | J9: 0.1 | K9: 40 | L9: 89.5 | M9: 99.9 | N9: 77132 | O9: Females | P9: 19.1 | Q9: 27.5 | R9: 26.7 | S9: 19.2 | T9: 6.1 | U9: 1.1 | V9: 0.3 | W9: 0.1 | X9: 46.6 | Y9: 92.4 | Z9: 99.9 | AA9: 73637 | AB9: All | AC9: 17.2 | AD9: 26.1 | AE9: 27.1 | AF9: 20.6 | AG9: 7.2 | AH9: 1.4 | AI9: 0.3 | AJ9: 0.1 | AK9: 43.2 | AL9: 90.9 | AM9: 99.9 | AN9: 150769
A10: Biological Sciences | B10: Males | C10: 12.5 | D10: 25.3 | E10: 29.4 | F10: 22.9 | G10: 7.8 | H10: 1.5 | I10: 0.4 | J10: 0.2 | K10: 37.8 | L10: 90.1 | M10: 99.8 | N10: 77657 | O10: Females | P10: 18.4 | Q10: 29.2 | R10: 27.5 | S10: 18 | T10: 5.2 | U10: 1 | V10: 0.3 | W10: 0.1 | X10: 47.6 | Y10: 93.1 | Z10: 99.8 | AA10: 74767 | AB10: All | AC10: 15.4 | AD10: 27.2 | AE10: 28.5 | AF10: 20.5 | AG10: 6.5 | AH10: 1.2 | AI10: 0.3 | AJ10: 0.1 | AK10: 42.6 | AL10: 91.6 | AM10: 99.8 | AN10: 152424
A11: Computer Science | B11: Males | C11: 6.9 | D11: 20.2 | E11: 23.9 | F11: 18.4 | G11: 12.4 | H11: 7.5 | I11: 5 | J11: 2.7 | K11: 27.1 | L11: 69.4 | M11: 97 | N11: 3434 | O11: Females | P11: 8.9 | Q11: 19.8 | R11: 26.2 | S11: 18.1 | T11: 13.8 | U11: 6.1 | V11: 3.6 | W11: 1.9 | X11: 28.6 | Y11: 72.9 | Z11: 98.3 | AA11: 587 | AB11: All | AC11: 7.2 | AD11: 20.1 | AE11: 24.3 | AF11: 18.3 | AG11: 12.6 | AH11: 7.3 | AI11: 4.8 | AJ11: 2.6 | AK11: 27.3 | AL11: 69.9 | AM11: 97.2 | AN11: 4021
A12: Other Sciences | B12: Males | C12: 10.9 | D12: 15.1 | E12: 19.3 | F12: 18.1 | G12: 13.1 | H12: 9.9 | I12: 7.5 | J12: 3.1 | K12: 26 | L12: 63.4 | M12: 97.1 | N12: 3895 | O12: Females | P12: 4.7 | Q12: 14.8 | R12: 18.9 | S12: 21.3 | T12: 17.7 | U12: 10.5 | V12: 6.5 | W12: 3.4 | X12: 19.5 | Y12: 59.8 | Z12: 97.8 | AA12: 2090 | AB12: All | AC12: 8.7 | AD12: 15 | AE12: 19.1 | AF12: 19.2 | AG12: 14.7 | AH12: 10.1 | AI12: 7.2 | AJ12: 3.2 | AK12: 23.7 | AL12: 62.1 | AM12: 97.3 | AN12: 5985
A13: D & T: Electronic Products | B13: Males | C13: 8.2 | D13: 13.8 | E13: 20.6 | F13: 21.1 | G13: 15.2 | H13: 9.2 | I13: 6 | J13: 3.3 | K13: 22.1 | L13: 63.7 | M13: 97.4 | N13: 7852 | O13: Females | P13: 22.6 | Q13: 24.1 | R13: 21.5 | S13: 13.5 | T13: 8.4 | U13: 5.1 | V13: 2.6 | W13: 0.8 | X13: 46.7 | Y13: 81.7 | Z13: 98.6 | AA13: 646 | AB13: All | AC13: 9.3 | AD13: 14.6 | AE13: 20.7 | AF13: 20.5 | AG13: 14.7 | AH13: 8.9 | AI13: 5.7 | AJ13: 3.1 | AK13: 23.9 | AL13: 65.1 | AM13: 97.5 | AN13: 8498
A14: D & T: Food Technology | B14: Males | C14: 2 | D14: 6.3 | E14: 15.3 | F14: 25.5 | G14: 22.9 | H14: 14.9 | I14: 7.7 | J14: 3.5 | K14: 8.3 | L14: 49.1 | M14: 98.2 | N14: 16119 | O14: Females | P14: 7.8 | Q14: 16.4 | R14: 23.5 | S14: 23 | T14: 15 | U14: 8.1 | V14: 3.8 | W14: 1.5 | X14: 24.2 | Y14: 70.7 | Z14: 99.2 | AA14: 27307 | AB14: All | AC14: 5.6 | AD14: 12.7 | AE14: 20.4 | AF14: 24 | AG14: 18 | AH14: 10.7 | AI14: 5.2 | AJ14: 2.3 | AK14: 18.3 | AL14: 62.7 | AM14: 98.8 | AN14: 43426
A15: D & T: Graphic Products | B15: Males | C15: 2.8 | D15: 8.4 | E15: 16.9 | F15: 22.5 | G15: 19.7 | H15: 13 | I15: 8.4 | J15: 4.8 | K15: 11.3 | L15: 50.7 | M15: 96.5 | N15: 22244 | O15: Females | P15: 8.7 | Q15: 19.1 | R15: 22.7 | S15: 21.5 | T15: 13.9 | U15: 7 | V15: 3.7 | W15: 2 | X15: 27.8 | Y15: 72 | Z15: 98.7 | AA15: 13994 | AB15: All | AC15: 5.1 | AD15: 12.5 | AE15: 19.1 | AF15: 22.1 | AG15: 17.5 | AH15: 10.7 | AI15: 6.6 | AJ15: 3.7 | AK15: 17.6 | AL15: 58.9 | AM15: 97.4 | AN15: 36238
A16: D & T: Resistant Materials | B16: Males | C16: 3.6 | D16: 9.5 | E16: 18.7 | F16: 24.5 | G16: 19.3 | H16: 12.2 | I16: 7.1 | J16: 3.4 | K16: 13.1 | L16: 56.2 | M16: 98.2 | N16: 44851 | O16: Females | P16: 9.3 | Q16: 19.2 | R16: 23.5 | S16: 20.5 | T16: 13.6 | U16: 7.2 | V16: 3.6 | W16: 1.9 | X16: 28.6 | Y16: 72.6 | Z16: 98.9 | AA16: 7575 | AB16: All | AC16: 4.4 | AD16: 10.9 | AE16: 19.4 | AF16: 23.9 | AG16: 18.5 | AH16: 11.4 | AI16: 6.5 | AJ16: 3.2 | AK16: 15.3 | AL16: 58.6 | AM16: 98.3 | AN16: 52426
A17: D & T: Systems & Control | B17: Males | C17: 6.2 | D17: 13.9 | E17: 20.9 | F17: 22.3 | G17: 18.1 | H17: 10.3 | I17: 4.2 | J17: 2.5 | K17: 20.1 | L17: 63.3 | M17: 98.4 | N17: 3250 | O17: Females | P17: 8.2 | Q17: 23.6 | R17: 24.9 | S17: 22.7 | T17: 12 | U17: 4.3 | V17: 2.1 | W17: 1.7 | X17: 31.8 | Y17: 79.4 | Z17: 99.6 | AA17: 233 | AB17: All | AC17: 6.3 | AD17: 14.6 | AE17: 21.1 | AF17: 22.4 | AG17: 17.7 | AH17: 9.9 | AI17: 4.1 | AJ17: 2.4 | AK17: 20.9 | AL17: 64.4 | AM17: 98.5 | AN17: 3483
A18: D & T: Textiles Technology | B18: Males | C18: 2.4 | D18: 6.5 | E18: 13.7 | F18: 15.9 | G18: 20.7 | H18: 15.7 | I18: 13.7 | J18: 7.2 | K18: 8.9 | L18: 38.6 | M18: 95.8 | N18: 765 | O18: Females | P18: 10.2 | Q18: 18.6 | R18: 24 | S18: 22.1 | T18: 12.7 | U18: 6.6 | V18: 3.5 | W18: 1.5 | X18: 28.8 | Y18: 74.9 | Z18: 99.1 | AA18: 26995 | AB18: All | AC18: 10 | AD18: 18.3 | AE18: 23.7 | AF18: 21.9 | AG18: 12.9 | AH18: 6.9 | AI18: 3.7 | AJ18: 1.6 | AK18: 28.2 | AL18: 73.9 | AM18: 99 | AN18: 27760
A19: Other Design and Technology | B19: Males | C19: 2.9 | D19: 8.1 | E19: 17.6 | F19: 25.2 | G19: 19.6 | H19: 12.5 | I19: 7.8 | J19: 3.9 | K19: 11 | L19: 53.8 | M19: 97.6 | N19: 23396 | O19: Females | P19: 8.8 | Q19: 17.3 | R19: 23.9 | S19: 22 | T19: 13.4 | U19: 7.7 | V19: 4 | W19: 1.8 | X19: 26.1 | Y19: 72 | Z19: 98.9 | AA19: 10358 | AB19: All | AC19: 4.7 | AD19: 10.9 | AE19: 19.5 | AF19: 24.2 | AG19: 17.7 | AH19: 11 | AI19: 6.6 | AJ19: 3.3 | AK19: 15.6 | AL19: 59.4 | AM19: 98 | AN19: 33754
A20: Applied Engineering | B20: Males | C20: 0.8 | D20: 4.2 | E20: 13.5 | F20: 22.5 | G20: 23.2 | H20: 16.7 | I20: 10.8 | J20: 5.8 | K20: 5 | L20: 40.9 | M20: 97.5 | N20: 1959 | O20: Females | P20: 8.7 | Q20: 17.3 | R20: 19.7 | S20: 17.3 | T20: 16.2 | U20: 13.3 | V20: 3.5 | W20: 2.9 | X20: 26 | Y20: 63 | Z20: 98.8 | AA20: 173 | AB20: All | AC20: 1.4 | AD20: 5.3 | AE20: 14 | AF20: 22.1 | AG20: 22.6 | AH20: 16.5 | AI20: 10.2 | AJ20: 5.6 | AK20: 6.7 | AL20: 42.7 | AM20: 97.6 | AN20: 2132
A21: Information Technology | B21: Males | C21: 5.6 | D21: 16.3 | E21: 23.7 | F21: 23.9 | G21: 12.8 | H21: 7 | I21: 5.2 | J21: 3.3 | K21: 22 | L21: 69.6 | M21: 97.9 | N21: 29983 | O21: Females | P21: 9.2 | Q21: 21.7 | R21: 25.6 | S21: 20.7 | T21: 10 | U21: 5.6 | V21: 3.4 | W21: 2.3 | X21: 31 | Y21: 77.3 | Z21: 98.5 | AA21: 23753 | AB21: All | AC21: 7.2 | AD21: 18.7 | AE21: 24.5 | AF21: 22.5 | AG21: 11.6 | AH21: 6.4 | AI21: 4.4 | AJ21: 2.8 | AK21: 25.9 | AL21: 73 | AM21: 98.2 | AN21: 53736
A22: Business Studies | B22: Males | C22: 3.2 | D22: 14.1 | E22: 24.6 | F22: 24.2 | G22: 15.6 | H22: 9.1 | I22: 5.1 | J22: 2.8 | K22: 17.3 | L22: 66.1 | M22: 98.7 | N22: 38383 | O22: Females | P22: 4.6 | Q22: 17.2 | R22: 25.4 | S22: 23 | T22: 14.4 | U22: 7.8 | V22: 4.5 | W22: 2 | X22: 21.8 | Y22: 70.3 | Z22: 99 | AA22: 26063 | AB22: All | AC22: 3.7 | AD22: 15.4 | AE22: 25 | AF22: 23.7 | AG22: 15.1 | AH22: 8.6 | AI22: 4.8 | AJ22: 2.5 | AK22: 19.1 | AL22: 67.8 | AM22: 98.8 | AN22: 64446
A23: Applied Business | B23: Males | C23: 2 | D23: 10.4 | E23: 20.5 | F23: 24.7 | G23: 17.6 | H23: 9.6 | I23: 6.4 | J23: 4.1 | K23: 12.4 | L23: 57.6 | M23: 95.3 | N23: 2908 | O23: Females | P23: 4.5 | Q23: 17.1 | R23: 24.8 | S23: 21.9 | T23: 14.8 | U23: 7.2 | V23: 4.5 | W23: 2.8 | X23: 21.6 | Y23: 68.4 | Z23: 97.7 | AA23: 1837 | AB23: All | AC23: 3 | AD23: 13 | AE23: 22.2 | AF23: 23.6 | AG23: 16.5 | AH23: 8.7 | AI23: 5.6 | AJ23: 3.6 | AK23: 16 | AL23: 61.8 | AM23: 96.2 | AN23: 4745
A24: Home Economics | B24: Males | C24: 0.6 | D24: 5.9 | E24: 15.4 | F24: 23.8 | G24: 21.8 | H24: 15.5 | I24: 10.7 | J24: 4.3 | K24: 6.5 | L24: 45.7 | M24: 98 | N24: 3668 | O24: Females | P24: 2.8 | Q24: 11.4 | R24: 20.3 | S24: 24 | T24: 19.5 | U24: 11.7 | V24: 6 | W24: 2.6 | X24: 14.2 | Y24: 58.5 | Z24: 98.5 | AA24: 22582 | AB24: All | AC24: 2.5 | AD24: 10.6 | AE24: 19.6 | AF24: 24 | AG24: 19.9 | AH24: 12.3 | AI24: 6.7 | AJ24: 2.8 | AK24: 13.1 | AL24: 56.7 | AM24: 98.4 | AN24: 26250
A25: Geography | B25: Males | C25: 7.4 | D25: 15.5 | E25: 19.6 | F25: 22.9 | G25: 16.7 | H25: 9.4 | I25: 5 | J25: 2.5 | K25: 22.9 | L25: 65.5 | M25: 99 | N25: 107293 | O25: Females | P25: 12.8 | Q25: 20.1 | R25: 21.2 | S25: 20.2 | T25: 12.7 | U25: 6.9 | V25: 3.7 | W25: 1.7 | X25: 32.9 | Y25: 74.4 | Z25: 99.4 | AA25: 92953 | AB25: All | AC25: 9.9 | AD25: 17.6 | AE25: 20.4 | AF25: 21.7 | AG25: 14.8 | AH25: 8.2 | AI25: 4.4 | AJ25: 2.1 | AK25: 27.6 | AL25: 69.6 | AM25: 99.1 | AN25: 200246
A26: History | B26: Males | C26: 7.8 | D26: 16.3 | E26: 20.7 | F26: 20.3 | G26: 14.7 | H26: 9 | I26: 5.6 | J26: 3.5 | K26: 24.2 | L26: 65.2 | M26: 97.9 | N26: 115848 | O26: Females | P26: 12.7 | Q26: 21 | R26: 21.6 | S26: 18.2 | T26: 11.9 | U26: 7 | V26: 4.2 | W26: 2.2 | X26: 33.6 | Y26: 73.4 | Z26: 98.8 | AA26: 118860 | AB26: All | AC26: 10.3 | AD26: 18.7 | AE26: 21.1 | AF26: 19.2 | AG26: 13.3 | AH26: 8 | AI26: 4.9 | AJ26: 2.8 | AK26: 29 | AL26: 69.3 | AM26: 98.3 | AN26: 234708
A27: Ancient History | B27: Males | C27: 15.2 | D27: 21 | E27: 18.2 | F27: 18.4 | G27: 12.1 | H27: 7.3 | I27: 4.2 | J27: 2 | K27: 36.2 | L27: 72.9 | M27: 98.4 | N27: 505 | O27: Females | P27: 11.5 | Q27: 22.4 | R27: 19 | S27: 18.7 | T27: 13.5 | U27: 9.2 | V27: 4 | W27: 1 | X27: 33.9 | Y27: 71.6 | Z27: 99.3 | AA27: 401 | AB27: All | AC27: 13.6 | AD27: 21.6 | AE27: 18.5 | AF27: 18.5 | AG27: 12.7 | AH27: 8.2 | AI27: 4.1 | AJ27: 1.5 | AK27: 35.2 | AL27: 72.3 | AM27: 98.8 | AN27: 906
A28: Humanities | B28: Males | C28: 1 | D28: 4.5 | E28: 13.2 | F28: 20.8 | G28: 19.6 | H28: 16.2 | I28: 11.6 | J28: 8.2 | K28: 5.6 | L28: 39.5 | M28: 95 | N28: 6290 | O28: Females | P28: 1.8 | Q28: 7.8 | R28: 17.6 | S28: 22.6 | T28: 18.6 | U28: 14.1 | V28: 9.2 | W28: 5.1 | X28: 9.6 | Y28: 49.8 | Z28: 96.9 | AA28: 6138 | AB28: All | AC28: 1.4 | AD28: 6.2 | AE28: 15.4 | AF28: 21.7 | AG28: 19.1 | AH28: 15.2 | AI28: 10.4 | AJ28: 6.7 | AK28: 7.6 | AL28: 44.6 | AM28: 96 | AN28: 12428
A29: Economics | B29: Males | C29: 6.8 | D29: 23.7 | E29: 27.8 | F29: 21.2 | G29: 9.6 | H29: 5.2 | I29: 3.2 | J29: 1.3 | K29: 30.5 | L29: 79.5 | M29: 98.9 | N29: 2971 | O29: Females | P29: 6.4 | Q29: 25.6 | R29: 28.9 | S29: 18.8 | T29: 9.5 | U29: 5 | V29: 2.9 | W29: 1.1 | X29: 32 | Y29: 79.8 | Z29: 98.3 | AA29: 1311 | AB29: All | AC29: 6.7 | AD29: 24.3 | AE29: 28.1 | AF29: 20.5 | AG29: 9.6 | AH29: 5.2 | AI29: 3.1 | AJ29: 1.3 | AK29: 31 | AL29: 79.6 | AM29: 98.7 | AN29: 4282
A30: Social Studies | B30: Males | C30: 1.9 | D30: 9 | E30: 20 | F30: 25.4 | G30: 18 | H30: 11.8 | I30: 7.1 | J30: 4.2 | K30: 10.9 | L30: 56.3 | M30: 97.4 | N30: 15456 | O30: Females | P30: 4.3 | Q30: 16.6 | R30: 25.5 | S30: 22.8 | T30: 14.1 | U30: 7.9 | V30: 4.7 | W30: 2.6 | X30: 20.8 | Y30: 69.1 | Z30: 98.4 | AA30: 28684 | AB30: All | AC30: 3.4 | AD30: 13.9 | AE30: 23.6 | AF30: 23.7 | AG30: 15.5 | AH30: 9.3 | AI30: 5.6 | AJ30: 3.2 | AK30: 17.3 | AL30: 64.6 | AM30: 98.1 | AN30: 44140
A31: Music | B31: Males | C31: 8.1 | D31: 21.3 | E31: 25.1 | F31: 19.6 | G31: 12.8 | H31: 7.1 | I31: 3.1 | J31: 1.6 | K31: 29.4 | L31: 74.1 | M31: 98.7 | N31: 20680 | O31: Females | P31: 10 | Q31: 24.5 | R31: 26 | S31: 18.4 | T31: 11 | U31: 5.7 | V31: 2.5 | W31: 1.2 | X31: 34.6 | Y31: 79 | Z31: 99.3 | AA31: 20576 | AB31: All | AC31: 9.1 | AD31: 22.9 | AE31: 25.5 | AF31: 19 | AG31: 11.9 | AH31: 6.4 | AI31: 2.8 | AJ31: 1.4 | AK31: 32 | AL31: 76.5 | AM31: 99 | AN31: 41256
A32: Arabic | B32: Males | C32: 24.9 | D32: 21.3 | E32: 17.1 | F32: 12.2 | G32: 8.3 | H32: 5.2 | I32: 3.7 | J32: 3.3 | K32: 46.2 | L32: 75.5 | M32: 95.9 | N32: 1183 | O32: Females | P32: 30.4 | Q32: 21.3 | R32: 15.8 | S32: 11.5 | T32: 6 | U32: 5.2 | V32: 3.3 | W32: 3.5 | X32: 51.7 | Y32: 79 | Z32: 97 | AA32: 1447 | AB32: All | AC32: 27.9 | AD32: 21.3 | AE32: 16.4 | AF32: 11.8 | AG32: 7 | AH32: 5.2 | AI32: 3.5 | AJ32: 3.4 | AK32: 49.2 | AL32: 77.4 | AM32: 96.5 | AN32: 2630
A33: Chinese | B33: Males | C33: 58.2 | D33: 15.7 | E33: 12.1 | F33: 9.4 | G33: 2.9 | H33: 1.1 | I33: x | J33: x | K33: 73.9 | L33: 95.4 | M33: 99.6 | N33: 1229 | O33: Females | P33: 70.1 | Q33: 15.7 | R33: 9.3 | S33: 3 | T33: 1.3 | U33: 0.4 | V33: x | W33: x | X33: 85.8 | Y33: 98 | Z33: 99.8 | AA33: 1112 | AB33: All | AC33: 63.8 | AD33: 15.7 | AE33: 10.8 | AF33: 6.3 | AG33: 2.1 | AH33: 0.7 | AI33: x | AJ33: x | AK33: 79.5 | AL33: 96.6 | AM33: 99.7 | AN33: 2341
A34: French | B34: Males | C34: 7.6 | D34: 12.1 | E34: 17.8 | F34: 26.4 | G34: 20.9 | H34: 9.2 | I34: 4 | J34: 1.4 | K34: 19.7 | L34: 64 | M34: 99.4 | N34: 68953 | O34: Females | P34: 11.3 | Q34: 16.3 | R34: 21.3 | S34: 25.9 | T34: 16.2 | U34: 6 | V34: 2.2 | W34: 0.7 | X34: 27.6 | Y34: 74.7 | Z34: 99.7 | AA34: 92868 | AB34: All | AC34: 9.7 | AD34: 14.5 | AE34: 19.8 | AF34: 26.1 | AG34: 18.2 | AH34: 7.3 | AI34: 2.9 | AJ34: 1 | AK34: 24.2 | AL34: 70.1 | AM34: 99.6 | AN34: 161821
A35: German | B35: Males | C35: 7.1 | D35: 12.6 | E35: 21.9 | F35: 28.5 | G35: 18.2 | H35: 7.5 | I35: 2.8 | J35: 0.9 | K35: 19.8 | L35: 70.2 | M35: 99.7 | N35: 28938 | O35: Females | P35: 10.6 | Q35: 17 | R35: 24.8 | S35: 27.2 | T35: 14 | U35: 4.4 | V35: 1.4 | W35: 0.4 | X35: 27.6 | Y35: 79.6 | Z35: 99.8 | AA35: 31382 | AB35: All | AC35: 8.9 | AD35: 14.9 | AE35: 23.4 | AF35: 27.8 | AG35: 16 | AH35: 5.9 | AI35: 2.1 | AJ35: 0.6 | AK35: 23.8 | AL35: 75.1 | AM35: 99.7 | AN35: 60320
A36: Italian | B36: Males | C36: 39 | D36: 17.7 | E36: 16.1 | F36: 14.6 | G36: 7.6 | H36: 2.5 | I36: x | J36: x | K36: 56.7 | L36: 87.3 | M36: 99.4 | N36: 1766 | O36: Females | P36: 38.5 | Q36: 20.3 | R36: 17.8 | S36: 13.5 | T36: 6.7 | U36: 2.1 | V36: x | W36: x | X36: 58.9 | Y36: 90.1 | Z36: 99.9 | AA36: 2314 | AB36: All | AC36: 38.8 | AD36: 19.2 | AE36: 17 | AF36: 14 | AG36: 7.1 | AH36: 2.3 | AI36: 1.1 | AJ36: 0.3 | AK36: 57.9 | AL36: 88.9 | AM36: 99.7 | AN36: 4080
A37: Polish | B37: Males | C37: 21.7 | D37: 42.8 | E37: 20.3 | F37: 8.5 | G37: 2.2 | H37: 1.7 | I37: 0.7 | J37: 1 | K37: 64.5 | L37: 93.3 | M37: 98.9 | N37: 1456 | O37: Females | P37: 38 | Q37: 40.9 | R37: 12.5 | S37: 4.6 | T37: 1.4 | U37: 0.8 | V37: 0.5 | W37: 0.9 | X37: 78.8 | Y37: 96 | Z37: 99.5 | AA37: 1488 | AB37: All | AC37: 29.9 | AD37: 41.8 | AE37: 16.3 | AF37: 6.6 | AG37: 1.8 | AH37: 1.3 | AI37: 0.6 | AJ37: 1 | AK37: 71.7 | AL37: 94.6 | AM37: 99.2 | AN37: 2944
A38: Spanish | B38: Males | C38: 10 | D38: 14.1 | E38: 17.8 | F38: 24.1 | G38: 18.4 | H38: 8.7 | I38: 4.1 | J38: 1.9 | K38: 24.1 | L38: 65.9 | M38: 98.9 | N38: 35325 | O38: Females | P38: 14.5 | Q38: 18.2 | R38: 20.6 | S38: 22.8 | T38: 14.2 | U38: 5.8 | V38: 2.3 | W38: 0.9 | X38: 32.8 | Y38: 76.2 | Z38: 99.4 | AA38: 47408 | AB38: All | AC38: 12.6 | AD38: 16.5 | AE38: 19.4 | AF38: 23.4 | AG38: 16 | AH38: 7 | AI38: 3.1 | AJ38: 1.3 | AK38: 29.1 | AL38: 71.8 | AM38: 99.2 | AN38: 82733
A39: Urdu | B39: Males | C39: 6 | D39: 17.6 | E39: 23.6 | F39: 21.8 | G39: 14.7 | H39: 9.3 | I39: 4.3 | J39: 1.4 | K39: 23.5 | L39: 68.9 | M39: 98.7 | N39: 1487 | O39: Females | P39: 11 | Q39: 25.9 | R39: 22.6 | S39: 19.9 | T39: 11.5 | U39: 5.4 | V39: 2.2 | W39: 1.1 | X39: 36.9 | Y39: 79.4 | Z39: 99.5 | AA39: 2606 | AB39: All | AC39: 9.2 | AD39: 22.8 | AE39: 22.9 | AF39: 20.6 | AG39: 12.7 | AH39: 6.8 | AI39: 3 | AJ39: 1.2 | AK39: 32 | AL39: 75.6 | AM39: 99.2 | AN39: 4093
A40: Other Modern Languages | B40: Males | C40: 28.5 | D40: 26.5 | E40: 19.5 | F40: 12 | G40: 5.9 | H40: 3.4 | I40: 1.6 | J40: 1.2 | K40: 55 | L40: 86.5 | M40: 98.7 | N40: 4465 | O40: Females | P40: 34.6 | Q40: 26.7 | R40: 18.3 | S40: 11 | T40: 5.1 | U40: 1.8 | V40: 0.9 | W40: 0.6 | X40: 61.3 | Y40: 90.6 | Z40: 99.1 | AA40: 4856 | AB40: All | AC40: 31.7 | AD40: 26.6 | AE40: 18.9 | AF40: 11.5 | AG40: 5.5 | AH40: 2.6 | AI40: 1.2 | AJ40: 0.9 | AK40: 58.3 | AL40: 88.7 | AM40: 98.9 | AN40: 9321
A41: Classical Civilisation | B41: Males | C41: 9.6 | D41: 23.5 | E41: 25.7 | F41: 21.6 | G41: 10.7 | H41: 5.1 | I41: 2.1 | J41: 1.1 | K41: 33.1 | L41: 80.4 | M41: 99.4 | N41: 2047 | O41: Females | P41: 14.3 | Q41: 30.6 | R41: 25.2 | S41: 14.7 | T41: 9.3 | U41: 3.9 | V41: 1 | W41: 0.6 | X41: 44.9 | Y41: 84.9 | Z41: 99.7 | AA41: 1805 | AB41: All | AC41: 11.8 | AD41: 26.8 | AE41: 25.5 | AF41: 18.4 | AG41: 10.1 | AH41: 4.6 | AI41: 1.6 | AJ41: 0.9 | AK41: 38.6 | AL41: 82.5 | AM41: 99.6 | AN41: 3852
A42: Classical Greek | B42: Males | C42: 61.9 | D42: 22.4 | E42: 8 | F42: 4.3 | G42: 2.2 | H42: x | I42: 0.6 | J42: x | K42: 84.4 | L42: 96.6 | M42: 100 | N42: 678 | O42: Females | P42: 64.1 | Q42: 25.3 | R42: 5.4 | S42: 2.9 | T42: 1.1 | U42: x | V42: 0 | W42: x | X42: 89.5 | Y42: 97.8 | Z42: 99.8 | AA42: 446 | AB42: All | AC42: 62.8 | AD42: 23.6 | AE42: 6.9 | AF42: 3.7 | AG42: 1.8 | AH42: x | AI42: 0.4 | AJ42: x | AK42: 86.4 | AL42: 97.1 | AM42: 99.9 | AN42: 1124
A43: Latin | B43: Males | C43: 42 | D43: 28.6 | E43: 14.2 | F43: 7.2 | G43: 3.8 | H43: 2.2 | I43: 0.7 | J43: 0.5 | K43: 70.6 | L43: 92 | M43: 99.3 | N43: 4334 | O43: Females | P43: 46.4 | Q43: 26.6 | R43: 13.2 | S43: 6.8 | T43: 3.6 | U43: 1.6 | V43: 0.9 | W43: 0.5 | X43: 73 | Y43: 93 | Z43: 99.7 | AA43: 4659 | AB43: All | AC43: 44.2 | AD43: 27.6 | AE43: 13.7 | AF43: 7 | AG43: 3.7 | AH43: 1.9 | AI43: 0.8 | AJ43: 0.5 | AK43: 71.8 | AL43: 92.5 | AM43: 99.5 | AN43: 8993
A44: Other Classical Studies | B44: Males | C44: 4.2 | D44: 25.2 | E44: 26.9 | F44: 12.6 | G44: 8.4 | H44: 3.4 | I44: 2.5 | J44: x | K44: 29.4 | L44: 68.9 | M44: 84 | N44: 119 | O44: Females | P44: 13.1 | Q44: 30.3 | R44: 23.6 | S44: 16.6 | T44: 6.4 | U44: 1.9 | V44: 3.5 | W44: x | X44: 43.3 | Y44: 83.4 | Z44: 97.5 | AA44: 314 | AB44: All | AC44: 10.6 | AD44: 28.9 | AE44: 24.5 | AF44: 15.5 | AG44: 6.9 | AH44: 2.3 | AI44: 3.2 | AJ44: 1.8 | AK44: 39.5 | AL44: 79.4 | AM44: 93.8 | AN44: 433
A45: Applied Art and Design | B45: Males | C45: 1.3 | D45: 4.5 | E45: 20.7 | F45: 30.6 | G45: 17.8 | H45: 11.8 | I45: 8.6 | J45: 3.7 | K45: 5.8 | L45: 57.1 | M45: 99 | N45: 382 | O45: Females | P45: 7.5 | Q45: 13.2 | R45: 28.6 | S45: 30.5 | T45: 12.1 | U45: 4.3 | V45: 1.9 | W45: 1.2 | X45: 20.6 | Y45: 79.7 | Z45: 99.3 | AA45: 669 | AB45: All | AC45: 5.2 | AD45: 10 | AE45: 25.7 | AF45: 30.5 | AG45: 14.2 | AH45: 7 | AI45: 4.4 | AJ45: 2.1 | AK45: 15.2 | AL45: 71.5 | AM45: 99.1 | AN45: 1051
A46: Art and Design | B46: Males | C46: 5.4 | D46: 8.4 | E46: 18.8 | F46: 32 | G46: 16.5 | H46: 9.5 | I46: 5.5 | J46: 2.4 | K46: 13.7 | L46: 64.5 | M46: 98.3 | N46: 54309 | O46: Females | P46: 12.1 | Q46: 16.5 | R46: 26.7 | S46: 27.3 | T46: 9.8 | U46: 4.2 | V46: 2 | W46: 0.7 | X46: 28.6 | Y46: 82.7 | Z46: 99.3 | AA46: 110201 | AB46: All | AC46: 9.9 | AD46: 13.8 | AE46: 24.1 | AF46: 28.9 | AG46: 12 | AH46: 5.9 | AI46: 3.1 | AJ46: 1.2 | AK46: 23.7 | AL46: 76.7 | AM46: 99 | AN46: 164510
A47: Communication Studies | B47: Males | C47: 1.7 | D47: 8.5 | E47: 17.3 | F47: 21.5 | G47: 20.1 | H47: 13.6 | I47: 8.8 | J47: 4.9 | K47: 10.2 | L47: 49 | M47: 96.5 | N47: 4125 | O47: Females | P47: 6.8 | Q47: 15.6 | R47: 24.8 | S47: 23.5 | T47: 14.6 | U47: 8.1 | V47: 3.7 | W47: 1.4 | X47: 22.4 | Y47: 70.8 | Z47: 98.6 | AA47: 4940 | AB47: All | AC47: 4.5 | AD47: 12.4 | AE47: 21.4 | AF47: 22.6 | AG47: 17.1 | AH47: 10.6 | AI47: 6 | AJ47: 3 | AK47: 16.9 | AL47: 60.9 | AM47: 97.7 | AN47: 9065
A48: Construction | B48: Males | C48: 0 | D48: x | E48: 14 | F48: 32.6 | G48: 34.9 | H48: x | I48: x | J48: x | K48: x | L48: 51.2 | M48: 97.7 | N48: 43 | O48: Females | P48: 0 | Q48: 0 | R48: 0 | S48: 0 | T48: 0 | U48: 0 | V48: 0 | W48: 0 | X48: 0 | Y48: 0 | Z48: 0 | AA48: 0 | AB48: All | AC48: 0 | AD48: x | AE48: 14 | AF48: 32.6 | AG48: 34.9 | AH48: x | AI48: x | AJ48: x | AK48: x | AL48: 51.2 | AM48: 97.7 | AN48: 43
A49: Dance | B49: Males | C49: 5.1 | D49: 17.4 | E49: 18.3 | F49: 21.1 | G49: 19.4 | H49: 10.1 | I49: 5.9 | J49: 1.6 | K49: 22.5 | L49: 61.9 | M49: 98.9 | N49: 743 | O49: Females | P49: 4.6 | Q49: 15.5 | R49: 20.8 | S49: 24.6 | T49: 18.6 | U49: 9.3 | V49: 4.2 | W49: 1.3 | X49: 20.2 | Y49: 65.5 | Z49: 99 | AA49: 10797 | AB49: All | AC49: 4.7 | AD49: 15.6 | AE49: 20.6 | AF49: 24.4 | AG49: 18.7 | AH49: 9.4 | AI49: 4.3 | AJ49: 1.3 | AK49: 20.3 | AL49: 65.3 | AM49: 99 | AN49: 11540
A50: Drama | B50: Males | C50: 3.4 | D50: 13.5 | E50: 22.5 | F50: 26.5 | G50: 18.2 | H50: 9.1 | I50: 4.1 | J50: 1.7 | K50: 16.9 | L50: 65.9 | M50: 98.9 | N50: 27145 | O50: Females | P50: 6.3 | Q50: 20.1 | R50: 27.9 | S50: 23.5 | T50: 12.9 | U50: 5.7 | V50: 2.2 | W50: 0.9 | X50: 26.4 | Y50: 77.8 | Z50: 99.5 | AA50: 42609 | AB50: All | AC50: 5.2 | AD50: 17.5 | AE50: 25.8 | AF50: 24.7 | AG50: 14.9 | AH50: 7 | AI50: 2.9 | AJ50: 1.2 | AK50: 22.7 | AL50: 73.2 | AM50: 99.3 | AN50: 69754
A51: English Literature | B51: Males | C51: 3.8 | D51: 13.2 | E51: 26.5 | F51: 27.6 | G51: 16.7 | H51: 7 | I51: 2.9 | J51: 1.2 | K51: 17 | L51: 71 | M51: 98.9 | N51: 197831 | O51: Females | P51: 7.4 | Q51: 21.5 | R51: 31.4 | S51: 23.1 | T51: 10.6 | U51: 3.5 | V51: 1.3 | W51: 0.5 | X51: 28.9 | Y51: 83.5 | Z51: 99.4 | AA51: 223967 | AB51: All | AC51: 5.7 | AD51: 17.6 | AE51: 29.1 | AF51: 25.2 | AG51: 13.5 | AH51: 5.2 | AI51: 2 | AJ51: 0.9 | AK51: 23.3 | AL51: 77.6 | AM51: 99.1 | AN51: 421798
A52: English Studies | B52: Males | C52: x | D52: x | E52: 8.7 | F52: 27 | G52: 31.4 | H52: 20.1 | I52: 5.4 | J52: 4.5 | K52: 1.3 | L52: 37 | M52: 98.3 | N52: 1112 | O52: Females | P52: x | Q52: x | R52: 16.8 | S52: 31.6 | T52: 27.1 | U52: 12.3 | V52: 5.4 | W52: 3.1 | X52: 2.4 | Y52: 50.7 | Z52: 98.6 | AA52: 978 | AB52: All | AC52: x | AD52: x | AE52: 12.5 | AF52: 29.1 | AG52: 29.4 | AH52: 16.4 | AI52: 5.4 | AJ52: 3.8 | AK52: 1.8 | AL52: 43.4 | AM52: 98.4 | AN52: 2090
A53: General Studies | B53: Males | C53: 2.2 | D53: 6.2 | E53: 11.6 | F53: 18.4 | G53: 20.5 | H53: 14 | I53: 8.8 | J53: 6.9 | K53: 8.4 | L53: 38.5 | M53: 88.6 | N53: 2473 | O53: Females | P53: 4.2 | Q53: 10.6 | R53: 17.2 | S53: 20.9 | T53: 21.4 | U53: 12.1 | V53: 5.3 | W53: 3.1 | X53: 14.7 | Y53: 52.8 | Z53: 94.8 | AA53: 2383 | AB53: All | AC53: 3.2 | AD53: 8.3 | AE53: 14.3 | AF53: 19.7 | AG53: 20.9 | AH53: 13.1 | AI53: 7.1 | AJ53: 5.1 | AK53: 11.5 | AL53: 45.5 | AM53: 91.7 | AN53: 4856
A54: Health and Social Care | B54: Males | C54: x | D54: x | E54: 10.2 | F54: 17.8 | G54: 19.8 | H54: 18 | I54: 11.7 | J54: 10.2 | K54: 2.8 | L54: 30.7 | M54: 90.4 | N54: 394 | O54: Females | P54: x | Q54: x | R54: 19.2 | S54: 25.8 | T54: 19.2 | U54: 11 | V54: 7.4 | W54: 5.1 | X54: 9.9 | Y54: 54.9 | Z54: 97.7 | AA54: 7356 | AB54: All | AC54: 1.6 | AD54: 8 | AE54: 18.7 | AF54: 25.4 | AG54: 19.3 | AH54: 11.4 | AI54: 7.7 | AJ54: 5.4 | AK54: 9.5 | AL54: 53.7 | AM54: 97.3 | AN54: 7750
A55: Hospitality and Catering | B55: Males | C55: x | D55: 3.5 | E55: 14.5 | F55: 24.6 | G55: 27.6 | H55: 19 | I55: 8.1 | J55: x | K55: 3.6 | L55: 42.8 | M55: 99.5 | N55: 743 | O55: Females | P55: x | Q55: 11.6 | R55: 22.7 | S55: 27 | T55: 18.3 | U55: 10 | V55: 3.6 | W55: x | X55: 16.7 | Y55: 66.4 | Z55: 99.5 | AA55: 1294 | AB55: All | AC55: 3.3 | AD55: 8.6 | AE55: 19.7 | AF55: 26.1 | AG55: 21.7 | AH55: 13.3 | AI55: 5.3 | AJ55: 1.5 | AK55: 11.9 | AL55: 57.8 | AM55: 99.5 | AN55: 2037
A56: Leisure and Tourism | B56: Males | C56: 0.4 | D56: 3.5 | E56: 8.4 | F56: 16.9 | G56: 21.2 | H56: 16.4 | I56: 13.9 | J56: 10.7 | K56: 3.9 | L56: 29.2 | M56: 91.3 | N56: 1148 | O56: Females | P56: 2 | Q56: 7.5 | R56: 18.6 | S56: 23.4 | T56: 19.2 | U56: 10.9 | V56: 9.9 | W56: 4.2 | X56: 9.5 | Y56: 51.5 | Z56: 95.7 | AA56: 1368 | AB56: All | AC56: 1.3 | AD56: 5.6 | AE56: 14 | AF56: 20.4 | AG56: 20.1 | AH56: 13.4 | AI56: 11.7 | AJ56: 7.2 | AK56: 7 | AL56: 41.3 | AM56: 93.7 | AN56: 2516
A57: Manufacturing | B57: Males | C57: 0 | D57: x | E57: 4.7 | F57: 20 | G57: 21.2 | H57: x | I57: x | J57: x | K57: x | L57: 30.6 | M57: 97.6 | N57: 85 | O57: Females | P57: 0 | Q57: x | R57: 0 | S57: 21.4 | T57: 28.6 | U57: x | V57: x | W57: x | X57: x | Y57: 28.6 | Z57: 92.9 | AA57: 14 | AB57: All | AC57: 0 | AD57: 6.1 | AE57: 4 | AF57: 20.2 | AG57: 22.2 | AH57: 18.2 | AI57: 17.2 | AJ57: 9.1 | AK57: 6.1 | AL57: 30.3 | AM57: 97 | AN57: 99
A58: Media/Film/TV | B58: Males | C58: 1.6 | D58: 7.7 | E58: 19.3 | F58: 27.2 | G58: 21 | H58: 11.7 | I58: 6.3 | J58: 3 | K58: 9.3 | L58: 55.9 | M58: 97.9 | N58: 24111 | O58: Females | P58: 5 | Q58: 17.7 | R58: 27.5 | S58: 25.3 | T58: 13.2 | U58: 6.1 | V58: 2.8 | W58: 1.4 | X58: 22.7 | Y58: 75.5 | Z58: 99 | AA58: 24587 | AB58: All | AC58: 3.3 | AD58: 12.8 | AE58: 23.5 | AF58: 26.3 | AG58: 17.1 | AH58: 8.9 | AI58: 4.5 | AJ58: 2.2 | AK58: 16.1 | AL58: 65.8 | AM58: 98.5 | AN58: 48698
A59: Performing Arts | B59: Males | C59: 3.1 | D59: 5.2 | E59: 15.2 | F59: 23.4 | G59: 22.6 | H59: 15.2 | I59: 8.9 | J59: 3.6 | K59: 8.2 | L59: 46.8 | M59: 97 | N59: 948 | O59: Females | P59: 8.9 | Q59: 12.2 | R59: 20.8 | S59: 24.9 | T59: 16.1 | U59: 8.6 | V59: 5.5 | W59: 1.4 | X59: 21.2 | Y59: 66.9 | Z59: 98.6 | AA59: 2131 | AB59: All | AC59: 7.1 | AD59: 10.1 | AE59: 19.1 | AF59: 24.5 | AG59: 18.1 | AH59: 10.7 | AI59: 6.6 | AJ59: 2 | AK59: 17.2 | AL59: 60.7 | AM59: 98.1 | AN59: 3079
A60: Physical Education | B60: Males | C60: 2.4 | D60: 14.8 | E60: 26 | F60: 27.3 | G60: 17.5 | H60: 8.8 | I60: 2.4 | J60: 0.4 | K60: 17.3 | L60: 70.6 | M60: 99.7 | N60: 60323 | O60: Females | P60: 5.5 | Q60: 20.4 | R60: 25 | S60: 22.2 | T60: 15.6 | U60: 8 | V60: 2.6 | W60: 0.5 | X60: 25.9 | Y60: 73.1 | Z60: 99.7 | AA60: 31257 | AB60: All | AC60: 3.5 | AD60: 16.7 | AE60: 25.7 | AF60: 25.6 | AG60: 16.8 | AH60: 8.5 | AI60: 2.5 | AJ60: 0.4 | AK60: 20.2 | AL60: 71.4 | AM60: 99.7 | AN60: 91580
A61: Religious Studies | B61: Males | C61: 7.5 | D61: 16.1 | E61: 22.3 | F61: 20.9 | G61: 12.8 | H61: 8.5 | I61: 5.7 | J61: 3.6 | K61: 23.7 | L61: 66.9 | M61: 97.5 | N61: 104900 | O61: Females | P61: 15 | Q61: 23.1 | R61: 23.6 | S61: 17.5 | T61: 9.1 | U61: 5.4 | V61: 3.1 | W61: 1.9 | X61: 38.1 | Y61: 79.3 | Z61: 98.8 | AA61: 124109 | AB61: All | AC61: 11.6 | AD61: 19.9 | AE61: 23 | AF61: 19.1 | AG61: 10.8 | AH61: 6.9 | AI61: 4.3 | AJ61: 2.6 | AK61: 31.5 | AL61: 73.6 | AM61: 98.2 | AN61: 229009
A62: Statistics | B62: Males | C62: 4.8 | D62: 18.1 | E62: 26.7 | F62: 26 | G62: 13.6 | H62: 5.4 | I62: 2.1 | J62: 1.1 | K62: 22.9 | L62: 75.5 | M62: 97.7 | N62: 23230 | O62: Females | P62: 6 | Q62: 20.4 | R62: 27.8 | S62: 26.4 | T62: 11.3 | U62: 3.7 | V62: 1.5 | W62: 0.8 | X62: 26.4 | Y62: 80.5 | Z62: 97.9 | AA62: 21244 | AB62: All | AC62: 5.3 | AD62: 19.2 | AE62: 27.2 | AF62: 26.2 | AG62: 12.5 | AH62: 4.6 | AI62: 1.8 | AJ62: 1 | AK62: 24.5 | AL62: 77.9 | AM62: 97.8 | AN62: 44474
A63: Vocational Studies | B63: Males | C63: 1 | D63: 6.8 | E63: 17.5 | F63: 27.4 | G63: 22.5 | H63: 13.4 | I63: 6.7 | J63: 2.7 | K63: 7.8 | L63: 52.7 | M63: 98 | N63: 16022 | O63: Females | P63: 3.7 | Q63: 15.2 | R63: 25.5 | S63: 25.2 | T63: 16.8 | U63: 8.2 | V63: 3.4 | W63: 1.1 | X63: 18.9 | Y63: 69.6 | Z63: 99.1 | AA63: 17307 | AB63: All | AC63: 2.4 | AD63: 11.2 | AE63: 21.6 | AF63: 26.3 | AG63: 19.6 | AH63: 10.7 | AI63: 5 | AJ63: 1.9 | AK63: 13.6 | AL63: 61.5 | AM63: 98.6 | AN63: 33329
A64: All Subjects | B64: Males | C64: 5.9 | D64: 13.1 | E64: 21.2 | F64: 27.6 | G64: 15.8 | H64: 8.3 | I64: 4.5 | J64: 2.2 | K64: 19 | L64: 67.8 | M64: 98.6 | N64: 2238514 | O64: Females | P64: 9 | Q64: 17.7 | R64: 24.2 | S64: 25.6 | T64: 12.5 | U64: 5.8 | V64: 2.9 | W64: 1.4 | X64: 26.7 | Y64: 76.5 | Z64: 99.1 | AA64: 2347182 | AB64: All | AC64: 7.5 | AD64: 15.5 | AE64: 22.7 | AF64: 26.6 | AG64: 14.1 | AH64: 7 | AI64: 3.7 | AJ64: 1.8 | AK64: 22.9 | AL64: 72.2 | AM64: 98.9 | AN64: 4585696

Sheet 2014 (hidden)
A1: 1 | B1: =A1+1 -> 2 | C1: =B1+1 -> 3 | D1: 4 | E1: 5 | F1: 6 | G1: 7 | H1: 8 | I1: 9 | J1: 10 | K1: 11 | L1: 12 | M1: 13 | N1: 14 | O1: 15 | P1: 16 | Q1: 17 | R1: 18 | S1: 19 | T1: 20 | U1: 21 | V1: 22 | W1: 23 | X1: 24 | Y1: 25 | Z1: 26 | AA1: 27 | AB1: 28 | AC1: 29 | AD1: 30 | AE1: 31 | AF1: 32 | AG1: 33 | AH1: 34 | AI1: 35 | AJ1: 36 | AK1: 37 | AL1: 38 | AM1: 39 | AN1: 40
A2: Subjects | C2: * | D2: A | E2: B | F2: C | G2: D | H2: E | I2: F | J2: G | K2: AstarA | L2: AstarC | M2: AstarG | N2: Total | O2: (No column name) | P2: * | Q2: A | R2: B | S2: C | T2: D | U2: E | V2: F | W2: G | X2: AstarA | Y2: AstarC | Z2: AstarG | AA2: Total | AB2: (No column name) | AC2: * | AD2: A | AE2: B | AF2: C | AG2: D | AH2: E | AI2: F | AJ2: G | AK2: AstarA | AL2: AstarC | AM2: AstarG | AN2: Total
A3: =A71 -> English | B3: Males | C3: =IF(OR(C71=1,C71=2,P71=1,P71=2),"x",ROUND(C71/$N3*100,1)) -> 2.7 | D3: =IF(OR(D71=1,D71=2,Q71=1,Q71=2),"x",ROUND(D71/$N3*100,1)) -> 9.5 | E3: 21.1 | F3: 31.5 | G3: 19.7 | H3: 9.1 | I3: 3.8 | J3: 1.5 | K3: 12.1 | L3: 64.7 | M3: 98.8 | N3: =N71 -> 229932 | O3: Females | P3: =IF(OR(P71=1,P71=2,C71=1,C71=2),"x",ROUND(P71/$AA3*100,1)) -> 5.9 | Q3: =IF(OR(Q71=1,Q71=2,D71=1,D71=2),"x",ROUND(Q71/$AA3*100,1)) -> 17 | R3: 28.1 | S3: 28.8 | T3: 13 | U3: 4.4 | V3: 1.5 | W3: 0.6 | X3: 22.9 | Y3: 79.8 | Z3: 99.3 | AA3: =AA71 -> 234257 | AB3: All | AC3: =IF(OR(AC71=1,AC71=2),"x",ROUND(AC71/$AN3*100,1)) -> 4.3 | AD3: =IF(OR(AD71=1,AD71=2),"x",ROUND(AD71/$AN3*100,1)) -> 13.3 | AE3: 24.6 | AF3: 30.1 | AG3: 16.3 | AH3: 6.7 | AI3: 2.7 | AJ3: 1 | AK3: 17.6 | AL3: 72.4 | AM3: 99.1 | AN3: =AN71 -> 464189
A4: =A72 -> Mathematics | B4: Males | C4: =IF(OR(C72=1,C72=2,P72=1,P72=2),"x",ROUND(C72/$N4*100,1)) -> 7.2 | D4: =IF(OR(D72=1,D72=2,Q72=1,Q72=2),"x",ROUND(D72/$N4*100,1)) -> 11.5 | E4: =IF(OR(E72=1,E72=2,R72=1,R72=2),"x",ROUND(E72/$N4*100,1)) -> 18.5 | F4: =IF(OR(F72=1,F72=2,S72=1,S72=2),"x",ROUND(F72/$N4*100,1)) -> 30.1 | G4: =IF(OR(G72=1,G72=2,T72=1,T72=2),"x",ROUND(G72/$N4*100,1)) -> 12.3 | H4: =IF(OR(H72=1,H72=2,U72=1,U72=2),"x",ROUND(H72/$N4*100,1)) -> 6.2 | I4: =IF(OR(I72=1,I72=2,V72=1,V72=2),"x",ROUND(I72/$N4*100,1)) -> 4.8 | J4: =IF(OR(J72=1,J72=2,W72=1,W72=2),"x",ROUND(J72/$N4*100,1)) -> 3.9 | K4: =IF(OR(K72=1,K72=2,X72=1,X72=2),"x",ROUND(K72/$N4*100,1)) -> 18.7 | L4: =IF(OR(L72=1,L72=2,Y72=1,Y72=2),"x",ROUND(L72/$N4*100,1)) -> 67.3 | M4: =IF(OR(M72=1,M72=2,Z72=1,Z72=2),"x",ROUND(M72/$N4*100,1)) -> 94.5 | N4: 303147 | O4: Females | P4: =IF(OR(P72=1,P72=2,C72=1,C72=2),"x",ROUND(P72/$AA4*100,1)) -> 6.5 | Q4: =IF(OR(Q72=1,Q72=2,D72=1,D72=2),"x",ROUND(Q72/$AA4*100,1)) -> 11.8 | R4: =IF(OR(R72=1,R72=2,E72=1,E72=2),"x",ROUND(R72/$AA4*100,1)) -> 19.5 | S4: =IF(OR(S72=1,S72=2,F72=1,F72=2),"x",ROUND(S72/$AA4*100,1)) -> 31 | T4: =IF(OR(T72=1,T72=2,G72=1,G72=2),"x",ROUND(T72/$AA4*100,1)) -> 12.4 | U4: =IF(OR(U72=1,U72=2,H72=1,H72=2),"x",ROUND(U72/$AA4*100,1)) -> 5.9 | V4: =IF(OR(V72=1,V72=2,I72=1,I72=2),"x",ROUND(V72/$AA4*100,1)) -> 4.5 | W4: =IF(OR(W72=1,W72=2,J72=1,J72=2),"x",ROUND(W72/$AA4*100,1)) -> 3.5 | X4: =IF(OR(X72=1,X72=2,K72=1,K72=2),"x",ROUND(X72/$AA4*100,1)) -> 18.3 | Y4: =IF(OR(Y72=1,Y72=2,L72=1,L72=2),"x",ROUND(Y72/$AA4*100,1)) -> 68.7 | Z4: =IF(OR(Z72=1,Z72=2,M72=1,M72=2),"x",ROUND(Z72/$AA4*100,1)) -> 95.1 | AA4: 293691 | AB4: All | AC4: =IF(OR(AC72=1,AC72=2),"x",ROUND(AC72/$AN4*100,1)) -> 6.8 | AD4: 11.7 | AE4: 19 | AF4: 30.5 | AG4: 12.4 | AH4: 6.1 | AI4: 4.6 | AJ4: 3.7 | AK4: 18.5 | AL4: 68 | AM4: 94.8 | AN4: 596838
A5: Core Science | B5: Males | C5: 1 | D5: 5.8 | E5: 17 | F5: 34.9 | G5: 19.9 | H5: 11.2 | I5: 5.9 | J5: 2.5 | K5: 6.8 | L5: 58.8 | M5: 98.2 | N5: 175051 | O5: Females | P5: 1.7 | Q5: 8.5 | R5: 20.6 | S5: 34.4 | T5: 17.5 | U5: 9.3 | V5: 4.6 | W5: 1.8 | X5: 10.2 | Y5: 65.2 | Z5: 98.5 | AA5: 177855 | AB5: All | AC5: =IF(OR(AC73=1,AC73=2),"x",ROUND(AC73/$AN5*100,1)) -> 1.4 | AD5: 7.2 | AE5: 18.8 | AF5: 34.6 | AG5: 18.7 | AH5: 10.2 | AI5: 5.3 | AJ5: 2.1 | AK5: 8.5 | AL5: 62 | AM5: 98.3 | AN5: 352906
A6: Additional Science | B6: Males | C6: 2 | D6: 8.1 | E6: 20.4 | F6: 32.4 | G6: 21.8 | H6: 9.1 | I6: 3.9 | J6: 1.5 | K6: 10 | L6: 62.8 | M6: 99.2 | N6: 131575 | O6: Females | P6: 2.7 | Q6: 10.2 | R6: 23.4 | S6: 32.3 | T6: 19.4 | U6: 7.3 | V6: 2.9 | W6: 1.1 | X6: 12.9 | Y6: 68.7 | Z6: 99.4 | AA6: 139627 | AB6: All | AC6: =IF(OR(AC74=1,AC74=2),"x",ROUND(AC74/$AN6*100,1)) -> 2.3 | AD6: 9.2 | AE6: 22 | AF6: 32.4 | AG6: 20.6 | AH6: 8.2 | AI6: 3.4 | AJ6: 1.3 | AK6: 11.5 | AL6: 65.8 | AM6: 99.3 | AN6: 271202
A7: Further Additional Science | B7: Males | C7: 10 | D7: 20.7 | E7: 27.1 | F7: 25.1 | G7: 12.2 | H7: 3.6 | I7: 0.8 | J7: 0.2 | K7: 30.7 | L7: 82.9 | M7: 99.7 | N7: 10607 | O7: Females | P7: 11.6 | Q7: 22.5 | R7: 28 | S7: 23.7 | T7: 10.6 | U7: 2.8 | V7: 0.5 | W7: 0.2 | X7: 34 | Y7: 85.7 | Z7: 99.8 | AA7: 10429 | AB7: All | AC7: =IF(OR(AC75=1,AC75=2),"x",ROUND(AC75/$AN7*100,1)) -> 10.8 | AD7: 21.6 | AE7: 27.5 | AF7: 24.4 | AG7: 11.4 | AH7: 3.2 | AI7: 0.6 | AJ7: 0.2 | AK7: 32.4 | AL7: 84.3 | AM7: 99.8 | AN7: 21036
A8: Additional Applied Science | B8: Males | C8: 0 | D8: 0.9 | E8: 5.2 | F8: 20 | G8: 29.3 | H8: 23.5 | I8: 13 | J8: 5.1 | K8: 0.9 | L8: 26.1 | M8: 97 | N8: 6616 | O8: Females | P8: 0.1 | Q8: 1.2 | R8: 9.8 | S8: 26.4 | T8: 30.7 | U8: 18.5 | V8: 8.5 | W8: 2.9 | X8: 1.4 | Y8: 37.5 | Z8: 98.1 | AA8: 6697 | AB8: All | AC8: =IF(OR(AC76=1,AC76=2),"x",ROUND(AC76/$AN8*100,1)) -> 0.1 | AD8: 1.1 | AE8: 7.5 | AF8: 23.2 | AG8: 30 | AH8: 21 | AI8: 10.7 | AJ8: 4 | AK8: 1.1 | AL8: 31.8 | AM8: 97.5 | AN8: 13313
A9: Physics | B9: Males | C9: 14.5 | D9: 27.3 | E9: 29.2 | F9: 20.5 | G9: 6.8 | H9: 1.2 | I9: 0.3 | J9: 0.1 | K9: 41.8 | L9: 91.5 | M9: 99.9 | N9: 65148 | O9: Females | P9: 15.9 | Q9: 27.2 | R9: 28.9 | S9: 20.1 | T9: 6.4 | U9: 1.2 | V9: 0.2 | W9: 0.1 | X9: 43.1 | Y9: 92 | Z9: 99.9 | AA9: 63604 | AB9: All | AC9: =IF(OR(AC77=1,AC77=2),"x",ROUND(AC77/$AN9*100,1)) -> 15.2 | AD9: 27.3 | AE9: 29.1 | AF9: 20.3 | AG9: 6.6 | AH9: 1.2 | AI9: 0.2 | AJ9: 0.1 | AK9: 42.4 | AL9: 91.8 | AM9: 99.9 | AN9: 128752
A10: Chemistry | B10: Males | C10: 13.1 | D10: 26.6 | E10: 29.1 | F10: 21.1 | G10: 7.7 | H10: 1.7 | I10: 0.4 | J10: 0.1 | K10: 39.7 | L10: 90 | M10: 99.9 | N10: 65818 | O10: Females | P10: 16.7 | Q10: 29.3 | R10: 28.4 | S10: 17.9 | T10: 5.9 | U10: 1.2 | V10: 0.3 | W10: 0.1 | X10: 46.1 | Y10: 92.4 | Z10: 99.9 | AA10: 63841 | AB10: All | AC10: =IF(OR(AC78=1,AC78=2),"x",ROUND(AC78/$AN10*100,1)) -> 14.9 | AD10: 28 | AE10: 28.8 | AF10: 19.5 | AG10: 6.8 | AH10: 1.5 | AI10: 0.3 | AJ10: 0.1 | AK10: 42.9 | AL10: 91.2 | AM10: 99.9 | AN10: 129659
A11: Biological Sciences | B11: Males | C11: 11.2 | D11: 26.3 | E11: 30.2 | F11: 21.8 | G11: 7.5 | H11: 1.7 | I11: 0.6 | J11: 0.3 | K11: 37.5 | L11: 89.5 | M11: 99.7 | N11: 67270 | O11: Females | P11: 16.7 | Q11: 29.9 | R11: 28.6 | S11: 17.1 | T11: 5.5 | U11: 1.2 | V11: 0.5 | W11: 0.2 | X11: 46.6 | Y11: 92.4 | Z11: 99.8 | AA11: 65698 | AB11: All | AC11: =IF(OR(AC79=1,AC79=2),"x",ROUND(AC79/$AN11*100,1)) -> 13.9 | AD11: 28.1 | AE11: 29.4 | AF11: 19.5 | AG11: 6.5 | AH11: 1.5 | AI11: 0.6 | AJ11: 0.2 | AK11: 42 | AL11: 91 | AM11: 99.7 | AN11: 132968
A12: Computer Science | B12: Males | C12: 6 | D12: 16.6 | E12: 21.3 | F12: 20.4 | G12: 14 | H12: 8.8 | I12: 5.4 | J12: 3.4 | K12: 22.6 | L12: 64.4 | M12: 96.1 | N12: 13428 | O12: Females | P12: 8.3 | Q12: 19.4 | R12: 21.7 | S12: 21.2 | T12: 13.6 | U12: 7.4 | V12: 3.7 | W12: 1.7 | X12: 27.7 | Y12: 70.6 | Z12: 97 | AA12: 2374 | AB12: All | AC12: =IF(OR(AC80=1,AC80=2),"x",ROUND(AC80/$AN12*100,1)) -> 6.4 | AD12: 17 | AE12: 21.4 | AF12: 20.5 | AG12: 14 | AH12: 8.6 | AI12: 5.2 | AJ12: 3.2 | AK12: 23.4 | AL12: 65.3 | AM12: 96.2 | AN12: 15802
A13: Other Sciences | B13: Males | C13: 10.2 | D13: 14.3 | E13: 16.1 | F13: 16.7 | G13: 15.3 | H13: 11.7 | I13: 8.3 | J13: 4.8 | K13: 24.5 | L13: 57.2 | M13: 97.3 | N13: 4288 | O13: Females | P13: 4.4 | Q13: 9.6 | R13: 18 | S13: 21.6 | T13: 17.3 | U13: 12.8 | V13: 8.2 | W13: 5.3 | X13: 14 | Y13: 53.6 | Z13: 97.1 | AA13: 2580 | AB13: All | AC13: =IF(OR(AC81=1,AC81=2),"x",ROUND(AC81/$AN13*100,1)) -> 8 | AD13: 12.6 | AE13: 16.8 | AF13: 18.5 | AG13: 16 | AH13: 12.1 | AI13: 8.2 | AJ13: 5 | AK13: 20.6 | AL13: 55.9 | AM13: 97.2 | AN13: 6868
A14: D & T: Electronic Products | B14: Males | C14: 6.9 | D14: 14.5 | E14: 21.4 | F14: 20.9 | G14: 14.8 | H14: 9.9 | I14: 6.1 | J14: 3.4 | K14: 21.5 | L14: 63.8 | M14: 98 | N14: 7692 | O14: Females | P14: 17 | Q14: 26.1 | R14: 24.5 | S14: 13.2 | T14: 9.6 | U14: 5.9 | V14: 1.6 | W14: 1.3 | X14: 43.2 | Y14: 80.9 | Z14: 99.2 | AA14: 628 | AB14: All | AC14: =IF(OR(AC82=1,AC82=2),"x",ROUND(AC82/$AN14*100,1)) -> 7.7 | AD14: 15.4 | AE14: 21.7 | AF14: 20.4 | AG14: 14.4 | AH14: 9.6 | AI14: 5.8 | AJ14: 3.2 | AK14: 23.1 | AL14: 65.1 | AM14: 98.1 | AN14: 8320
A15: D & T: Food Technology | B15: Males | C15: 1.5 | D15: 5.8 | E15: 14.1 | F15: 24.3 | G15: 23.2 | H15: 15.7 | I15: 9.1 | J15: 4.1 | K15: 7.4 | L15: 45.8 | M15: 97.9 | N15: 14951 | O15: Females | P15: 7.2 | Q15: 16.9 | R15: 23.7 | S15: 23.2 | T15: 14.9 | U15: 8 | V15: 3.8 | W15: 1.5 | X15: 24.1 | Y15: 70.9 | Z15: 99.1 | AA15: 25639 | AB15: All | AC15: =IF(OR(AC83=1,AC83=2),"x",ROUND(AC83/$AN15*100,1)) -> 5.1 | AD15: 12.8 | AE15: 20.2 | AF15: 23.6 | AG15: 18 | AH15: 10.8 | AI15: 5.8 | AJ15: 2.5 | AK15: 17.9 | AL15: 61.7 | AM15: 98.7 | AN15: 40590
A16: D & T: Graphic Products | B16: Males | C16: 2.8 | D16: 8.6 | E16: 16.8 | F16: 22.7 | G16: 19.8 | H16: 12.9 | I16: 8.2 | J16: 5 | K16: 11.3 | L16: 50.9 | M16: 96.8 | N16: 20953 | O16: Females | P16: 7.8 | Q16: 18.5 | R16: 23.5 | S16: 21.3 | T16: 14 | U16: 7.5 | V16: 4 | W16: 2.1 | X16: 26.4 | Y16: 71.2 | Z16: 98.8 | AA16: 12921 | AB16: All | AC16: =IF(OR(AC84=1,AC84=2),"x",ROUND(AC84/$AN16*100,1)) -> 4.7 | AD16: 12.4 | AE16: 19.3 | AF16: 22.2 | AG16: 17.6 | AH16: 10.8 | AI16: 6.6 | AJ16: 3.9 | AK16: 17.1 | AL16: 58.6 | AM16: 97.6 | AN16: 33874
A17: D & T: Resistant Materials | B17: Males | C17: 2.9 | D17: 8.8 | E17: 18.2 | F17: 24.4 | G17: 19.7 | H17: 12.7 | I17: 7.6 | J17: 3.7 | K17: 11.7 | L17: 54.4 | M17: 98 | N17: 45024 | O17: Females | P17: 8.7 | Q17: 18.4 | R17: 23.9 | S17: 21.2 | T17: 13.8 | U17: 7.3 | V17: 3.7 | W17: 2.1 | X17: 27.2 | Y17: 72.2 | Z17: 99.1 | AA17: 7760 | AB17: All | AC17: =IF(OR(AC85=1,AC85=2),"x",ROUND(AC85/$AN17*100,1)) -> 3.7 | AD17: 10.2 | AE17: 19.1 | AF17: 24 | AG17: 18.8 | AH17: 11.9 | AI17: 7 | AJ17: 3.4 | AK17: 14 | AL17: 57 | AM17: 98.2 | AN17: 52784
A18: D & T: Systems & Control | B18: Males | C18: 8.1 | D18: 13.2 | E18: 20.4 | F18: 22 | G18: 16.6 | H18: 9.5 | I18: 6 | J18: x | K18: 21.3 | L18: 63.8 | M18: 98.6 | N18: 3091 | O18: Females | P18: 4.7 | Q18: 20 | R18: 19.3 | S18: 22.7 | T18: 20.7 | U18: 6.7 | V18: 4 | W18: x | X18: 24.7 | Y18: 66.7 | Z18: 98.7 | AA18: 150 | AB18: All | AC18: =IF(OR(AC86=1,AC86=2),"x",ROUND(AC86/$AN18*100,1)) -> 8 | AD18: 13.5 | AE18: 20.4 | AF18: 22.1 | AG18: 16.8 | AH18: 9.4 | AI18: 5.9 | AJ18: 2.7 | AK18: 21.5 | AL18: 63.9 | AM18: 98.6 | AN18: 3241
A19: D & T: Textiles Technology | B19: Males | C19: 2.9 | D19: 4 | E19: 9.6 | F19: 19.8 | G19: 20 | H19: 17.6 | I19: 14.6 | J19: 5.9 | K19: 7 | L19: 36.3 | M19: 94.4 | N19: 820 | O19: Females | P19: 10 | Q19: 17.1 | R19: 23 | S19: 22.5 | T19: 14 | U19: 7.5 | V19: 3.4 | W19: 1.6 | X19: 27.1 | Y19: 72.6 | Z19: 99.1 | AA19: 24773 | AB19: All | AC19: =IF(OR(AC87=1,AC87=2),"x",ROUND(AC87/$AN19*100,1)) -> 9.8 | AD19: 16.7 | AE19: 22.6 | AF19: 22.4 | AG19: 14.1 | AH19: 7.8 | AI19: 3.8 | AJ19: 1.7 | AK19: 26.5 | AL19: 71.5 | AM19: 98.9 | AN19: 25593
A20: Other Design and Technology | B20: Males | C20: 2.8 | D20: 7.9 | E20: 16.9 | F20: 24.3 | G20: 20.4 | H20: 13.3 | I20: 8 | J20: 3.9 | K20: 10.8 | L20: 52 | M20: 97.6 | N20: 26092 | O20: Females | P20: 9.1 | Q20: 18.3 | R20: 23.5 | S20: 21.2 | T20: 13.5 | U20: 7.5 | V20: 3.9 | W20: 2 | X20: 27.4 | Y20: 72.1 | Z20: 99 | AA20: 10761 | AB20: All | AC20: =IF(OR(AC88=1,AC88=2),"x",ROUND(AC88/$AN20*100,1)) -> 4.7 | AD20: 11 | AE20: 18.9 | AF20: 23.4 | AG20: 18.4 | AH20: 11.6 | AI20: 6.8 | AJ20: 3.3 | AK20: 15.6 | AL20: 57.9 | AM20: 98 | AN20: 36853
A21: Applied Engineering | B21: Males | C21: x | D21: 3.9 | E21: 11.3 | F21: 21.9 | G21: 22.1 | H21: 17.6 | I21: 10.3 | J21: 6.3 | K21: 5 | L21: 38.2 | M21: 94.5 | N21: 3863 | O21: Females | P21: x | Q21: 10.1 | R21: 21.5 | S21: 22.8 | T21: 21.5 | U21: 14.9 | V21: 4.8 | W21: 3.1 | X21: 11 | Y21: 55.3 | Z21: 99.6 | AA21: 228 | AB21: All | AC21: =IF(OR(AC89=1,AC89=2),"x",ROUND(AC89/$AN21*100,1)) -> 1 | AD21: 4.3 | AE21: 11.9 | AF21: 22 | AG21: 22.1 | AH21: 17.4 | AI21: 10 | AJ21: 6.1 | AK21: 5.3 | AL21: 39.2 | AM21: 94.7 | AN21: 4091
A22: Information Technology | B22: Males | C22: 4.4 | D22: 14.4 | E22: 22.8 | F22: 23.5 | G22: 14.4 | H22: 8.1 | I22: 5.6 | J22: 4 | K22: 18.8 | L22: 65.1 | M22: 97.2 | N22: 46552 | O22: Females | P22: 7.5 | Q22: 18.8 | R22: 23.8 | S22: 22.4 | T22: 12.3 | U22: 6.6 | V22: 3.8 | W22: 2.7 | X22: 26.3 | Y22: 72.5 | Z22: 97.9 | AA22: 35324 | AB22: All | AC22: =IF(OR(AC90=1,AC90=2),"x",ROUND(AC90/$AN22*100,1)) -> 5.8 | AD22: 16.3 | AE22: 23.2 | AF22: 23 | AG22: 13.5 | AH22: 7.4 | AI22: 4.8 | AJ22: 3.4 | AK22: 22.1 | AL22: 68.3 | AM22: 97.5 | AN22: 81876
A23: Business Studies | B23: Males | C23: 3.1 | D23: 13.7 | E23: 23.8 | F23: 23.9 | G23: 16.2 | H23: 9.2 | I23: 5.3 | J23: 3 | K23: 16.7 | L23: 64.5 | M23: 98.2 | N23: 43774 | O23: Females | P23: 4.5 | Q23: 17.5 | R23: 25.6 | S23: 22.8 | T23: 13.9 | U23: 7.8 | V23: 4.3 | W23: 2.2 | X23: 22 | Y23: 70.4 | Z23: 98.7 | AA23: 30552 | AB23: All | AC23: =IF(OR(AC91=1,AC91=2),"x",ROUND(AC91/$AN23*100,1)) -> 3.6 | AD23: 15.2 | AE23: 24.5 | AF23: 23.5 | AG23: 15.3 | AH23: 8.7 | AI23: 4.9 | AJ23: 2.7 | AK23: 18.9 | AL23: 66.9 | AM23: 98.4 | AN23: 74326
A24: Applied Business | B24: Males | C24: 1.8 | D24: 9.1 | E24: 18.7 | F24: 23.5 | G24: 16.8 | H24: 12 | I24: 7.4 | J24: 4.9 | K24: 10.9 | L24: 53.1 | M24: 94.2 | N24: 4852 | O24: Females | P24: 3.6 | Q24: 16.8 | R24: 23.3 | S24: 20.1 | T24: 13.9 | U24: 9.5 | V24: 5.5 | W24: 3.6 | X24: 20.4 | Y24: 63.8 | Z24: 96.2 | AA24: 3185 | AB24: All | AC24: =IF(OR(AC92=1,AC92=2),"x",ROUND(AC92/$AN24*100,1)) -> 2.6 | AD24: 12.2 | AE24: 20.5 | AF24: 22.1 | AG24: 15.7 | AH24: 11 | AI24: 6.6 | AJ24: 4.4 | AK24: 14.7 | AL24: 57.4 | AM24: 95 | AN24: 8037
A25: Home Economics | B25: Males | C25: 0.6 | D25: 4 | E25: 13.1 | F25: 23.1 | G25: 22.6 | H25: 17.8 | I25: 10.9 | J25: 5.1 | K25: 4.6 | L25: 40.9 | M25: 97.3 | N25: 3594 | O25: Females | P25: 3 | Q25: 10.7 | R25: 19.6 | S25: 23.6 | T25: 19.7 | U25: 12.5 | V25: 6.5 | W25: 2.8 | X25: 13.7 | Y25: 56.9 | Z25: 98.4 | AA25: 24583 | AB25: All | AC25: =IF(OR(AC93=1,AC93=2),"x",ROUND(AC93/$AN25*100,1)) -> 2.7 | AD25: 9.9 | AE25: 18.8 | AF25: 23.6 | AG25: 20 | AH25: 13.1 | AI25: 7.1 | AJ25: 3.1 | AK25: 12.5 | AL25: 54.9 | AM25: 98.2 | AN25: 28177
A26: Ancient History | B26: Males | C26: 15.5 | D26: 20.8 | E26: 19.5 | F26: 14.2 | G26: 9.4 | H26: 9.1 | I26: 4.3 | J26: 2.9 | K26: 36.3 | L26: 70.1 | M26: 95.8 | N26: 625 | O26: Females | P26: 14.8 | Q26: 24.3 | R26: 18.5 | S26: 19.7 | T26: 11.4 | U26: 6.7 | V26: 1.8 | W26: 1.8 | X26: 39.1 | Y26: 77.3 | Z26: 99 | AA26: 507 | AB26: All | AC26: =IF(OR(AC94=1,AC94=2),"x",ROUND(AC94/$AN26*100,1)) -> 15.2 | AD26: 22.3 | AE26: 19.1 | AF26: 16.7 | AG26: 10.3 | AH26: 8 | AI26: 3.2 | AJ26: 2.4 | AK26: 37.5 | AL26: 73.3 | AM26: 97.3 | AN26: 1132
A27: Geography | B27: Males | C27: 7.3 | D27: 15 | E27: 19.7 | F27: 23.3 | G27: 16.4 | H27: 9.5 | I27: 5.1 | J27: 2.6 | K27: 22.3 | L27: 65.3 | M27: 98.9 | N27: 112281 | O27: Females | P27: 12.2 | Q27: 19.7 | R27: 21.2 | S27: 20.4 | T27: 12.6 | U27: 7.3 | V27: 4 | W27: 1.9 | X27: 31.9 | Y27: 73.6 | Z27: 99.3 | AA27: 96959 | AB27: All | AC27: =IF(OR(AC95=1,AC95=2),"x",ROUND(AC95/$AN27*100,1)) -> 9.6 | AD27: 17.2 | AE27: 20.4 | AF27: 22 | AG27: 14.6 | AH27: 8.5 | AI27: 4.6 | AJ27: 2.3 | AK27: 26.8 | AL27: 69.1 | AM27: 99.1 | AN27: 209240
A28: History | B28: Males | C28: 7.7 | D28: 16.5 | E28: 20.7 | F28: 19.8 | G28: 14.2 | H28: 9.3 | I28: 5.8 | J28: 3.7 | K28: 24.2 | L28: 64.7 | M28: 97.6 | N28: 115413 | O28: Females | P28: 12.4 | Q28: 20.4 | R28: 21.1 | S28: 17.8 | T28: 12.1 | U28: 7.6 | V28: 4.5 | W28: 2.6 | X28: 32.8 | Y28: 71.7 | Z28: 98.5 | AA28: 122846 | AB28: All | AC28: 10.1 | AD28: 18.5 | AE28: 20.9 | AF28: 18.8 | AG28: 13.1 | AH28: 8.4 | AI28: 5.1 | AJ28: 3.1 | AK28: 28.6 | AL28: 68.3 | AM28: 98.1 | AN28: 238259
A29: Humanities | B29: Males | C29: 1.2 | D29: 5 | E29: 13.5 | F29: 19.9 | G29: 18.4 | H29: 16.1 | I29: 12.1 | J29: 7.6 | K29: 6.2 | L29: 39.6 | M29: 93.7 | N29: 5150 | O29: Females | P29: 3.1 | Q29: 9.2 | R29: 18.6 | S29: 20.7 | T29: 18.3 | U29: 13.6 | V29: 8.9 | W29: 4.8 | X29: 12.3 | Y29: 51.6 | Z29: 97.2 | AA29: 4916 | AB29: All | AC29: =IF(OR(AC97=1,AC97=2),"x",ROUND(AC97/$AN29*100,1)) -> 2.1 | AD29: 7.1 | AE29: 16 | AF29: 20.3 | AG29: 18.3 | AH29: 14.9 | AI29: 10.5 | AJ29: 6.2 | AK29: 9.2 | AL29: 45.5 | AM29: 95.4 | AN29: 10066
A30: Economics | B30: Males | C30: 6.7 | D30: 23.8 | E30: 30 | F30: 18.7 | G30: 9.5 | H30: 5.4 | I30: 3 | J30: 1.5 | K30: 30.5 | L30: 79.2 | M30: 98.5 | N30: 3481 | O30: Females | P30: 5.3 | Q30: 26.3 | R30: 28.8 | S30: 18.6 | T30: 10.4 | U30: 5.3 | V30: 2.1 | W30: 1.7 | X30: 31.6 | Y30: 79 | Z30: 98.5 | AA30: 1445 | AB30: All | AC30: =IF(OR(AC98=1,AC98=2),"x",ROUND(AC98/$AN30*100,1)) -> 6.3 | AD30: 24.5 | AE30: 29.6 | AF30: 18.7 | AG30: 9.8 | AH30: 5.4 | AI30: 2.7 | AJ30: 1.5 | AK30: 30.8 | AL30: 79.1 | AM30: 98.5 | AN30: 4926
A31: Social Studies | B31: Males | C31: 1.5 | D31: 8.5 | E31: 19.6 | F31: 23.9 | G31: 18.2 | H31: 12.1 | I31: 7.8 | J31: 4.7 | K31: 10 | L31: 53.5 | M31: 96.3 | N31: 20556 | O31: Females | P31: 3.9 | Q31: 16.9 | R31: 25.3 | S31: 22.6 | T31: 13.7 | U31: 8.3 | V31: 4.9 | W31: 2.4 | X31: 20.8 | Y31: 68.7 | Z31: 98.2 | AA31: 36435 | AB31: All | AC31: =IF(OR(AC99=1,AC99=2),"x",ROUND(AC99/$AN31*100,1)) -> 3 | AD31: 13.9 | AE31: 23.3 | AF31: 23.1 | AG31: 15.3 | AH31: 9.7 | AI31: 6 | AJ31: 3.3 | AK31: 16.9 | AL31: 63.2 | AM31: 97.5 | AN31: 56991
A32: Other Classical Studies | B32: Males | C32: 11.1 | D32: 30.6 | E32: 28.5 | F32: 12.5 | G32: 9 | H32: 3.5 | I32: 2.1 | J32: x | K32: 41.7 | L32: 82.6 | M32: 98.6 | N32: 144 | O32: Females | P32: 14.5 | Q32: 30.4 | R32: 23.3 | S32: 14.5 | T32: 5.4 | U32: 3.1 | V32: 2 | W32: x | X32: 44.9 | Y32: 82.7 | Z32: 94.9 | AA32: 352 | AB32: All | AC32: =IF(OR(AC100=1,AC100=2),"x",ROUND(AC100/$AN32*100,1)) -> 13.5 | AD32: 30.4 | AE32: 24.8 | AF32: 13.9 | AG32: 6.5 | AH32: 3.2 | AI32: 2 | AJ32: 1.6 | AK32: 44 | AL32: 82.7 | AM32: 96 | AN32: 496
A33: Arabic | B33: Males | C33: 32.7 | D33: 20.6 | E33: 12.8 | F33: 10.8 | G33: 6.4 | H33: 5 | I33: 4 | J33: 2.9 | K33: 53.4 | L33: 77 | M33: 95.3 | N33: 1368 | O33: Females | P33: 36.2 | Q33: 20.1 | R33: 13.3 | S33: 9.4 | T33: 5.6 | U33: 4.5 | V33: 4.6 | W33: 2.8 | X33: 56.3 | Y33: 78.9 | Z33: 96.4 | AA33: 1598 | AB33: All | AC33: =IF(OR(AC101=1,AC101=2),"x",ROUND(AC101/$AN33*100,1)) -> 34.6 | AD33: 20.3 | AE33: 13 | AF33: 10 | AG33: 6 | AH33: 4.7 | AI33: 4.3 | AJ33: 2.8 | AK33: 54.9 | AL33: 78 | AM33: 95.9 | AN33: 2966
A34: Chinese | B34: Males | C34: 57.4 | D34: 17.3 | E34: 10.9 | F34: 8.3 | G34: 4.6 | H34: 1 | I34: 0.2 | J34: x | K34: 74.7 | L34: 93.9 | M34: 99.6 | N34: 1470 | O34: Females | P34: 66.7 | Q34: 15 | R34: 8.8 | S34: 6.1 | T34: 2.3 | U34: 0.5 | V34: 0.2 | W34: x | X34: 81.7 | Y34: 96.6 | Z34: 99.8 | AA34: 1360 | AB34: All | AC34: =IF(OR(AC102=1,AC102=2),"x",ROUND(AC102/$AN34*100,1)) -> 61.9 | AD34: 16.2 | AE34: 9.9 | AF34: 7.2 | AG34: 3.5 | AH34: 0.7 | AI34: 0.2 | AJ34: x | AK34: 78.1 | AL34: 95.2 | AM34: 99.7 | AN34: 2830
A35: French | B35: Males | C35: 7.3 | D35: 11.2 | E35: 16.8 | F35: 27.2 | G35: 22.1 | H35: 9.9 | I35: 3.6 | J35: 1.3 | K35: 18.5 | L35: 62.5 | M35: 99.5 | N35: 69121 | O35: Females | P35: 11 | Q35: 15.4 | R35: 20.5 | S35: 27.1 | T35: 17.3 | U35: 5.9 | V35: 1.9 | W35: 0.6 | X35: 26.4 | Y35: 74 | Z35: 99.7 | AA35: 91834 | AB35: All | AC35: =IF(OR(AC103=1,AC103=2),"x",ROUND(AC103/$AN35*100,1)) -> 9.4 | AD35: 13.6 | AE35: 18.9 | AF35: 27.1 | AG35: 19.4 | AH35: 7.6 | AI35: 2.6 | AJ35: 0.9 | AK35: 23 | AL35: 69 | AM35: 99.6 | AN35: 160955
A36: German | B36: Males | C36: 6.8 | D36: 12.1 | E36: 20.4 | F36: 29.1 | G36: 20 | H36: 7.6 | I36: 2.7 | J36: 0.8 | K36: 18.9 | L36: 68.4 | M36: 99.5 | N36: 28070 | O36: Females | P36: 9.7 | Q36: 16.7 | R36: 24.8 | S36: 27.3 | T36: 14.8 | U36: 4.6 | V36: 1.4 | W36: 0.4 | X36: 26.4 | Y36: 78.5 | Z36: 99.7 | AA36: 30450 | AB36: All | AC36: =IF(OR(AC104=1,AC104=2),"x",ROUND(AC104/$AN36*100,1)) -> 8.3 | AD36: 14.5 | AE36: 22.7 | AF36: 28.2 | AG36: 17.3 | AH36: 6 | AI36: 2 | AJ36: 0.6 | AK36: 22.8 | AL36: 73.7 | AM36: 99.6 | AN36: 58520
A37: Italian | B37: Males | C37: 39.5 | D37: 18.6 | E37: 15.5 | F37: 12.5 | G37: 7.8 | H37: 3.4 | I37: 1.4 | J37: 0.5 | K37: 58.2 | L37: 86.1 | M37: 99.1 | N37: 1740 | O37: Females | P37: 40.2 | Q37: 19.8 | R37: 17.3 | S37: 12.5 | T37: 6.7 | U37: 2.1 | V37: 1.1 | W37: 0.3 | X37: 60 | Y37: 89.7 | Z37: 100 | AA37: 2328 | AB37: All | AC37: =IF(OR(AC105=1,AC105=2),"x",ROUND(AC105/$AN37*100,1)) -> 39.9 | AD37: 19.3 | AE37: 16.5 | AF37: 12.5 | AG37: 7.2 | AH37: 2.6 | AI37: 1.2 | AJ37: 0.4 | AK37: 59.2 | AL37: 88.2 | AM37: 99.6 | AN37: 4068
A38: Polish | B38: Males | C38: 23.1 | D38: 43.1 | E38: 18.1 | F38: 7.3 | G38: 3.5 | H38: 1.6 | I38: 0.3 | J38: 1 | K38: 66.2 | L38: 91.5 | M38: 98 | N38: 1860 | O38: Females | P38: 41.2 | Q38: 38.8 | R38: 12 | S38: 4 | T38: 1.2 | U38: 0.7 | V38: 0.2 | W38: 0.5 | X38: 80 | Y38: 96.1 | Z38: 98.7 | AA38: 2088 | AB38: All | AC38: =IF(OR(AC106=1,AC106=2),"x",ROUND(AC106/$AN38*100,1)) -> 32.7 | AD38: 40.8 | AE38: 14.9 | AF38: 5.5 | AG38: 2.3 | AH38: 1.1 | AI38: 0.3 | AJ38: 0.7 | AK38: 73.5 | AL38: 93.9 | AM38: 98.4 | AN38: 3948
A39: Spanish | B39: Males | C39: 9.3 | D39: 13 | E39: 18.4 | F39: 24.3 | G39: 18.7 | H39: 9 | I39: 4.4 | J39: 2 | K39: 22.3 | L39: 65 | M39: 99 | N39: 38078 | O39: Females | P39: 13.9 | Q39: 18.3 | R39: 20.8 | S39: 22.9 | T39: 14.3 | U39: 5.9 | V39: 2.4 | W39: 1 | X39: 32.2 | Y39: 75.9 | Z39: 99.5 | AA39: 49475 | AB39: All | AC39: =IF(OR(AC107=1,AC107=2),"x",ROUND(AC107/$AN39*100,1)) -> 11.9 | AD39: 16 | AE39: 19.7 | AF39: 23.5 | AG39: 16.2 | AH39: 7.3 | AI39: 3.2 | AJ39: 1.4 | AK39: 27.9 | AL39: 71.2 | AM39: 99.3 | AN39: 87553
A40: Urdu | B40: Males | C40: 5.6 | D40: 17.9 | E40: 21.3 | F40: 20 | G40: 17.2 | H40: 9.4 | I40: 5.3 | J40: 1.6 | K40: 23.5 | L40: 64.7 | M40: 98.3 | N40: 1614 | O40: Females | P40: 14.5 | Q40: 27.2 | R40: 24.1 | S40: 17.6 | T40: 8.9 | U40: 4.2 | V40: 1.6 | W40: 1.1 | X40: 41.6 | Y40: 83.4 | Z40: 99.2 | AA40: 2497 | AB40: All | AC40: =IF(OR(AC108=1,AC108=2),"x",ROUND(AC108/$AN40*100,1)) -> 11 | AD40: 23.5 | AE40: 23 | AF40: 18.5 | AG40: 12.2 | AH40: 6.2 | AI40: 3.1 | AJ40: 1.3 | AK40: 34.5 | AL40: 76.1 | AM40: 98.8 | AN40: 4111
A41: Other Modern Languages | B41: Males | C41: 32 | D41: 26.2 | E41: 18.4 | F41: 11.3 | G41: 5.8 | H41: 2.8 | I41: 1.7 | J41: 0.6 | K41: 58.2 | L41: 87.9 | M41: 98.9 | N41: 4791 | O41: Females | P41: 36.5 | Q41: 29.8 | R41: 16.4 | S41: 8.6 | T41: 4.2 | U41: 2 | V41: 0.9 | W41: 0.6 | X41: 66.3 | Y41: 91.3 | Z41: 98.9 | AA41: 5563 | AB41: All | AC41: =IF(OR(AC109=1,AC109=2),"x",ROUND(AC109/$AN41*100,1)) -> 34.4 | AD41: 28.1 | AE41: 17.3 | AF41: 9.8 | AG41: 5 | AH41: 2.4 | AI41: 1.3 | AJ41: 0.6 | AK41: 62.5 | AL41: 89.7 | AM41: 98.9 | AN41: 10354
A42: Classical Civilisation | B42: Males | C42: 8.5 | D42: 23.7 | E42: 25.3 | F42: 20.2 | G42: 11.7 | H42: 5.5 | I42: 2.6 | J42: 1.5 | K42: 32.3 | L42: 77.8 | M42: 99.1 | N42: 2145 | O42: Females | P42: 17.4 | Q42: 27.7 | R42: 22.7 | S42: 15.7 | T42: 9.1 | U42: 4.1 | V42: 1.9 | W42: 0.8 | X42: 45.2 | Y42: 83.6 | Z42: 99.5 | AA42: 1972 | AB42: All | AC42: =IF(OR(AC110=1,AC110=2),"x",ROUND(AC110/$AN42*100,1)) -> 12.8 | AD42: 25.6 | AE42: 24 | AF42: 18.1 | AG42: 10.5 | AH42: 4.8 | AI42: 2.3 | AJ42: 1.1 | AK42: 38.5 | AL42: 80.6 | AM42: 99.3 | AN42: 4117
A43: Classical Greek | B43: Males | C43: 59 | D43: 22 | E43: 9.9 | F43: 4.5 | G43: 2.1 | H43: 0.6 | I43: 0.7 | J43: x | K43: 81 | L43: 95.5 | M43: 99.4 | N43: 705 | O43: Females | P43: 66.7 | Q43: 19.9 | R43: 7.1 | S43: 2.1 | T43: 1.3 | U43: 1.1 | V43: 1.1 | W43: x | X43: 86.5 | Y43: 95.7 | Z43: 99.4 | AA43: 468 | AB43: All | AC43: =IF(OR(AC111=1,AC111=2),"x",ROUND(AC111/$AN43*100,1)) -> 62.1 | AD43: 21.1 | AE43: 8.8 | AF43: 3.6 | AG43: 1.8 | AH43: 0.8 | AI43: 0.9 | AJ43: 0.4 | AK43: 83.2 | AL43: 95.6 | AM43: 99.4 | AN43: 1173
A44: Latin | B44: Males | C44: 40.6 | D44: 27.6 | E44: 15 | F44: 8.3 | G44: 4.6 | H44: 2 | I44: 1 | J44: 0.6 | K44: 68.2 | L44: 91.5 | M44: 99.6 | N44: 4302 | O44: Females | P44: 46.6 | Q44: 27.3 | R44: 12.5 | S44: 7.6 | T44: 3.4 | U44: 1.5 | V44: 0.7 | W44: 0.2 | X44: 73.9 | Y44: 94 | Z44: 99.7 | AA44: 4566 | AB44: All | AC44: =IF(OR(AC112=1,AC112=2),"x",ROUND(AC112/$AN44*100,1)) -> 43.7 | AD44: 27.4 | AE44: 13.7 | AF44: 7.9 | AG44: 4 | AH44: 1.7 | AI44: 0.8 | AJ44: 0.4 | AK44: 71.1 | AL44: 92.8 | AM44: 99.7 | AN44: 8868
A45: Applied Art and Design | B45: Males | C45: 1.4 | D45: 5.2 | E45: 16.9 | F45: 37.3 | G45: 21 | H45: 8.7 | I45: 5.2 | J45: 2.5 | K45: 6.5 | L45: 60.8 | M45: 98.1 | N45: 367 | O45: Females | P45: 3.1 | Q45: 14.7 | R45: 27.4 | S45: 33.9 | T45: 13.5 | U45: 4.3 | V45: 1.6 | W45: 0 | X45: 17.8 | Y45: 79.1 | Z45: 98.6 | AA45: 489 | AB45: All | AC45: =IF(OR(AC113=1,AC113=2),"x",ROUND(AC113/$AN45*100,1)) -> 2.3 | AD45: 10.6 | AE45: 22.9 | AF45: 35.4 | AG45: 16.7 | AH45: 6.2 | AI45: 3.2 | AJ45: 1.1 | AK45: 13 | AL45: 71.3 | AM45: 98.4 | AN45: 856
A46: Art and Design | B46: Males | C46: 4.7 | D46: 8 | E46: 18.1 | F46: 32.6 | G46: 17.2 | H46: 9.8 | I46: 5.3 | J46: 2.5 | K46: 12.7 | L46: 63.5 | M46: 98.2 | N46: 58109 | O46: Females | P46: 11.2 | Q46: 16.7 | R46: 27.1 | S46: 27.7 | T46: 10 | U46: 4.1 | V46: 1.8 | W46: 0.7 | X46: 27.9 | Y46: 82.7 | Z46: 99.3 | AA46: 112969 | AB46: All | AC46: =IF(OR(AC114=1,AC114=2),"x",ROUND(AC114/$AN46*100,1)) -> 9 | AD46: 13.7 | AE46: 24 | AF46: 29.4 | AG46: 12.5 | AH46: 6 | AI46: 3 | AJ46: 1.3 | AK46: 22.7 | AL46: 76.2 | AM46: 98.9 | AN46: 171078
A47: Communication Studies | B47: Males | C47: 2 | D47: 8.1 | E47: 16.5 | F47: 24.5 | G47: 19.7 | H47: 13 | I47: 8.1 | J47: 4.4 | K47: 10.1 | L47: 51.1 | M47: 96.2 | N47: 4785 | O47: Females | P47: 8.2 | Q47: 16.4 | R47: 23 | S47: 21.6 | T47: 14.1 | U47: 7.7 | V47: 4.7 | W47: 2.4 | X47: 24.7 | Y47: 69.3 | Z47: 98.2 | AA47: 5058 | AB47: All | AC47: =IF(OR(AC115=1,AC115=2),"x",ROUND(AC115/$AN47*100,1)) -> 5.2 | AD47: 12.4 | AE47: 19.9 | AF47: 23 | AG47: 16.8 | AH47: 10.3 | AI47: 6.3 | AJ47: 3.4 | AK47: 17.6 | AL47: 60.4 | AM47: 97.2 | AN47: 9843
A48: Dance | B48: Males | C48: 4.9 | D48: 18.2 | E48: 20.1 | F48: 19.5 | G48: 16.9 | H48: 12.3 | I48: 4.9 | J48: 2.3 | K48: 23.2 | L48: 62.8 | M48: 99.3 | N48: 811 | O48: Females | P48: 4.6 | Q48: 16.4 | R48: 21.1 | S48: 24.7 | T48: 18.2 | U48: 9.1 | V48: 3.8 | W48: 1.4 | X48: 21 | Y48: 66.8 | Z48: 99.4 | AA48: 11136 | AB48: All | AC48: 4.6 | AD48: 16.5 | AE48: 21.1 | AF48: 24.4 | AG48: 18.1 | AH48: 9.3 | AI48: 3.9 | AJ48: 1.5 | AK48: 21.1 | AL48: 66.5 | AM48: 99.4 | AN48: 11947
A49: Drama | B49: Males | C49: 3.5 | D49: 13.3 | E49: 22.7 | F49: 25.9 | G49: 18.1 | H49: 9.4 | I49: 4.3 | J49: 1.8 | K49: 16.8 | L49: 65.4 | M49: 99 | N49: =N117 -> 27225 | O49: Females | P49: 6.4 | Q49: 19.9 | R49: 27.5 | S49: 23.7 | T49: 13.2 | U49: 5.6 | V49: 2.3 | W49: 0.9 | X49: 26.3 | Y49: 77.5 | Z49: 99.4 | AA49: =AA117 -> 43759 | AB49: All | AC49: =IF(OR(AC117=1,AC117=2),"x",ROUND(AC117/$AN49*100,1)) -> 5.3 | AD49: 17.4 | AE49: 25.6 | AF49: 24.5 | AG49: 15.1 | AH49: 7 | AI49: 3 | AJ49: 1.2 | AK49: 22.7 | AL49: 72.9 | AM49: 99.2 | AN49: =AN117 -> 70984
A50: English Literature | B50: Males | C50: 3.7 | D50: 13.1 | E50: 26.1 | F50: 27.5 | G50: 17 | H50: 7.5 | I50: 3 | J50: 1.1 | K50: 16.8 | L50: 70.4 | M50: 98.9 | N50: 193518 | O50: Females | P50: 7.6 | Q50: 21.6 | R50: 31.7 | S50: 23.2 | T50: 10.3 | U50: 3.5 | V50: 1.2 | W50: 0.4 | X50: 29.2 | Y50: 84 | Z50: 99.4 | AA50: 214587 | AB50: All | AC50: =IF(OR(AC118=1,AC118=2),"x",ROUND(AC118/$AN50*100,1)) -> 5.7 | AD50: 17.6 | AE50: 29 | AF50: 25.2 | AG50: 13.4 | AH50: 5.4 | AI50: 2 | AJ50: 0.7 | AK50: 23.3 | AL50: 77.5 | AM50: 99.2 | AN50: 408105
A51: English Studies | B51: Males | C51: 0 | D51: 1.6 | E51: 9.4 | F51: 26.5 | G51: 22.7 | H51: 19.1 | I51: 11.9 | J51: 6.1 | K51: 1.6 | L51: 37.5 | M51: 97.3 | N51: 445 | O51: Females | P51: 0 | Q51: 3.6 | R51: 16.9 | S51: 30.8 | T51: 17.8 | U51: 10.9 | V51: 11.8 | W51: 4.7 | X51: 3.6 | Y51: 51.2 | Z51: 96.4 | AA51: 338 | AB51: All | AC51: =IF(OR(AC119=1,AC119=2),"x",ROUND(AC119/$AN51*100,1)) -> 0 | AD51: 2.4 | AE51: 12.6 | AF51: 28.4 | AG51: 20.6 | AH51: 15.6 | AI51: 11.9 | AJ51: 5.5 | AK51: 2.4 | AL51: 43.4 | AM51: 96.9 | AN51: 783
A52: General Studies | B52: Males | C52: 1.6 | D52: 6 | E52: 11.4 | F52: 16 | G52: 18.1 | H52: 15.2 | I52: 12.5 | J52: 9.9 | K52: 7.6 | L52: 34.9 | M52: 90.6 | N52: 4595 | O52: Females | P52: 2.7 | Q52: 9.5 | R52: 14.1 | S52: 19.5 | T52: 20.6 | U52: 14.3 | V52: 9.3 | W52: 4.6 | X52: 12.1 | Y52: 45.7 | Z52: 94.5 | AA52: 4421 | AB52: All | AC52: =IF(OR(AC120=1,AC120=2),"x",ROUND(AC120/$AN52*100,1)) -> 2.1 | AD52: 7.7 | AE52: 12.7 | AF52: 17.7 | AG52: 19.3 | AH52: 14.8 | AI52: 10.9 | AJ52: 7.3 | AK52: 9.8 | AL52: 40.2 | AM52: 92.5 | AN52: 9016
A53: Health and Social Care | B53: Males | C53: x | D53: 3.2 | E53: 8.2 | F53: 14.4 | G53: 21.7 | H53: 17.5 | I53: 11.6 | J53: 10.7 | K53: 3.5 | L53: 26.2 | M53: 87.7 | N53: 741 | O53: Females | P53: x | Q53: 8.8 | R53: 19.1 | S53: 24.2 | T53: 18.6 | U53: 11.8 | V53: 7.7 | W53: 4.1 | X53: 11.3 | Y53: 54.7 | Z53: 96.8 | AA53: 12910 | AB53: All | AC53: =IF(OR(AC121=1,AC121=2),"x",ROUND(AC121/$AN53*100,1)) -> 2.4 | AD53: 8.5 | AE53: 18.5 | AF53: 23.7 | AG53: 18.7 | AH53: 12.1 | AI53: 7.9 | AJ53: 4.5 | AK53: 10.9 | AL53: 53.1 | AM53: 96.3 | AN53: 13651
A54: Hospitality and Catering | B54: Males | C54: x | D54: 4.8 | E54: 15.7 | F54: 24.9 | G54: 28.8 | H54: 15.3 | I54: 8.1 | J54: 1.1 | K54: 5 | L54: 45.6 | M54: 98.9 | N54: 880 | O54: Females | P54: x | Q54: 13.8 | R54: 25.1 | S54: 24.8 | T54: 16.6 | U54: 10.5 | V54: 3.8 | W54: 0.5 | X54: 17 | Y54: 66.9 | Z54: 98.5 | AA54: 1358 | AB54: All | AC54: =IF(OR(AC122=1,AC122=2),"x",ROUND(AC122/$AN54*100,1)) -> 2 | AD54: 10.3 | AE54: 21.4 | AF54: 24.8 | AG54: 21.4 | AH54: 12.4 | AI54: 5.5 | AJ54: 0.8 | AK54: 12.3 | AL54: 58.5 | AM54: 98.6 | AN54: 2238
A55: Leisure and Tourism | B55: Males | C55: 0.3 | D55: 2.2 | E55: 6.2 | F55: 13.6 | G55: 16.6 | H55: 18.9 | I55: 14.4 | J55: 12.7 | K55: 2.5 | L55: 22.3 | M55: 85 | N55: 3241 | O55: Females | P55: 1.7 | Q55: 8.4 | R55: 13.7 | S55: 18.2 | T55: 18.2 | U55: 13.7 | V55: 10.3 | W55: 8.3 | X55: 10.1 | Y55: 42.1 | Z55: 92.7 | AA55: 3185 | AB55: All | AC55: =IF(OR(AC123=1,AC123=2),"x",ROUND(AC123/$AN55*100,1)) -> 1 | AD55: 5.3 | AE55: 9.9 | AF55: 15.9 | AG55: 17.4 | AH55: 16.3 | AI55: 12.4 | AJ55: 10.5 | AK55: 6.3 | AL55: 32.1 | AM55: 88.8 | AN55: 6426
A56: Manufacturing | B56: Males | C56: 0 | D56: x | E56: 10.7 | F56: 15.6 | G56: x | H56: 22.1 | I56: 15.6 | J56: 8.2 | K56: x | L56: 27.9 | M56: 98.4 | N56: 122 | O56: Females | P56: 0 | Q56: x | R56: 21.4 | S56: 42.9 | T56: x | U56: 0 | V56: 21.4 | W56: 0 | X56: x | Y56: 71.4 | Z56: 100 | AA56: 14 | AB56: All | AC56: =IF(OR(AC124=1,AC124=2),"x",ROUND(AC124/$AN56*100,1)) -> 0 | AD56: 2.2 | AE56: 11.8 | AF56: 18.4 | AG56: 22.8 | AH56: 19.9 | AI56: 16.2 | AJ56: 7.4 | AK56: 2.2 | AL56: 32.4 | AM56: 98.5 | AN56: 136
A57: Media/Film/TV | B57: Males | C57: 1.5 | D57: 7.3 | E57: 19.1 | F57: 27.1 | G57: 21 | H57: 12 | I57: 6.8 | J57: 3 | K57: 8.8 | L57: 55 | M57: 97.8 | N57: 26290 | O57: Females | P57: 5 | Q57: 18.2 | R57: 27.6 | S57: 25 | T57: 13.6 | U57: 5.8 | V57: 2.6 | W57: 1.3 | X57: 23.2 | Y57: 75.8 | Z57: 99.1 | AA57: 25038 | AB57: All | AC57: =IF(OR(AC125=1,AC125=2),"x",ROUND(AC125/$AN57*100,1)) -> 3.2 | AD57: 12.6 | AE57: 23.3 | AF57: 26.1 | AG57: 17.4 | AH57: 9 | AI57: 4.7 | AJ57: 2.2 | AK57: 15.8 | AL57: 65.2 | AM57: 98.4 | AN57: 51328
A58: Music | B58: Males | C58: 8.6 | D58: 20.5 | E58: 23.6 | F58: 19.5 | G58: 12.8 | H58: 7.8 | I58: 3.6 | J58: 2 | K58: 29.1 | L58: 72.3 | M58: 98.5 | N58: 20902 | O58: Females | P58: 9.3 | Q58: 23.7 | R58: 26.7 | S58: 19.1 | T58: 11.1 | U58: 5.6 | V58: 2.4 | W58: 1.2 | X58: 33.1 | Y58: 78.9 | Z58: 99.2 | AA58: 21544 | AB58: All | AC58: =IF(OR(AC126=1,AC126=2),"x",ROUND(AC126/$AN58*100,1)) -> 9 | AD58: 22.2 | AE58: 25.2 | AF58: 19.3 | AG58: 11.9 | AH58: 6.7 | AI58: 3 | AJ58: 1.6 | AK58: 31.1 | AL58: 75.6 | AM58: 98.8 | AN58: 42446
A59: Performing Arts | B59: Males | C59: 3.7 | D59: 6.8 | E59: 14 | F59: 23.5 | G59: 17.3 | H59: 14.5 | I59: 12 | J59: 5.1 | K59: 10.5 | L59: 47.9 | M59: 96.9 | N59: 1362 | O59: Females | P59: 9.4 | Q59: 11.6 | R59: 21.7 | S59: 24.6 | T59: 17 | U59: 8.3 | V59: 4.1 | W59: 2 | X59: 21 | Y59: 67.3 | Z59: 98.7 | AA59: 3142 | AB59: All | AC59: =IF(OR(AC127=1,AC127=2),"x",ROUND(AC127/$AN59*100,1)) -> 7.7 | AD59: 10.1 | AE59: 19.4 | AF59: 24.2 | AG59: 17.1 | AH59: 10.2 | AI59: 6.5 | AJ59: 3 | AK59: 17.8 | AL59: 61.4 | AM59: 98.2 | AN59: 4504
A60: Physical Education | B60: Males | C60: 2.8 | D60: 13.9 | E60: 24.8 | F60: 27 | G60: 18.3 | H60: 9.1 | I60: 3 | J60: 0.7 | K60: 16.7 | L60: 68.5 | M60: 99.7 | N60: 67810 | O60: Females | P60: 6.2 | Q60: 18.8 | R60: 24.4 | S60: 22.6 | T60: 15.8 | U60: 8.1 | V60: 3 | W60: 0.8 | X60: 25 | Y60: 72 | Z60: 99.6 | AA60: 34784 | AB60: All | AC60: =IF(OR(AC128=1,AC128=2),"x",ROUND(AC128/$AN60*100,1)) -> 3.9 | AD60: 15.6 | AE60: 24.7 | AF60: 25.5 | AG60: 17.5 | AH60: 8.8 | AI60: 3 | AJ60: 0.7 | AK60: 19.5 | AL60: 69.7 | AM60: 99.7 | AN60: 102594
A61: Religious Studies | B61: Males | C61: 7 | D61: 15.3 | E61: 21.8 | F61: 20.3 | G61: 13.4 | H61: 9.1 | I61: 5.9 | J61: 3.9 | K61: 22.2 | L61: 64.4 | M61: 96.7 | N61: 120566 | O61: Females | P61: 14.8 | Q61: 22.8 | R61: 23.4 | S61: 16.8 | T61: 9.6 | U61: 5.8 | V61: 3.3 | W61: 1.9 | X61: 37.6 | Y61: 77.9 | Z61: 98.4 | AA61: 138793 | AB61: All | AC61: =IF(OR(AC129=1,AC129=2),"x",ROUND(AC129/$AN61*100,1)) -> 11.2 | AD61: 19.3 | AE61: 22.7 | AF61: 18.5 | AG61: 11.4 | AH61: 7.3 | AI61: 4.5 | AJ61: 2.9 | AK61: 30.4 | AL61: 71.6 | AM61: 97.6 | AN61: 259359
A62: Statistics | B62: Males | C62: 4.8 | D62: 16.5 | E62: 22.7 | F62: 27.6 | G62: 15.4 | H62: 5.9 | I62: 2.8 | J62: 1.7 | K62: 21.3 | L62: 71.6 | M62: 97.4 | N62: 26152 | O62: Females | P62: 5.3 | Q62: 17.7 | R62: 24.5 | S62: 29.4 | T62: 12.9 | U62: 4.8 | V62: 2.2 | W62: 1.1 | X62: 23.1 | Y62: 77 | Z62: 98 | AA62: 22902 | AB62: All | AC62: =IF(OR(AC130=1,AC130=2),"x",ROUND(AC130/$AN62*100,1)) -> 5 | AD62: 17.1 | AE62: 23.5 | AF62: 28.4 | AG62: 14.2 | AH62: 5.4 | AI62: 2.5 | AJ62: 1.4 | AK62: 22.1 | AL62: 74.1 | AM62: 97.7 | AN62: 49054
A63: Vocational Studies | B63: Males | C63: 1 | D63: 5.8 | E63: 16.4 | F63: 27.3 | G63: 24.5 | H63: 14.1 | I63: 6.5 | J63: 2.6 | K63: 6.8 | L63: 50.5 | M63: 98.3 | N63: 19028 | O63: Females | P63: 3.4 | Q63: 13.6 | R63: 24.2 | S63: 26.3 | T63: 17.9 | U63: 8.8 | V63: 3.6 | W63: 1.3 | X63: 17 | Y63: 67.5 | Z63: 99.2 | AA63: 21043 | AB63: All | AC63: =IF(OR(AC131=1,AC131=2),"x",ROUND(AC131/$AN63*100,1)) -> 2.3 | AD63: 9.9 | AE63: 20.5 | AF63: 26.7 | AG63: 21.1 | AH63: 11.3 | AI63: 5 | AJ63: 2 | AK63: 12.2 | AL63: 59.4 | AM63: 98.7 | AN63: 40071
A64: All Subjects | B64: Males | C64: 5.6 | D64: 12.8 | E64: 21.1 | F64: 26.8 | G64: 16.3 | H64: 8.4 | I64: 4.5 | J64: 2.4 | K64: 18.4 | L64: 66.3 | M64: 97.9 | N64: 2284001 | O64: Females | P64: 8.6 | Q64: 17.4 | R64: 24.2 | S64: 25.2 | T64: 12.9 | U64: 5.9 | V64: 2.9 | W64: 1.5 | X64: 25.9 | Y64: 75.4 | Z64: 98.6 | AA64: 2372286 | AB64: All | AC64: =IF(OR(AC132=1,AC132=2),"x",ROUND(AC132/$AN64*100,1)) -> 7.1 | AD64: 15.1 | AE64: 22.7 | AF64: 26 | AG64: 14.6 | AH64: 7.1 | AI64: 3.7 | AJ64: 1.9 | AK64: 22.3 | AL64: 70.9 | AM64: 98.3 | AN64: 4656287
A69: DISC3B
A70: Subject | B70: (No column name) | C70: * | D70: A | E70: B | F70: C | G70: D | H70: E | I70: F | J70: G | K70: AstarA | L70: AstarC | M70: AstarG | N70: Total | O70: (No column name) | P70: * | Q70: A | R70: B | S70: C | T70: D | U70: E | V70: F | W70: G | X70: AstarA | Y70: AstarC | Z70: AstarG | AA70: Total | AB70: (No column name) | AC70: * | AD70: A | AE70: B | AF70: C | AG70: D | AH70: E | AI70: F | AJ70: G | AK70: AstarA | AL70: AstarC | AM70: AstarG | AN70: Total
A71: English | B71: Males | C71: 6112 | D71: 21803 | E71: 48427 | F71: 72530 | G71: 45407 | H71: 20850 | I71: 8737 | J71: 3385 | K71: 27915 | L71: 148872 | M71: 227251 | N71: 229932 | O71: Females | P71: 13897 | Q71: 39858 | R71: 65906 | S71: 67352 | T71: 30373 | U71: 10355 | V71: 3583 | W71: 1376 | X71: 53755 | Y71: 187013 | Z71: 232700 | AA71: 234257 | AB71: All | AC71: 20009 | AD71: 61661 | AE71: 114333 | AF71: 139882 | AG71: 75780 | AH71: 31205 | AI71: 12320 | AJ71: 4761 | AK71: 81670 | AL71: 335885 | AM71: 459951 | AN71: 464189
A72: Mathematics | B72: Males | C72: 21690 | D72: 34860 | E72: 56181 | F72: 91311 | G72: 37250 | H72: 18835 | I72: 14628 | J72: 11817 | K72: 56550 | L72: 204042 | M72: 286572 | N72: 303147 | O72: Females | P72: 18973 | Q72: 34730 | R72: 57214 | S72: 90975 | T72: 36556 | U72: 17371 | V72: 13072 | W72: 10290 | X72: 53703 | Y72: 201892 | Z72: 279181 | AA72: 293691 | AB72: All | AC72: 40663 | AD72: 69590 | AE72: 113395 | AF72: 182286 | AG72: 73806 | AH72: 36206 | AI72: 27700 | AJ72: 22107 | AK72: 110253 | AL72: 405934 | AM72: 565753 | AN72: 596838
A73: Core Science | B73: Males | C73: 1804 | D73: 10172 | E73: 29826 | F73: 61059 | G73: 34771 | H73: 19561 | I73: 10300 | J73: 4337 | K73: 11976 | L73: 102861 | M73: 171830 | N73: 175051 | O73: Females | P73: 3038 | Q73: 15101 | R73: 36589 | S73: 61211 | T73: 31193 | U73: 16599 | V73: 8232 | W73: 3232 | X73: 18139 | Y73: 115939 | Z73: 175195 | AA73: 177855 | AB73: All | AC73: 4842 | AD73: 25273 | AE73: 66415 | AF73: 122270 | AG73: 65964 | AH73: 36160 | AI73: 18532 | AJ73: 7569 | AK73: 30115 | AL73: 218800 | AM73: 347025 | AN73: 352906
A74: Additional Science | B74: Males | C74: 2566 | D74: 10592 | E74: 26870 | F74: 42608 | G74: 28740 | H74: 11974 | I74: 5139 | J74: 2000 | K74: 13158 | L74: 82636 | M74: 130489 | N74: 131575 | O74: Females | P74: 3705 | Q74: 14289 | R74: 32714 | S74: 45164 | T74: 27147 | U74: 10249 | V74: 4027 | W74: 1468 | X74: 17994 | Y74: 95872 | Z74: 138763 | AA74: 139627 | AB74: All | AC74: 6271 | AD74: 24881 | AE74: 59584 | AF74: 87772 | AG74: 55887 | AH74: 22223 | AI74: 9166 | AJ74: 3468 | AK74: 31152 | AL74: 178508 | AM74: 269252 | AN74: 271202
A75: Further Additional Science | B75: Males | C75: 1065 | D75: 2192 | E75: 2873 | F75: 2660 | G75: 1297 | H75: 383 | I75: 81 | J75: 26 | K75: 3257 | L75: 8790 | M75: 10577 | N75: 10607 | O75: Females | P75: 1208 | Q75: 2342 | R75: 2920 | S75: 2468 | T75: 1103 | U75: 289 | V75: 55 | W75: 24 | X75: 3550 | Y75: 8938 | Z75: 10409 | AA75: 10429 | AB75: All | AC75: 2273 | AD75: 4534 | AE75: 5793 | AF75: 5128 | AG75: 2400 | AH75: 672 | AI75: 136 | AJ75: 50 | AK75: 6807 | AL75: 17728 | AM75: 20986 | AN75: 21036
A76: Additional Applied Science | B76: Males | C76: 0 | D76: 59 | E76: 344 | F76: 1324 | G76: 1940 | H76: 1554 | I76: 858 | J76: 339 | K76: 59 | L76: 1727 | M76: 6418 | N76: 6616 | O76: Females | P76: 10 | Q76: 81 | R76: 653 | S76: 1768 | T76: 2053 | U76: 1236 | V76: 570 | W76: 197 | X76: 91 | Y76: 2512 | Z76: 6568 | AA76: 6697 | AB76: All | AC76: 10 | AD76: 140 | AE76: 997 | AF76: 3092 | AG76: 3993 | AH76: 2790 | AI76: 1428 | AJ76: 536 | AK76: 150 | AL76: 4239 | AM76: 12986 | AN76: 13313
A77: Physics | B77: Males | C77: 9460 | D77: 17797 | E77: 19025 | F77: 13347 | G77: 4401 | H77: 802 | I77: 187 | J77: 65 | K77: 27257 | L77: 59629 | M77: 65084 | N77: 65148 | O77: Females | P77: 10091 | Q77: 17292 | R77: 18378 | S77: 12771 | T77: 4080 | U77: 749 | V77: 132 | W77: 48 | X77: 27383 | Y77: 58532 | Z77: 63541 | AA77: 63604 | AB77: All | AC77: 19551 | AD77: 35089 | AE77: 37403 | AF77: 26118 | AG77: 8481 | AH77: 1551 | AI77: 319 | AJ77: 113 | AK77: 54640 | AL77: 118161 | AM77: 128625 | AN77: 128752
A78: Chemistry | B78: Males | C78: 8614 | D78: 17537 | E78: 19173 | F78: 13913 | G78: 5070 | H78: 1100 | I78: 253 | J78: 86 | K78: 26151 | L78: 59237 | M78: 65746 | N78: 65818 | O78: Females | P78: 10693 | Q78: 18734 | R78: 18121 | S78: 11415 | T78: 3781 | U78: 793 | V78: 178 | W78: 51 | X78: 29427 | Y78: 58963 | Z78: 63766 | AA78: 63841 | AB78: All | AC78: 19307 | AD78: 36271 | AE78: 37294 | AF78: 25328 | AG78: 8851 | AH78: 1893 | AI78: 431 | AJ78: 137 | AK78: 55578 | AL78: 118200 | AM78: 129512 | AN78: 129659
A79: Biological Sciences | B79: Males | C79: 7521 | D79: 17709 | E79: 20331 | F79: 14679 | G79: 5053 | H79: 1152 | I79: 426 | J79: 186 | K79: 25230 | L79: 60240 | M79: 67057 | N79: 67270 | O79: Females | P79: 10953 | Q79: 19676 | R79: 18814 | S79: 11254 | T79: 3608 | U79: 792 | V79: 319 | W79: 137 | X79: 30629 | Y79: 60697 | Z79: 65553 | AA79: 65698 | AB79: All | AC79: 18474 | AD79: 37385 | AE79: 39145 | AF79: 25933 | AG79: 8661 | AH79: 1944 | AI79: 745 | AJ79: 323 | AK79: 55859 | AL79: 120937 | AM79: 132610 | AN79: 132968
A80: Computer Science | B80: Males | C80: 812 | D80: 2229 | E80: 2866 | F80: 2738 | G80: 1885 | H80: 1185 | I80: 728 | J80: 462 | K80: 3041 | L80: 8645 | M80: 12905 | N80: 13428 | O80: Females | P80: 197 | Q80: 460 | R80: 516 | S80: 503 | T80: 322 | U80: 176 | V80: 88 | W80: 40 | X80: 657 | Y80: 1676 | Z80: 2302 | AA80: 2374 | AB80: All | AC80: 1009 | AD80: 2689 | AE80: 3382 | AF80: 3241 | AG80: 2207 | AH80: 1361 | AI80: 816 | AJ80: 502 | AK80: 3698 | AL80: 10321 | AM80: 15207 | AN80: 15802
A81: Other Sciences | B81: Males | C81: 437 | D81: 614 | E81: 689 | F81: 714 | G81: 655 | H81: 502 | I81: 354 | J81: 206 | K81: 1051 | L81: 2454 | M81: 4171 | N81: 4288 | O81: Females | P81: 113 | Q81: 248 | R81: 464 | S81: 557 | T81: 446 | U81: 329 | V81: 212 | W81: 137 | X81: 361 | Y81: 1382 | Z81: 2506 | AA81: 2580 | AB81: All | AC81: 550 | AD81: 862 | AE81: 1153 | AF81: 1271 | AG81: 1101 | AH81: 831 | AI81: 566 | AJ81: 343 | AK81: 1412 | AL81: 3836 | AM81: 6677 | AN81: 6868
A82: D & T: Electronic Products | B82: Males | C82: 534 | D82: 1116 | E82: 1648 | F82: 1611 | G82: 1141 | H82: 762 | I82: 469 | J82: 261 | K82: 1650 | L82: 4909 | M82: 7542 | N82: 7692 | O82: Females | P82: 107 | Q82: 164 | R82: 154 | S82: 83 | T82: 60 | U82: 37 | V82: 10 | W82: 8 | X82: 271 | Y82: 508 | Z82: 623 | AA82: 628 | AB82: All | AC82: 641 | AD82: 1280 | AE82: 1802 | AF82: 1694 | AG82: 1201 | AH82: 799 | AI82: 479 | AJ82: 269 | AK82: 1921 | AL82: 5417 | AM82: 8165 | AN82: 8320
A83: D & T: Food Technology | B83: Males | C83: 226 | D83: 874 | E83: 2106 | F83: 3637 | G83: 3468 | H83: 2347 | I83: 1364 | J83: 613 | K83: 1100 | L83: 6843 | M83: 14635 | N83: 14951 | O83: Females | P83: 1850 | Q83: 4321 | R83: 6073 | S83: 5941 | T83: 3827 | U83: 2044 | V83: 980 | W83: 384 | X83: 6171 | Y83: 18185 | Z83: 25420 | AA83: 25639 | AB83: All | AC83: 2076 | AD83: 5195 | AE83: 8179 | AF83: 9578 | AG83: 7295 | AH83: 4391 | AI83: 2344 | AJ83: 997 | AK83: 7271 | AL83: 25028 | AM83: 40055 | AN83: 40590
A84: D & T: Graphic Products | B84: Males | C84: 583 | D84: 1795 | E84: 3515 | F84: 4765 | G84: 4157 | H84: 2699 | I84: 1728 | J84: 1040 | K84: 2378 | L84: 10658 | M84: 20282 | N84: 20953 | O84: Females | P84: 1012 | Q84: 2395 | R84: 3037 | S84: 2750 | T84: 1815 | U84: 971 | V84: 523 | W84: 266 | X84: 3407 | Y84: 9194 | Z84: 12769 | AA84: 12921 | AB84: All | AC84: 1595 | AD84: 4190 | AE84: 6552 | AF84: 7515 | AG84: 5972 | AH84: 3670 | AI84: 2251 | AJ84: 1306 | AK84: 5785 | AL84: 19852 | AM84: 33051 | AN84: 33874
A85: D & T: Resistant Materials | B85: Males | C85: 1296 | D85: 3973 | E85: 8216 | F85: 11007 | G85: 8864 | H85: 5728 | I85: 3405 | J85: 1648 | K85: 5269 | L85: 24492 | M85: 44137 | N85: 45024 | O85: Females | P85: 676 | Q85: 1431 | R85: 1851 | S85: 1644 | T85: 1072 | U85: 569 | V85: 287 | W85: 160 | X85: 2107 | Y85: 5602 | Z85: 7690 | AA85: 7760 | AB85: All | AC85: 1972 | AD85: 5404 | AE85: 10067 | AF85: 12651 | AG85: 9936 | AH85: 6297 | AI85: 3692 | AJ85: 1808 | AK85: 7376 | AL85: 30094 | AM85: 51827 | AN85: 52784
A86: D & T: Systems & Control | B86: Males | C86: 251 | D86: 408 | E86: 631 | F86: 681 | G86: 512 | H86: 294 | I86: 185 | J86: 87 | K86: 659 | L86: 1971 | M86: 3049 | N86: 3091 | O86: Females | P86: 7 | Q86: 30 | R86: 29 | S86: 34 | T86: 31 | U86: 10 | V86: 6 | W86: 1 | X86: 37 | Y86: 100 | Z86: 148 | AA86: 150 | AB86: All | AC86: 258 | AD86: 438 | AE86: 660 | AF86: 715 | AG86: 543 | AH86: 304 | AI86: 191 | AJ86: 88 | AK86: 696 | AL86: 2071 | AM86: 3197 | AN86: 3241
A87: D & T: Textiles Technology | B87: Males | C87: 24 | D87: 33 | E87: 79 | F87: 162 | G87: 164 | H87: 144 | I87: 120 | J87: 48 | K87: 57 | L87: 298 | M87: 774 | N87: 820 | O87: Females | P87: 2475 | Q87: 4243 | R87: 5695 | S87: 5581 | T87: 3456 | U87: 1854 | V87: 850 | W87: 390 | X87: 6718 | Y87: 17994 | Z87: 24544 | AA87: 24773 | AB87: All | AC87: 2499 | AD87: 4276 | AE87: 5774 | AF87: 5743 | AG87: 3620 | AH87: 1998 | AI87: 970 | AJ87: 438 | AK87: 6775 | AL87: 18292 | AM87: 25318 | AN87: 25593
A88: Other Design and Technology | B88: Males | C88: 740 | D88: 2066 | E88: 4417 | F88: 6349 | G88: 5320 | H88: 3460 | I88: 2095 | J88: 1006 | K88: 2806 | L88: 13572 | M88: 25453 | N88: 26092 | O88: Females | P88: 977 | Q88: 1970 | R88: 2531 | S88: 2283 | T88: 1456 | U88: 805 | V88: 417 | W88: 215 | X88: 2947 | Y88: 7761 | Z88: 10654 | AA88: 10761 | AB88: All | AC88: 1717 | AD88: 4036 | AE88: 6948 | AF88: 8632 | AG88: 6776 | AH88: 4265 | AI88: 2512 | AJ88: 1221 | AK88: 5753 | AL88: 21333 | AM88: 36107 | AN88: 36853
A89: Applied Engineering | B89: Males | C89: 40 | D89: 152 | E89: 438 | F89: 846 | G89: 854 | H89: 678 | I89: 399 | J89: 242 | K89: 192 | L89: 1476 | M89: 3649 | N89: 3863 | O89: Females | P89: 2 | Q89: 23 | R89: 49 | S89: 52 | T89: 49 | U89: 34 | V89: 11 | W89: 7 | X89: 25 | Y89: 126 | Z89: 227 | AA89: 228 | AB89: All | AC89: 42 | AD89: 175 | AE89: 487 | AF89: 898 | AG89: 903 | AH89: 712 | AI89: 410 | AJ89: 249 | AK89: 217 | AL89: 1602 | AM89: 3876 | AN89: 4091
A90: Information Technology | B90: Males | C90: 2056 | D90: 6699 | E90: 10596 | F90: 10960 | G90: 6726 | H90: 3751 | I90: 2609 | J90: 1856 | K90: 8755 | L90: 30311 | M90: 45253 | N90: 46552 | O90: Females | P90: 2660 | Q90: 6643 | R90: 8419 | S90: 7896 | T90: 4330 | U90: 2323 | V90: 1359 | W90: 953 | X90: 9303 | Y90: 25618 | Z90: 34583 | AA90: 35324 | AB90: All | AC90: 4716 | AD90: 13342 | AE90: 19015 | AF90: 18856 | AG90: 11056 | AH90: 6074 | AI90: 3968 | AJ90: 2809 | AK90: 18058 | AL90: 55929 | AM90: 79836 | AN90: 81876
A91: Business Studies | B91: Males | C91: 1336 | D91: 5989 | E91: 10422 | F91: 10474 | G91: 7105 | H91: 4041 | I91: 2332 | J91: 1303 | K91: 7325 | L91: 28221 | M91: 43002 | N91: 43774 | O91: Females | P91: 1372 | Q91: 5336 | R91: 7821 | S91: 6971 | T91: 4253 | U91: 2392 | V91: 1320 | W91: 684 | X91: 6708 | Y91: 21500 | Z91: 30149 | AA91: 30552 | AB91: All | AC91: 2708 | AD91: 11325 | AE91: 18243 | AF91: 17445 | AG91: 11358 | AH91: 6433 | AI91: 3652 | AJ91: 1987 | AK91: 14033 | AL91: 49721 | AM91: 73151 | AN91: 74326
A92: Applied Business | B92: Males | C92: 89 | D92: 442 | E92: 908 | F92: 1138 | G92: 816 | H92: 581 | I92: 360 | J92: 237 | K92: 531 | L92: 2577 | M92: 4571 | N92: 4852 | O92: Females | P92: 116 | Q92: 535 | R92: 742 | S92: 640 | T92: 443 | U92: 301 | V92: 174 | W92: 114 | X92: 651 | Y92: 2033 | Z92: 3065 | AA92: 3185 | AB92: All | AC92: 205 | AD92: 977 | AE92: 1650 | AF92: 1778 | AG92: 1259 | AH92: 882 | AI92: 534 | AJ92: 351 | AK92: 1182 | AL92: 4610 | AM92: 7636 | AN92: 8037
A93: Home Economics | B93: Males | C93: 21 | D93: 145 | E93: 471 | F93: 832 | G93: 814 | H93: 639 | I93: 393 | J93: 183 | K93: 166 | L93: 1469 | M93: 3498 | N93: 3594 | O93: Females | P93: 734 | Q93: 2634 | R93: 4819 | S93: 5809 | T93: 4831 | U93: 3063 | V93: 1596 | W93: 695 | X93: 3368 | Y93: 13996 | Z93: 24181 | AA93: 24583 | AB93: All | AC93: 755 | AD93: 2779 | AE93: 5290 | AF93: 6641 | AG93: 5645 | AH93: 3702 | AI93: 1989 | AJ93: 878 | AK93: 3534 | AL93: 15465 | AM93: 27679 | AN93: 28177
A94: Ancient History | B94: Males | C94: 97 | D94: 130 | E94: 122 | F94: 89 | G94: 59 | H94: 57 | I94: 27 | J94: 18 | K94: 227 | L94: 438 | M94: 599 | N94: 625 | O94: Females | P94: 75 | Q94: 123 | R94: 94 | S94: 100 | T94: 58 | U94: 34 | V94: 9 | W94: 9 | X94: 198 | Y94: 392 | Z94: 502 | AA94: 507 | AB94: All | AC94: 172 | AD94: 253 | AE94: 216 | AF94: 189 | AG94: 117 | AH94: 91 | AI94: 36 | AJ94: 27 | AK94: 425 | AL94: 830 | AM94: 1101 | AN94: 1132
A95: Geography | B95: Males | C95: 8243 | D95: 16787 | E95: 22096 | F95: 26147 | G95: 18415 | H95: 10722 | I95: 5778 | J95: 2908 | K95: 25030 | L95: 73273 | M95: 111096 | N95: 112281 | O95: Females | P95: 11822 | Q95: 19122 | R95: 20580 | S95: 19793 | T95: 12238 | U95: 7036 | V95: 3861 | W95: 1852 | X95: 30944 | Y95: 71317 | Z95: 96304 | AA95: 96959 | AB95: All | AC95: 20065 | AD95: 35909 | AE95: 42676 | AF95: 45940 | AG95: 30653 | AH95: 17758 | AI95: 9639 | AJ95: 4760 | AK95: 55974 | AL95: 144590 | AM95: 207400 | AN95: 209240
A96: History | B96: Males | C96: 8941 | D96: 19025 | E96: 23853 | F96: 22889 | G96: 16334 | H96: 10703 | I96: 6705 | J96: 4244 | K96: 27966 | L96: 74708 | M96: 112694 | N96: 115413 | O96: Females | P96: 15241 | Q96: 25028 | R96: 25944 | S96: 21919 | T96: 14846 | U96: 9323 | V96: 5520 | W96: 3237 | X96: 40269 | Y96: 88132 | Z96: 121058 | AA96: 122846 | AB96: All | AC96: 24182 | AD96: 44053 | AE96: 49797 | AF96: 44808 | AG96: 31180 | AH96: 20026 | AI96: 12225 | AJ96: 7481 | AK96: 68235 | AL96: 162840 | AM96: 233752 | AN96: 238259
A97: Humanities | B97: Males | C97: 62 | D97: 259 | E97: 694 | F97: 1023 | G97: 947 | H97: 831 | I97: 621 | J97: 390 | K97: 321 | L97: 2038 | M97: 4827 | N97: 5150 | O97: Females | P97: 154 | Q97: 453 | R97: 914 | S97: 1018 | T97: 899 | U97: 669 | V97: 436 | W97: 236 | X97: 607 | Y97: 2539 | Z97: 4779 | AA97: 4916 | AB97: All | AC97: 216 | AD97: 712 | AE97: 1608 | AF97: 2041 | AG97: 1846 | AH97: 1500 | AI97: 1057 | AJ97: 626 | AK97: 928 | AL97: 4577 | AM97: 9606 | AN97: 10066
A98: Economics | B98: Males | C98: 234 | D98: 828 | E98: 1044 | F98: 650 | G98: 331 | H98: 187 | I98: 104 | J98: 51 | K98: 1062 | L98: 2756 | M98: 3429 | N98: 3481 | O98: Females | P98: 77 | Q98: 380 | R98: 416 | S98: 269 | T98: 150 | U98: 77 | V98: 31 | W98: 24 | X98: 457 | Y98: 1142 | Z98: 1424 | AA98: 1445 | AB98: All | AC98: 311 | AD98: 1208 | AE98: 1460 | AF98: 919 | AG98: 481 | AH98: 264 | AI98: 135 | AJ98: 75 | AK98: 1519 | AL98: 3898 | AM98: 4853 | AN98: 4926
A99: Social Studies | B99: Males | C99: 300 | D99: 1750 | E99: 4024 | F99: 4916 | G99: 3744 | H99: 2486 | I99: 1611 | J99: 971 | K99: 2050 | L99: 10990 | M99: 19802 | N99: 20556 | O99: Females | P99: 1422 | Q99: 6152 | R99: 9235 | S99: 8231 | T99: 5000 | U99: 3040 | V99: 1794 | W99: 888 | X99: 7574 | Y99: 25040 | Z99: 35762 | AA99: 36435 | AB99: All | AC99: 1722 | AD99: 7902 | AE99: 13259 | AF99: 13147 | AG99: 8744 | AH99: 5526 | AI99: 3405 | AJ99: 1859 | AK99: 9624 | AL99: 36030 | AM99: 55564 | AN99: 56991
A100: Other Classical Studies | B100: Males | C100: 16 | D100: 44 | E100: 41 | F100: 18 | G100: 13 | H100: 5 | I100: 3 | J100: 2 | K100: 60 | L100: 119 | M100: 142 | N100: 144 | O100: Females | P100: 51 | Q100: 107 | R100: 82 | S100: 51 | T100: 19 | U100: 11 | V100: 7 | W100: 6 | X100: 158 | Y100: 291 | Z100: 334 | AA100: 352 | AB100: All | AC100: 67 | AD100: 151 | AE100: 123 | AF100: 69 | AG100: 32 | AH100: 16 | AI100: 10 | AJ100: 8 | AK100: 218 | AL100: 410 | AM100: 476 | AN100: 496
A101: Arabic | B101: Males | C101: 448 | D101: 282 | E101: 175 | F101: 148 | G101: 88 | H101: 68 | I101: 55 | J101: 40 | K101: 730 | L101: 1053 | M101: 1304 | N101: 1368 | O101: Females | P101: 578 | Q101: 321 | R101: 212 | S101: 150 | T101: 89 | U101: 72 | V101: 74 | W101: 44 | X101: 899 | Y101: 1261 | Z101: 1540 | AA101: 1598 | AB101: All | AC101: 1026 | AD101: 603 | AE101: 387 | AF101: 298 | AG101: 177 | AH101: 140 | AI101: 129 | AJ101: 84 | AK101: 1629 | AL101: 2314 | AM101: 2844 | AN101: 2966
A102: Chinese | B102: Males | C102: 844 | D102: 254 | E102: 160 | F102: 122 | G102: 67 | H102: 14 | I102: 3 | J102: 0 | K102: 1098 | L102: 1380 | M102: 1464 | N102: 1470 | O102: Females | P102: 907 | Q102: 204 | R102: 120 | S102: 83 | T102: 31 | U102: 7 | V102: 3 | W102: 2 | X102: 1111 | Y102: 1314 | Z102: 1357 | AA102: 1360 | AB102: All | AC102: 1751 | AD102: 458 | AE102: 280 | AF102: 205 | AG102: 98 | AH102: 21 | AI102: 6 | AJ102: 2 | AK102: 2209 | AL102: 2694 | AM102: 2821 | AN102: 2830
A103: French | B103: Males | C103: 5067 | D103: 7752 | E103: 11585 | F103: 18782 | G103: 15303 | H103: 6826 | I103: 2519 | J103: 928 | K103: 12819 | L103: 43186 | M103: 68762 | N103: 69121 | O103: Females | P103: 10106 | Q103: 14165 | R103: 18785 | S103: 24868 | T103: 15916 | U103: 5440 | V103: 1731 | W103: 551 | X103: 24271 | Y103: 67924 | Z103: 91562 | AA103: 91834 | AB103: All | AC103: 15173 | AD103: 21917 | AE103: 30370 | AF103: 43650 | AG103: 31219 | AH103: 12266 | AI103: 4250 | AJ103: 1479 | AK103: 37090 | AL103: 111110 | AM103: 160324 | AN103: 160955
A104: German | B104: Males | C104: 1922 | D104: 3389 | E104: 5738 | F104: 8159 | G104: 5600 | H104: 2127 | I104: 767 | J104: 221 | K104: 5311 | L104: 19208 | M104: 27923 | N104: 28070 | O104: Females | P104: 2939 | Q104: 5097 | R104: 7556 | S104: 8317 | T104: 4504 | U104: 1409 | V104: 424 | W104: 110 | X104: 8036 | Y104: 23909 | Z104: 30356 | AA104: 30450 | AB104: All | AC104: 4861 | AD104: 8486 | AE104: 13294 | AF104: 16476 | AG104: 10104 | AH104: 3536 | AI104: 1191 | AJ104: 331 | AK104: 13347 | AL104: 43117 | AM104: 58279 | AN104: 58520
A105: Italian | B105: Males | C105: 688 | D105: 324 | E105: 269 | F105: 217 | G105: 136 | H105: 59 | I105: 24 | J105: 8 | K105: 1012 | L105: 1498 | M105: 1725 | N105: 1740 | O105: Females | P105: 936 | Q105: 460 | R105: 402 | S105: 291 | T105: 156 | U105: 48 | V105: 26 | W105: 8 | X105: 1396 | Y105: 2089 | Z105: 2327 | AA105: 2328 | AB105: All | AC105: 1624 | AD105: 784 | AE105: 671 | AF105: 508 | AG105: 292 | AH105: 107 | AI105: 50 | AJ105: 16 | AK105: 2408 | AL105: 3587 | AM105: 4052 | AN105: 4068
A106: Polish | B106: Males | C106: 429 | D106: 802 | E106: 336 | F106: 135 | G106: 65 | H106: 30 | I106: 6 | J106: 19 | K106: 1231 | L106: 1702 | M106: 1822 | N106: 1860 | O106: Females | P106: 861 | Q106: 810 | R106: 251 | S106: 84 | T106: 26 | U106: 14 | V106: 5 | W106: 10 | X106: 1671 | Y106: 2006 | Z106: 2061 | AA106: 2088 | AB106: All | AC106: 1290 | AD106: 1612 | AE106: 587 | AF106: 219 | AG106: 91 | AH106: 44 | AI106: 11 | AJ106: 29 | AK106: 2902 | AL106: 3708 | AM106: 3883 | AN106: 3948
A107: Spanish | B107: Males | C107: 3533 | D107: 4958 | E107: 7002 | F107: 9259 | G107: 7113 | H107: 3434 | I107: 1657 | J107: 753 | K107: 8491 | L107: 24752 | M107: 37709 | N107: 38078 | O107: Females | P107: 6890 | Q107: 9041 | R107: 10287 | S107: 11341 | T107: 7098 | U107: 2921 | V107: 1170 | W107: 481 | X107: 15931 | Y107: 37559 | Z107: 49229 | AA107: 49475 | AB107: All | AC107: 10423 | AD107: 13999 | AE107: 17289 | AF107: 20600 | AG107: 14211 | AH107: 6355 | AI107: 2827 | AJ107: 1234 | AK107: 24422 | AL107: 62311 | AM107: 86938 | AN107: 87553
A108: Urdu | B108: Males | C108: 91 | D108: 289 | E108: 343 | F108: 322 | G108: 278 | H108: 152 | I108: 86 | J108: 26 | K108: 380 | L108: 1045 | M108: 1587 | N108: 1614 | O108: Females | P108: 361 | Q108: 679 | R108: 603 | S108: 440 | T108: 222 | U108: 104 | V108: 40 | W108: 27 | X108: 1040 | Y108: 2083 | Z108: 2476 | AA108: 2497 | AB108: All | AC108: 452 | AD108: 968 | AE108: 946 | AF108: 762 | AG108: 500 | AH108: 256 | AI108: 126 | AJ108: 53 | AK108: 1420 | AL108: 3128 | AM108: 4063 | AN108: 4111
A109: Other Modern Languages | B109: Males | C109: 1533 | D109: 1254 | E109: 881 | F109: 542 | G109: 279 | H109: 136 | I109: 80 | J109: 31 | K109: 2787 | L109: 4210 | M109: 4736 | N109: 4791 | O109: Females | P109: 2032 | Q109: 1656 | R109: 912 | S109: 477 | T109: 234 | U109: 109 | V109: 50 | W109: 32 | X109: 3688 | Y109: 5077 | Z109: 5502 | AA109: 5563 | AB109: All | AC109: 3565 | AD109: 2910 | AE109: 1793 | AF109: 1019 | AG109: 513 | AH109: 245 | AI109: 130 | AJ109: 63 | AK109: 6475 | AL109: 9287 | AM109: 10238 | AN109: 10354
A110: Classical Civilisation | B110: Males | C110: 183 | D110: 509 | E110: 542 | F110: 434 | G110: 252 | H110: 118 | I110: 56 | J110: 32 | K110: 692 | L110: 1668 | M110: 2126 | N110: 2145 | O110: Females | P110: 344 | Q110: 547 | R110: 448 | S110: 310 | T110: 180 | U110: 80 | V110: 38 | W110: 15 | X110: 891 | Y110: 1649 | Z110: 1962 | AA110: 1972 | AB110: All | AC110: 527 | AD110: 1056 | AE110: 990 | AF110: 744 | AG110: 432 | AH110: 198 | AI110: 94 | AJ110: 47 | AK110: 1583 | AL110: 3317 | AM110: 4088 | AN110: 4117
A111: Classical Greek | B111: Males | C111: 416 | D111: 155 | E111: 70 | F111: 32 | G111: 15 | H111: 4 | I111: 5 | J111: 4 | K111: 571 | L111: 673 | M111: 701 | N111: 705 | O111: Females | P111: 312 | Q111: 93 | R111: 33 | S111: 10 | T111: 6 | U111: 5 | V111: 5 | W111: 1 | X111: 405 | Y111: 448 | Z111: 465 | AA111: 468 | AB111: All | AC111: 728 | AD111: 248 | AE111: 103 | AF111: 42 | AG111: 21 | AH111: 9 | AI111: 10 | AJ111: 5 | AK111: 976 | AL111: 1121 | AM111: 1166 | AN111: 1173
A112: Latin | B112: Males | C112: 1747 | D112: 1188 | E112: 647 | F112: 355 | G112: 197 | H112: 85 | I112: 41 | J112: 25 | K112: 2935 | L112: 3937 | M112: 4285 | N112: 4302 | O112: Females | P112: 2128 | Q112: 1245 | R112: 571 | S112: 347 | T112: 155 | U112: 67 | V112: 31 | W112: 9 | X112: 3373 | Y112: 4291 | Z112: 4553 | AA112: 4566 | AB112: All | AC112: 3875 | AD112: 2433 | AE112: 1218 | AF112: 702 | AG112: 352 | AH112: 152 | AI112: 72 | AJ112: 34 | AK112: 6308 | AL112: 8228 | AM112: 8838 | AN112: 8868
A113: Applied Art and Design | B113: Males | C113: 5 | D113: 19 | E113: 62 | F113: 137 | G113: 77 | H113: 32 | I113: 19 | J113: 9 | K113: 24 | L113: 223 | M113: 360 | N113: 367 | O113: Females | P113: 15 | Q113: 72 | R113: 134 | S113: 166 | T113: 66 | U113: 21 | V113: 8 | W113: 0 | X113: 87 | Y113: 387 | Z113: 482 | AA113: 489 | AB113: All | AC113: 20 | AD113: 91 | AE113: 196 | AF113: 303 | AG113: 143 | AH113: 53 | AI113: 27 | AJ113: 9 | AK113: 111 | AL113: 610 | AM113: 842 | AN113: 856
A114: Art and Design | B114: Males | C114: 2759 | D114: 4638 | E114: 10526 | F114: 18969 | G114: 9981 | H114: 5702 | I114: 3052 | J114: 1428 | K114: 7397 | L114: 36892 | M114: 57055 | N114: 58109 | O114: Females | P114: 12664 | Q114: 18830 | R114: 30594 | S114: 31327 | T114: 11324 | U114: 4639 | V114: 2035 | W114: 750 | X114: 31494 | Y114: 93415 | Z114: 112163 | AA114: 112969 | AB114: All | AC114: 15423 | AD114: 23468 | AE114: 41120 | AF114: 50296 | AG114: 21305 | AH114: 10341 | AI114: 5087 | AJ114: 2178 | AK114: 38891 | AL114: 130307 | AM114: 169218 | AN114: 171078
A115: Communication Studies | B115: Males | C115: 94 | D115: 389 | E115: 790 | F115: 1170 | G115: 945 | H115: 620 | I115: 387 | J115: 209 | K115: 483 | L115: 2443 | M115: 4604 | N115: 4785 | O115: Females | P115: 416 | Q115: 832 | R115: 1164 | S115: 1094 | T115: 713 | U115: 389 | V115: 237 | W115: 121 | X115: 1248 | Y115: 3506 | Z115: 4966 | AA115: 5058 | AB115: All | AC115: 510 | AD115: 1221 | AE115: 1954 | AF115: 2264 | AG115: 1658 | AH115: 1009 | AI115: 624 | AJ115: 330 | AK115: 1731 | AL115: 5949 | AM115: 9570 | AN115: 9843
A116: Dance | B116: Males | C116: 40 | D116: 148 | E116: 163 | F116: 158 | G116: 137 | H116: 100 | I116: 40 | J116: 19 | K116: 188 | L116: 509 | M116: 805 | N116: 811 | O116: Females | P116: 512 | Q116: 1822 | R116: 2353 | S116: 2752 | T116: 2022 | U116: 1017 | V116: 428 | W116: 159 | X116: 2334 | Y116: 7439 | Z116: 11065 | AA116: 11136 | AB116: All | AC116: 552 | AD116: 1970 | AE116: 2516 | AF116: 2910 | AG116: 2159 | AH116: 1117 | AI116: 468 | AJ116: 178 | AK116: 2522 | AL116: 7948 | AM116: 11870 | AN116: 11947
A117: Drama | B117: Males | C117: 953 | D117: 3616 | E117: 6174 | F117: 7050 | G117: 4936 | H117: 2566 | I117: 1166 | J117: 481 | K117: 4569 | L117: 17793 | M117: 26942 | N117: 27225 | O117: Females | P117: 2806 | Q117: 8721 | R117: 12029 | S117: 10370 | T117: 5760 | U117: 2429 | V117: 993 | W117: 382 | X117: 11527 | Y117: 33926 | Z117: 43490 | AA117: 43759 | AB117: All | AC117: 3759 | AD117: 12337 | AE117: 18203 | AF117: 17420 | AG117: 10696 | AH117: 4995 | AI117: 2159 | AJ117: 863 | AK117: 16096 | AL117: 51719 | AM117: 70432 | AN117: 70984
A118: English Literature | B118: Males | C118: 7158 | D118: 25356 | E118: 50488 | F118: 53169 | G118: 32849 | H118: 14472 | I118: 5722 | J118: 2156 | K118: 32514 | L118: 136171 | M118: 191370 | N118: 193518 | O118: Females | P118: 16296 | Q118: 46357 | R118: 67935 | S118: 49704 | T118: 22005 | U118: 7579 | V118: 2500 | W118: 899 | X118: 62653 | Y118: 180292 | Z118: 213275 | AA118: 214587 | AB118: All | AC118: 23454 | AD118: 71713 | AE118: 118423 | AF118: 102873 | AG118: 54854 | AH118: 22051 | AI118: 8222 | AJ118: 3055 | AK118: 95167 | AL118: 316463 | AM118: 404645 | AN118: 408105
A119: English Studies | B119: Males | C119: 0 | D119: 7 | E119: 42 | F119: 118 | G119: 101 | H119: 85 | I119: 53 | J119: 27 | K119: 7 | L119: 167 | M119: 433 | N119: 445 | O119: Females | P119: 0 | Q119: 12 | R119: 57 | S119: 104 | T119: 60 | U119: 37 | V119: 40 | W119: 16 | X119: 12 | Y119: 173 | Z119: 326 | AA119: 338 | AB119: All | AC119: 0 | AD119: 19 | AE119: 99 | AF119: 222 | AG119: 161 | AH119: 122 | AI119: 93 | AJ119: 43 | AK119: 19 | AL119: 340 | AM119: 759 | AN119: 783
A120: General Studies | B120: Males | C120: 73 | D120: 275 | E120: 522 | F120: 733 | G120: 831 | H120: 697 | I120: 574 | J120: 457 | K120: 348 | L120: 1603 | M120: 4162 | N120: 4595 | O120: Females | P120: 119 | Q120: 418 | R120: 623 | S120: 862 | T120: 911 | U120: 634 | V120: 409 | W120: 203 | X120: 537 | Y120: 2022 | Z120: 4179 | AA120: 4421 | AB120: All | AC120: 192 | AD120: 693 | AE120: 1145 | AF120: 1595 | AG120: 1742 | AH120: 1331 | AI120: 983 | AJ120: 660 | AK120: 885 | AL120: 3625 | AM120: 8341 | AN120: 9016
A121: Health and Social Care | B121: Males | C121: 2 | D121: 24 | E121: 61 | F121: 107 | G121: 161 | H121: 130 | I121: 86 | J121: 79 | K121: 26 | L121: 194 | M121: 650 | N121: 741 | O121: Females | P121: 322 | Q121: 1138 | R121: 2469 | S121: 3130 | T121: 2396 | U121: 1523 | V121: 991 | W121: 533 | X121: 1460 | Y121: 7059 | Z121: 12502 | AA121: 12910 | AB121: All | AC121: 324 | AD121: 1162 | AE121: 2530 | AF121: 3237 | AG121: 2557 | AH121: 1653 | AI121: 1077 | AJ121: 612 | AK121: 1486 | AL121: 7253 | AM121: 13152 | AN121: 13651
A122: Hospitality and Catering | B122: Males | C122: 2 | D122: 42 | E122: 138 | F122: 219 | G122: 253 | H122: 135 | I122: 71 | J122: 10 | K122: 44 | L122: 401 | M122: 870 | N122: 880 | O122: Females | P122: 43 | Q122: 188 | R122: 341 | S122: 337 | T122: 226 | U122: 143 | V122: 52 | W122: 7 | X122: 231 | Y122: 909 | Z122: 1337 | AA122: 1358 | AB122: All | AC122: 45 | AD122: 230 | AE122: 479 | AF122: 556 | AG122: 479 | AH122: 278 | AI122: 123 | AJ122: 17 | AK122: 275 | AL122: 1310 | AM122: 2207 | AN122: 2238
A123: Leisure and Tourism | B123: Males | C123: 11 | D123: 71 | E123: 202 | F123: 440 | G123: 539 | H123: 613 | I123: 468 | J123: 411 | K123: 82 | L123: 724 | M123: 2755 | N123: 3241 | O123: Females | P123: 55 | Q123: 268 | R123: 437 | S123: 581 | T123: 581 | U123: 435 | V123: 329 | W123: 265 | X123: 323 | Y123: 1341 | Z123: 2951 | AA123: 3185 | AB123: All | AC123: 66 | AD123: 339 | AE123: 639 | AF123: 1021 | AG123: 1120 | AH123: 1048 | AI123: 797 | AJ123: 676 | AK123: 405 | AL123: 2065 | AM123: 5706 | AN123: 6426
A124: Manufacturing | B124: Males | C124: 0 | D124: 2 | E124: 13 | F124: 19 | G124: 30 | H124: 27 | I124: 19 | J124: 10 | K124: 2 | L124: 34 | M124: 120 | N124: 122 | O124: Females | P124: 0 | Q124: 1 | R124: 3 | S124: 6 | T124: 1 | U124: 0 | V124: 3 | W124: 0 | X124: 1 | Y124: 10 | Z124: 14 | AA124: 14 | AB124: All | AC124: 0 | AD124: 3 | AE124: 16 | AF124: 25 | AG124: 31 | AH124: 27 | AI124: 22 | AJ124: 10 | AK124: 3 | AL124: 44 | AM124: 134 | AN124: 136
A125: Media/Film/TV | B125: Males | C125: 390 | D125: 1921 | E125: 5021 | F125: 7135 | G125: 5534 | H125: 3148 | I125: 1777 | J125: 790 | K125: 2311 | L125: 14467 | M125: 25716 | N125: 26290 | O125: Females | P125: 1259 | Q125: 4554 | R125: 6915 | S125: 6255 | T125: 3399 | U125: 1455 | V125: 659 | W125: 318 | X125: 5813 | Y125: 18983 | Z125: 24814 | AA125: 25038 | AB125: All | AC125: 1649 | AD125: 6475 | AE125: 11936 | AF125: 13390 | AG125: 8933 | AH125: 4603 | AI125: 2436 | AJ125: 1108 | AK125: 8124 | AL125: 33450 | AM125: 50530 | AN125: 51328
A126: Music | B126: Males | C126: 1796 | D126: 4293 | E126: 4941 | F126: 4086 | G126: 2674 | H126: 1623 | I126: 751 | J126: 422 | K126: 6089 | L126: 15116 | M126: 20586 | N126: 20902 | O126: Females | P126: 2013 | Q126: 5114 | R126: 5752 | S126: 4113 | T126: 2388 | U126: 1206 | V126: 520 | W126: 255 | X126: 7127 | Y126: 16992 | Z126: 21361 | AA126: 21544 | AB126: All | AC126: 3809 | AD126: 9407 | AE126: 10693 | AF126: 8199 | AG126: 5062 | AH126: 2829 | AI126: 1271 | AJ126: 677 | AK126: 13216 | AL126: 32108 | AM126: 41947 | AN126: 42446
A127: Performing Arts | B127: Males | C127: 50 | D127: 93 | E127: 190 | F127: 320 | G127: 236 | H127: 197 | I127: 164 | J127: 70 | K127: 143 | L127: 653 | M127: 1320 | N127: 1362 | O127: Females | P127: 296 | Q127: 363 | R127: 682 | S127: 772 | T127: 535 | U127: 261 | V127: 128 | W127: 64 | X127: 659 | Y127: 2113 | Z127: 3101 | AA127: 3142 | AB127: All | AC127: 346 | AD127: 456 | AE127: 872 | AF127: 1092 | AG127: 771 | AH127: 458 | AI127: 292 | AJ127: 134 | AK127: 802 | AL127: 2766 | AM127: 4421 | AN127: 4504
A128: Physical Education | B128: Males | C128: 1881 | D128: 9455 | E128: 16821 | F128: 18290 | G128: 12430 | H128: 6177 | I128: 2056 | J128: 477 | K128: 11336 | L128: 46447 | M128: 67587 | N128: 67810 | O128: Females | P128: 2162 | Q128: 6542 | R128: 8472 | S128: 7870 | T128: 5486 | U128: 2813 | V128: 1050 | W128: 267 | X128: 8704 | Y128: 25046 | Z128: 34662 | AA128: 34784 | AB128: All | AC128: 4043 | AD128: 15997 | AE128: 25293 | AF128: 26160 | AG128: 17916 | AH128: 8990 | AI128: 3106 | AJ128: 744 | AK128: 20040 | AL128: 71493 | AM128: 102249 | AN128: 102594
A129: Religious Studies | B129: Males | C129: 8405 | D129: 18393 | E129: 26288 | F129: 24517 | G129: 16186 | H129: 10941 | I129: 7133 | J129: 4733 | K129: 26798 | L129: 77603 | M129: 116596 | N129: 120566 | O129: Females | P129: 20591 | Q129: 31583 | R129: 32545 | S129: 23361 | T129: 13305 | U129: 7981 | V129: 4570 | W129: 2693 | X129: 52174 | Y129: 108080 | Z129: 136629 | AA129: 138793 | AB129: All | AC129: 28996 | AD129: 49976 | AE129: 58833 | AF129: 47878 | AG129: 29491 | AH129: 18922 | AI129: 11703 | AJ129: 7426 | AK129: 78972 | AL129: 185683 | AM129: 253225 | AN129: 259359
A130: Statistics | B130: Males | C130: 1244 | D130: 4319 | E130: 5934 | F130: 7227 | G130: 4031 | H130: 1552 | I130: 727 | J130: 439 | K130: 5563 | L130: 18724 | M130: 25473 | N130: 26152 | O130: Females | P130: 1219 | Q130: 4063 | R130: 5616 | S130: 6727 | T130: 2959 | U130: 1108 | V130: 512 | W130: 251 | X130: 5282 | Y130: 17625 | Z130: 22455 | AA130: 22902 | AB130: All | AC130: 2463 | AD130: 8382 | AE130: 11550 | AF130: 13954 | AG130: 6990 | AH130: 2660 | AI130: 1239 | AJ130: 690 | AK130: 10845 | AL130: 36349 | AM130: 47928 | AN130: 49054
A131: Vocational Studies | B131: Males | C131: 196 | D131: 1097 | E131: 3122 | F131: 5189 | G131: 4669 | H131: 2691 | I131: 1235 | J131: 500 | K131: 1293 | L131: 9604 | M131: 18699 | N131: 19028 | O131: Females | P131: 710 | Q131: 2869 | R131: 5092 | S131: 5526 | T131: 3775 | U131: 1852 | V131: 759 | W131: 283 | X131: 3579 | Y131: 14197 | Z131: 20866 | AA131: 21043 | AB131: All | AC131: 906 | AD131: 3966 | AE131: 8214 | AF131: 10715 | AG131: 8444 | AH131: 4543 | AI131: 1994 | AJ131: 783 | AK131: 4872 | AL131: 23801 | AM131: 39565 | AN131: 40071
A132: All Subjects | B132: Males | C132: 127130 | D132: 293393 | E132: 481172 | F132: 612637 | G132: 372246 | H132: 192574 | I132: 102798 | J132: 54831 | K132: 420523 | L132: 1514332 | M132: 2236781 | N132: 2284001 | O132: Females | P132: 203600 | Q132: 411966 | R132: 574167 | S132: 598278 | T132: 306024 | U132: 139329 | V132: 69479 | W132: 35885 | X132: 615566 | Y132: 1788011 | Z132: 2338728 | AA132: 2372286 | AB132: All | AC132: 330730 | AD132: 705359 | AE132: 1055339 | AF132: 1210915 | AG132: 678270 | AH132: 331903 | AI132: 172277 | AJ132: 90716 | AK132: 1036089 | AL132: 3302343 | AM132: 4575509 | AN132: 4656287

Sheet 2014 DISC3 (hidden)
A1: Subject | B1: (No column name) | C1: * | D1: A | E1: B | F1: C | G1: D | H1: E | I1: F | J1: G | K1: AstarA | L1: AstarC | M1: AstarG | N1: Total | O1: (No column name) | P1: * | Q1: A | R1: B | S1: C | T1: D | U1: E | V1: F | W1: G | X1: AstarA | Y1: AstarC | Z1: AstarG | AA1: Total | AB1: (No column name) | AC1: * | AD1: A | AE1: B | AF1: C | AG1: D | AH1: E | AI1: F | AJ1: G | AK1: AstarA | AL1: AstarC | AM1: AstarG | AN1: Total
A2: English | B2: Males | C2: 6091 | D2: 21752 | E2: 48277 | F2: 72101 | G2: 44928 | H2: 20622 | I2: 8638 | J2: 3356 | K2: 27843 | L2: 148221 | M2: 225765 | N2: 228419 | O2: Females | P2: 13876 | Q2: 39755 | R2: 65681 | S2: 66966 | T2: 30068 | U2: 10249 | V2: 3548 | W2: 1366 | X2: 53631 | Y2: 186278 | Z2: 231509 | AA2: 233049 | AB2: All | AC2: 19967 | AD2: 61507 | AE2: 113958 | AF2: 139067 | AG2: 74996 | AH2: 30871 | AI2: 12186 | AJ2: 4722 | AK2: 81474 | AL2: 334499 | AM2: 457274 | AN2: 461468
A3: Mathematics | B3: Males | C3: 21508 | D3: 34797 | E3: 56177 | F3: 91305 | G3: 37249 | H3: 18835 | I3: 14628 | J3: 11817 | K3: 56305 | L3: 203787 | M3: 286316 | N3: 302891 | O3: Females | P3: 18832 | Q3: 34693 | R3: 57211 | S3: 90973 | T3: 36556 | U3: 17371 | V3: 13072 | W3: 10290 | X3: 53525 | Y3: 201709 | Z3: 278998 | AA3: 293508 | AB3: All | AC3: 40340 | AD3: 69490 | AE3: 113388 | AF3: 182278 | AG3: 73805 | AH3: 36206 | AI3: 27700 | AJ3: 22107 | AK3: 109830 | AL3: 405496 | AM3: 565314 | AN3: 596399
A4: Core Science | B4: Males | C4: 1804 | D4: 10169 | E4: 29825 | F4: 61001 | G4: 33732 | H4: 18453 | I4: 9588 | J4: 4117 | K4: 11973 | L4: 102799 | M4: 168689 | N4: 171820 | O4: Females | P4: 3038 | Q4: 15100 | R4: 36587 | S4: 61149 | T4: 30151 | U4: 15476 | V4: 7517 | W4: 3007 | X4: 18138 | Y4: 115874 | Z4: 172025 | AA4: 174598 | AB4: All | AC4: 4842 | AD4: 25269 | AE4: 66412 | AF4: 122150 | AG4: 63883 | AH4: 33929 | AI4: 17105 | AJ4: 7124 | AK4: 30111 | AL4: 218673 | AM4: 340714 | AN4: 346418
A5: Additional Science | B5: Males | C5: 2566 | D5: 10592 | E5: 26870 | F5: 42608 | G5: 28740 | H5: 11974 | I5: 5139 | J5: 2000 | K5: 13158 | L5: 82636 | M5: 130489 | N5: 131575 | O5: Females | P5: 3705 | Q5: 14289 | R5: 32714 | S5: 45164 | T5: 27147 | U5: 10249 | V5: 4027 | W5: 1468 | X5: 17994 | Y5: 95872 | Z5: 138763 | AA5: 139627 | AB5: All | AC5: 6271 | AD5: 24881 | AE5: 59584 | AF5: 87772 | AG5: 55887 | AH5: 22223 | AI5: 9166 | AJ5: 3468 | AK5: 31152 | AL5: 178508 | AM5: 269252 | AN5: 271202
A6: Further Additional Science | B6: Males | C6: 1065 | D6: 2192 | E6: 2873 | F6: 2660 | G6: 1297 | H6: 383 | I6: 81 | J6: 26 | K6: 3257 | L6: 8790 | M6: 10577 | N6: 10607 | O6: Females | P6: 1208 | Q6: 2342 | R6: 2920 | S6: 2468 | T6: 1103 | U6: 289 | V6: 55 | W6: 24 | X6: 3550 | Y6: 8938 | Z6: 10409 | AA6: 10429 | AB6: All | AC6: 2273 | AD6: 4534 | AE6: 5793 | AF6: 5128 | AG6: 2400 | AH6: 672 | AI6: 136 | AJ6: 50 | AK6: 6807 | AL6: 17728 | AM6: 20986 | AN6: 21036
A7: Additional Applied Science | B7: Males | C7: 0 | D7: 59 | E7: 338 | F7: 1253 | G7: 1803 | H7: 1408 | I7: 785 | J7: 313 | K7: 59 | L7: 1650 | M7: 5959 | N7: 6150 | O7: Females | P7: 10 | Q7: 80 | R7: 637 | S7: 1669 | T7: 1918 | U7: 1130 | V7: 524 | W7: 187 | X7: 90 | Y7: 2396 | Z7: 6155 | AA7: 6276 | AB7: All | AC7: 10 | AD7: 139 | AE7: 975 | AF7: 2922 | AG7: 3721 | AH7: 2538 | AI7: 1309 | AJ7: 500 | AK7: 149 | AL7: 4046 | AM7: 12114 | AN7: 12426
A8: Physics | B8: Males | C8: 9455 | D8: 17793 | E8: 19022 | F8: 13347 | G8: 4401 | H8: 801 | I8: 186 | J8: 64 | K8: 27248 | L8: 59617 | M8: 65069 | N8: 65133 | O8: Females | P8: 10091 | Q8: 17292 | R8: 18378 | S8: 12771 | T8: 4078 | U8: 749 | V8: 131 | W8: 47 | X8: 27383 | Y8: 58532 | Z8: 63537 | AA8: 63600 | AB8: All | AC8: 19546 | AD8: 35085 | AE8: 37400 | AF8: 26118 | AG8: 8479 | AH8: 1550 | AI8: 317 | AJ8: 111 | AK8: 54631 | AL8: 118149 | AM8: 128606 | AN8: 128733
A9: Chemistry | B9: Males | C9: 8610 | D9: 17532 | E9: 19172 | F9: 13913 | G9: 5070 | H9: 1099 | I9: 251 | J9: 85 | K9: 26142 | L9: 59227 | M9: 65732 | N9: 65804 | O9: Females | P9: 10691 | Q9: 18731 | R9: 18121 | S9: 11415 | T9: 3781 | U9: 788 | V9: 174 | W9: 50 | X9: 29422 | Y9: 58958 | Z9: 63751 | AA9: 63826 | AB9: All | AC9: 19301 | AD9: 36263 | AE9: 37293 | AF9: 25328 | AG9: 8851 | AH9: 1887 | AI9: 425 | AJ9: 135 | AK9: 55564 | AL9: 118185 | AM9: 129483 | AN9: 129630
A10: Biological Sciences | B10: Males | C10: 7518 | D10: 17706 | E10: 20327 | F10: 14679 | G10: 5050 | H10: 1151 | I10: 424 | J10: 186 | K10: 25224 | L10: 60230 | M10: 67041 | N10: 67254 | O10: Females | P10: 10952 | Q10: 19671 | R10: 18814 | S10: 11254 | T10: 3606 | U10: 789 | V10: 316 | W10: 137 | X10: 30623 | Y10: 60691 | Z10: 65539 | AA10: 65684 | AB10: All | AC10: 18470 | AD10: 37377 | AE10: 39141 | AF10: 25933 | AG10: 8656 | AH10: 1940 | AI10: 740 | AJ10: 323 | AK10: 55847 | AL10: 120921 | AM10: 132580 | AN10: 132938
A11: Computer Science | B11: Males | C11: 809 | D11: 2227 | E11: 2865 | F11: 2736 | G11: 1885 | H11: 1185 | I11: 728 | J11: 462 | K11: 3036 | L11: 8637 | M11: 12897 | N11: 13420 | O11: Females | P11: 197 | Q11: 460 | R11: 514 | S11: 503 | T11: 322 | U11: 176 | V11: 88 | W11: 40 | X11: 657 | Y11: 1674 | Z11: 2300 | AA11: 2372 | AB11: All | AC11: 1006 | AD11: 2687 | AE11: 3379 | AF11: 3239 | AG11: 2207 | AH11: 1361 | AI11: 816 | AJ11: 502 | AK11: 3693 | AL11: 10311 | AM11: 15197 | AN11: 15792
A12: Other Sciences | B12: Males | C12: 433 | D12: 613 | E12: 689 | F12: 714 | G12: 655 | H12: 502 | I12: 354 | J12: 206 | K12: 1046 | L12: 2449 | M12: 4166 | N12: 4283 | O12: Females | P12: 113 | Q12: 247 | R12: 464 | S12: 557 | T12: 446 | U12: 329 | V12: 212 | W12: 137 | X12: 360 | Y12: 1381 | Z12: 2505 | AA12: 2579 | AB12: All | AC12: 546 | AD12: 860 | AE12: 1153 | AF12: 1271 | AG12: 1101 | AH12: 831 | AI12: 566 | AJ12: 343 | AK12: 1406 | AL12: 3830 | AM12: 6671 | AN12: 6862
A13: D & T: Electronic Products | B13: Males | C13: 534 | D13: 1116 | E13: 1648 | F13: 1611 | G13: 1141 | H13: 762 | I13: 469 | J13: 261 | K13: 1650 | L13: 4909 | M13: 7542 | N13: 7692 | O13: Females | P13: 107 | Q13: 164 | R13: 154 | S13: 83 | T13: 60 | U13: 37 | V13: 10 | W13: 8 | X13: 271 | Y13: 508 | Z13: 623 | AA13: 628 | AB13: All | AC13: 641 | AD13: 1280 | AE13: 1802 | AF13: 1694 | AG13: 1201 | AH13: 799 | AI13: 479 | AJ13: 269 | AK13: 1921 | AL13: 5417 | AM13: 8165 | AN13: 8320
A14: D & T: Food Technology | B14: Males | C14: 226 | D14: 874 | E14: 2106 | F14: 3637 | G14: 3468 | H14: 2347 | I14: 1364 | J14: 613 | K14: 1100 | L14: 6843 | M14: 14635 | N14: 14951 | O14: Females | P14: 1849 | Q14: 4320 | R14: 6072 | S14: 5940 | T14: 3827 | U14: 2044 | V14: 980 | W14: 384 | X14: 6169 | Y14: 18181 | Z14: 25416 | AA14: 25635 | AB14: All | AC14: 2075 | AD14: 5194 | AE14: 8178 | AF14: 9577 | AG14: 7295 | AH14: 4391 | AI14: 2344 | AJ14: 997 | AK14: 7269 | AL14: 25024 | AM14: 40051 | AN14: 40586
A15: D & T: Graphic Products | B15: Males | C15: 583 | D15: 1795 | E15: 3515 | F15: 4765 | G15: 4157 | H15: 2699 | I15: 1728 | J15: 1040 | K15: 2378 | L15: 10658 | M15: 20282 | N15: 20953 | O15: Females | P15: 1012 | Q15: 2395 | R15: 3037 | S15: 2750 | T15: 1815 | U15: 971 | V15: 523 | W15: 266 | X15: 3407 | Y15: 9194 | Z15: 12769 | AA15: 12921 | AB15: All | AC15: 1595 | AD15: 4190 | AE15: 6552 | AF15: 7515 | AG15: 5972 | AH15: 3670 | AI15: 2251 | AJ15: 1306 | AK15: 5785 | AL15: 19852 | AM15: 33051 | AN15: 33874
A16: D & T: Resistant Materials | B16: Males | C16: 1296 | D16: 3973 | E16: 8216 | F16: 11007 | G16: 8864 | H16: 5728 | I16: 3405 | J16: 1648 | K16: 5269 | L16: 24492 | M16: 44137 | N16: 45024 | O16: Females | P16: 676 | Q16: 1431 | R16: 1851 | S16: 1644 | T16: 1072 | U16: 569 | V16: 287 | W16: 160 | X16: 2107 | Y16: 5602 | Z16: 7690 | AA16: 7760 | AB16: All | AC16: 1972 | AD16: 5404 | AE16: 10067 | AF16: 12651 | AG16: 9936 | AH16: 6297 | AI16: 3692 | AJ16: 1808 | AK16: 7376 | AL16: 30094 | AM16: 51827 | AN16: 52784
A17: D & T: Systems & Control | B17: Males | C17: 251 | D17: 408 | E17: 631 | F17: 681 | G17: 512 | H17: 294 | I17: 185 | J17: 87 | K17: 659 | L17: 1971 | M17: 3049 | N17: 3091 | O17: Females | P17: 7 | Q17: 30 | R17: 29 | S17: 34 | T17: 31 | U17: 10 | V17: 6 | W17: 1 | X17: 37 | Y17: 100 | Z17: 148 | AA17: 150 | AB17: All | AC17: 258 | AD17: 438 | AE17: 660 | AF17: 715 | AG17: 543 | AH17: 304 | AI17: 191 | AJ17: 88 | AK17: 696 | AL17: 2071 | AM17: 3197 | AN17: 3241
A18: D & T: Textiles Technology | B18: Males | C18: 24 | D18: 33 | E18: 79 | F18: 162 | G18: 164 | H18: 144 | I18: 120 | J18: 48 | K18: 57 | L18: 298 | M18: 774 | N18: 820 | O18: Females | P18: 2472 | Q18: 4241 | R18: 5694 | S18: 5581 | T18: 3456 | U18: 1854 | V18: 850 | W18: 390 | X18: 6713 | Y18: 17988 | Z18: 24538 | AA18: 24767 | AB18: All | AC18: 2496 | AD18: 4274 | AE18: 5773 | AF18: 5743 | AG18: 3620 | AH18: 1998 | AI18: 970 | AJ18: 438 | AK18: 6770 | AL18: 18286 | AM18: 25312 | AN18: 25587
A19: Other Design and Technology | B19: Males | C19: 737 | D19: 2063 | E19: 4413 | F19: 6347 | G19: 5320 | H19: 3460 | I19: 2095 | J19: 1006 | K19: 2800 | L19: 13560 | M19: 25441 | N19: 26080 | O19: Females | P19: 971 | Q19: 1953 | R19: 2527 | S19: 2283 | T19: 1456 | U19: 805 | V19: 417 | W19: 215 | X19: 2924 | Y19: 7734 | Z19: 10627 | AA19: 10734 | AB19: All | AC19: 1708 | AD19: 4016 | AE19: 6940 | AF19: 8630 | AG19: 6776 | AH19: 4265 | AI19: 2512 | AJ19: 1221 | AK19: 5724 | AL19: 21294 | AM19: 36068 | AN19: 36814
A20: Applied Engineering | B20: Males | C20: 37 | D20: 145 | E20: 426 | F20: 820 | G20: 839 | H20: 668 | I20: 393 | J20: 241 | K20: 182 | L20: 1428 | M20: 3569 | N20: 3782 | O20: Females | P20: 1 | Q20: 23 | R20: 49 | S20: 51 | T20: 49 | U20: 34 | V20: 11 | W20: 7 | X20: 24 | Y20: 124 | Z20: 225 | AA20: 226 | AB20: All | AC20: 38 | AD20: 168 | AE20: 475 | AF20: 871 | AG20: 888 | AH20: 702 | AI20: 404 | AJ20: 248 | AK20: 206 | AL20: 1552 | AM20: 3794 | AN20: 4008
A21: Information Technology | B21: Males | C21: 2052 | D21: 6680 | E21: 10593 | F21: 10960 | G21: 6725 | H21: 3751 | I21: 2609 | J21: 1856 | K21: 8732 | L21: 30285 | M21: 45226 | N21: 46525 | O21: Females | P21: 2656 | Q21: 6614 | R21: 8410 | S21: 7896 | T21: 4330 | U21: 2323 | V21: 1359 | W21: 953 | X21: 9270 | Y21: 25576 | Z21: 34541 | AA21: 35282 | AB21: All | AC21: 4708 | AD21: 13294 | AE21: 19003 | AF21: 18856 | AG21: 11055 | AH21: 6074 | AI21: 3968 | AJ21: 2809 | AK21: 18002 | AL21: 55861 | AM21: 79767 | AN21: 81807
A22: Business Studies | B22: Males | C22: 1335 | D22: 5976 | E22: 10387 | F22: 10422 | G22: 7047 | H22: 3999 | I22: 2313 | J22: 1293 | K22: 7311 | L22: 28120 | M22: 42772 | N22: 43540 | O22: Females | P22: 1371 | Q22: 5326 | R22: 7795 | S22: 6941 | T22: 4228 | U22: 2364 | V22: 1310 | W22: 679 | X22: 6697 | Y22: 21433 | Z22: 30014 | AA22: 30415 | AB22: All | AC22: 2706 | AD22: 11302 | AE22: 18182 | AF22: 17363 | AG22: 11275 | AH22: 6363 | AI22: 3623 | AJ22: 1972 | AK22: 14008 | AL22: 49553 | AM22: 72786 | AN22: 73955
A23: Applied Business | B23: Males | C23: 89 | D23: 441 | E23: 899 | F23: 1113 | G23: 793 | H23: 567 | I23: 350 | J23: 231 | K23: 530 | L23: 2542 | M23: 4483 | N23: 4753 | O23: Females | P23: 115 | Q23: 529 | R23: 733 | S23: 629 | T23: 428 | U23: 290 | V23: 168 | W23: 109 | X23: 644 | Y23: 2006 | Z23: 3001 | AA23: 3116 | AB23: All | AC23: 204 | AD23: 970 | AE23: 1632 | AF23: 1742 | AG23: 1221 | AH23: 857 | AI23: 518 | AJ23: 340 | AK23: 1174 | AL23: 4548 | AM23: 7484 | AN23: 7869
A24: Home Economics | B24: Males | C24: 21 | D24: 145 | E24: 471 | F24: 832 | G24: 814 | H24: 639 | I24: 393 | J24: 183 | K24: 166 | L24: 1469 | M24: 3498 | N24: 3594 | O24: Females | P24: 734 | Q24: 2634 | R24: 4819 | S24: 5809 | T24: 4831 | U24: 3063 | V24: 1596 | W24: 695 | X24: 3368 | Y24: 13996 | Z24: 24181 | AA24: 24583 | AB24: All | AC24: 755 | AD24: 2779 | AE24: 5290 | AF24: 6641 | AG24: 5645 | AH24: 3702 | AI24: 1989 | AJ24: 878 | AK24: 3534 | AL24: 15465 | AM24: 27679 | AN24: 28177
A25: Geography | B25: Males | C25: 8235 | D25: 16773 | E25: 22086 | F25: 26144 | G25: 18415 | H25: 10722 | I25: 5778 | J25: 2908 | K25: 25008 | L25: 73238 | M25: 111061 | N25: 112246 | O25: Females | P25: 11812 | Q25: 19105 | R25: 20568 | S25: 19791 | T25: 12238 | U25: 7036 | V25: 3861 | W25: 1852 | X25: 30917 | Y25: 71276 | Z25: 96263 | AA25: 96918 | AB25: All | AC25: 20047 | AD25: 35878 | AE25: 42654 | AF25: 45935 | AG25: 30653 | AH25: 17758 | AI25: 9639 | AJ25: 4760 | AK25: 55925 | AL25: 144514 | AM25: 207324 | AN25: 209164
A26: History | B26: Males | C26: 8938 | D26: 19012 | E26: 23832 | F26: 22875 | G26: 16334 | H26: 10703 | I26: 6705 | J26: 4244 | K26: 27950 | L26: 74657 | M26: 112643 | N26: 115362 | O26: Females | P26: 15224 | Q26: 24991 | R26: 25930 | S26: 21913 | T26: 14846 | U26: 9323 | V26: 5520 | W26: 3237 | X26: 40215 | Y26: 88058 | Z26: 120984 | AA26: 122772 | AB26: All | AC26: 24162 | AD26: 44003 | AE26: 49762 | AF26: 44788 | AG26: 31180 | AH26: 20026 | AI26: 12225 | AJ26: 7481 | AK26: 68165 | AL26: 162715 | AM26: 233627 | AN26: 238134
A27: Humanities | B27: Males | C27: 62 | D27: 259 | E27: 694 | F27: 1023 | G27: 947 | H27: 831 | I27: 621 | J27: 390 | K27: 321 | L27: 2038 | M27: 4827 | N27: 5150 | O27: Females | P27: 154 | Q27: 453 | R27: 914 | S27: 1018 | T27: 899 | U27: 669 | V27: 436 | W27: 236 | X27: 607 | Y27: 2539 | Z27: 4779 | AA27: 4916 | AB27: All | AC27: 216 | AD27: 712 | AE27: 1608 | AF27: 2041 | AG27: 1846 | AH27: 1500 | AI27: 1057 | AJ27: 626 | AK27: 928 | AL27: 4577 | AM27: 9606 | AN27: 10066
A28: Economics | B28: Males | C28: 234 | D28: 828 | E28: 1043 | F28: 650 | G28: 331 | H28: 187 | I28: 104 | J28: 51 | K28: 1062 | L28: 2755 | M28: 3428 | N28: 3480 | O28: Females | P28: 77 | Q28: 379 | R28: 416 | S28: 269 | T28: 150 | U28: 77 | V28: 31 | W28: 24 | X28: 456 | Y28: 1141 | Z28: 1423 | AA28: 1444 | AB28: All | AC28: 311 | AD28: 1207 | AE28: 1459 | AF28: 919 | AG28: 481 | AH28: 264 | AI28: 135 | AJ28: 75 | AK28: 1518 | AL28: 3896 | AM28: 4851 | AN28: 4924
A29: Social Studies | B29: Males | C29: 299 | D29: 1747 | E29: 4022 | F29: 4916 | G29: 3744 | H29: 2486 | I29: 1611 | J29: 971 | K29: 2046 | L29: 10984 | M29: 19796 | N29: 20550 | O29: Females | P29: 1418 | Q29: 6145 | R29: 9233 | S29: 8229 | T29: 4999 | U29: 3040 | V29: 1794 | W29: 888 | X29: 7563 | Y29: 25025 | Z29: 35746 | AA29: 36419 | AB29: All | AC29: 1717 | AD29: 7892 | AE29: 13255 | AF29: 13145 | AG29: 8743 | AH29: 5526 | AI29: 3405 | AJ29: 1859 | AK29: 9609 | AL29: 36009 | AM29: 55542 | AN29: 56969
A30: Arabic | B30: Males | C30: 396 | D30: 270 | E30: 173 | F30: 147 | G30: 88 | H30: 68 | I30: 54 | J30: 40 | K30: 666 | L30: 986 | M30: 1236 | N30: 1300 | O30: Females | P30: 499 | Q30: 302 | R30: 206 | S30: 150 | T30: 88 | U30: 72 | V30: 74 | W30: 44 | X30: 801 | Y30: 1157 | Z30: 1435 | AA30: 1493 | AB30: All | AC30: 895 | AD30: 572 | AE30: 379 | AF30: 297 | AG30: 176 | AH30: 140 | AI30: 128 | AJ30: 84 | AK30: 1467 | AL30: 2143 | AM30: 2671 | AN30: 2793
A31: Chinese | B31: Males | C31: 748 | D31: 247 | E31: 160 | F31: 122 | G31: 67 | H31: 14 | I31: 3 | J31: 0 | K31: 995 | L31: 1277 | M31: 1361 | N31: 1367 | O31: Females | P31: 790 | Q31: 200 | R31: 119 | S31: 83 | T31: 31 | U31: 7 | V31: 3 | W31: 2 | X31: 990 | Y31: 1192 | Z31: 1235 | AA31: 1238 | AB31: All | AC31: 1538 | AD31: 447 | AE31: 279 | AF31: 205 | AG31: 98 | AH31: 21 | AI31: 6 | AJ31: 2 | AK31: 1985 | AL31: 2469 | AM31: 2596 | AN31: 2605
A32: French | B32: Males | C32: 4985 | D32: 7702 | E32: 11577 | F32: 18781 | G32: 15303 | H32: 6824 | I32: 2518 | J32: 928 | K32: 12687 | L32: 43045 | M32: 68618 | N32: 68977 | O32: Females | P32: 9989 | Q32: 14114 | R32: 18773 | S32: 24866 | T32: 15916 | U32: 5440 | V32: 1731 | W32: 551 | X32: 24103 | Y32: 67742 | Z32: 91380 | AA32: 91652 | AB32: All | AC32: 14974 | AD32: 21816 | AE32: 30350 | AF32: 43647 | AG32: 31219 | AH32: 12264 | AI32: 4249 | AJ32: 1479 | AK32: 36790 | AL32: 110787 | AM32: 159998 | AN32: 160629
A33: German | B33: Males | C33: 1845 | D33: 3354 | E33: 5731 | F33: 8157 | G33: 5600 | H33: 2127 | I33: 767 | J33: 221 | K33: 5199 | L33: 19087 | M33: 27802 | N33: 27949 | O33: Females | P33: 2857 | Q33: 5082 | R33: 7550 | S33: 8317 | T33: 4504 | U33: 1409 | V33: 424 | W33: 110 | X33: 7939 | Y33: 23806 | Z33: 30253 | AA33: 30347 | AB33: All | AC33: 4702 | AD33: 8436 | AE33: 13281 | AF33: 16474 | AG33: 10104 | AH33: 3536 | AI33: 1191 | AJ33: 331 | AK33: 13138 | AL33: 42893 | AM33: 58055 | AN33: 58296
A34: Italian | B34: Males | C34: 647 | D34: 320 | E34: 269 | F34: 216 | G34: 136 | H34: 59 | I34: 24 | J34: 8 | K34: 967 | L34: 1452 | M34: 1679 | N34: 1694 | O34: Females | P34: 888 | Q34: 459 | R34: 401 | S34: 290 | T34: 156 | U34: 48 | V34: 26 | W34: 8 | X34: 1347 | Y34: 2038 | Z34: 2276 | AA34: 2277 | AB34: All | AC34: 1535 | AD34: 779 | AE34: 670 | AF34: 506 | AG34: 292 | AH34: 107 | AI34: 50 | AJ34: 16 | AK34: 2314 | AL34: 3490 | AM34: 3955 | AN34: 3971
A35: Polish | B35: Males | C35: 336 | D35: 696 | E35: 312 | F35: 130 | G35: 65 | H35: 30 | I35: 6 | J35: 18 | K35: 1032 | L35: 1474 | M35: 1593 | N35: 1631 | O35: Females | P35: 656 | Q35: 668 | R35: 229 | S35: 79 | T35: 26 | U35: 14 | V35: 5 | W35: 10 | X35: 1324 | Y35: 1632 | Z35: 1687 | AA35: 1713 | AB35: All | AC35: 992 | AD35: 1364 | AE35: 541 | AF35: 209 | AG35: 91 | AH35: 44 | AI35: 11 | AJ35: 28 | AK35: 2356 | AL35: 3106 | AM35: 3280 | AN35: 3344
A36: Spanish | B36: Males | C36: 3462 | D36: 4945 | E36: 6997 | F36: 9257 | G36: 7111 | H36: 3431 | I36: 1657 | J36: 752 | K36: 8407 | L36: 24661 | M36: 37612 | N36: 37981 | O36: Females | P36: 6738 | Q36: 9005 | R36: 10282 | S36: 11340 | T36: 7097 | U36: 2921 | V36: 1170 | W36: 481 | X36: 15743 | Y36: 37365 | Z36: 49034 | AA36: 49280 | AB36: All | AC36: 10200 | AD36: 13950 | AE36: 17279 | AF36: 20597 | AG36: 14208 | AH36: 6352 | AI36: 2827 | AJ36: 1233 | AK36: 24150 | AL36: 62026 | AM36: 86646 | AN36: 87261
A37: Urdu | B37: Males | C37: 82 | D37: 276 | E37: 333 | F37: 321 | G37: 278 | H37: 152 | I37: 86 | J37: 26 | K37: 358 | L37: 1012 | M37: 1554 | N37: 1581 | O37: Females | P37: 330 | Q37: 665 | R37: 594 | S37: 438 | T37: 221 | U37: 103 | V37: 40 | W37: 27 | X37: 995 | Y37: 2027 | Z37: 2418 | AA37: 2439 | AB37: All | AC37: 412 | AD37: 941 | AE37: 927 | AF37: 759 | AG37: 499 | AH37: 255 | AI37: 126 | AJ37: 53 | AK37: 1353 | AL37: 3039 | AM37: 3972 | AN37: 4020
A38: Other Modern Languages | B38: Males | C38: 1372 | D38: 1169 | E38: 853 | F38: 533 | G38: 279 | H38: 136 | I38: 80 | J38: 31 | K38: 2541 | L38: 3927 | M38: 4453 | N38: 4508 | O38: Females | P38: 1731 | Q38: 1515 | R38: 877 | S38: 466 | T38: 233 | U38: 108 | V38: 50 | W38: 32 | X38: 3246 | Y38: 4589 | Z38: 5012 | AA38: 5073 | AB38: All | AC38: 3103 | AD38: 2684 | AE38: 1730 | AF38: 999 | AG38: 512 | AH38: 244 | AI38: 130 | AJ38: 63 | AK38: 5787 | AL38: 8516 | AM38: 9465 | AN38: 9581
A39: Classical Civilisation | B39: Males | C39: 183 | D39: 509 | E39: 542 | F39: 434 | G39: 252 | H39: 118 | I39: 56 | J39: 32 | K39: 692 | L39: 1668 | M39: 2126 | N39: 2145 | O39: Females | P39: 344 | Q39: 547 | R39: 448 | S39: 310 | T39: 180 | U39: 80 | V39: 38 | W39: 15 | X39: 891 | Y39: 1649 | Z39: 1962 | AA39: 1972 | AB39: All | AC39: 527 | AD39: 1056 | AE39: 990 | AF39: 744 | AG39: 432 | AH39: 198 | AI39: 94 | AJ39: 47 | AK39: 1583 | AL39: 3317 | AM39: 4088 | AN39: 4117
A40: Classical Greek | B40: Males | C40: 416 | D40: 155 | E40: 70 | F40: 32 | G40: 15 | H40: 4 | I40: 5 | J40: 4 | K40: 571 | L40: 673 | M40: 701 | N40: 705 | O40: Females | P40: 312 | Q40: 93 | R40: 33 | S40: 10 | T40: 6 | U40: 5 | V40: 5 | W40: 1 | X40: 405 | Y40: 448 | Z40: 465 | AA40: 468 | AB40: All | AC40: 728 | AD40: 248 | AE40: 103 | AF40: 42 | AG40: 21 | AH40: 9 | AI40: 10 | AJ40: 5 | AK40: 976 | AL40: 1121 | AM40: 1166 | AN40: 1173
A41: Latin | B41: Males | C41: 1745 | D41: 1180 | E41: 637 | F41: 352 | G41: 192 | H41: 82 | I41: 41 | J41: 25 | K41: 2925 | L41: 3914 | M41: 4254 | N41: 4271 | O41: Females | P41: 2122 | Q41: 1242 | R41: 568 | S41: 344 | T41: 153 | U41: 66 | V41: 31 | W41: 9 | X41: 3364 | Y41: 4276 | Z41: 4535 | AA41: 4548 | AB41: All | AC41: 3867 | AD41: 2422 | AE41: 1205 | AF41: 696 | AG41: 345 | AH41: 148 | AI41: 72 | AJ41: 34 | AK41: 6289 | AL41: 8190 | AM41: 8789 | AN41: 8819
A42: Other Classical Studies | B42: Males | C42: 109 | D42: 169 | E42: 156 | F42: 103 | G42: 72 | H42: 62 | I42: 30 | J42: 20 | K42: 278 | L42: 537 | M42: 721 | N42: 749 | O42: Females | P42: 116 | Q42: 225 | R42: 174 | S42: 151 | T42: 77 | U42: 45 | V42: 16 | W42: 15 | X42: 341 | Y42: 666 | Z42: 819 | AA42: 842 | AB42: All | AC42: 225 | AD42: 394 | AE42: 330 | AF42: 254 | AG42: 149 | AH42: 107 | AI42: 46 | AJ42: 35 | AK42: 619 | AL42: 1203 | AM42: 1540 | AN42: 1591
A43: Applied Art and Design | B43: Males | C43: 5 | D43: 18 | E43: 62 | F43: 136 | G43: 77 | H43: 31 | I43: 19 | J43: 9 | K43: 23 | L43: 221 | M43: 357 | N43: 364 | O43: Females | P43: 15 | Q43: 72 | R43: 134 | S43: 166 | T43: 64 | U43: 20 | V43: 8 | W43: 0 | X43: 87 | Y43: 387 | Z43: 479 | AA43: 486 | AB43: All | AC43: 20 | AD43: 90 | AE43: 196 | AF43: 302 | AG43: 141 | AH43: 51 | AI43: 27 | AJ43: 9 | AK43: 110 | AL43: 608 | AM43: 836 | AN43: 850
A44: Art and Design | B44: Males | C44: 2746 | D44: 4607 | E44: 10417 | F44: 18692 | G44: 9781 | H44: 5586 | I44: 2996 | J44: 1405 | K44: 7353 | L44: 36462 | M44: 56230 | N44: 57275 | O44: Females | P44: 12594 | Q44: 18648 | R44: 30238 | S44: 30775 | T44: 11074 | U44: 4515 | V44: 1983 | W44: 736 | X44: 31242 | Y44: 92255 | Z44: 110563 | AA44: 111359 | AB44: All | AC44: 15340 | AD44: 23255 | AE44: 40655 | AF44: 49467 | AG44: 20855 | AH44: 10101 | AI44: 4979 | AJ44: 2141 | AK44: 38595 | AL44: 128717 | AM44: 166793 | AN44: 168634
A45: Communication Studies | B45: Males | C45: 93 | D45: 376 | E45: 766 | F45: 1120 | G45: 902 | H45: 590 | I45: 374 | J45: 199 | K45: 469 | L45: 2355 | M45: 4420 | N45: 4599 | O45: Females | P45: 412 | Q45: 817 | R45: 1133 | S45: 1056 | T45: 687 | U45: 378 | V45: 225 | W45: 117 | X45: 1229 | Y45: 3418 | Z45: 4825 | AA45: 4915 | AB45: All | AC45: 505 | AD45: 1193 | AE45: 1899 | AF45: 2176 | AG45: 1589 | AH45: 968 | AI45: 599 | AJ45: 316 | AK45: 1698 | AL45: 5773 | AM45: 9245 | AN45: 9514
A46: Drama | B46: Males | C46: 948 | D46: 3570 | E46: 6081 | F46: 6897 | G46: 4821 | H46: 2510 | I46: 1138 | J46: 478 | K46: 4518 | L46: 17496 | M46: 26443 | N46: 26720 | O46: Females | P46: 2783 | Q46: 8579 | R46: 11791 | S46: 10091 | T46: 5560 | U46: 2358 | V46: 972 | W46: 369 | X46: 11362 | Y46: 33244 | Z46: 42503 | AA46: 42766 | AB46: All | AC46: 3731 | AD46: 12149 | AE46: 17872 | AF46: 16988 | AG46: 10381 | AH46: 4868 | AI46: 2110 | AJ46: 847 | AK46: 15880 | AL46: 50740 | AM46: 68946 | AN46: 69486
A47: English Literature | B47: Males | C47: 7155 | D47: 25331 | E47: 50442 | F47: 53113 | G47: 32769 | H47: 14459 | I47: 5721 | J47: 2156 | K47: 32486 | L47: 136041 | M47: 191146 | N47: 193288 | O47: Females | P47: 16282 | Q47: 46330 | R47: 67895 | S47: 49678 | T47: 21974 | U47: 7573 | V47: 2496 | W47: 898 | X47: 62612 | Y47: 180185 | Z47: 213126 | AA47: 214430 | AB47: All | AC47: 23437 | AD47: 71661 | AE47: 118337 | AF47: 102791 | AG47: 54743 | AH47: 22032 | AI47: 8217 | AJ47: 3054 | AK47: 95098 | AL47: 316226 | AM47: 404272 | AN47: 407718
A48: English Studies | B48: Males | C48: 0 | D48: 7 | E48: 42 | F48: 118 | G48: 101 | H48: 85 | I48: 53 | J48: 27 | K48: 7 | L48: 167 | M48: 433 | N48: 445 | O48: Females | P48: 0 | Q48: 12 | R48: 57 | S48: 104 | T48: 60 | U48: 37 | V48: 40 | W48: 16 | X48: 12 | Y48: 173 | Z48: 326 | AA48: 338 | AB48: All | AC48: 0 | AD48: 19 | AE48: 99 | AF48: 222 | AG48: 161 | AH48: 122 | AI48: 93 | AJ48: 43 | AK48: 19 | AL48: 340 | AM48: 759 | AN48: 783
A49: General Studies | B49: Males | C49: 73 | D49: 274 | E49: 518 | F49: 729 | G49: 831 | H49: 697 | I49: 574 | J49: 457 | K49: 347 | L49: 1594 | M49: 4153 | N49: 4586 | O49: Females | P49: 119 | Q49: 414 | R49: 620 | S49: 861 | T49: 910 | U49: 634 | V49: 409 | W49: 203 | X49: 533 | Y49: 2014 | Z49: 4170 | AA49: 4412 | AB49: All | AC49: 192 | AD49: 688 | AE49: 1138 | AF49: 1590 | AG49: 1741 | AH49: 1331 | AI49: 983 | AJ49: 660 | AK49: 880 | AL49: 3608 | AM49: 8323 | AN49: 8998
A50: Health and Social Care | B50: Males | C50: 2 | D50: 24 | E50: 60 | F50: 106 | G50: 155 | H50: 128 | I50: 84 | J50: 79 | K50: 26 | L50: 192 | M50: 638 | N50: 727 | O50: Females | P50: 322 | Q50: 1135 | R50: 2435 | S50: 3066 | T50: 2296 | U50: 1473 | V50: 943 | W50: 506 | X50: 1457 | Y50: 6958 | Z50: 12176 | AA50: 12574 | AB50: All | AC50: 324 | AD50: 1159 | AE50: 2495 | AF50: 3172 | AG50: 2451 | AH50: 1601 | AI50: 1027 | AJ50: 585 | AK50: 1483 | AL50: 7150 | AM50: 12814 | AN50: 13301
A51: Hospitality and Catering | B51: Males | C51: 2 | D51: 42 | E51: 138 | F51: 219 | G51: 253 | H51: 135 | I51: 71 | J51: 10 | K51: 44 | L51: 401 | M51: 870 | N51: 880 | O51: Females | P51: 43 | Q51: 188 | R51: 341 | S51: 337 | T51: 226 | U51: 143 | V51: 52 | W51: 7 | X51: 231 | Y51: 909 | Z51: 1337 | AA51: 1358 | AB51: All | AC51: 45 | AD51: 230 | AE51: 479 | AF51: 556 | AG51: 479 | AH51: 278 | AI51: 123 | AJ51: 17 | AK51: 275 | AL51: 1310 | AM51: 2207 | AN51: 2238
A52: Leisure and Tourism | B52: Males | C52: 11 | D52: 66 | E52: 201 | F52: 429 | G52: 529 | H52: 607 | I52: 461 | J52: 408 | K52: 77 | L52: 707 | M52: 2712 | N52: 3196 | O52: Females | P52: 54 | Q52: 264 | R52: 433 | S52: 568 | T52: 571 | U52: 424 | V52: 319 | W52: 261 | X52: 318 | Y52: 1319 | Z52: 2894 | AA52: 3122 | AB52: All | AC52: 65 | AD52: 330 | AE52: 634 | AF52: 997 | AG52: 1100 | AH52: 1031 | AI52: 780 | AJ52: 669 | AK52: 395 | AL52: 2026 | AM52: 5606 | AN52: 6318
A53: Manufacturing | B53: Males | C53: 0 | D53: 2 | E53: 13 | F53: 19 | G53: 30 | H53: 27 | I53: 19 | J53: 10 | K53: 2 | L53: 34 | M53: 120 | N53: 122 | O53: Females | P53: 0 | Q53: 1 | R53: 3 | S53: 6 | T53: 1 | U53: 0 | V53: 3 | W53: 0 | X53: 1 | Y53: 10 | Z53: 14 | AA53: 14 | AB53: All | AC53: 0 | AD53: 3 | AE53: 16 | AF53: 25 | AG53: 31 | AH53: 27 | AI53: 22 | AJ53: 10 | AK53: 3 | AL53: 44 | AM53: 134 | AN53: 136
A54: Media/Film/TV | B54: Males | C54: 388 | D54: 1913 | E54: 4989 | F54: 7068 | G54: 5452 | H54: 3117 | I54: 1766 | J54: 786 | K54: 2301 | L54: 14358 | M54: 25479 | N54: 26050 | O54: Females | P54: 1253 | Q54: 4539 | R54: 6899 | S54: 6209 | T54: 3374 | U54: 1447 | V54: 656 | W54: 317 | X54: 5792 | Y54: 18900 | Z54: 24694 | AA54: 24917 | AB54: All | AC54: 1641 | AD54: 6452 | AE54: 11888 | AF54: 13277 | AG54: 8826 | AH54: 4564 | AI54: 2422 | AJ54: 1103 | AK54: 8093 | AL54: 33258 | AM54: 50173 | AN54: 50967
A55: Music | B55: Males | C55: 1775 | D55: 4238 | E55: 4867 | F55: 4003 | G55: 2610 | H55: 1593 | I55: 734 | J55: 414 | K55: 6013 | L55: 14883 | M55: 20234 | N55: 20549 | O55: Females | P55: 1997 | Q55: 5056 | R55: 5653 | S55: 4052 | T55: 2338 | U55: 1188 | V55: 508 | W55: 252 | X55: 7053 | Y55: 16758 | Z55: 21044 | AA55: 21226 | AB55: All | AC55: 3772 | AD55: 9294 | AE55: 10520 | AF55: 8055 | AG55: 4948 | AH55: 2781 | AI55: 1242 | AJ55: 666 | AK55: 13066 | AL55: 31641 | AM55: 41278 | AN55: 41775
A56: Performing Arts | B56: Males | C56: 47 | D56: 92 | E56: 182 | F56: 306 | G56: 228 | H56: 191 | I56: 161 | J56: 70 | K56: 139 | L56: 627 | M56: 1277 | N56: 1319 | O56: Females | P56: 291 | Q56: 346 | R56: 656 | S56: 744 | T56: 522 | U56: 254 | V56: 128 | W56: 64 | X56: 637 | Y56: 2037 | Z56: 3005 | AA56: 3046 | AB56: All | AC56: 338 | AD56: 438 | AE56: 838 | AF56: 1050 | AG56: 750 | AH56: 445 | AI56: 289 | AJ56: 134 | AK56: 776 | AL56: 2664 | AM56: 4282 | AN56: 4365
A57: Physical Education | B57: Males | C57: 1889 | D57: 9332 | E57: 16186 | F57: 16913 | G57: 11318 | H57: 5547 | I57: 1840 | J57: 434 | K57: 11221 | L57: 44320 | M57: 63459 | N57: 63661 | O57: Females | P57: 2622 | Q57: 8099 | R57: 10351 | S57: 9972 | T57: 6979 | U57: 3548 | V57: 1359 | W57: 398 | X57: 10721 | Y57: 31044 | Z57: 43328 | AA57: 43507 | AB57: All | AC57: 4511 | AD57: 17431 | AE57: 26537 | AF57: 26885 | AG57: 18297 | AH57: 9095 | AI57: 3199 | AJ57: 832 | AK57: 21942 | AL57: 75364 | AM57: 106787 | AN57: 107168
A58: Religious Studies | B58: Males | C58: 8331 | D58: 18304 | E58: 26239 | F58: 24496 | G58: 16186 | H58: 10940 | I58: 7133 | J58: 4733 | K58: 26635 | L58: 77370 | M58: 116362 | N58: 120332 | O58: Females | P58: 20439 | Q58: 31447 | R58: 32477 | S58: 23337 | T58: 13305 | U58: 7981 | V58: 4570 | W58: 2693 | X58: 51886 | Y58: 107700 | Z58: 136249 | AA58: 138413 | AB58: All | AC58: 28770 | AD58: 49751 | AE58: 58716 | AF58: 47833 | AG58: 29491 | AH58: 18921 | AI58: 11703 | AJ58: 7426 | AK58: 78521 | AL58: 185070 | AM58: 252611 | AN58: 258745
A59: Statistics | B59: Males | C59: 1242 | D59: 4318 | E59: 5934 | F59: 7227 | G59: 4031 | H59: 1552 | I59: 727 | J59: 439 | K59: 5560 | L59: 18721 | M59: 25470 | N59: 26149 | O59: Females | P59: 1214 | Q59: 4061 | R59: 5616 | S59: 6727 | T59: 2959 | U59: 1108 | V59: 512 | W59: 251 | X59: 5275 | Y59: 17618 | Z59: 22448 | AA59: 22895 | AB59: All | AC59: 2456 | AD59: 8379 | AE59: 11550 | AF59: 13954 | AG59: 6990 | AH59: 2660 | AI59: 1239 | AJ59: 690 | AK59: 10835 | AL59: 36339 | AM59: 47918 | AN59: 49044
A60: Vocational Studies | B60: Males | C60: 194 | D60: 1096 | E60: 3103 | F60: 5134 | G60: 4610 | H60: 2646 | I60: 1190 | J60: 475 | K60: 1290 | L60: 9527 | M60: 18448 | N60: 18764 | O60: Females | P60: 709 | Q60: 2860 | R60: 5074 | S60: 5493 | T60: 3741 | U60: 1826 | V60: 742 | W60: 276 | X60: 3569 | Y60: 14136 | Z60: 20721 | AA60: 20892 | AB60: All | AC60: 903 | AD60: 3956 | AE60: 8177 | AF60: 10627 | AG60: 8351 | AH60: 4472 | AI60: 1932 | AJ60: 751 | AK60: 4859 | AL60: 23663 | AM60: 39169 | AN60: 39656
A61: All Subjects | B61: Males | C61: 126039 | D61: 292302 | E61: 479546 | F61: 609592 | G61: 368567 | H61: 189948 | I61: 101433 | J61: 54397 | K61: 418341 | L61: 1507479 | M61: 2221824 | N61: 2268833 | O61: Females | P61: 201890 | Q61: 410378 | R61: 572332 | S61: 595836 | T61: 303220 | U61: 137329 | V61: 68361 | W61: 35526 | X61: 612268 | Y61: 1780436 | Z61: 2324872 | AA61: 2358246 | AB61: All | AC61: 327929 | AD61: 702680 | AE61: 1051878 | AF61: 1205428 | AG61: 671787 | AH61: 327277 | AI61: 169794 | AJ61: 89923 | AK61: 1030609 | AL61: 3287915 | AM61: 4546696 | AN61: 4627079

Sheet 2014 DISC3B (hidden)
A1: Subject | B1: (No column name) | C1: * | D1: A | E1: B | F1: C | G1: D | H1: E | I1: F | J1: G | K1: AstarA | L1: AstarC | M1: AstarG | N1: Total | O1: Subject | P1: (No column name) | Q1: * | R1: A | S1: B | T1: C | U1: D | V1: E | W1: F | X1: G | Y1: AstarA | Z1: AstarC | AA1: AstarG | AB1: Total | AC1: (No column name) | AD1: * | AE1: A | AF1: B | AG1: C | AH1: D | AI1: E | AJ1: F | AK1: G | AL1: AstarA | AM1: AstarC | AN1: AstarG | AO1: Total | AP1: (No column name) | AQ1: * | AR1: A | AS1: B | AT1: C | AU1: D | AV1: E | AW1: F | AX1: G | AY1: AstarA | AZ1: AstarC | BA1: AstarG | BB1: Total
A2: English | B2: Males | C2: 6112 | D2: 21803 | E2: 48427 | F2: 72530 | G2: 45407 | H2: 20850 | I2: 8737 | J2: 3385 | K2: 27915 | L2: 148872 | M2: 227251 | N2: 229932 | O2: English | P2: Males | Q2: 6112 | R2: 21803 | S2: 48427 | T2: 72530 | U2: 45407 | V2: 20850 | W2: 8737 | X2: 3385 | Y2: 27915 | Z2: 148872 | AA2: 227251 | AB2: 229932 | AC2: Females | AD2: 13897 | AE2: 39858 | AF2: 65906 | AG2: 67352 | AH2: 30373 | AI2: 10355 | AJ2: 3583 | AK2: 1376 | AL2: 53755 | AM2: 187013 | AN2: 232700 | AO2: 234257 | AP2: All | AQ2: 20009 | AR2: 61661 | AS2: 114333 | AT2: 139882 | AU2: 75780 | AV2: 31205 | AW2: 12320 | AX2: 4761 | AY2: 81670 | AZ2: 335885 | BA2: 459951 | BB2: 464189
A3: Mathematics | B3: Males | C3: 21690 | D3: 34860 | E3: 56181 | F3: 91311 | G3: 37250 | H3: 18835 | I3: 14628 | J3: 11817 | K3: 56550 | L3: 204042 | M3: 286572 | N3: 303147 | O3: Mathematics | P3: Males | Q3: 21690 | R3: 34860 | S3: 56181 | T3: 91311 | U3: 37250 | V3: 18835 | W3: 14628 | X3: 11817 | Y3: 56550 | Z3: 204042 | AA3: 286572 | AB3: 303147 | AC3: Females | AD3: 18973 | AE3: 34730 | AF3: 57214 | AG3: 90975 | AH3: 36556 | AI3: 17371 | AJ3: 13072 | AK3: 10290 | AL3: 53703 | AM3: 201892 | AN3: 279181 | AO3: 293691 | AP3: All | AQ3: 40663 | AR3: 69590 | AS3: 113395 | AT3: 182286 | AU3: 73806 | AV3: 36206 | AW3: 27700 | AX3: 22107 | AY3: 110253 | AZ3: 405934 | BA3: 565753 | BB3: 596838
A4: Core Science | B4: Males | C4: 1804 | D4: 10172 | E4: 29826 | F4: 61059 | G4: 34771 | H4: 19561 | I4: 10300 | J4: 4337 | K4: 11976 | L4: 102861 | M4: 171830 | N4: 175051 | O4: Core Science | P4: Males | Q4: 1804 | R4: 10172 | S4: 29826 | T4: 61059 | U4: 34771 | V4: 19561 | W4: 10300 | X4: 4337 | Y4: 11976 | Z4: 102861 | AA4: 171830 | AB4: 175051 | AC4: Females | AD4: 3038 | AE4: 15101 | AF4: 36589 | AG4: 61211 | AH4: 31193 | AI4: 16599 | AJ4: 8232 | AK4: 3232 | AL4: 18139 | AM4: 115939 | AN4: 175195 | AO4: 177855 | AP4: All | AQ4: 4842 | AR4: 25273 | AS4: 66415 | AT4: 122270 | AU4: 65964 | AV4: 36160 | AW4: 18532 | AX4: 7569 | AY4: 30115 | AZ4: 218800 | BA4: 347025 | BB4: 352906
A5: Additional Science | B5: Males | C5: 2566 | D5: 10592 | E5: 26870 | F5: 42608 | G5: 28740 | H5: 11974 | I5: 5139 | J5: 2000 | K5: 13158 | L5: 82636 | M5: 130489 | N5: 131575 | O5: Additional Science | P5: Males | Q5: 2566 | R5: 10592 | S5: 26870 | T5: 42608 | U5: 28740 | V5: 11974 | W5: 5139 | X5: 2000 | Y5: 13158 | Z5: 82636 | AA5: 130489 | AB5: 131575 | AC5: Females | AD5: 3705 | AE5: 14289 | AF5: 32714 | AG5: 45164 | AH5: 27147 | AI5: 10249 | AJ5: 4027 | AK5: 1468 | AL5: 17994 | AM5: 95872 | AN5: 138763 | AO5: 139627 | AP5: All | AQ5: 6271 | AR5: 24881 | AS5: 59584 | AT5: 87772 | AU5: 55887 | AV5: 22223 | AW5: 9166 | AX5: 3468 | AY5: 31152 | AZ5: 178508 | BA5: 269252 | BB5: 271202
A6: Further Additional Science | B6: Males | C6: 1065 | D6: 2192 | E6: 2873 | F6: 2660 | G6: 1297 | H6: 383 | I6: 81 | J6: 26 | K6: 3257 | L6: 8790 | M6: 10577 | N6: 10607 | O6: Further Additional Science | P6: Males | Q6: 1065 | R6: 2192 | S6: 2873 | T6: 2660 | U6: 1297 | V6: 383 | W6: 81 | X6: 26 | Y6: 3257 | Z6: 8790 | AA6: 10577 | AB6: 10607 | AC6: Females | AD6: 1208 | AE6: 2342 | AF6: 2920 | AG6: 2468 | AH6: 1103 | AI6: 289 | AJ6: 55 | AK6: 24 | AL6: 3550 | AM6: 8938 | AN6: 10409 | AO6: 10429 | AP6: All | AQ6: 2273 | AR6: 4534 | AS6: 5793 | AT6: 5128 | AU6: 2400 | AV6: 672 | AW6: 136 | AX6: 50 | AY6: 6807 | AZ6: 17728 | BA6: 20986 | BB6: 21036
A7: Additional Applied Science | B7: Males | C7: 0 | D7: 59 | E7: 344 | F7: 1324 | G7: 1940 | H7: 1554 | I7: 858 | J7: 339 | K7: 59 | L7: 1727 | M7: 6418 | N7: 6616 | O7: Additional Applied Science | P7: Males | Q7: 0 | R7: 59 | S7: 344 | T7: 1324 | U7: 1940 | V7: 1554 | W7: 858 | X7: 339 | Y7: 59 | Z7: 1727 | AA7: 6418 | AB7: 6616 | AC7: Females | AD7: 10 | AE7: 81 | AF7: 653 | AG7: 1768 | AH7: 2053 | AI7: 1236 | AJ7: 570 | AK7: 197 | AL7: 91 | AM7: 2512 | AN7: 6568 | AO7: 6697 | AP7: All | AQ7: 10 | AR7: 140 | AS7: 997 | AT7: 3092 | AU7: 3993 | AV7: 2790 | AW7: 1428 | AX7: 536 | AY7: 150 | AZ7: 4239 | BA7: 12986 | BB7: 13313
A8: Physics | B8: Males | C8: 9460 | D8: 17797 | E8: 19025 | F8: 13347 | G8: 4401 | H8: 802 | I8: 187 | J8: 65 | K8: 27257 | L8: 59629 | M8: 65084 | N8: 65148 | O8: Physics | P8: Males | Q8: 9460 | R8: 17797 | S8: 19025 | T8: 13347 | U8: 4401 | V8: 802 | W8: 187 | X8: 65 | Y8: 27257 | Z8: 59629 | AA8: 65084 | AB8: 65148 | AC8: Females | AD8: 10091 | AE8: 17292 | AF8: 18378 | AG8: 12771 | AH8: 4080 | AI8: 749 | AJ8: 132 | AK8: 48 | AL8: 27383 | AM8: 58532 | AN8: 63541 | AO8: 63604 | AP8: All | AQ8: 19551 | AR8: 35089 | AS8: 37403 | AT8: 26118 | AU8: 8481 | AV8: 1551 | AW8: 319 | AX8: 113 | AY8: 54640 | AZ8: 118161 | BA8: 128625 | BB8: 128752
A9: Chemistry | B9: Males | C9: 8614 | D9: 17537 | E9: 19173 | F9: 13913 | G9: 5070 | H9: 1100 | I9: 253 | J9: 86 | K9: 26151 | L9: 59237 | M9: 65746 | N9: 65818 | O9: Chemistry | P9: Males | Q9: 8614 | R9: 17537 | S9: 19173 | T9: 13913 | U9: 5070 | V9: 1100 | W9: 253 | X9: 86 | Y9: 26151 | Z9: 59237 | AA9: 65746 | AB9: 65818 | AC9: Females | AD9: 10693 | AE9: 18734 | AF9: 18121 | AG9: 11415 | AH9: 3781 | AI9: 793 | AJ9: 178 | AK9: 51 | AL9: 29427 | AM9: 58963 | AN9: 63766 | AO9: 63841 | AP9: All | AQ9: 19307 | AR9: 36271 | AS9: 37294 | AT9: 25328 | AU9: 8851 | AV9: 1893 | AW9: 431 | AX9: 137 | AY9: 55578 | AZ9: 118200 | BA9: 129512 | BB9: 129659
A10: Biological Sciences | B10: Males | C10: 7521 | D10: 17709 | E10: 20331 | F10: 14679 | G10: 5053 | H10: 1152 | I10: 426 | J10: 186 | K10: 25230 | L10: 60240 | M10: 67057 | N10: 67270 | O10: Biological Sciences | P10: Males | Q10: 7521 | R10: 17709 | S10: 20331 | T10: 14679 | U10: 5053 | V10: 1152 | W10: 426 | X10: 186 | Y10: 25230 | Z10: 60240 | AA10: 67057 | AB10: 67270 | AC10: Females | AD10: 10953 | AE10: 19676 | AF10: 18814 | AG10: 11254 | AH10: 3608 | AI10: 792 | AJ10: 319 | AK10: 137 | AL10: 30629 | AM10: 60697 | AN10: 65553 | AO10: 65698 | AP10: All | AQ10: 18474 | AR10: 37385 | AS10: 39145 | AT10: 25933 | AU10: 8661 | AV10: 1944 | AW10: 745 | AX10: 323 | AY10: 55859 | AZ10: 120937 | BA10: 132610 | BB10: 132968
A11: Computer Science | B11: Males | C11: 812 | D11: 2229 | E11: 2866 | F11: 2738 | G11: 1885 | H11: 1185 | I11: 728 | J11: 462 | K11: 3041 | L11: 8645 | M11: 12905 | N11: 13428 | O11: Computer Science | P11: Males | Q11: 812 | R11: 2229 | S11: 2866 | T11: 2738 | U11: 1885 | V11: 1185 | W11: 728 | X11: 462 | Y11: 3041 | Z11: 8645 | AA11: 12905 | AB11: 13428 | AC11: Females | AD11: 197 | AE11: 460 | AF11: 516 | AG11: 503 | AH11: 322 | AI11: 176 | AJ11: 88 | AK11: 40 | AL11: 657 | AM11: 1676 | AN11: 2302 | AO11: 2374 | AP11: All | AQ11: 1009 | AR11: 2689 | AS11: 3382 | AT11: 3241 | AU11: 2207 | AV11: 1361 | AW11: 816 | AX11: 502 | AY11: 3698 | AZ11: 10321 | BA11: 15207 | BB11: 15802
A12: Other Sciences | B12: Males | C12: 437 | D12: 614 | E12: 689 | F12: 714 | G12: 655 | H12: 502 | I12: 354 | J12: 206 | K12: 1051 | L12: 2454 | M12: 4171 | N12: 4288 | O12: Other Sciences | P12: Males | Q12: 437 | R12: 614 | S12: 689 | T12: 714 | U12: 655 | V12: 502 | W12: 354 | X12: 206 | Y12: 1051 | Z12: 2454 | AA12: 4171 | AB12: 4288 | AC12: Females | AD12: 113 | AE12: 248 | AF12: 464 | AG12: 557 | AH12: 446 | AI12: 329 | AJ12: 212 | AK12: 137 | AL12: 361 | AM12: 1382 | AN12: 2506 | AO12: 2580 | AP12: All | AQ12: 550 | AR12: 862 | AS12: 1153 | AT12: 1271 | AU12: 1101 | AV12: 831 | AW12: 566 | AX12: 343 | AY12: 1412 | AZ12: 3836 | BA12: 6677 | BB12: 6868
A13: D & T: Electronic Products | B13: Males | C13: 534 | D13: 1116 | E13: 1648 | F13: 1611 | G13: 1141 | H13: 762 | I13: 469 | J13: 261 | K13: 1650 | L13: 4909 | M13: 7542 | N13: 7692 | O13: D & T: Electronic Products | P13: Males | Q13: 534 | R13: 1116 | S13: 1648 | T13: 1611 | U13: 1141 | V13: 762 | W13: 469 | X13: 261 | Y13: 1650 | Z13: 4909 | AA13: 7542 | AB13: 7692 | AC13: Females | AD13: 107 | AE13: 164 | AF13: 154 | AG13: 83 | AH13: 60 | AI13: 37 | AJ13: 10 | AK13: 8 | AL13: 271 | AM13: 508 | AN13: 623 | AO13: 628 | AP13: All | AQ13: 641 | AR13: 1280 | AS13: 1802 | AT13: 1694 | AU13: 1201 | AV13: 799 | AW13: 479 | AX13: 269 | AY13: 1921 | AZ13: 5417 | BA13: 8165 | BB13: 8320
A14: D & T: Food Technology | B14: Males | C14: 226 | D14: 874 | E14: 2106 | F14: 3637 | G14: 3468 | H14: 2347 | I14: 1364 | J14: 613 | K14: 1100 | L14: 6843 | M14: 14635 | N14: 14951 | O14: D & T: Food Technology | P14: Males | Q14: 226 | R14: 874 | S14: 2106 | T14: 3637 | U14: 3468 | V14: 2347 | W14: 1364 | X14: 613 | Y14: 1100 | Z14: 6843 | AA14: 14635 | AB14: 14951 | AC14: Females | AD14: 1850 | AE14: 4321 | AF14: 6073 | AG14: 5941 | AH14: 3827 | AI14: 2044 | AJ14: 980 | AK14: 384 | AL14: 6171 | AM14: 18185 | AN14: 25420 | AO14: 25639 | AP14: All | AQ14: 2076 | AR14: 5195 | AS14: 8179 | AT14: 9578 | AU14: 7295 | AV14: 4391 | AW14: 2344 | AX14: 997 | AY14: 7271 | AZ14: 25028 | BA14: 40055 | BB14: 40590
A15: D & T: Graphic Products | B15: Males | C15: 583 | D15: 1795 | E15: 3515 | F15: 4765 | G15: 4157 | H15: 2699 | I15: 1728 | J15: 1040 | K15: 2378 | L15: 10658 | M15: 20282 | N15: 20953 | O15: D & T: Graphic Products | P15: Males | Q15: 583 | R15: 1795 | S15: 3515 | T15: 4765 | U15: 4157 | V15: 2699 | W15: 1728 | X15: 1040 | Y15: 2378 | Z15: 10658 | AA15: 20282 | AB15: 20953 | AC15: Females | AD15: 1012 | AE15: 2395 | AF15: 3037 | AG15: 2750 | AH15: 1815 | AI15: 971 | AJ15: 523 | AK15: 266 | AL15: 3407 | AM15: 9194 | AN15: 12769 | AO15: 12921 | AP15: All | AQ15: 1595 | AR15: 4190 | AS15: 6552 | AT15: 7515 | AU15: 5972 | AV15: 3670 | AW15: 2251 | AX15: 1306 | AY15: 5785 | AZ15: 19852 | BA15: 33051 | BB15: 33874
A16: D & T: Resistant Materials | B16: Males | C16: 1296 | D16: 3973 | E16: 8216 | F16: 11007 | G16: 8864 | H16: 5728 | I16: 3405 | J16: 1648 | K16: 5269 | L16: 24492 | M16: 44137 | N16: 45024 | O16: D & T: Resistant Materials | P16: Males | Q16: 1296 | R16: 3973 | S16: 8216 | T16: 11007 | U16: 8864 | V16: 5728 | W16: 3405 | X16: 1648 | Y16: 5269 | Z16: 24492 | AA16: 44137 | AB16: 45024 | AC16: Females | AD16: 676 | AE16: 1431 | AF16: 1851 | AG16: 1644 | AH16: 1072 | AI16: 569 | AJ16: 287 | AK16: 160 | AL16: 2107 | AM16: 5602 | AN16: 7690 | AO16: 7760 | AP16: All | AQ16: 1972 | AR16: 5404 | AS16: 10067 | AT16: 12651 | AU16: 9936 | AV16: 6297 | AW16: 3692 | AX16: 1808 | AY16: 7376 | AZ16: 30094 | BA16: 51827 | BB16: 52784
A17: D & T: Systems & Control | B17: Males | C17: 251 | D17: 408 | E17: 631 | F17: 681 | G17: 512 | H17: 294 | I17: 185 | J17: 87 | K17: 659 | L17: 1971 | M17: 3049 | N17: 3091 | O17: D & T: Systems & Control | P17: Males | Q17: 251 | R17: 408 | S17: 631 | T17: 681 | U17: 512 | V17: 294 | W17: 185 | X17: 87 | Y17: 659 | Z17: 1971 | AA17: 3049 | AB17: 3091 | AC17: Females | AD17: 7 | AE17: 30 | AF17: 29 | AG17: 34 | AH17: 31 | AI17: 10 | AJ17: 6 | AK17: 1 | AL17: 37 | AM17: 100 | AN17: 148 | AO17: 150 | AP17: All | AQ17: 258 | AR17: 438 | AS17: 660 | AT17: 715 | AU17: 543 | AV17: 304 | AW17: 191 | AX17: 88 | AY17: 696 | AZ17: 2071 | BA17: 3197 | BB17: 3241
A18: D & T: Textiles Technology | B18: Males | C18: 24 | D18: 33 | E18: 79 | F18: 162 | G18: 164 | H18: 144 | I18: 120 | J18: 48 | K18: 57 | L18: 298 | M18: 774 | N18: 820 | O18: D & T: Textiles Technology | P18: Males | Q18: 24 | R18: 33 | S18: 79 | T18: 162 | U18: 164 | V18: 144 | W18: 120 | X18: 48 | Y18: 57 | Z18: 298 | AA18: 774 | AB18: 820 | AC18: Females | AD18: 2475 | AE18: 4243 | AF18: 5695 | AG18: 5581 | AH18: 3456 | AI18: 1854 | AJ18: 850 | AK18: 390 | AL18: 6718 | AM18: 17994 | AN18: 24544 | AO18: 24773 | AP18: All | AQ18: 2499 | AR18: 4276 | AS18: 5774 | AT18: 5743 | AU18: 3620 | AV18: 1998 | AW18: 970 | AX18: 438 | AY18: 6775 | AZ18: 18292 | BA18: 25318 | BB18: 25593
A19: Other Design and Technology | B19: Males | C19: 740 | D19: 2066 | E19: 4417 | F19: 6349 | G19: 5320 | H19: 3460 | I19: 2095 | J19: 1006 | K19: 2806 | L19: 13572 | M19: 25453 | N19: 26092 | O19: Other Design and Technology | P19: Males | Q19: 740 | R19: 2066 | S19: 4417 | T19: 6349 | U19: 5320 | V19: 3460 | W19: 2095 | X19: 1006 | Y19: 2806 | Z19: 13572 | AA19: 25453 | AB19: 26092 | AC19: Females | AD19: 977 | AE19: 1970 | AF19: 2531 | AG19: 2283 | AH19: 1456 | AI19: 805 | AJ19: 417 | AK19: 215 | AL19: 2947 | AM19: 7761 | AN19: 10654 | AO19: 10761 | AP19: All | AQ19: 1717 | AR19: 4036 | AS19: 6948 | AT19: 8632 | AU19: 6776 | AV19: 4265 | AW19: 2512 | AX19: 1221 | AY19: 5753 | AZ19: 21333 | BA19: 36107 | BB19: 36853
A20: Applied Engineering | B20: Males | C20: 40 | D20: 152 | E20: 438 | F20: 846 | G20: 854 | H20: 678 | I20: 399 | J20: 242 | K20: 192 | L20: 1476 | M20: 3649 | N20: 3863 | O20: Applied Engineering | P20: Males | Q20: 40 | R20: 152 | S20: 438 | T20: 846 | U20: 854 | V20: 678 | W20: 399 | X20: 242 | Y20: 192 | Z20: 1476 | AA20: 3649 | AB20: 3863 | AC20: Females | AD20: 2 | AE20: 23 | AF20: 49 | AG20: 52 | AH20: 49 | AI20: 34 | AJ20: 11 | AK20: 7 | AL20: 25 | AM20: 126 | AN20: 227 | AO20: 228 | AP20: All | AQ20: 42 | AR20: 175 | AS20: 487 | AT20: 898 | AU20: 903 | AV20: 712 | AW20: 410 | AX20: 249 | AY20: 217 | AZ20: 1602 | BA20: 3876 | BB20: 4091
A21: Information Technology | B21: Males | C21: 2056 | D21: 6699 | E21: 10596 | F21: 10960 | G21: 6726 | H21: 3751 | I21: 2609 | J21: 1856 | K21: 8755 | L21: 30311 | M21: 45253 | N21: 46552 | O21: Information Technology | P21: Males | Q21: 2056 | R21: 6699 | S21: 10596 | T21: 10960 | U21: 6726 | V21: 3751 | W21: 2609 | X21: 1856 | Y21: 8755 | Z21: 30311 | AA21: 45253 | AB21: 46552 | AC21: Females | AD21: 2660 | AE21: 6643 | AF21: 8419 | AG21: 7896 | AH21: 4330 | AI21: 2323 | AJ21: 1359 | AK21: 953 | AL21: 9303 | AM21: 25618 | AN21: 34583 | AO21: 35324 | AP21: All | AQ21: 4716 | AR21: 13342 | AS21: 19015 | AT21: 18856 | AU21: 11056 | AV21: 6074 | AW21: 3968 | AX21: 2809 | AY21: 18058 | AZ21: 55929 | BA21: 79836 | BB21: 81876
A22: Business Studies | B22: Males | C22: 1336 | D22: 5989 | E22: 10422 | F22: 10474 | G22: 7105 | H22: 4041 | I22: 2332 | J22: 1303 | K22: 7325 | L22: 28221 | M22: 43002 | N22: 43774 | O22: Business Studies | P22: Males | Q22: 1336 | R22: 5989 | S22: 10422 | T22: 10474 | U22: 7105 | V22: 4041 | W22: 2332 | X22: 1303 | Y22: 7325 | Z22: 28221 | AA22: 43002 | AB22: 43774 | AC22: Females | AD22: 1372 | AE22: 5336 | AF22: 7821 | AG22: 6971 | AH22: 4253 | AI22: 2392 | AJ22: 1320 | AK22: 684 | AL22: 6708 | AM22: 21500 | AN22: 30149 | AO22: 30552 | AP22: All | AQ22: 2708 | AR22: 11325 | AS22: 18243 | AT22: 17445 | AU22: 11358 | AV22: 6433 | AW22: 3652 | AX22: 1987 | AY22: 14033 | AZ22: 49721 | BA22: 73151 | BB22: 74326
A23: Applied Business | B23: Males | C23: 89 | D23: 442 | E23: 908 | F23: 1138 | G23: 816 | H23: 581 | I23: 360 | J23: 237 | K23: 531 | L23: 2577 | M23: 4571 | N23: 4852 | O23: Applied Business | P23: Males | Q23: 89 | R23: 442 | S23: 908 | T23: 1138 | U23: 816 | V23: 581 | W23: 360 | X23: 237 | Y23: 531 | Z23: 2577 | AA23: 4571 | AB23: 4852 | AC23: Females | AD23: 116 | AE23: 535 | AF23: 742 | AG23: 640 | AH23: 443 | AI23: 301 | AJ23: 174 | AK23: 114 | AL23: 651 | AM23: 2033 | AN23: 3065 | AO23: 3185 | AP23: All | AQ23: 205 | AR23: 977 | AS23: 1650 | AT23: 1778 | AU23: 1259 | AV23: 882 | AW23: 534 | AX23: 351 | AY23: 1182 | AZ23: 4610 | BA23: 7636 | BB23: 8037
A24: Home Economics | B24: Males | C24: 21 | D24: 145 | E24: 471 | F24: 832 | G24: 814 | H24: 639 | I24: 393 | J24: 183 | K24: 166 | L24: 1469 | M24: 3498 | N24: 3594 | O24: Home Economics | P24: Males | Q24: 21 | R24: 145 | S24: 471 | T24: 832 | U24: 814 | V24: 639 | W24: 393 | X24: 183 | Y24: 166 | Z24: 1469 | AA24: 3498 | AB24: 3594 | AC24: Females | AD24: 734 | AE24: 2634 | AF24: 4819 | AG24: 5809 | AH24: 4831 | AI24: 3063 | AJ24: 1596 | AK24: 695 | AL24: 3368 | AM24: 13996 | AN24: 24181 | AO24: 24583 | AP24: All | AQ24: 755 | AR24: 2779 | AS24: 5290 | AT24: 6641 | AU24: 5645 | AV24: 3702 | AW24: 1989 | AX24: 878 | AY24: 3534 | AZ24: 15465 | BA24: 27679 | BB24: 28177
A25: Geography | B25: Males | C25: 8243 | D25: 16787 | E25: 22096 | F25: 26147 | G25: 18415 | H25: 10722 | I25: 5778 | J25: 2908 | K25: 25030 | L25: 73273 | M25: 111096 | N25: 112281 | O25: Geography | P25: Males | Q25: 8243 | R25: 16787 | S25: 22096 | T25: 26147 | U25: 18415 | V25: 10722 | W25: 5778 | X25: 2908 | Y25: 25030 | Z25: 73273 | AA25: 111096 | AB25: 112281 | AC25: Females | AD25: 11822 | AE25: 19122 | AF25: 20580 | AG25: 19793 | AH25: 12238 | AI25: 7036 | AJ25: 3861 | AK25: 1852 | AL25: 30944 | AM25: 71317 | AN25: 96304 | AO25: 96959 | AP25: All | AQ25: 20065 | AR25: 35909 | AS25: 42676 | AT25: 45940 | AU25: 30653 | AV25: 17758 | AW25: 9639 | AX25: 4760 | AY25: 55974 | AZ25: 144590 | BA25: 207400 | BB25: 209240
A26: History | B26: Males | C26: 8941 | D26: 19025 | E26: 23853 | F26: 22889 | G26: 16334 | H26: 10703 | I26: 6705 | J26: 4244 | K26: 27966 | L26: 74708 | M26: 112694 | N26: 115413 | O26: History | P26: Males | Q26: 8941 | R26: 19025 | S26: 23853 | T26: 22889 | U26: 16334 | V26: 10703 | W26: 6705 | X26: 4244 | Y26: 27966 | Z26: 74708 | AA26: 112694 | AB26: 115413 | AC26: Females | AD26: 15241 | AE26: 25028 | AF26: 25944 | AG26: 21919 | AH26: 14846 | AI26: 9323 | AJ26: 5520 | AK26: 3237 | AL26: 40269 | AM26: 88132 | AN26: 121058 | AO26: 122846 | AP26: All | AQ26: 24182 | AR26: 44053 | AS26: 49797 | AT26: 44808 | AU26: 31180 | AV26: 20026 | AW26: 12225 | AX26: 7481 | AY26: 68235 | AZ26: 162840 | BA26: 233752 | BB26: 238259
A27: Humanities | B27: Males | C27: 62 | D27: 259 | E27: 694 | F27: 1023 | G27: 947 | H27: 831 | I27: 621 | J27: 390 | K27: 321 | L27: 2038 | M27: 4827 | N27: 5150 | O27: Humanities | P27: Males | Q27: 62 | R27: 259 | S27: 694 | T27: 1023 | U27: 947 | V27: 831 | W27: 621 | X27: 390 | Y27: 321 | Z27: 2038 | AA27: 4827 | AB27: 5150 | AC27: Females | AD27: 154 | AE27: 453 | AF27: 914 | AG27: 1018 | AH27: 899 | AI27: 669 | AJ27: 436 | AK27: 236 | AL27: 607 | AM27: 2539 | AN27: 4779 | AO27: 4916 | AP27: All | AQ27: 216 | AR27: 712 | AS27: 1608 | AT27: 2041 | AU27: 1846 | AV27: 1500 | AW27: 1057 | AX27: 626 | AY27: 928 | AZ27: 4577 | BA27: 9606 | BB27: 10066
A28: Economics | B28: Males | C28: 234 | D28: 828 | E28: 1044 | F28: 650 | G28: 331 | H28: 187 | I28: 104 | J28: 51 | K28: 1062 | L28: 2756 | M28: 3429 | N28: 3481 | O28: Economics | P28: Males | Q28: 234 | R28: 828 | S28: 1044 | T28: 650 | U28: 331 | V28: 187 | W28: 104 | X28: 51 | Y28: 1062 | Z28: 2756 | AA28: 3429 | AB28: 3481 | AC28: Females | AD28: 77 | AE28: 380 | AF28: 416 | AG28: 269 | AH28: 150 | AI28: 77 | AJ28: 31 | AK28: 24 | AL28: 457 | AM28: 1142 | AN28: 1424 | AO28: 1445 | AP28: All | AQ28: 311 | AR28: 1208 | AS28: 1460 | AT28: 919 | AU28: 481 | AV28: 264 | AW28: 135 | AX28: 75 | AY28: 1519 | AZ28: 3898 | BA28: 4853 | BB28: 4926
A29: Social Studies | B29: Males | C29: 300 | D29: 1750 | E29: 4024 | F29: 4916 | G29: 3744 | H29: 2486 | I29: 1611 | J29: 971 | K29: 2050 | L29: 10990 | M29: 19802 | N29: 20556 | O29: Social Studies | P29: Males | Q29: 300 | R29: 1750 | S29: 4024 | T29: 4916 | U29: 3744 | V29: 2486 | W29: 1611 | X29: 971 | Y29: 2050 | Z29: 10990 | AA29: 19802 | AB29: 20556 | AC29: Females | AD29: 1422 | AE29: 6152 | AF29: 9235 | AG29: 8231 | AH29: 5000 | AI29: 3040 | AJ29: 1794 | AK29: 888 | AL29: 7574 | AM29: 25040 | AN29: 35762 | AO29: 36435 | AP29: All | AQ29: 1722 | AR29: 7902 | AS29: 13259 | AT29: 13147 | AU29: 8744 | AV29: 5526 | AW29: 3405 | AX29: 1859 | AY29: 9624 | AZ29: 36030 | BA29: 55564 | BB29: 56991
A30: Arabic | B30: Males | C30: 448 | D30: 282 | E30: 175 | F30: 148 | G30: 88 | H30: 68 | I30: 55 | J30: 40 | K30: 730 | L30: 1053 | M30: 1304 | N30: 1368 | O30: Arabic | P30: Males | Q30: 448 | R30: 282 | S30: 175 | T30: 148 | U30: 88 | V30: 68 | W30: 55 | X30: 40 | Y30: 730 | Z30: 1053 | AA30: 1304 | AB30: 1368 | AC30: Females | AD30: 578 | AE30: 321 | AF30: 212 | AG30: 150 | AH30: 89 | AI30: 72 | AJ30: 74 | AK30: 44 | AL30: 899 | AM30: 1261 | AN30: 1540 | AO30: 1598 | AP30: All | AQ30: 1026 | AR30: 603 | AS30: 387 | AT30: 298 | AU30: 177 | AV30: 140 | AW30: 129 | AX30: 84 | AY30: 1629 | AZ30: 2314 | BA30: 2844 | BB30: 2966
A31: Chinese | B31: Males | C31: 844 | D31: 254 | E31: 160 | F31: 122 | G31: 67 | H31: 14 | I31: 3 | J31: 0 | K31: 1098 | L31: 1380 | M31: 1464 | N31: 1470 | O31: Chinese | P31: Males | Q31: 844 | R31: 254 | S31: 160 | T31: 122 | U31: 67 | V31: 14 | W31: 3 | X31: 0 | Y31: 1098 | Z31: 1380 | AA31: 1464 | AB31: 1470 | AC31: Females | AD31: 907 | AE31: 204 | AF31: 120 | AG31: 83 | AH31: 31 | AI31: 7 | AJ31: 3 | AK31: 2 | AL31: 1111 | AM31: 1314 | AN31: 1357 | AO31: 1360 | AP31: All | AQ31: 1751 | AR31: 458 | AS31: 280 | AT31: 205 | AU31: 98 | AV31: 21 | AW31: 6 | AX31: 2 | AY31: 2209 | AZ31: 2694 | BA31: 2821 | BB31: 2830
A32: French | B32: Males | C32: 5067 | D32: 7752 | E32: 11585 | F32: 18782 | G32: 15303 | H32: 6826 | I32: 2519 | J32: 928 | K32: 12819 | L32: 43186 | M32: 68762 | N32: 69121 | O32: French | P32: Males | Q32: 5067 | R32: 7752 | S32: 11585 | T32: 18782 | U32: 15303 | V32: 6826 | W32: 2519 | X32: 928 | Y32: 12819 | Z32: 43186 | AA32: 68762 | AB32: 69121 | AC32: Females | AD32: 10106 | AE32: 14165 | AF32: 18785 | AG32: 24868 | AH32: 15916 | AI32: 5440 | AJ32: 1731 | AK32: 551 | AL32: 24271 | AM32: 67924 | AN32: 91562 | AO32: 91834 | AP32: All | AQ32: 15173 | AR32: 21917 | AS32: 30370 | AT32: 43650 | AU32: 31219 | AV32: 12266 | AW32: 4250 | AX32: 1479 | AY32: 37090 | AZ32: 111110 | BA32: 160324 | BB32: 160955
A33: German | B33: Males | C33: 1922 | D33: 3389 | E33: 5738 | F33: 8159 | G33: 5600 | H33: 2127 | I33: 767 | J33: 221 | K33: 5311 | L33: 19208 | M33: 27923 | N33: 28070 | O33: German | P33: Males | Q33: 1922 | R33: 3389 | S33: 5738 | T33: 8159 | U33: 5600 | V33: 2127 | W33: 767 | X33: 221 | Y33: 5311 | Z33: 19208 | AA33: 27923 | AB33: 28070 | AC33: Females | AD33: 2939 | AE33: 5097 | AF33: 7556 | AG33: 8317 | AH33: 4504 | AI33: 1409 | AJ33: 424 | AK33: 110 | AL33: 8036 | AM33: 23909 | AN33: 30356 | AO33: 30450 | AP33: All | AQ33: 4861 | AR33: 8486 | AS33: 13294 | AT33: 16476 | AU33: 10104 | AV33: 3536 | AW33: 1191 | AX33: 331 | AY33: 13347 | AZ33: 43117 | BA33: 58279 | BB33: 58520
A34: Italian | B34: Males | C34: 688 | D34: 324 | E34: 269 | F34: 217 | G34: 136 | H34: 59 | I34: 24 | J34: 8 | K34: 1012 | L34: 1498 | M34: 1725 | N34: 1740 | O34: Italian | P34: Males | Q34: 688 | R34: 324 | S34: 269 | T34: 217 | U34: 136 | V34: 59 | W34: 24 | X34: 8 | Y34: 1012 | Z34: 1498 | AA34: 1725 | AB34: 1740 | AC34: Females | AD34: 936 | AE34: 460 | AF34: 402 | AG34: 291 | AH34: 156 | AI34: 48 | AJ34: 26 | AK34: 8 | AL34: 1396 | AM34: 2089 | AN34: 2327 | AO34: 2328 | AP34: All | AQ34: 1624 | AR34: 784 | AS34: 671 | AT34: 508 | AU34: 292 | AV34: 107 | AW34: 50 | AX34: 16 | AY34: 2408 | AZ34: 3587 | BA34: 4052 | BB34: 4068
A35: Polish | B35: Males | C35: 429 | D35: 802 | E35: 336 | F35: 135 | G35: 65 | H35: 30 | I35: 6 | J35: 19 | K35: 1231 | L35: 1702 | M35: 1822 | N35: 1860 | O35: Polish | P35: Males | Q35: 429 | R35: 802 | S35: 336 | T35: 135 | U35: 65 | V35: 30 | W35: 6 | X35: 19 | Y35: 1231 | Z35: 1702 | AA35: 1822 | AB35: 1860 | AC35: Females | AD35: 861 | AE35: 810 | AF35: 251 | AG35: 84 | AH35: 26 | AI35: 14 | AJ35: 5 | AK35: 10 | AL35: 1671 | AM35: 2006 | AN35: 2061 | AO35: 2088 | AP35: All | AQ35: 1290 | AR35: 1612 | AS35: 587 | AT35: 219 | AU35: 91 | AV35: 44 | AW35: 11 | AX35: 29 | AY35: 2902 | AZ35: 3708 | BA35: 3883 | BB35: 3948
A36: Spanish | B36: Males | C36: 3533 | D36: 4958 | E36: 7002 | F36: 9259 | G36: 7113 | H36: 3434 | I36: 1657 | J36: 753 | K36: 8491 | L36: 24752 | M36: 37709 | N36: 38078 | O36: Spanish | P36: Males | Q36: 3533 | R36: 4958 | S36: 7002 | T36: 9259 | U36: 7113 | V36: 3434 | W36: 1657 | X36: 753 | Y36: 8491 | Z36: 24752 | AA36: 37709 | AB36: 38078 | AC36: Females | AD36: 6890 | AE36: 9041 | AF36: 10287 | AG36: 11341 | AH36: 7098 | AI36: 2921 | AJ36: 1170 | AK36: 481 | AL36: 15931 | AM36: 37559 | AN36: 49229 | AO36: 49475 | AP36: All | AQ36: 10423 | AR36: 13999 | AS36: 17289 | AT36: 20600 | AU36: 14211 | AV36: 6355 | AW36: 2827 | AX36: 1234 | AY36: 24422 | AZ36: 62311 | BA36: 86938 | BB36: 87553
A37: Urdu | B37: Males | C37: 91 | D37: 289 | E37: 343 | F37: 322 | G37: 278 | H37: 152 | I37: 86 | J37: 26 | K37: 380 | L37: 1045 | M37: 1587 | N37: 1614 | O37: Urdu | P37: Males | Q37: 91 | R37: 289 | S37: 343 | T37: 322 | U37: 278 | V37: 152 | W37: 86 | X37: 26 | Y37: 380 | Z37: 1045 | AA37: 1587 | AB37: 1614 | AC37: Females | AD37: 361 | AE37: 679 | AF37: 603 | AG37: 440 | AH37: 222 | AI37: 104 | AJ37: 40 | AK37: 27 | AL37: 1040 | AM37: 2083 | AN37: 2476 | AO37: 2497 | AP37: All | AQ37: 452 | AR37: 968 | AS37: 946 | AT37: 762 | AU37: 500 | AV37: 256 | AW37: 126 | AX37: 53 | AY37: 1420 | AZ37: 3128 | BA37: 4063 | BB37: 4111
A38: Other Modern Languages | B38: Males | C38: 1533 | D38: 1254 | E38: 881 | F38: 542 | G38: 279 | H38: 136 | I38: 80 | J38: 31 | K38: 2787 | L38: 4210 | M38: 4736 | N38: 4791 | O38: Other Modern Languages | P38: Males | Q38: 1533 | R38: 1254 | S38: 881 | T38: 542 | U38: 279 | V38: 136 | W38: 80 | X38: 31 | Y38: 2787 | Z38: 4210 | AA38: 4736 | AB38: 4791 | AC38: Females | AD38: 2032 | AE38: 1656 | AF38: 912 | AG38: 477 | AH38: 234 | AI38: 109 | AJ38: 50 | AK38: 32 | AL38: 3688 | AM38: 5077 | AN38: 5502 | AO38: 5563 | AP38: All | AQ38: 3565 | AR38: 2910 | AS38: 1793 | AT38: 1019 | AU38: 513 | AV38: 245 | AW38: 130 | AX38: 63 | AY38: 6475 | AZ38: 9287 | BA38: 10238 | BB38: 10354
A39: Classical Civilisation | B39: Males | C39: 183 | D39: 509 | E39: 542 | F39: 434 | G39: 252 | H39: 118 | I39: 56 | J39: 32 | K39: 692 | L39: 1668 | M39: 2126 | N39: 2145 | O39: Classical Civilisation | P39: Males | Q39: 183 | R39: 509 | S39: 542 | T39: 434 | U39: 252 | V39: 118 | W39: 56 | X39: 32 | Y39: 692 | Z39: 1668 | AA39: 2126 | AB39: 2145 | AC39: Females | AD39: 344 | AE39: 547 | AF39: 448 | AG39: 310 | AH39: 180 | AI39: 80 | AJ39: 38 | AK39: 15 | AL39: 891 | AM39: 1649 | AN39: 1962 | AO39: 1972 | AP39: All | AQ39: 527 | AR39: 1056 | AS39: 990 | AT39: 744 | AU39: 432 | AV39: 198 | AW39: 94 | AX39: 47 | AY39: 1583 | AZ39: 3317 | BA39: 4088 | BB39: 4117
A40: Classical Greek | B40: Males | C40: 416 | D40: 155 | E40: 70 | F40: 32 | G40: 15 | H40: 4 | I40: 5 | J40: 4 | K40: 571 | L40: 673 | M40: 701 | N40: 705 | O40: Classical Greek | P40: Males | Q40: 416 | R40: 155 | S40: 70 | T40: 32 | U40: 15 | V40: 4 | W40: 5 | X40: 4 | Y40: 571 | Z40: 673 | AA40: 701 | AB40: 705 | AC40: Females | AD40: 312 | AE40: 93 | AF40: 33 | AG40: 10 | AH40: 6 | AI40: 5 | AJ40: 5 | AK40: 1 | AL40: 405 | AM40: 448 | AN40: 465 | AO40: 468 | AP40: All | AQ40: 728 | AR40: 248 | AS40: 103 | AT40: 42 | AU40: 21 | AV40: 9 | AW40: 10 | AX40: 5 | AY40: 976 | AZ40: 1121 | BA40: 1166 | BB40: 1173
A41: Latin | B41: Males | C41: 1747 | D41: 1188 | E41: 647 | F41: 355 | G41: 197 | H41: 85 | I41: 41 | J41: 25 | K41: 2935 | L41: 3937 | M41: 4285 | N41: 4302 | O41: Latin | P41: Males | Q41: 1747 | R41: 1188 | S41: 647 | T41: 355 | U41: 197 | V41: 85 | W41: 41 | X41: 25 | Y41: 2935 | Z41: 3937 | AA41: 4285 | AB41: 4302 | AC41: Females | AD41: 2128 | AE41: 1245 | AF41: 571 | AG41: 347 | AH41: 155 | AI41: 67 | AJ41: 31 | AK41: 9 | AL41: 3373 | AM41: 4291 | AN41: 4553 | AO41: 4566 | AP41: All | AQ41: 3875 | AR41: 2433 | AS41: 1218 | AT41: 702 | AU41: 352 | AV41: 152 | AW41: 72 | AX41: 34 | AY41: 6308 | AZ41: 8228 | BA41: 8838 | BB41: 8868
A42: Other Classical Studies | B42: Males | C42: 113 | D42: 174 | E42: 163 | F42: 107 | G42: 72 | H42: 62 | I42: 30 | J42: 20 | K42: 287 | L42: 557 | M42: 741 | N42: 769 | O42: Other Classical Studies | P42: Males | Q42: 113 | R42: 174 | S42: 163 | T42: 107 | U42: 72 | V42: 62 | W42: 30 | X42: 20 | Y42: 287 | Z42: 557 | AA42: 741 | AB42: 769 | AC42: Females | AD42: 126 | AE42: 230 | AF42: 176 | AG42: 151 | AH42: 77 | AI42: 45 | AJ42: 16 | AK42: 15 | AL42: 356 | AM42: 683 | AN42: 836 | AO42: 859 | AP42: All | AQ42: 239 | AR42: 404 | AS42: 339 | AT42: 258 | AU42: 149 | AV42: 107 | AW42: 46 | AX42: 35 | AY42: 643 | AZ42: 1240 | BA42: 1577 | BB42: 1628
A43: Applied Art and Design | B43: Males | C43: 5 | D43: 19 | E43: 62 | F43: 137 | G43: 77 | H43: 32 | I43: 19 | J43: 9 | K43: 24 | L43: 223 | M43: 360 | N43: 367 | O43: Applied Art and Design | P43: Males | Q43: 5 | R43: 19 | S43: 62 | T43: 137 | U43: 77 | V43: 32 | W43: 19 | X43: 9 | Y43: 24 | Z43: 223 | AA43: 360 | AB43: 367 | AC43: Females | AD43: 15 | AE43: 72 | AF43: 134 | AG43: 166 | AH43: 66 | AI43: 21 | AJ43: 8 | AK43: 0 | AL43: 87 | AM43: 387 | AN43: 482 | AO43: 489 | AP43: All | AQ43: 20 | AR43: 91 | AS43: 196 | AT43: 303 | AU43: 143 | AV43: 53 | AW43: 27 | AX43: 9 | AY43: 111 | AZ43: 610 | BA43: 842 | BB43: 856
A44: Art and Design | B44: Males | C44: 2759 | D44: 4638 | E44: 10526 | F44: 18969 | G44: 9981 | H44: 5702 | I44: 3052 | J44: 1428 | K44: 7397 | L44: 36892 | M44: 57055 | N44: 58109 | O44: Art and Design | P44: Males | Q44: 2759 | R44: 4638 | S44: 10526 | T44: 18969 | U44: 9981 | V44: 5702 | W44: 3052 | X44: 1428 | Y44: 7397 | Z44: 36892 | AA44: 57055 | AB44: 58109 | AC44: Females | AD44: 12664 | AE44: 18830 | AF44: 30594 | AG44: 31327 | AH44: 11324 | AI44: 4639 | AJ44: 2035 | AK44: 750 | AL44: 31494 | AM44: 93415 | AN44: 112163 | AO44: 112969 | AP44: All | AQ44: 15423 | AR44: 23468 | AS44: 41120 | AT44: 50296 | AU44: 21305 | AV44: 10341 | AW44: 5087 | AX44: 2178 | AY44: 38891 | AZ44: 130307 | BA44: 169218 | BB44: 171078
A45: Communication Studies | B45: Males | C45: 94 | D45: 389 | E45: 790 | F45: 1170 | G45: 945 | H45: 620 | I45: 387 | J45: 209 | K45: 483 | L45: 2443 | M45: 4604 | N45: 4785 | O45: Communication Studies | P45: Males | Q45: 94 | R45: 389 | S45: 790 | T45: 1170 | U45: 945 | V45: 620 | W45: 387 | X45: 209 | Y45: 483 | Z45: 2443 | AA45: 4604 | AB45: 4785 | AC45: Females | AD45: 416 | AE45: 832 | AF45: 1164 | AG45: 1094 | AH45: 713 | AI45: 389 | AJ45: 237 | AK45: 121 | AL45: 1248 | AM45: 3506 | AN45: 4966 | AO45: 5058 | AP45: All | AQ45: 510 | AR45: 1221 | AS45: 1954 | AT45: 2264 | AU45: 1658 | AV45: 1009 | AW45: 624 | AX45: 330 | AY45: 1731 | AZ45: 5949 | BA45: 9570 | BB45: 9843
A46: Drama | B46: Males | C46: 953 | D46: 3616 | E46: 6174 | F46: 7050 | G46: 4936 | H46: 2566 | I46: 1166 | J46: 481 | K46: 4569 | L46: 17793 | M46: 26942 | N46: 27225 | O46: Drama | P46: Males | Q46: 953 | R46: 3616 | S46: 6174 | T46: 7050 | U46: 4936 | V46: 2566 | W46: 1166 | X46: 481 | Y46: 4569 | Z46: 17793 | AA46: 26942 | AB46: 27225 | AC46: Females | AD46: 2806 | AE46: 8721 | AF46: 12029 | AG46: 10370 | AH46: 5760 | AI46: 2429 | AJ46: 993 | AK46: 382 | AL46: 11527 | AM46: 33926 | AN46: 43490 | AO46: 43759 | AP46: All | AQ46: 3759 | AR46: 12337 | AS46: 18203 | AT46: 17420 | AU46: 10696 | AV46: 4995 | AW46: 2159 | AX46: 863 | AY46: 16096 | AZ46: 51719 | BA46: 70432 | BB46: 70984
A47: English Literature | B47: Males | C47: 7158 | D47: 25356 | E47: 50488 | F47: 53169 | G47: 32849 | H47: 14472 | I47: 5722 | J47: 2156 | K47: 32514 | L47: 136171 | M47: 191370 | N47: 193518 | O47: English Literature | P47: Males | Q47: 7158 | R47: 25356 | S47: 50488 | T47: 53169 | U47: 32849 | V47: 14472 | W47: 5722 | X47: 2156 | Y47: 32514 | Z47: 136171 | AA47: 191370 | AB47: 193518 | AC47: Females | AD47: 16296 | AE47: 46357 | AF47: 67935 | AG47: 49704 | AH47: 22005 | AI47: 7579 | AJ47: 2500 | AK47: 899 | AL47: 62653 | AM47: 180292 | AN47: 213275 | AO47: 214587 | AP47: All | AQ47: 23454 | AR47: 71713 | AS47: 118423 | AT47: 102873 | AU47: 54854 | AV47: 22051 | AW47: 8222 | AX47: 3055 | AY47: 95167 | AZ47: 316463 | BA47: 404645 | BB47: 408105
A48: English Studies | B48: Males | C48: 0 | D48: 7 | E48: 42 | F48: 118 | G48: 101 | H48: 85 | I48: 53 | J48: 27 | K48: 7 | L48: 167 | M48: 433 | N48: 445 | O48: English Studies | P48: Males | Q48: 0 | R48: 7 | S48: 42 | T48: 118 | U48: 101 | V48: 85 | W48: 53 | X48: 27 | Y48: 7 | Z48: 167 | AA48: 433 | AB48: 445 | AC48: Females | AD48: 0 | AE48: 12 | AF48: 57 | AG48: 104 | AH48: 60 | AI48: 37 | AJ48: 40 | AK48: 16 | AL48: 12 | AM48: 173 | AN48: 326 | AO48: 338 | AP48: All | AQ48: 0 | AR48: 19 | AS48: 99 | AT48: 222 | AU48: 161 | AV48: 122 | AW48: 93 | AX48: 43 | AY48: 19 | AZ48: 340 | BA48: 759 | BB48: 783
A49: General Studies | B49: Males | C49: 73 | D49: 275 | E49: 522 | F49: 733 | G49: 831 | H49: 697 | I49: 574 | J49: 457 | K49: 348 | L49: 1603 | M49: 4162 | N49: 4595 | O49: General Studies | P49: Males | Q49: 73 | R49: 275 | S49: 522 | T49: 733 | U49: 831 | V49: 697 | W49: 574 | X49: 457 | Y49: 348 | Z49: 1603 | AA49: 4162 | AB49: 4595 | AC49: Females | AD49: 119 | AE49: 418 | AF49: 623 | AG49: 862 | AH49: 911 | AI49: 634 | AJ49: 409 | AK49: 203 | AL49: 537 | AM49: 2022 | AN49: 4179 | AO49: 4421 | AP49: All | AQ49: 192 | AR49: 693 | AS49: 1145 | AT49: 1595 | AU49: 1742 | AV49: 1331 | AW49: 983 | AX49: 660 | AY49: 885 | AZ49: 3625 | BA49: 8341 | BB49: 9016
A50: Health and Social Care | B50: Males | C50: 2 | D50: 24 | E50: 61 | F50: 107 | G50: 161 | H50: 130 | I50: 86 | J50: 79 | K50: 26 | L50: 194 | M50: 650 | N50: 741 | O50: Health and Social Care | P50: Males | Q50: 2 | R50: 24 | S50: 61 | T50: 107 | U50: 161 | V50: 130 | W50: 86 | X50: 79 | Y50: 26 | Z50: 194 | AA50: 650 | AB50: 741 | AC50: Females | AD50: 322 | AE50: 1138 | AF50: 2469 | AG50: 3130 | AH50: 2396 | AI50: 1523 | AJ50: 991 | AK50: 533 | AL50: 1460 | AM50: 7059 | AN50: 12502 | AO50: 12910 | AP50: All | AQ50: 324 | AR50: 1162 | AS50: 2530 | AT50: 3237 | AU50: 2557 | AV50: 1653 | AW50: 1077 | AX50: 612 | AY50: 1486 | AZ50: 7253 | BA50: 13152 | BB50: 13651
A51: Hospitality and Catering | B51: Males | C51: 2 | D51: 42 | E51: 138 | F51: 219 | G51: 253 | H51: 135 | I51: 71 | J51: 10 | K51: 44 | L51: 401 | M51: 870 | N51: 880 | O51: Hospitality and Catering | P51: Males | Q51: 2 | R51: 42 | S51: 138 | T51: 219 | U51: 253 | V51: 135 | W51: 71 | X51: 10 | Y51: 44 | Z51: 401 | AA51: 870 | AB51: 880 | AC51: Females | AD51: 43 | AE51: 188 | AF51: 341 | AG51: 337 | AH51: 226 | AI51: 143 | AJ51: 52 | AK51: 7 | AL51: 231 | AM51: 909 | AN51: 1337 | AO51: 1358 | AP51: All | AQ51: 45 | AR51: 230 | AS51: 479 | AT51: 556 | AU51: 479 | AV51: 278 | AW51: 123 | AX51: 17 | AY51: 275 | AZ51: 1310 | BA51: 2207 | BB51: 2238
A52: Leisure and Tourism | B52: Males | C52: 11 | D52: 71 | E52: 202 | F52: 440 | G52: 539 | H52: 613 | I52: 468 | J52: 411 | K52: 82 | L52: 724 | M52: 2755 | N52: 3241 | O52: Leisure and Tourism | P52: Males | Q52: 11 | R52: 71 | S52: 202 | T52: 440 | U52: 539 | V52: 613 | W52: 468 | X52: 411 | Y52: 82 | Z52: 724 | AA52: 2755 | AB52: 3241 | AC52: Females | AD52: 55 | AE52: 268 | AF52: 437 | AG52: 581 | AH52: 581 | AI52: 435 | AJ52: 329 | AK52: 265 | AL52: 323 | AM52: 1341 | AN52: 2951 | AO52: 3185 | AP52: All | AQ52: 66 | AR52: 339 | AS52: 639 | AT52: 1021 | AU52: 1120 | AV52: 1048 | AW52: 797 | AX52: 676 | AY52: 405 | AZ52: 2065 | BA52: 5706 | BB52: 6426
A53: Manufacturing | B53: Males | C53: 0 | D53: 2 | E53: 13 | F53: 19 | G53: 30 | H53: 27 | I53: 19 | J53: 10 | K53: 2 | L53: 34 | M53: 120 | N53: 122 | O53: Manufacturing | P53: Males | Q53: 0 | R53: 2 | S53: 13 | T53: 19 | U53: 30 | V53: 27 | W53: 19 | X53: 10 | Y53: 2 | Z53: 34 | AA53: 120 | AB53: 122 | AC53: Females | AD53: 0 | AE53: 1 | AF53: 3 | AG53: 6 | AH53: 1 | AI53: 0 | AJ53: 3 | AK53: 0 | AL53: 1 | AM53: 10 | AN53: 14 | AO53: 14 | AP53: All | AQ53: 0 | AR53: 3 | AS53: 16 | AT53: 25 | AU53: 31 | AV53: 27 | AW53: 22 | AX53: 10 | AY53: 3 | AZ53: 44 | BA53: 134 | BB53: 136
A54: Media/Film/TV | B54: Males | C54: 390 | D54: 1921 | E54: 5021 | F54: 7135 | G54: 5534 | H54: 3148 | I54: 1777 | J54: 790 | K54: 2311 | L54: 14467 | M54: 25716 | N54: 26290 | O54: Media/Film/TV | P54: Males | Q54: 390 | R54: 1921 | S54: 5021 | T54: 7135 | U54: 5534 | V54: 3148 | W54: 1777 | X54: 790 | Y54: 2311 | Z54: 14467 | AA54: 25716 | AB54: 26290 | AC54: Females | AD54: 1259 | AE54: 4554 | AF54: 6915 | AG54: 6255 | AH54: 3399 | AI54: 1455 | AJ54: 659 | AK54: 318 | AL54: 5813 | AM54: 18983 | AN54: 24814 | AO54: 25038 | AP54: All | AQ54: 1649 | AR54: 6475 | AS54: 11936 | AT54: 13390 | AU54: 8933 | AV54: 4603 | AW54: 2436 | AX54: 1108 | AY54: 8124 | AZ54: 33450 | BA54: 50530 | BB54: 51328
A55: Music | B55: Males | C55: 1796 | D55: 4293 | E55: 4941 | F55: 4086 | G55: 2674 | H55: 1623 | I55: 751 | J55: 422 | K55: 6089 | L55: 15116 | M55: 20586 | N55: 20902 | O55: Music | P55: Males | Q55: 1796 | R55: 4293 | S55: 4941 | T55: 4086 | U55: 2674 | V55: 1623 | W55: 751 | X55: 422 | Y55: 6089 | Z55: 15116 | AA55: 20586 | AB55: 20902 | AC55: Females | AD55: 2013 | AE55: 5114 | AF55: 5752 | AG55: 4113 | AH55: 2388 | AI55: 1206 | AJ55: 520 | AK55: 255 | AL55: 7127 | AM55: 16992 | AN55: 21361 | AO55: 21544 | AP55: All | AQ55: 3809 | AR55: 9407 | AS55: 10693 | AT55: 8199 | AU55: 5062 | AV55: 2829 | AW55: 1271 | AX55: 677 | AY55: 13216 | AZ55: 32108 | BA55: 41947 | BB55: 42446
A56: Performing Arts | B56: Males | C56: 50 | D56: 93 | E56: 190 | F56: 320 | G56: 236 | H56: 197 | I56: 164 | J56: 70 | K56: 143 | L56: 653 | M56: 1320 | N56: 1362 | O56: Performing Arts | P56: Males | Q56: 50 | R56: 93 | S56: 190 | T56: 320 | U56: 236 | V56: 197 | W56: 164 | X56: 70 | Y56: 143 | Z56: 653 | AA56: 1320 | AB56: 1362 | AC56: Females | AD56: 296 | AE56: 363 | AF56: 682 | AG56: 772 | AH56: 535 | AI56: 261 | AJ56: 128 | AK56: 64 | AL56: 659 | AM56: 2113 | AN56: 3101 | AO56: 3142 | AP56: All | AQ56: 346 | AR56: 456 | AS56: 872 | AT56: 1092 | AU56: 771 | AV56: 458 | AW56: 292 | AX56: 134 | AY56: 802 | AZ56: 2766 | BA56: 4421 | BB56: 4504
A57: Physical Education | B57: Males | C57: 1921 | D57: 9603 | E57: 16984 | F57: 18448 | G57: 12567 | H57: 6277 | I57: 2096 | J57: 496 | K57: 11524 | L57: 46956 | M57: 68392 | N57: 68621 | O57: Physical Education | P57: Males | Q57: 1921 | R57: 9603 | S57: 16984 | T57: 18448 | U57: 12567 | V57: 6277 | W57: 2096 | X57: 496 | Y57: 11524 | Z57: 46956 | AA57: 68392 | AB57: 68621 | AC57: Females | AD57: 2674 | AE57: 8364 | AF57: 10825 | AG57: 10622 | AH57: 7508 | AI57: 3830 | AJ57: 1478 | AK57: 426 | AL57: 11038 | AM57: 32485 | AN57: 45727 | AO57: 45920 | AP57: All | AQ57: 4595 | AR57: 17967 | AS57: 27809 | AT57: 29070 | AU57: 20075 | AV57: 10107 | AW57: 3574 | AX57: 922 | AY57: 22562 | AZ57: 79441 | BA57: 114119 | BB57: 114541
A58: Religious Studies | B58: Males | C58: 8405 | D58: 18393 | E58: 26288 | F58: 24517 | G58: 16186 | H58: 10941 | I58: 7133 | J58: 4733 | K58: 26798 | L58: 77603 | M58: 116596 | N58: 120566 | O58: Religious Studies | P58: Males | Q58: 8405 | R58: 18393 | S58: 26288 | T58: 24517 | U58: 16186 | V58: 10941 | W58: 7133 | X58: 4733 | Y58: 26798 | Z58: 77603 | AA58: 116596 | AB58: 120566 | AC58: Females | AD58: 20591 | AE58: 31583 | AF58: 32545 | AG58: 23361 | AH58: 13305 | AI58: 7981 | AJ58: 4570 | AK58: 2693 | AL58: 52174 | AM58: 108080 | AN58: 136629 | AO58: 138793 | AP58: All | AQ58: 28996 | AR58: 49976 | AS58: 58833 | AT58: 47878 | AU58: 29491 | AV58: 18922 | AW58: 11703 | AX58: 7426 | AY58: 78972 | AZ58: 185683 | BA58: 253225 | BB58: 259359
A59: Statistics | B59: Males | C59: 1244 | D59: 4319 | E59: 5934 | F59: 7227 | G59: 4031 | H59: 1552 | I59: 727 | J59: 439 | K59: 5563 | L59: 18724 | M59: 25473 | N59: 26152 | O59: Statistics | P59: Males | Q59: 1244 | R59: 4319 | S59: 5934 | T59: 7227 | U59: 4031 | V59: 1552 | W59: 727 | X59: 439 | Y59: 5563 | Z59: 18724 | AA59: 25473 | AB59: 26152 | AC59: Females | AD59: 1219 | AE59: 4063 | AF59: 5616 | AG59: 6727 | AH59: 2959 | AI59: 1108 | AJ59: 512 | AK59: 251 | AL59: 5282 | AM59: 17625 | AN59: 22455 | AO59: 22902 | AP59: All | AQ59: 2463 | AR59: 8382 | AS59: 11550 | AT59: 13954 | AU59: 6990 | AV59: 2660 | AW59: 1239 | AX59: 690 | AY59: 10845 | AZ59: 36349 | BA59: 47928 | BB59: 49054
A60: Vocational Studies | B60: Males | C60: 196 | D60: 1097 | E60: 3122 | F60: 5189 | G60: 4669 | H60: 2691 | I60: 1235 | J60: 500 | K60: 1293 | L60: 9604 | M60: 18699 | N60: 19028 | O60: Vocational Studies | P60: Males | Q60: 196 | R60: 1097 | S60: 3122 | T60: 5189 | U60: 4669 | V60: 2691 | W60: 1235 | X60: 500 | Y60: 1293 | Z60: 9604 | AA60: 18699 | AB60: 19028 | AC60: Females | AD60: 710 | AE60: 2869 | AF60: 5092 | AG60: 5526 | AH60: 3775 | AI60: 1852 | AJ60: 759 | AK60: 283 | AL60: 3579 | AM60: 14197 | AN60: 20866 | AO60: 21043 | AP60: All | AQ60: 906 | AR60: 3966 | AS60: 8214 | AT60: 10715 | AU60: 8444 | AV60: 4543 | AW60: 1994 | AX60: 783 | AY60: 4872 | AZ60: 23801 | BA60: 39565 | BB60: 40071
A61: All Subjects | B61: Males | C61: 127130 | D61: 293393 | E61: 481172 | F61: 612637 | G61: 372246 | H61: 192574 | I61: 102798 | J61: 54831 | K61: 420523 | L61: 1514332 | M61: 2236781 | N61: 2284001 | O61: All Subjects | P61: Males | Q61: 127130 | R61: 293393 | S61: 481172 | T61: 612637 | U61: 372246 | V61: 192574 | W61: 102798 | X61: 54831 | Y61: 420523 | Z61: 1514332 | AA61: 2236781 | AB61: 2284001 | AC61: Females | AD61: 203600 | AE61: 411966 | AF61: 574167 | AG61: 598278 | AH61: 306024 | AI61: 139329 | AJ61: 69479 | AK61: 35885 | AL61: 615566 | AM61: 1788011 | AN61: 2338728 | AO61: 2372286 | AP61: All | AQ61: 330730 | AR61: 705359 | AS61: 1055339 | AT61: 1210915 | AU61: 678270 | AV61: 331903 | AW61: 172277 | AX61: 90716 | AY61: 1036089 | AZ61: 3302343 | BA61: 4575509 | BB61: 4656287

Sheet 2014 DISC3C (hidden)
A1: Subject | B1: (No column name) | C1: * | D1: A | E1: B | F1: C | G1: D | H1: E | I1: F | J1: G | K1: AstarA | L1: AstarC | M1: AstarG | N1: Total | O1: (No column name) | P1: * | Q1: A | R1: B | S1: C | T1: D | U1: E | V1: F | W1: G | X1: AstarA | Y1: AstarC | Z1: AstarG | AA1: Total | AB1: (No column name) | AC1: * | AD1: A | AE1: B | AF1: C | AG1: D | AH1: E | AI1: F | AJ1: G | AK1: AstarA | AL1: AstarC | AM1: AstarG | AN1: Total
A2: English | B2: Males | C2: 6101 | D2: 21781 | E2: 48418 | F2: 72523 | G2: 45407 | H2: 20850 | I2: 8737 | J2: 3385 | K2: 27882 | L2: 148823 | M2: 227202 | N2: 229883 | O2: Females | P2: 13885 | Q2: 39842 | R2: 65881 | S2: 67342 | T2: 30373 | U2: 10355 | V2: 3583 | W2: 1376 | X2: 53727 | Y2: 186950 | Z2: 232637 | AA2: 234194 | AB2: All | AC2: 19986 | AD2: 61623 | AE2: 114299 | AF2: 139865 | AG2: 75780 | AH2: 31205 | AI2: 12320 | AJ2: 4761 | AK2: 81609 | AL2: 335773 | AM2: 459839 | AN2: 464077
A3: Mathematics | B3: Males | C3: 21508 | D3: 34797 | E3: 56177 | F3: 91309 | G3: 37250 | H3: 18835 | I3: 14628 | J3: 11817 | K3: 56305 | L3: 203791 | M3: 286321 | N3: 302896 | O3: Females | P3: 18832 | Q3: 34693 | R3: 57211 | S3: 90975 | T3: 36556 | U3: 17371 | V3: 13072 | W3: 10290 | X3: 53525 | Y3: 201711 | Z3: 279000 | AA3: 293510 | AB3: All | AC3: 40340 | AD3: 69490 | AE3: 113388 | AF3: 182284 | AG3: 73806 | AH3: 36206 | AI3: 27700 | AJ3: 22107 | AK3: 109830 | AL3: 405502 | AM3: 565321 | AN3: 596406
A4: Core Science | B4: Males | C4: 1804 | D4: 10170 | E4: 29825 | F4: 61058 | G4: 34771 | H4: 19561 | I4: 10300 | J4: 4337 | K4: 11974 | L4: 102857 | M4: 171826 | N4: 175047 | O4: Females | P4: 3038 | Q4: 15101 | R4: 36589 | S4: 61211 | T4: 31193 | U4: 16599 | V4: 8232 | W4: 3232 | X4: 18139 | Y4: 115939 | Z4: 175195 | AA4: 177855 | AB4: All | AC4: 4842 | AD4: 25271 | AE4: 66414 | AF4: 122269 | AG4: 65964 | AH4: 36160 | AI4: 18532 | AJ4: 7569 | AK4: 30113 | AL4: 218796 | AM4: 347021 | AN4: 352902
A5: Additional Science | B5: Males | C5: 2566 | D5: 10592 | E5: 26870 | F5: 42608 | G5: 28740 | H5: 11974 | I5: 5139 | J5: 2000 | K5: 13158 | L5: 82636 | M5: 130489 | N5: 131575 | O5: Females | P5: 3705 | Q5: 14289 | R5: 32714 | S5: 45164 | T5: 27147 | U5: 10249 | V5: 4027 | W5: 1468 | X5: 17994 | Y5: 95872 | Z5: 138763 | AA5: 139627 | AB5: All | AC5: 6271 | AD5: 24881 | AE5: 59584 | AF5: 87772 | AG5: 55887 | AH5: 22223 | AI5: 9166 | AJ5: 3468 | AK5: 31152 | AL5: 178508 | AM5: 269252 | AN5: 271202
A6: Further Additional Science | B6: Males | C6: 1065 | D6: 2192 | E6: 2873 | F6: 2660 | G6: 1297 | H6: 383 | I6: 81 | J6: 26 | K6: 3257 | L6: 8790 | M6: 10577 | N6: 10607 | O6: Females | P6: 1208 | Q6: 2342 | R6: 2920 | S6: 2468 | T6: 1103 | U6: 289 | V6: 55 | W6: 24 | X6: 3550 | Y6: 8938 | Z6: 10409 | AA6: 10429 | AB6: All | AC6: 2273 | AD6: 4534 | AE6: 5793 | AF6: 5128 | AG6: 2400 | AH6: 672 | AI6: 136 | AJ6: 50 | AK6: 6807 | AL6: 17728 | AM6: 20986 | AN6: 21036
A7: Additional Applied Science | B7: Males | C7: 0 | D7: 59 | E7: 344 | F7: 1324 | G7: 1940 | H7: 1554 | I7: 858 | J7: 339 | K7: 59 | L7: 1727 | M7: 6418 | N7: 6616 | O7: Females | P7: 10 | Q7: 81 | R7: 653 | S7: 1768 | T7: 2053 | U7: 1236 | V7: 570 | W7: 197 | X7: 91 | Y7: 2512 | Z7: 6568 | AA7: 6697 | AB7: All | AC7: 10 | AD7: 140 | AE7: 997 | AF7: 3092 | AG7: 3993 | AH7: 2790 | AI7: 1428 | AJ7: 536 | AK7: 150 | AL7: 4239 | AM7: 12986 | AN7: 13313
A8: Physics | B8: Males | C8: 9455 | D8: 17793 | E8: 19022 | F8: 13347 | G8: 4401 | H8: 802 | I8: 187 | J8: 65 | K8: 27248 | L8: 59617 | M8: 65072 | N8: 65136 | O8: Females | P8: 10091 | Q8: 17292 | R8: 18378 | S8: 12771 | T8: 4080 | U8: 749 | V8: 132 | W8: 48 | X8: 27383 | Y8: 58532 | Z8: 63541 | AA8: 63604 | AB8: All | AC8: 19546 | AD8: 35085 | AE8: 37400 | AF8: 26118 | AG8: 8481 | AH8: 1551 | AI8: 319 | AJ8: 113 | AK8: 54631 | AL8: 118149 | AM8: 128613 | AN8: 128740
A9: Chemistry | B9: Males | C9: 8610 | D9: 17532 | E9: 19172 | F9: 13913 | G9: 5070 | H9: 1100 | I9: 253 | J9: 86 | K9: 26142 | L9: 59227 | M9: 65736 | N9: 65808 | O9: Females | P9: 10691 | Q9: 18731 | R9: 18121 | S9: 11415 | T9: 3781 | U9: 793 | V9: 178 | W9: 51 | X9: 29422 | Y9: 58958 | Z9: 63761 | AA9: 63836 | AB9: All | AC9: 19301 | AD9: 36263 | AE9: 37293 | AF9: 25328 | AG9: 8851 | AH9: 1893 | AI9: 431 | AJ9: 137 | AK9: 55564 | AL9: 118185 | AM9: 129497 | AN9: 129644
A10: Biological Sciences | B10: Males | C10: 7518 | D10: 17706 | E10: 20327 | F10: 14679 | G10: 5053 | H10: 1152 | I10: 426 | J10: 186 | K10: 25224 | L10: 60230 | M10: 67047 | N10: 67260 | O10: Females | P10: 10952 | Q10: 19671 | R10: 18814 | S10: 11254 | T10: 3608 | U10: 792 | V10: 319 | W10: 137 | X10: 30623 | Y10: 60691 | Z10: 65547 | AA10: 65692 | AB10: All | AC10: 18470 | AD10: 37377 | AE10: 39141 | AF10: 25933 | AG10: 8661 | AH10: 1944 | AI10: 745 | AJ10: 323 | AK10: 55847 | AL10: 120921 | AM10: 132594 | AN10: 132952
A11: Computer Science | B11: Males | C11: 809 | D11: 2227 | E11: 2865 | F11: 2736 | G11: 1885 | H11: 1185 | I11: 728 | J11: 462 | K11: 3036 | L11: 8637 | M11: 12897 | N11: 13420 | O11: Females | P11: 197 | Q11: 460 | R11: 514 | S11: 503 | T11: 322 | U11: 176 | V11: 88 | W11: 40 | X11: 657 | Y11: 1674 | Z11: 2300 | AA11: 2372 | AB11: All | AC11: 1006 | AD11: 2687 | AE11: 3379 | AF11: 3239 | AG11: 2207 | AH11: 1361 | AI11: 816 | AJ11: 502 | AK11: 3693 | AL11: 10311 | AM11: 15197 | AN11: 15792
A12: Other Sciences | B12: Males | C12: 433 | D12: 613 | E12: 689 | F12: 714 | G12: 655 | H12: 502 | I12: 354 | J12: 206 | K12: 1046 | L12: 2449 | M12: 4166 | N12: 4283 | O12: Females | P12: 113 | Q12: 247 | R12: 464 | S12: 557 | T12: 446 | U12: 329 | V12: 212 | W12: 137 | X12: 360 | Y12: 1381 | Z12: 2505 | AA12: 2579 | AB12: All | AC12: 546 | AD12: 860 | AE12: 1153 | AF12: 1271 | AG12: 1101 | AH12: 831 | AI12: 566 | AJ12: 343 | AK12: 1406 | AL12: 3830 | AM12: 6671 | AN12: 6862
A13: D & T: Electronic Products | B13: Males | C13: 534 | D13: 1116 | E13: 1648 | F13: 1611 | G13: 1141 | H13: 762 | I13: 469 | J13: 261 | K13: 1650 | L13: 4909 | M13: 7542 | N13: 7692 | O13: Females | P13: 107 | Q13: 164 | R13: 154 | S13: 83 | T13: 60 | U13: 37 | V13: 10 | W13: 8 | X13: 271 | Y13: 508 | Z13: 623 | AA13: 628 | AB13: All | AC13: 641 | AD13: 1280 | AE13: 1802 | AF13: 1694 | AG13: 1201 | AH13: 799 | AI13: 479 | AJ13: 269 | AK13: 1921 | AL13: 5417 | AM13: 8165 | AN13: 8320
A14: D & T: Food Technology | B14: Males | C14: 226 | D14: 874 | E14: 2106 | F14: 3637 | G14: 3468 | H14: 2347 | I14: 1364 | J14: 613 | K14: 1100 | L14: 6843 | M14: 14635 | N14: 14951 | O14: Females | P14: 1849 | Q14: 4320 | R14: 6072 | S14: 5940 | T14: 3827 | U14: 2044 | V14: 980 | W14: 384 | X14: 6169 | Y14: 18181 | Z14: 25416 | AA14: 25635 | AB14: All | AC14: 2075 | AD14: 5194 | AE14: 8178 | AF14: 9577 | AG14: 7295 | AH14: 4391 | AI14: 2344 | AJ14: 997 | AK14: 7269 | AL14: 25024 | AM14: 40051 | AN14: 40586
A15: D & T: Graphic Products | B15: Males | C15: 583 | D15: 1795 | E15: 3515 | F15: 4765 | G15: 4157 | H15: 2699 | I15: 1728 | J15: 1040 | K15: 2378 | L15: 10658 | M15: 20282 | N15: 20953 | O15: Females | P15: 1012 | Q15: 2395 | R15: 3037 | S15: 2750 | T15: 1815 | U15: 971 | V15: 523 | W15: 266 | X15: 3407 | Y15: 9194 | Z15: 12769 | AA15: 12921 | AB15: All | AC15: 1595 | AD15: 4190 | AE15: 6552 | AF15: 7515 | AG15: 5972 | AH15: 3670 | AI15: 2251 | AJ15: 1306 | AK15: 5785 | AL15: 19852 | AM15: 33051 | AN15: 33874
A16: D & T: Resistant Materials | B16: Males | C16: 1296 | D16: 3973 | E16: 8216 | F16: 11007 | G16: 8864 | H16: 5728 | I16: 3405 | J16: 1648 | K16: 5269 | L16: 24492 | M16: 44137 | N16: 45024 | O16: Females | P16: 676 | Q16: 1431 | R16: 1851 | S16: 1644 | T16: 1072 | U16: 569 | V16: 287 | W16: 160 | X16: 2107 | Y16: 5602 | Z16: 7690 | AA16: 7760 | AB16: All | AC16: 1972 | AD16: 5404 | AE16: 10067 | AF16: 12651 | AG16: 9936 | AH16: 6297 | AI16: 3692 | AJ16: 1808 | AK16: 7376 | AL16: 30094 | AM16: 51827 | AN16: 52784
A17: D & T: Systems & Control | B17: Males | C17: 251 | D17: 408 | E17: 631 | F17: 681 | G17: 512 | H17: 294 | I17: 185 | J17: 87 | K17: 659 | L17: 1971 | M17: 3049 | N17: 3091 | O17: Females | P17: 7 | Q17: 30 | R17: 29 | S17: 34 | T17: 31 | U17: 10 | V17: 6 | W17: 1 | X17: 37 | Y17: 100 | Z17: 148 | AA17: 150 | AB17: All | AC17: 258 | AD17: 438 | AE17: 660 | AF17: 715 | AG17: 543 | AH17: 304 | AI17: 191 | AJ17: 88 | AK17: 696 | AL17: 2071 | AM17: 3197 | AN17: 3241
A18: D & T: Textiles Technology | B18: Males | C18: 24 | D18: 33 | E18: 79 | F18: 162 | G18: 164 | H18: 144 | I18: 120 | J18: 48 | K18: 57 | L18: 298 | M18: 774 | N18: 820 | O18: Females | P18: 2472 | Q18: 4241 | R18: 5694 | S18: 5581 | T18: 3456 | U18: 1854 | V18: 850 | W18: 390 | X18: 6713 | Y18: 17988 | Z18: 24538 | AA18: 24767 | AB18: All | AC18: 2496 | AD18: 4274 | AE18: 5773 | AF18: 5743 | AG18: 3620 | AH18: 1998 | AI18: 970 | AJ18: 438 | AK18: 6770 | AL18: 18286 | AM18: 25312 | AN18: 25587
A19: Other Design and Technology | B19: Males | C19: 737 | D19: 2063 | E19: 4413 | F19: 6347 | G19: 5320 | H19: 3460 | I19: 2095 | J19: 1006 | K19: 2800 | L19: 13560 | M19: 25441 | N19: 26080 | O19: Females | P19: 971 | Q19: 1953 | R19: 2527 | S19: 2283 | T19: 1456 | U19: 805 | V19: 417 | W19: 215 | X19: 2924 | Y19: 7734 | Z19: 10627 | AA19: 10734 | AB19: All | AC19: 1708 | AD19: 4016 | AE19: 6940 | AF19: 8630 | AG19: 6776 | AH19: 4265 | AI19: 2512 | AJ19: 1221 | AK19: 5724 | AL19: 21294 | AM19: 36068 | AN19: 36814
A20: Applied Engineering | B20: Males | C20: 40 | D20: 152 | E20: 438 | F20: 846 | G20: 854 | H20: 678 | I20: 399 | J20: 242 | K20: 192 | L20: 1476 | M20: 3649 | N20: 3863 | O20: Females | P20: 2 | Q20: 23 | R20: 49 | S20: 52 | T20: 49 | U20: 34 | V20: 11 | W20: 7 | X20: 25 | Y20: 126 | Z20: 227 | AA20: 228 | AB20: All | AC20: 42 | AD20: 175 | AE20: 487 | AF20: 898 | AG20: 903 | AH20: 712 | AI20: 410 | AJ20: 249 | AK20: 217 | AL20: 1602 | AM20: 3876 | AN20: 4091
A21: Information Technology | B21: Males | C21: 2052 | D21: 6680 | E21: 10593 | F21: 10960 | G21: 6725 | H21: 3751 | I21: 2609 | J21: 1856 | K21: 8732 | L21: 30285 | M21: 45226 | N21: 46525 | O21: Females | P21: 2656 | Q21: 6614 | R21: 8410 | S21: 7896 | T21: 4330 | U21: 2323 | V21: 1359 | W21: 953 | X21: 9270 | Y21: 25576 | Z21: 34541 | AA21: 35282 | AB21: All | AC21: 4708 | AD21: 13294 | AE21: 19003 | AF21: 18856 | AG21: 11055 | AH21: 6074 | AI21: 3968 | AJ21: 2809 | AK21: 18002 | AL21: 55861 | AM21: 79767 | AN21: 81807
A22: Business Studies | B22: Males | C22: 1335 | D22: 5982 | E22: 10406 | F22: 10468 | G22: 7105 | H22: 4041 | I22: 2332 | J22: 1303 | K22: 7317 | L22: 28191 | M22: 42972 | N22: 43744 | O22: Females | P22: 1371 | Q22: 5334 | R22: 7821 | S22: 6971 | T22: 4253 | U22: 2392 | V22: 1320 | W22: 684 | X22: 6705 | Y22: 21497 | Z22: 30146 | AA22: 30549 | AB22: All | AC22: 2706 | AD22: 11316 | AE22: 18227 | AF22: 17439 | AG22: 11358 | AH22: 6433 | AI22: 3652 | AJ22: 1987 | AK22: 14022 | AL22: 49688 | AM22: 73118 | AN22: 74293
A23: Applied Business | B23: Males | C23: 89 | D23: 442 | E23: 908 | F23: 1138 | G23: 816 | H23: 581 | I23: 360 | J23: 237 | K23: 531 | L23: 2577 | M23: 4571 | N23: 4852 | O23: Females | P23: 116 | Q23: 535 | R23: 742 | S23: 640 | T23: 443 | U23: 301 | V23: 174 | W23: 114 | X23: 651 | Y23: 2033 | Z23: 3065 | AA23: 3185 | AB23: All | AC23: 205 | AD23: 977 | AE23: 1650 | AF23: 1778 | AG23: 1259 | AH23: 882 | AI23: 534 | AJ23: 351 | AK23: 1182 | AL23: 4610 | AM23: 7636 | AN23: 8037
A24: Home Economics | B24: Males | C24: 21 | D24: 145 | E24: 471 | F24: 832 | G24: 814 | H24: 639 | I24: 393 | J24: 183 | K24: 166 | L24: 1469 | M24: 3498 | N24: 3594 | O24: Females | P24: 734 | Q24: 2634 | R24: 4819 | S24: 5809 | T24: 4831 | U24: 3063 | V24: 1596 | W24: 695 | X24: 3368 | Y24: 13996 | Z24: 24181 | AA24: 24583 | AB24: All | AC24: 755 | AD24: 2779 | AE24: 5290 | AF24: 6641 | AG24: 5645 | AH24: 3702 | AI24: 1989 | AJ24: 878 | AK24: 3534 | AL24: 15465 | AM24: 27679 | AN24: 28177
A25: Geography | B25: Males | C25: 8235 | D25: 16773 | E25: 22086 | F25: 26144 | G25: 18415 | H25: 10722 | I25: 5778 | J25: 2908 | K25: 25008 | L25: 73238 | M25: 111061 | N25: 112246 | O25: Females | P25: 11812 | Q25: 19105 | R25: 20568 | S25: 19791 | T25: 12238 | U25: 7036 | V25: 3861 | W25: 1852 | X25: 30917 | Y25: 71276 | Z25: 96263 | AA25: 96918 | AB25: All | AC25: 20047 | AD25: 35878 | AE25: 42654 | AF25: 45935 | AG25: 30653 | AH25: 17758 | AI25: 9639 | AJ25: 4760 | AK25: 55925 | AL25: 144514 | AM25: 207324 | AN25: 209164
A26: History | B26: Males | C26: 8938 | D26: 19012 | E26: 23832 | F26: 22875 | G26: 16334 | H26: 10703 | I26: 6705 | J26: 4244 | K26: 27950 | L26: 74657 | M26: 112643 | N26: 115362 | O26: Females | P26: 15224 | Q26: 24991 | R26: 25930 | S26: 21913 | T26: 14846 | U26: 9323 | V26: 5520 | W26: 3237 | X26: 40215 | Y26: 88058 | Z26: 120984 | AA26: 122772 | AB26: All | AC26: 24162 | AD26: 44003 | AE26: 49762 | AF26: 44788 | AG26: 31180 | AH26: 20026 | AI26: 12225 | AJ26: 7481 | AK26: 68165 | AL26: 162715 | AM26: 233627 | AN26: 238134
A27: Humanities | B27: Males | C27: 62 | D27: 259 | E27: 694 | F27: 1023 | G27: 947 | H27: 831 | I27: 621 | J27: 390 | K27: 321 | L27: 2038 | M27: 4827 | N27: 5150 | O27: Females | P27: 154 | Q27: 453 | R27: 914 | S27: 1018 | T27: 899 | U27: 669 | V27: 436 | W27: 236 | X27: 607 | Y27: 2539 | Z27: 4779 | AA27: 4916 | AB27: All | AC27: 216 | AD27: 712 | AE27: 1608 | AF27: 2041 | AG27: 1846 | AH27: 1500 | AI27: 1057 | AJ27: 626 | AK27: 928 | AL27: 4577 | AM27: 9606 | AN27: 10066
A28: Economics | B28: Males | C28: 234 | D28: 828 | E28: 1043 | F28: 650 | G28: 331 | H28: 187 | I28: 104 | J28: 51 | K28: 1062 | L28: 2755 | M28: 3428 | N28: 3480 | O28: Females | P28: 77 | Q28: 379 | R28: 416 | S28: 269 | T28: 150 | U28: 77 | V28: 31 | W28: 24 | X28: 456 | Y28: 1141 | Z28: 1423 | AA28: 1444 | AB28: All | AC28: 311 | AD28: 1207 | AE28: 1459 | AF28: 919 | AG28: 481 | AH28: 264 | AI28: 135 | AJ28: 75 | AK28: 1518 | AL28: 3896 | AM28: 4851 | AN28: 4924
A29: Social Studies | B29: Males | C29: 299 | D29: 1747 | E29: 4022 | F29: 4916 | G29: 3744 | H29: 2486 | I29: 1611 | J29: 971 | K29: 2046 | L29: 10984 | M29: 19796 | N29: 20550 | O29: Females | P29: 1418 | Q29: 6145 | R29: 9233 | S29: 8229 | T29: 4999 | U29: 3040 | V29: 1794 | W29: 888 | X29: 7563 | Y29: 25025 | Z29: 35746 | AA29: 36419 | AB29: All | AC29: 1717 | AD29: 7892 | AE29: 13255 | AF29: 13145 | AG29: 8743 | AH29: 5526 | AI29: 3405 | AJ29: 1859 | AK29: 9609 | AL29: 36009 | AM29: 55542 | AN29: 56969
A30: Arabic | B30: Males | C30: 396 | D30: 270 | E30: 173 | F30: 147 | G30: 88 | H30: 68 | I30: 54 | J30: 40 | K30: 666 | L30: 986 | M30: 1236 | N30: 1300 | O30: Females | P30: 499 | Q30: 302 | R30: 206 | S30: 150 | T30: 88 | U30: 72 | V30: 74 | W30: 44 | X30: 801 | Y30: 1157 | Z30: 1435 | AA30: 1493 | AB30: All | AC30: 895 | AD30: 572 | AE30: 379 | AF30: 297 | AG30: 176 | AH30: 140 | AI30: 128 | AJ30: 84 | AK30: 1467 | AL30: 2143 | AM30: 2671 | AN30: 2793
A31: Chinese | B31: Males | C31: 748 | D31: 247 | E31: 160 | F31: 122 | G31: 67 | H31: 14 | I31: 3 | J31: 0 | K31: 995 | L31: 1277 | M31: 1361 | N31: 1367 | O31: Females | P31: 790 | Q31: 200 | R31: 119 | S31: 83 | T31: 31 | U31: 7 | V31: 3 | W31: 2 | X31: 990 | Y31: 1192 | Z31: 1235 | AA31: 1238 | AB31: All | AC31: 1538 | AD31: 447 | AE31: 279 | AF31: 205 | AG31: 98 | AH31: 21 | AI31: 6 | AJ31: 2 | AK31: 1985 | AL31: 2469 | AM31: 2596 | AN31: 2605
A32: French | B32: Males | C32: 4985 | D32: 7702 | E32: 11577 | F32: 18781 | G32: 15303 | H32: 6826 | I32: 2519 | J32: 928 | K32: 12687 | L32: 43045 | M32: 68621 | N32: 68980 | O32: Females | P32: 9989 | Q32: 14114 | R32: 18773 | S32: 24866 | T32: 15916 | U32: 5440 | V32: 1731 | W32: 551 | X32: 24103 | Y32: 67742 | Z32: 91380 | AA32: 91652 | AB32: All | AC32: 14974 | AD32: 21816 | AE32: 30350 | AF32: 43647 | AG32: 31219 | AH32: 12266 | AI32: 4250 | AJ32: 1479 | AK32: 36790 | AL32: 110787 | AM32: 160001 | AN32: 160632
A33: German | B33: Males | C33: 1845 | D33: 3354 | E33: 5731 | F33: 8157 | G33: 5600 | H33: 2127 | I33: 767 | J33: 221 | K33: 5199 | L33: 19087 | M33: 27802 | N33: 27949 | O33: Females | P33: 2857 | Q33: 5082 | R33: 7550 | S33: 8317 | T33: 4504 | U33: 1409 | V33: 424 | W33: 110 | X33: 7939 | Y33: 23806 | Z33: 30253 | AA33: 30347 | AB33: All | AC33: 4702 | AD33: 8436 | AE33: 13281 | AF33: 16474 | AG33: 10104 | AH33: 3536 | AI33: 1191 | AJ33: 331 | AK33: 13138 | AL33: 42893 | AM33: 58055 | AN33: 58296
